Workbook

Sheet Control Sheet (hidden)
A1: Month | B1: Post Title | C1: Department | D1: HoD | E1: Division | F1: Faculty | G1: Contracted Hours (pm) | H1: Funding Source
A2: ='Employee Details'!$L$9 -> 2013-10-01 | B2: Select Your Post Title | C2: Select Your Department | G2: Select Hours Model | H2: Select Funding Source
A3: =EOMONTH(A2,0)+1 -> 2013-11-01 | B3: Principal Investigator | C3: Aeronautics | D3: Professor Ferri Aliabadi | E3: N/A | F3: Engineering | G3: 35 | H3: FP6 EU COMMISSION
A4: =EOMONTH(A3,0)+1 -> 2013-12-01 | B4: Co-Investigator | C4: Bioengineering | D4: Professor Anthony Bull | E4: N/A | F4: Engineering | G4: 37 | H4: FP7 EU COMMISSION
A5: =EOMONTH(A4,0)+1 -> 2014-01-01 | B5: Researcher | C5: Business School | D5: Professor G 'Anand' Anandalingam | E5: N/A | F5: Business School | G5: 37.5 | H5: H2020 EU COMMISSION
A6: 2014-02-01 | B6: Technician | C6: Centre of Environmental Policy | D6: Professor Zen Makuch | E6: N/A | F6: Natural Sciences | G6: 40 | H6: COAL & STEEL (EU COMMISSION)
A7: 2014-03-01 | B7: Clerical/Administrative | C7: Chemical Engineering and Chemical Technology | D7: Professor Andrew Livingston | E7: N/A | F7: Engineering | H7: OTHER EU COMMISSION
A8: 2014-04-01 | B8: Student | C8: Chemistry | D8: Professor Tom Welton | E8: N/A | F8: Natural Sciences | H8: OST RESEARCH COUNCIL
A9: 2014-05-01 | B9: Other | C9: Civil and Environmental Engineering | D9: Professor Nick Buenfeld | E9: N/A | F9: Engineering | H9: NATIONAL INSTITUTES OF HEALTH (NIH)
A10: 2014-06-01 | C10: Computing | D10: Professor Susan Eisenbach | E10: N/A | F10: Engineering | H10: FUNDING FROM OTHER SOURCES
A11: 2014-07-01 | C11: Earth Science and Engineering | D11: Professor Jan Cilliers | E11: N/A | F11: Engineering | H11: TEACHING
A12: 2014-08-01 | C12: Electrical and Electronic Engineering | D12: Professor Peter Cheung | E12: N/A | F12: Engineering
A13: 2014-09-01 | C13: Engineering Sciences HQ | D13: Professor Jeff Magee | E13: N/A | F13: Engineering
A14: 2014-10-01 | C14: Humanities | D14: Professor Nigel Gooderham | E14: N/A | F14: Humanities
A15: 2014-11-01 | C15: Institute of Biomedical Engineering | D15: Professor Chris Toumazou | E15: N/A | F15: Engineering
A16: 2014-12-01 | C16: Institute of Clinical Sciences | D16: Professor Amanda Fisher | E16: N/A | F16: Medicine
A17: 2015-01-01 | C17: Kennedy Institute of Rheumatology | D17: Professor Marc Feldmann | E17: N/A | F17: Medicine
A18: 2015-02-01 | C18: Life Sciences | D18: Professor Murray Selkirk | E18: N/A | F18: Natural Sciences
A19: 2015-03-01 | C19: Division of Cell & Molecular Biology | D19: Professor Nick Franks | E19: Division of Cell & Molecular Biology | F19: Natural Sciences
A20: 2015-04-01 | C20: Division of Ecology & Evolution | D20: Professor Austin Burt | E20: Division of Ecology & Evolution | F20: Natural Sciences
A21: 2015-05-01 | C21: Division of Molecular Biosciences | D21: Professor Paul Freemont | E21: Division of Molecular Biosciences | F21: Natural Sciences
A22: 2015-06-01 | C22: Materials | D22: Professor Neil Alford | E22: N/A | F22: Engineering
A23: 2015-07-01 | C23: Mathematics | D23: Professor Richard Craster | E23: N/A | F23: Natural Sciences
A24: 2015-08-01 | C24: Mechanical Engineering | D24: Professor Peter Cawley | E24: N/A | F24: Engineering
A25: 2015-09-01 | C25: Department of Medicine | D25: Professor Gavin Screaton | E25: N/A | F25: Medicine
A26: 2015-10-01 | C26: National Heart and Lung Institute | D26: Professor Kim Fox | E26: N/A | F26: Medicine
A27: 2015-11-01 | C27: Physics | D27: Professor Joanna Haigh | E27: N/A | F27: Natural Sciences
A28: 2015-12-01 | C28: School of Public Health | D28: Professor Elio Riboli | E28: N/A | F28: Medicine
A29: 2016-01-01 | C29: Department of Surgery and Cancer | D29: Professor Jeremy Nicholson | E29: N/A | F29: Medicine
A30: 2016-02-01
A31: 2016-03-01
A32: 2016-04-01
A33: 2016-05-01
A34: 2016-06-01
A35: 2016-07-01
A36: 2016-08-01
A37: 2016-09-01
A38: 2016-10-01
A39: 2016-11-01
A40: 2016-12-01
A41: 2017-01-01
A42: 2017-02-01 | E42: Cell G8 on Employee Details is hidden - this calculates the average contracted hours model (i.e 35, 37, 37.5, 40)
A43: 2017-03-01
A44: 2017-04-01
A45: 2017-05-01
A46: 2017-06-01
A47: 2017-07-01
A48: 2017-08-01
A49: 2017-09-01
A50: 2017-10-01
A51: 2017-11-01
A52: 2017-12-01
A53: 2018-01-01
A54: 2018-02-01
A55: 2018-03-01
A56: 2018-04-01
A57: 2018-05-01
A58: 2018-06-01
A59: 2018-07-01
A60: 2018-08-01
A61: 2018-09-01
A62: 2018-10-01
A63: 2018-11-01
A64: 2018-12-01
A65: 2019-01-01
A66: 2019-02-01
A67: 2019-03-01
A68: 2019-04-01
A69: =EOMONTH(A68,0)+1 -> 2019-05-01
A70: 2019-06-01
A71: 2019-07-01
A72: 2019-08-01
A73: 2019-09-01
A74: 2019-10-01
A75: 2019-11-01
A76: 2019-12-01
A77: 2020-01-01
A78: 2020-02-01
A79: 2020-03-01
A80: 2020-04-01
A81: 2020-05-01
A82: 2020-06-01
A83: 2020-07-01
A84: 2020-08-01
A85: 2020-09-01
A86: 2020-10-01
A87: 2020-11-01
A88: 2020-12-01
A89: 2021-01-01
A90: 2021-02-01
A91: 2021-03-01
A92: 2021-04-01
A93: 2021-05-01
A94: 2021-06-01
A95: 2021-07-01
A96: 2021-08-01
A97: 2021-09-01
A98: 2021-10-01
A99: 2021-11-01
A100: 2021-12-01
A101: 2022-01-01
A102: 2022-02-01
A103: 2022-03-01
A104: 2022-04-01
A105: 2022-05-01
A106: 2022-06-01
A107: 2022-07-01
A108: 2022-08-01
A109: 2022-09-01
A110: 2022-10-01
A111: 2022-11-01
A112: 2022-12-01
A113: 2023-01-01
A114: 2023-02-01
A115: 2023-03-01
A116: 2023-04-01
A117: 2023-05-01
A118: 2023-06-01
A119: 2023-07-01
A120: 2023-08-01
A121: 2023-09-01
A122: 2023-10-01
A123: 2023-11-01
A124: 2023-12-01
A125: 2024-01-01
A126: 2024-02-01
A127: 2024-03-01
A128: 2024-04-01
A129: 2024-05-01
A130: 2024-06-01
A131: 2024-07-01
A132: 2024-08-01
A133: =EOMONTH(A132,0)+1 -> 2024-09-01
A134: 2024-10-01
A135: 2024-11-01
A136: 2024-12-01
A137: 2025-01-01
A138: 2025-02-01
A139: 2025-03-01
A140: 2025-04-01
A141: 2025-05-01
A142: 2025-06-01
A143: 2025-07-01
A144: 2025-08-01
A145: 2025-09-01
A146: 2025-10-01
A147: 2025-11-01
A148: 2025-12-01
A149: 2026-01-01
A150: 2026-02-01
A151: 2026-03-01
A152: 2026-04-01
A153: 2026-05-01
A154: 2026-06-01
A155: 2026-07-01
A156: 2026-08-01
A157: 2026-09-01

Sheet Employee Details
B1: TIMESHEET - EMPLOYEE DETAILS
B2: Staff Name: | C2: Dr Daniela Bauer | E2: CID: | F2: 231786
B3: Department: | C3: Physics | E3: Post Title: | F3: Researcher
B4: Faculty: | C4: =IF($C$3="Select Your Department"," ",VLOOKUP($C$3,'Control Sheet'!$C$1:$F$65539,4,0)) -> Natural Sciences
B5: PI/Supervisor: | C5: Dr David Colling | E5: Contracted Hours of Employment: | G5: 35
B6: Head of Department: | C6: =IF($C$3="Select Your Department"," ",VLOOKUP($C$3,'Control Sheet'!$C$1:$F$65539,2,0)) -> Professor Joanna Haigh | E6: Timesheet Start Date: | G6: 2013-10-01
B8: % of Full Time Employment (FTE) | C8: From Date | D8: To Date (DD/MM/YY) | G8: =(G5*44)/12 -> 128.3333333 | K8: % of Full Time Employment (FTE) | L8: From Date | M8: To Date
B9: 1 | C9: =IF(G6="","",G6) -> 2013-10-01 | D9: 2013-10-01 | K9: =B9 -> 1 | L9: =EOMONTH(G6,-1)+1 -> 2013-10-01 | M9: =IF(D9="",EOMONTH('Main Award'!$A$77,0),D9) -> 2013-10-01
C10: =IF(D9="","",(DATE(YEAR(D9),MONTH(D9),DAY(D9)+1))) -> 2013-10-02 | K10: =B10 -> 0 | L10: =IF(M9="","",(DATE(YEAR(M9),MONTH(M9),DAY(M9)+1))) -> 2013-10-02 | M10: =IF(D10="",EOMONTH('Main Award'!$A$77,0),D10) -> 2018-09-30
C11: =IF(D10="","",(DATE(YEAR(D10),MONTH(D10),DAY(D10)+1))) ->  | K11: =B11 -> 0 | L11: =IF(M10="","",(DATE(YEAR(M10),MONTH(M10),DAY(M10)+1))) -> 2018-10-01 | M11: =IF(D11="",EOMONTH('Main Award'!$A$77,0),D11) -> 2018-09-30
C12: =IF(D11="","",(DATE(YEAR(D11),MONTH(D11),DAY(D11)+1))) ->  | K12: =B12 -> 0 | L12: =IF(M11="","",(DATE(YEAR(M11),MONTH(M11),DAY(M11)+1))) -> 2018-10-01 | M12: =IF(D12="",EOMONTH('Main Award'!$A$77,0),D12) -> 2018-09-30
C13: =IF(D12="","",(DATE(YEAR(D12),MONTH(D12),DAY(D12)+1))) ->  | K13: =B13 -> 0 | L13: =IF(M12="","",(DATE(YEAR(M12),MONTH(M12),DAY(M12)+1))) -> 2018-10-01 | M13: =IF(D13="",EOMONTH('Main Award'!$A$77,0),D13) -> 2018-09-30

Sheet Main Award
A1: TIME SHEET SUMMARY
A2: Funding Source: | B2: OST RESEARCH COUNCIL | E2: *Record the actual hours worked under the relevant headings during a given month.
A3: Award/Project Number: | B3: PHHE P44300 | E3: *NB: you can also use separate tabs to record different activities (RTD, MGT etc.)
A4: Acronym/Short Title: | B4: GridPP Tranche II | E4: *Please record any authorised absence in the “Absence” worksheet.
A5: Contract No./Funders Ref: | E5: *Even though project FTE% may look correct, the 'Recovery Summary' sheet will confirm whether effort has reached the minimum productive hours expected
A6: Project Type:
A8: Period | B8: RTD (CEC_Only) | C8: Demo (CEC_Only) | D8: Train (CEC_Only) | E8: Management (CEC_Only) | F8: Coord/Sup (CEC only) | G8: Marie Curie Worked Hours | H8: Other Hours Worked (CEC & Non CEC) | I8: Activity # or Work Package (CEC_Only) | J8: Additional Information (Optional) | K8: Total Productive Hours Worked | M8: Project FTE%
A10: ='Employee Details'!$L$9 -> 2013-10-01 | H10: 82 | K10: =SUM($B10:$H10) -> 82 | M10: =IF(K10=0,0,'Summary of Hours'!B7/'Summary of Hours'!$L7) -> 0.5
A11: =DATE(YEAR(A10),MONTH(A10)+1,DAY(A10)) -> 2013-11-01 | H11: 78 | K11: 78 | M11: =IF(K11=0,0,'Summary of Hours'!B8/'Summary of Hours'!$L8) -> 0.501607717
A12: =DATE(YEAR(A11),MONTH(A11)+1,DAY(A11)) -> 2013-12-01 | H12: 54 | K12: 54 | M12: =IF(K12=0,0,'Summary of Hours'!B9/'Summary of Hours'!$L9) -> 0.4976958525
A13: =DATE(YEAR(A12),MONTH(A12)+1,DAY(A12)) -> 2014-01-01 | K13: 0 | M13: =IF(K13=0,0,'Summary of Hours'!B10/'Summary of Hours'!$L10) -> 0
A14: =DATE(YEAR(A13),MONTH(A13)+1,DAY(A13)) -> 2014-02-01 | K14: 0 | M14: =IF(K14=0,0,'Summary of Hours'!B11/'Summary of Hours'!$L11) -> 0
A15: 2014-03-01 | K15: 0 | M15: =IF(K15=0,0,'Summary of Hours'!B12/'Summary of Hours'!$L12) -> 0
A16: 2014-04-01 | K16: 0 | M16: =IF(K16=0,0,'Summary of Hours'!B13/'Summary of Hours'!$L13) -> 0
A17: 2014-05-01 | K17: 0 | M17: =IF(K17=0,0,'Summary of Hours'!B14/'Summary of Hours'!$L14) -> 0
A18: 2014-06-01 | K18: 0 | M18: =IF(K18=0,0,'Summary of Hours'!B15/'Summary of Hours'!$L15) -> 0
A19: 2014-07-01 | K19: 0 | M19: =IF(K19=0,0,'Summary of Hours'!B16/'Summary of Hours'!$L16) -> 0
A20: 2014-08-01 | K20: 0 | M20: =IF(K20=0,0,'Summary of Hours'!B17/'Summary of Hours'!$L17) -> 0
A21: 2014-09-01 | K21: 0 | M21: =IF(K21=0,0,'Summary of Hours'!B18/'Summary of Hours'!$L18) -> 0
A22: Total | B22: =SUM(B10:B21) -> 0 | C22: 0 | D22: 0 | E22: 0 | F22: 0 | G22: =SUM(G10:G21) -> 0 | H22: 214 | K22: =SUM(K10:K21) -> 214 | M22: =IF(K22=0,0,'Summary of Hours'!B19/'Summary of Hours'!$L19) -> 0.5
A24: =DATE(YEAR(A21),MONTH(A21)+1,DAY(A21)) -> 2014-10-01 | K24: =SUM($B24:$H24) -> 0 | M24: =IF(K24=0,0,'Summary of Hours'!B21/'Summary of Hours'!$L21) -> 0
A25: =DATE(YEAR(A24),MONTH(A24)+1,DAY(A24)) -> 2014-11-01 | K25: 0 | M25: =IF(K25=0,0,'Summary of Hours'!B22/'Summary of Hours'!$L22) -> 0
A26: =DATE(YEAR(A25),MONTH(A25)+1,DAY(A25)) -> 2014-12-01 | K26: 0 | M26: =IF(K26=0,0,'Summary of Hours'!B23/'Summary of Hours'!$L23) -> 0
A27: =DATE(YEAR(A26),MONTH(A26)+1,DAY(A26)) -> 2015-01-01 | K27: 0 | M27: =IF(K27=0,0,'Summary of Hours'!B24/'Summary of Hours'!$L24) -> 0
A28: =DATE(YEAR(A27),MONTH(A27)+1,DAY(A27)) -> 2015-02-01 | K28: 0 | M28: =IF(K28=0,0,'Summary of Hours'!B25/'Summary of Hours'!$L25) -> 0
A29: 2015-03-01 | K29: 0 | M29: =IF(K29=0,0,'Summary of Hours'!B26/'Summary of Hours'!$L26) -> 0
A30: 2015-04-01 | K30: 0 | M30: =IF(K30=0,0,'Summary of Hours'!B27/'Summary of Hours'!$L27) -> 0
A31: 2015-05-01 | K31: 0 | M31: =IF(K31=0,0,'Summary of Hours'!B28/'Summary of Hours'!$L28) -> 0
A32: 2015-06-01 | K32: 0 | M32: =IF(K32=0,0,'Summary of Hours'!B29/'Summary of Hours'!$L29) -> 0
A33: 2015-07-01 | K33: 0 | M33: =IF(K33=0,0,'Summary of Hours'!B30/'Summary of Hours'!$L30) -> 0
A34: 2015-08-01 | K34: 0 | M34: =IF(K34=0,0,'Summary of Hours'!B31/'Summary of Hours'!$L31) -> 0
A35: 2015-09-01 | K35: 0 | M35: =IF(K35=0,0,'Summary of Hours'!B32/'Summary of Hours'!$L32) -> 0
A36: Total | B36: =SUM(B24:B35) -> 0 | C36: 0 | D36: 0 | E36: 0 | F36: 0 | G36: =SUM(G24:G35) -> 0 | H36: 0 | K36: =SUM(K24:K35) -> 0 | M36: =IF(K36=0,0,'Summary of Hours'!B33/'Summary of Hours'!$L33) -> 0
A38: =DATE(YEAR(A35),MONTH(A35)+1,DAY(A35)) -> 2015-10-01 | K38: =SUM($B38:$H38) -> 0 | M38: =IF(K38=0,0,'Summary of Hours'!B35/'Summary of Hours'!$L35) -> 0
A39: =DATE(YEAR(A38),MONTH(A38)+1,DAY(A38)) -> 2015-11-01 | K39: 0 | M39: =IF(K39=0,0,'Summary of Hours'!B36/'Summary of Hours'!$L36) -> 0
A40: 2015-12-01 | K40: 0 | M40: =IF(K40=0,0,'Summary of Hours'!B37/'Summary of Hours'!$L37) -> 0
A41: 2016-01-01 | K41: 0 | M41: =IF(K41=0,0,'Summary of Hours'!B38/'Summary of Hours'!$L38) -> 0
A42: 2016-02-01 | K42: 0 | M42: =IF(K42=0,0,'Summary of Hours'!B39/'Summary of Hours'!$L39) -> 0
A43: 2016-03-01 | K43: 0 | M43: =IF(K43=0,0,'Summary of Hours'!B40/'Summary of Hours'!$L40) -> 0
A44: 2016-04-01 | K44: 0 | M44: =IF(K44=0,0,'Summary of Hours'!B41/'Summary of Hours'!$L41) -> 0
A45: 2016-05-01 | K45: 0 | M45: =IF(K45=0,0,'Summary of Hours'!B42/'Summary of Hours'!$L42) -> 0
A46: 2016-06-01 | K46: 0 | M46: =IF(K46=0,0,'Summary of Hours'!B43/'Summary of Hours'!$L43) -> 0
A47: 2016-07-01 | K47: 0 | M47: =IF(K47=0,0,'Summary of Hours'!B44/'Summary of Hours'!$L44) -> 0
A48: 2016-08-01 | K48: 0 | M48: =IF(K48=0,0,'Summary of Hours'!B45/'Summary of Hours'!$L45) -> 0
A49: 2016-09-01 | K49: 0 | M49: =IF(K49=0,0,'Summary of Hours'!B46/'Summary of Hours'!$L46) -> 0
A50: Total | B50: =SUM(B38:B49) -> 0 | C50: 0 | D50: 0 | E50: 0 | F50: 0 | G50: =SUM(G38:G49) -> 0 | H50: 0 | K50: =SUM(K38:K49) -> 0 | M50: =IF(K50=0,0,'Summary of Hours'!B47/'Summary of Hours'!$L47) -> 0
A52: =DATE(YEAR(A49),MONTH(A49)+1,DAY(A49)) -> 2016-10-01 | K52: =SUM($B52:$H52) -> 0 | M52: =IF(K52=0,0,'Summary of Hours'!B49/'Summary of Hours'!$L49) -> 0
A53: =DATE(YEAR(A52),MONTH(A52)+1,DAY(A52)) -> 2016-11-01 | K53: 0 | M53: =IF(K53=0,0,'Summary of Hours'!B50/'Summary of Hours'!$L50) -> 0
A54: =DATE(YEAR(A53),MONTH(A53)+1,DAY(A53)) -> 2016-12-01 | K54: 0 | M54: =IF(K54=0,0,'Summary of Hours'!B51/'Summary of Hours'!$L51) -> 0
A55: 2017-01-01 | K55: 0 | M55: =IF(K55=0,0,'Summary of Hours'!B52/'Summary of Hours'!$L52) -> 0
A56: 2017-02-01 | K56: 0 | M56: =IF(K56=0,0,'Summary of Hours'!B53/'Summary of Hours'!$L53) -> 0
A57: 2017-03-01 | K57: 0 | M57: =IF(K57=0,0,'Summary of Hours'!B54/'Summary of Hours'!$L54) -> 0
A58: 2017-04-01 | K58: 0 | M58: =IF(K58=0,0,'Summary of Hours'!B55/'Summary of Hours'!$L55) -> 0
A59: 2017-05-01 | K59: 0 | M59: =IF(K59=0,0,'Summary of Hours'!B56/'Summary of Hours'!$L56) -> 0
A60: 2017-06-01 | K60: 0 | M60: =IF(K60=0,0,'Summary of Hours'!B57/'Summary of Hours'!$L57) -> 0
A61: 2017-07-01 | K61: 0 | M61: =IF(K61=0,0,'Summary of Hours'!B58/'Summary of Hours'!$L58) -> 0
A62: 2017-08-01 | K62: 0 | M62: =IF(K62=0,0,'Summary of Hours'!B59/'Summary of Hours'!$L59) -> 0
A63: 2017-09-01 | K63: 0 | M63: =IF(K63=0,0,'Summary of Hours'!B60/'Summary of Hours'!$L60) -> 0
A64: Total | B64: =SUM(B52:B63) -> 0 | C64: 0 | D64: 0 | E64: 0 | F64: 0 | G64: =SUM(G52:G63) -> 0 | H64: 0 | K64: =SUM(K52:K63) -> 0 | M64: =IF(K64=0,0,'Summary of Hours'!B61/'Summary of Hours'!$L61) -> 0
A66: =DATE(YEAR(A63),MONTH(A63)+1,DAY(A63)) -> 2017-10-01 | K66: =SUM($B66:$H66) -> 0 | M66: =IF(K66=0,0,'Summary of Hours'!B63/'Summary of Hours'!$L63) -> 0
A67: =DATE(YEAR(A66),MONTH(A66)+1,DAY(A66)) -> 2017-11-01 | K67: 0 | M67: =IF(K67=0,0,'Summary of Hours'!B64/'Summary of Hours'!$L64) -> 0
A68: 2017-12-01 | K68: 0 | M68: =IF(K68=0,0,'Summary of Hours'!B65/'Summary of Hours'!$L65) -> 0
A69: 2018-01-01 | K69: 0 | M69: =IF(K69=0,0,'Summary of Hours'!B66/'Summary of Hours'!$L66) -> 0
A70: 2018-02-01 | K70: 0 | M70: =IF(K70=0,0,'Summary of Hours'!B67/'Summary of Hours'!$L67) -> 0
A71: 2018-03-01 | K71: 0 | M71: =IF(K71=0,0,'Summary of Hours'!B68/'Summary of Hours'!$L68) -> 0
A72: 2018-04-01 | K72: 0 | M72: =IF(K72=0,0,'Summary of Hours'!B69/'Summary of Hours'!$L69) -> 0
A73: 2018-05-01 | K73: 0 | M73: =IF(K73=0,0,'Summary of Hours'!B70/'Summary of Hours'!$L70) -> 0
A74: 2018-06-01 | K74: 0 | M74: =IF(K74=0,0,'Summary of Hours'!B71/'Summary of Hours'!$L71) -> 0
A75: 2018-07-01 | K75: 0 | M75: =IF(K75=0,0,'Summary of Hours'!B72/'Summary of Hours'!$L72) -> 0
A76: 2018-08-01 | K76: 0 | M76: =IF(K76=0,0,'Summary of Hours'!B73/'Summary of Hours'!$L73) -> 0
A77: 2018-09-01 | K77: 0 | M77: =IF(K77=0,0,'Summary of Hours'!B74/'Summary of Hours'!$L74) -> 0
A78: Total | B78: =SUM(B66:B77) -> 0 | C78: 0 | D78: 0 | E78: 0 | F78: =SUM(F66:F77) -> 0 | G78: =SUM(G66:G77) -> 0 | H78: 0 | K78: =SUM(K66:K77) -> 0 | M78: =IF(K78=0,0,'Summary of Hours'!B75/'Summary of Hours'!$L75) -> 0
A80: Grand Total | B80: =B$78+B$50+B$36+B$22+B$64 -> 0 | C80: 0 | D80: 0 | E80: =E$78+E$50+E$36+E$22+E$64 -> 0 | F80: =F$78+F$50+F$36+F$22+F$64 -> 0 | G80: =G$78+G$50+G$36+G$22+G$64 -> 0 | H80: =H$78+H$50+H$36+H$22+H$64 -> 214 | K80: =K$78+K$50+K$36+K$22+K$64 -> 214

Sheet Other 1
A1: TIME SHEET SUMMARY
A2: Funding Source: | B2: FP7 EU COMMISSION | E2: *Record the actual hours worked under the relevant headings during a given month.
A3: Award/Project Number: | B3: PHHE P32997 | E3: *NB: you can also use separate tabs to record different activities (RTD, MGT etc.)
A4: Acronym/Short Title: | B4: EGI Research | E4: *Please record any authorised absence in the “Absence” worksheet.
A5: Contract No./Funders Ref: | E5: *Even though project FTE% may look correct, the 'Recovery Summary' sheet will confirm whether effort has reached the minimum productive hours expected
A6: Project Type:
A8: Period | B8: RTD (CEC_Only) | C8: Demo (CEC_Only) | D8: Train (CEC_Only) | E8: Management (CEC_Only) | F8: Coord/Sup (CEC only) | G8: Marie Curie Worked Hours | H8: Other Hours Worked (CEC & Non CEC) | I8: Activity # or Work Package (CEC_Only) | J8: Additional Information (Optional) | K8: Total Productive Hours Worked | M8: Project FTE%
A10: ='Employee Details'!$L$9 -> 2013-10-01 | H10: 77 | K10: =SUM($B10:$H10) -> 77 | M10: =IF(K10=0,0,'Summary of Hours'!C7/'Summary of Hours'!$L7) -> 0.4695121951
A11: =DATE(YEAR(A10),MONTH(A10)+1,DAY(A10)) -> 2013-11-01 | H11: 73 | K11: 73 | M11: =IF(K11=0,0,'Summary of Hours'!C8/'Summary of Hours'!$L8) -> 0.4694533762
A12: =DATE(YEAR(A11),MONTH(A11)+1,DAY(A11)) -> 2013-12-01 | H12: 51 | K12: 51 | M12: =IF(K12=0,0,'Summary of Hours'!C9/'Summary of Hours'!$L9) -> 0.4700460829
A13: =DATE(YEAR(A12),MONTH(A12)+1,DAY(A12)) -> 2014-01-01 | K13: 0 | M13: =IF(K13=0,0,'Summary of Hours'!C10/'Summary of Hours'!$L10) -> 0
A14: =DATE(YEAR(A13),MONTH(A13)+1,DAY(A13)) -> 2014-02-01 | K14: 0 | M14: =IF(K14=0,0,'Summary of Hours'!C11/'Summary of Hours'!$L11) -> 0
A15: 2014-03-01 | K15: 0 | M15: =IF(K15=0,0,'Summary of Hours'!C12/'Summary of Hours'!$L12) -> 0
A16: 2014-04-01 | K16: 0 | M16: =IF(K16=0,0,'Summary of Hours'!C13/'Summary of Hours'!$L13) -> 0
A17: 2014-05-01 | K17: 0 | M17: =IF(K17=0,0,'Summary of Hours'!C14/'Summary of Hours'!$L14) -> 0
A18: 2014-06-01 | K18: 0 | M18: =IF(K18=0,0,'Summary of Hours'!C15/'Summary of Hours'!$L15) -> 0
A19: 2014-07-01 | K19: 0 | M19: =IF(K19=0,0,'Summary of Hours'!C16/'Summary of Hours'!$L16) -> 0
A20: 2014-08-01 | K20: 0 | M20: =IF(K20=0,0,'Summary of Hours'!C17/'Summary of Hours'!$L17) -> 0
A21: 2014-09-01 | K21: 0 | M21: =IF(K21=0,0,'Summary of Hours'!C18/'Summary of Hours'!$L18) -> 0
A22: Total | B22: =SUM(B10:B21) -> 0 | C22: 0 | D22: 0 | E22: 0 | F22: 0 | G22: =SUM(G10:G21) -> 0 | H22: 201 | K22: =SUM(K10:K21) -> 201 | M22: =IF(K22=0,0,'Summary of Hours'!C19/'Summary of Hours'!$L19) -> 0.4696261682
A24: =DATE(YEAR(A21),MONTH(A21)+1,DAY(A21)) -> 2014-10-01 | K24: =SUM($B24:$H24) -> 0 | M24: =IF(K24=0,0,'Summary of Hours'!C21/'Summary of Hours'!$L21) -> 0
A25: =DATE(YEAR(A24),MONTH(A24)+1,DAY(A24)) -> 2014-11-01 | K25: 0 | M25: =IF(K25=0,0,'Summary of Hours'!C22/'Summary of Hours'!$L22) -> 0
A26: =DATE(YEAR(A25),MONTH(A25)+1,DAY(A25)) -> 2014-12-01 | K26: 0 | M26: =IF(K26=0,0,'Summary of Hours'!C23/'Summary of Hours'!$L23) -> 0
A27: =DATE(YEAR(A26),MONTH(A26)+1,DAY(A26)) -> 2015-01-01 | K27: 0 | M27: =IF(K27=0,0,'Summary of Hours'!C24/'Summary of Hours'!$L24) -> 0
A28: =DATE(YEAR(A27),MONTH(A27)+1,DAY(A27)) -> 2015-02-01 | K28: 0 | M28: =IF(K28=0,0,'Summary of Hours'!C25/'Summary of Hours'!$L25) -> 0
A29: 2015-03-01 | K29: 0 | M29: =IF(K29=0,0,'Summary of Hours'!C26/'Summary of Hours'!$L26) -> 0
A30: 2015-04-01 | K30: 0 | M30: =IF(K30=0,0,'Summary of Hours'!C27/'Summary of Hours'!$L27) -> 0
A31: 2015-05-01 | K31: 0 | M31: =IF(K31=0,0,'Summary of Hours'!C28/'Summary of Hours'!$L28) -> 0
A32: 2015-06-01 | K32: 0 | M32: =IF(K32=0,0,'Summary of Hours'!C29/'Summary of Hours'!$L29) -> 0
A33: 2015-07-01 | K33: 0 | M33: =IF(K33=0,0,'Summary of Hours'!C30/'Summary of Hours'!$L30) -> 0
A34: 2015-08-01 | K34: 0 | M34: =IF(K34=0,0,'Summary of Hours'!C31/'Summary of Hours'!$L31) -> 0
A35: 2015-09-01 | K35: 0 | M35: =IF(K35=0,0,'Summary of Hours'!C32/'Summary of Hours'!$L32) -> 0
A36: Total | B36: =SUM(B24:B35) -> 0 | C36: 0 | D36: 0 | E36: 0 | F36: 0 | G36: =SUM(G24:G35) -> 0 | H36: 0 | K36: =SUM(K24:K35) -> 0 | M36: =IF(K36=0,0,'Summary of Hours'!C33/'Summary of Hours'!$L33) -> 0
A38: =DATE(YEAR(A35),MONTH(A35)+1,DAY(A35)) -> 2015-10-01 | K38: =SUM($B38:$H38) -> 0 | M38: =IF(K38=0,0,'Summary of Hours'!C35/'Summary of Hours'!$L35) -> 0
A39: =DATE(YEAR(A38),MONTH(A38)+1,DAY(A38)) -> 2015-11-01 | K39: 0 | M39: =IF(K39=0,0,'Summary of Hours'!C36/'Summary of Hours'!$L36) -> 0
A40: 2015-12-01 | K40: 0 | M40: =IF(K40=0,0,'Summary of Hours'!C37/'Summary of Hours'!$L37) -> 0
A41: 2016-01-01 | K41: 0 | M41: =IF(K41=0,0,'Summary of Hours'!C38/'Summary of Hours'!$L38) -> 0
A42: 2016-02-01 | K42: 0 | M42: =IF(K42=0,0,'Summary of Hours'!C39/'Summary of Hours'!$L39) -> 0
A43: 2016-03-01 | K43: 0 | M43: =IF(K43=0,0,'Summary of Hours'!C40/'Summary of Hours'!$L40) -> 0
A44: 2016-04-01 | K44: 0 | M44: =IF(K44=0,0,'Summary of Hours'!C41/'Summary of Hours'!$L41) -> 0
A45: 2016-05-01 | K45: 0 | M45: =IF(K45=0,0,'Summary of Hours'!C42/'Summary of Hours'!$L42) -> 0
A46: 2016-06-01 | K46: 0 | M46: =IF(K46=0,0,'Summary of Hours'!C43/'Summary of Hours'!$L43) -> 0
A47: 2016-07-01 | K47: 0 | M47: =IF(K47=0,0,'Summary of Hours'!C44/'Summary of Hours'!$L44) -> 0
A48: 2016-08-01 | K48: 0 | M48: =IF(K48=0,0,'Summary of Hours'!C45/'Summary of Hours'!$L45) -> 0
A49: 2016-09-01 | K49: 0 | M49: =IF(K49=0,0,'Summary of Hours'!C46/'Summary of Hours'!$L46) -> 0
A50: Total | B50: =SUM(B38:B49) -> 0 | C50: 0 | D50: 0 | E50: 0 | F50: 0 | G50: =SUM(G38:G49) -> 0 | H50: 0 | K50: =SUM(K38:K49) -> 0 | M50: =IF(K50=0,0,'Summary of Hours'!C47/'Summary of Hours'!$L47) -> 0
A52: =DATE(YEAR(A49),MONTH(A49)+1,DAY(A49)) -> 2016-10-01 | K52: =SUM($B52:$H52) -> 0 | M52: =IF(K52=0,0,'Summary of Hours'!C49/'Summary of Hours'!$L49) -> 0
A53: =DATE(YEAR(A52),MONTH(A52)+1,DAY(A52)) -> 2016-11-01 | K53: 0 | M53: =IF(K53=0,0,'Summary of Hours'!C50/'Summary of Hours'!$L50) -> 0
A54: =DATE(YEAR(A53),MONTH(A53)+1,DAY(A53)) -> 2016-12-01 | K54: 0 | M54: =IF(K54=0,0,'Summary of Hours'!C51/'Summary of Hours'!$L51) -> 0
A55: 2017-01-01 | K55: 0 | M55: =IF(K55=0,0,'Summary of Hours'!C52/'Summary of Hours'!$L52) -> 0
A56: 2017-02-01 | K56: 0 | M56: =IF(K56=0,0,'Summary of Hours'!C53/'Summary of Hours'!$L53) -> 0
A57: 2017-03-01 | K57: 0 | M57: =IF(K57=0,0,'Summary of Hours'!C54/'Summary of Hours'!$L54) -> 0
A58: 2017-04-01 | K58: 0 | M58: =IF(K58=0,0,'Summary of Hours'!C55/'Summary of Hours'!$L55) -> 0
A59: 2017-05-01 | K59: 0 | M59: =IF(K59=0,0,'Summary of Hours'!C56/'Summary of Hours'!$L56) -> 0
A60: 2017-06-01 | K60: 0 | M60: =IF(K60=0,0,'Summary of Hours'!C57/'Summary of Hours'!$L57) -> 0
A61: 2017-07-01 | K61: 0 | M61: =IF(K61=0,0,'Summary of Hours'!C58/'Summary of Hours'!$L58) -> 0
A62: 2017-08-01 | K62: 0 | M62: =IF(K62=0,0,'Summary of Hours'!C59/'Summary of Hours'!$L59) -> 0
A63: 2017-09-01 | K63: 0 | M63: =IF(K63=0,0,'Summary of Hours'!C60/'Summary of Hours'!$L60) -> 0
A64: Total | B64: =SUM(B52:B63) -> 0 | C64: 0 | D64: 0 | E64: 0 | F64: 0 | G64: =SUM(G52:G63) -> 0 | H64: 0 | K64: =SUM(K52:K63) -> 0 | M64: =IF(K64=0,0,'Summary of Hours'!C61/'Summary of Hours'!$L61) -> 0
A66: =DATE(YEAR(A63),MONTH(A63)+1,DAY(A63)) -> 2017-10-01 | K66: =SUM($B66:$H66) -> 0 | M66: =IF(K66=0,0,'Summary of Hours'!C63/'Summary of Hours'!$L63) -> 0
A67: =DATE(YEAR(A66),MONTH(A66)+1,DAY(A66)) -> 2017-11-01 | K67: 0 | M67: =IF(K67=0,0,'Summary of Hours'!C64/'Summary of Hours'!$L64) -> 0
A68: 2017-12-01 | K68: 0 | M68: =IF(K68=0,0,'Summary of Hours'!C65/'Summary of Hours'!$L65) -> 0
A69: 2018-01-01 | K69: 0 | M69: =IF(K69=0,0,'Summary of Hours'!C66/'Summary of Hours'!$L66) -> 0
A70: 2018-02-01 | K70: 0 | M70: =IF(K70=0,0,'Summary of Hours'!C67/'Summary of Hours'!$L67) -> 0
A71: 2018-03-01 | K71: 0 | M71: =IF(K71=0,0,'Summary of Hours'!C68/'Summary of Hours'!$L68) -> 0
A72: 2018-04-01 | K72: 0 | M72: =IF(K72=0,0,'Summary of Hours'!C69/'Summary of Hours'!$L69) -> 0
A73: 2018-05-01 | K73: 0 | M73: =IF(K73=0,0,'Summary of Hours'!C70/'Summary of Hours'!$L70) -> 0
A74: 2018-06-01 | K74: 0 | M74: =IF(K74=0,0,'Summary of Hours'!C71/'Summary of Hours'!$L71) -> 0
A75: 2018-07-01 | K75: 0 | M75: =IF(K75=0,0,'Summary of Hours'!C72/'Summary of Hours'!$L72) -> 0
A76: 2018-08-01 | K76: 0 | M76: =IF(K76=0,0,'Summary of Hours'!C73/'Summary of Hours'!$L73) -> 0
A77: 2018-09-01 | K77: 0 | M77: =IF(K77=0,0,'Summary of Hours'!C74/'Summary of Hours'!$L74) -> 0
A78: Total | B78: =SUM(B66:B77) -> 0 | C78: 0 | D78: 0 | E78: 0 | F78: =SUM(F66:F77) -> 0 | G78: =SUM(G66:G77) -> 0 | H78: 0 | K78: =SUM(K66:K77) -> 0 | M78: =IF(K78=0,0,'Summary of Hours'!C75/'Summary of Hours'!$L75) -> 0
A80: Grand Total | B80: =B$78+B$50+B$36+B$22+B$64 -> 0 | C80: 0 | D80: 0 | E80: 0 | F80: 0 | G80: 0 | H80: 201 | K80: =K$78+K$50+K$36+K$22+K$64 -> 201

Sheet Other 2
A1: TIME SHEET SUMMARY
A2: Funding Source: | B2: FP7 EU COMMISSION | E2: *Record the actual hours worked under the relevant headings during a given month.
A3: Award/Project Number: | B3: PHHE P32997 | E3: *NB: you can also use separate tabs to record different activities (RTD, MGT etc.)
A4: Acronym/Short Title: | B4: EGI Coordination | E4: *Please record any authorised absence in the “Absence” worksheet.
A5: Contract No./Funders Ref: | E5: *Even though project FTE% may look correct, the 'Recovery Summary' sheet will confirm whether effort has reached the minimum productive hours expected
A6: Project Type:
A8: Period | B8: RTD (CEC_Only) | C8: Demo (CEC_Only) | D8: Train (CEC_Only) | E8: Management (CEC_Only) | F8: Coord/Sup (CEC only) | G8: Marie Curie Worked Hours | H8: Other Hours Worked (CEC & Non CEC) | I8: Activity # or Work Package (CEC_Only) | J8: Additional Information (Optional) | K8: Total Productive Hours Worked | M8: Project FTE%
A10: ='Employee Details'!$L$9 -> 2013-10-01 | H10: 5 | K10: =SUM($B10:$H10) -> 5 | M10: =IF(K10=0,0,'Summary of Hours'!D7/'Summary of Hours'!$L7) -> 0.03048780488
A11: =DATE(YEAR(A10),MONTH(A10)+1,DAY(A10)) -> 2013-11-01 | H11: 4.5 | K11: 4.5 | M11: =IF(K11=0,0,'Summary of Hours'!D8/'Summary of Hours'!$L8) -> 0.02893890675
A12: =DATE(YEAR(A11),MONTH(A11)+1,DAY(A11)) -> 2013-12-01 | H12: 3.5 | K12: 3.5 | M12: =IF(K12=0,0,'Summary of Hours'!D9/'Summary of Hours'!$L9) -> 0.03225806452
A13: =DATE(YEAR(A12),MONTH(A12)+1,DAY(A12)) -> 2014-01-01 | K13: 0 | M13: =IF(K13=0,0,'Summary of Hours'!D10/'Summary of Hours'!$L10) -> 0
A14: =DATE(YEAR(A13),MONTH(A13)+1,DAY(A13)) -> 2014-02-01 | K14: 0 | M14: =IF(K14=0,0,'Summary of Hours'!D11/'Summary of Hours'!$L11) -> 0
A15: 2014-03-01 | K15: 0 | M15: =IF(K15=0,0,'Summary of Hours'!D12/'Summary of Hours'!$L12) -> 0
A16: 2014-04-01 | K16: 0 | M16: =IF(K16=0,0,'Summary of Hours'!D13/'Summary of Hours'!$L13) -> 0
A17: 2014-05-01 | K17: 0 | M17: =IF(K17=0,0,'Summary of Hours'!D14/'Summary of Hours'!$L14) -> 0
A18: 2014-06-01 | K18: 0 | M18: =IF(K18=0,0,'Summary of Hours'!D15/'Summary of Hours'!$L15) -> 0
A19: 2014-07-01 | K19: 0 | M19: =IF(K19=0,0,'Summary of Hours'!D16/'Summary of Hours'!$L16) -> 0
A20: 2014-08-01 | K20: 0 | M20: =IF(K20=0,0,'Summary of Hours'!D17/'Summary of Hours'!$L17) -> 0
A21: 2014-09-01 | K21: 0 | M21: =IF(K21=0,0,'Summary of Hours'!D18/'Summary of Hours'!$L18) -> 0
A22: Total | B22: =SUM(B10:B21) -> 0 | C22: 0 | D22: 0 | E22: 0 | F22: 0 | G22: =SUM(G10:G21) -> 0 | H22: 13 | K22: =SUM(K10:K21) -> 13 | M22: =IF(K22=0,0,'Summary of Hours'!D19/'Summary of Hours'!$L19) -> 0.03037383178
A24: =DATE(YEAR(A21),MONTH(A21)+1,DAY(A21)) -> 2014-10-01 | K24: =SUM($B24:$H24) -> 0 | M24: =IF(K24=0,0,'Summary of Hours'!D21/'Summary of Hours'!$L21) -> 0
A25: =DATE(YEAR(A24),MONTH(A24)+1,DAY(A24)) -> 2014-11-01 | K25: 0 | M25: =IF(K25=0,0,'Summary of Hours'!D22/'Summary of Hours'!$L22) -> 0
A26: =DATE(YEAR(A25),MONTH(A25)+1,DAY(A25)) -> 2014-12-01 | K26: 0 | M26: =IF(K26=0,0,'Summary of Hours'!D23/'Summary of Hours'!$L23) -> 0
A27: =DATE(YEAR(A26),MONTH(A26)+1,DAY(A26)) -> 2015-01-01 | K27: 0 | M27: =IF(K27=0,0,'Summary of Hours'!D24/'Summary of Hours'!$L24) -> 0
A28: =DATE(YEAR(A27),MONTH(A27)+1,DAY(A27)) -> 2015-02-01 | K28: 0 | M28: =IF(K28=0,0,'Summary of Hours'!D25/'Summary of Hours'!$L25) -> 0
A29: 2015-03-01 | K29: 0 | M29: =IF(K29=0,0,'Summary of Hours'!D26/'Summary of Hours'!$L26) -> 0
A30: 2015-04-01 | K30: 0 | M30: =IF(K30=0,0,'Summary of Hours'!D27/'Summary of Hours'!$L27) -> 0
A31: 2015-05-01 | K31: 0 | M31: =IF(K31=0,0,'Summary of Hours'!D28/'Summary of Hours'!$L28) -> 0
A32: 2015-06-01 | K32: 0 | M32: =IF(K32=0,0,'Summary of Hours'!D29/'Summary of Hours'!$L29) -> 0
A33: 2015-07-01 | K33: 0 | M33: =IF(K33=0,0,'Summary of Hours'!D30/'Summary of Hours'!$L30) -> 0
A34: 2015-08-01 | K34: 0 | M34: =IF(K34=0,0,'Summary of Hours'!D31/'Summary of Hours'!$L31) -> 0
A35: 2015-09-01 | K35: 0 | M35: =IF(K35=0,0,'Summary of Hours'!D32/'Summary of Hours'!$L32) -> 0
A36: Total | B36: =SUM(B24:B35) -> 0 | C36: 0 | D36: 0 | E36: 0 | F36: 0 | G36: =SUM(G24:G35) -> 0 | H36: 0 | K36: =SUM(K24:K35) -> 0 | M36: =IF(K36=0,0,'Summary of Hours'!D33/'Summary of Hours'!$L33) -> 0
A38: =DATE(YEAR(A35),MONTH(A35)+1,DAY(A35)) -> 2015-10-01 | K38: =SUM($B38:$H38) -> 0 | M38: =IF(K38=0,0,'Summary of Hours'!D35/'Summary of Hours'!$L35) -> 0
A39: =DATE(YEAR(A38),MONTH(A38)+1,DAY(A38)) -> 2015-11-01 | K39: 0 | M39: =IF(K39=0,0,'Summary of Hours'!D36/'Summary of Hours'!$L36) -> 0
A40: 2015-12-01 | K40: 0 | M40: =IF(K40=0,0,'Summary of Hours'!D37/'Summary of Hours'!$L37) -> 0
A41: 2016-01-01 | K41: 0 | M41: =IF(K41=0,0,'Summary of Hours'!D38/'Summary of Hours'!$L38) -> 0
A42: 2016-02-01 | K42: 0 | M42: =IF(K42=0,0,'Summary of Hours'!D39/'Summary of Hours'!$L39) -> 0
A43: 2016-03-01 | K43: 0 | M43: =IF(K43=0,0,'Summary of Hours'!D40/'Summary of Hours'!$L40) -> 0
A44: 2016-04-01 | K44: 0 | M44: =IF(K44=0,0,'Summary of Hours'!D41/'Summary of Hours'!$L41) -> 0
A45: 2016-05-01 | K45: 0 | M45: =IF(K45=0,0,'Summary of Hours'!D42/'Summary of Hours'!$L42) -> 0
A46: 2016-06-01 | K46: 0 | M46: =IF(K46=0,0,'Summary of Hours'!D43/'Summary of Hours'!$L43) -> 0
A47: 2016-07-01 | K47: 0 | M47: =IF(K47=0,0,'Summary of Hours'!D44/'Summary of Hours'!$L44) -> 0
A48: 2016-08-01 | K48: 0 | M48: =IF(K48=0,0,'Summary of Hours'!D45/'Summary of Hours'!$L45) -> 0
A49: 2016-09-01 | K49: 0 | M49: =IF(K49=0,0,'Summary of Hours'!D46/'Summary of Hours'!$L46) -> 0
A50: Total | B50: =SUM(B38:B49) -> 0 | C50: 0 | D50: 0 | E50: 0 | F50: 0 | G50: =SUM(G38:G49) -> 0 | H50: 0 | K50: =SUM(K38:K49) -> 0 | M50: =IF(K50=0,0,'Summary of Hours'!D47/'Summary of Hours'!$L47) -> 0
A52: =DATE(YEAR(A49),MONTH(A49)+1,DAY(A49)) -> 2016-10-01 | K52: =SUM($B52:$H52) -> 0 | M52: =IF(K52=0,0,'Summary of Hours'!D49/'Summary of Hours'!$L49) -> 0
A53: =DATE(YEAR(A52),MONTH(A52)+1,DAY(A52)) -> 2016-11-01 | K53: 0 | M53: =IF(K53=0,0,'Summary of Hours'!D50/'Summary of Hours'!$L50) -> 0
A54: =DATE(YEAR(A53),MONTH(A53)+1,DAY(A53)) -> 2016-12-01 | K54: 0 | M54: =IF(K54=0,0,'Summary of Hours'!D51/'Summary of Hours'!$L51) -> 0
A55: 2017-01-01 | K55: 0 | M55: =IF(K55=0,0,'Summary of Hours'!D52/'Summary of Hours'!$L52) -> 0
A56: 2017-02-01 | K56: 0 | M56: =IF(K56=0,0,'Summary of Hours'!D53/'Summary of Hours'!$L53) -> 0
A57: 2017-03-01 | K57: 0 | M57: =IF(K57=0,0,'Summary of Hours'!D54/'Summary of Hours'!$L54) -> 0
A58: 2017-04-01 | K58: 0 | M58: =IF(K58=0,0,'Summary of Hours'!D55/'Summary of Hours'!$L55) -> 0
A59: 2017-05-01 | K59: 0 | M59: =IF(K59=0,0,'Summary of Hours'!D56/'Summary of Hours'!$L56) -> 0
A60: 2017-06-01 | K60: 0 | M60: =IF(K60=0,0,'Summary of Hours'!D57/'Summary of Hours'!$L57) -> 0
A61: 2017-07-01 | K61: 0 | M61: =IF(K61=0,0,'Summary of Hours'!D58/'Summary of Hours'!$L58) -> 0
A62: 2017-08-01 | K62: 0 | M62: =IF(K62=0,0,'Summary of Hours'!D59/'Summary of Hours'!$L59) -> 0
A63: 2017-09-01 | K63: 0 | M63: =IF(K63=0,0,'Summary of Hours'!D60/'Summary of Hours'!$L60) -> 0
A64: Total | B64: =SUM(B52:B63) -> 0 | C64: 0 | D64: 0 | E64: 0 | F64: 0 | G64: =SUM(G52:G63) -> 0 | H64: 0 | K64: =SUM(K52:K63) -> 0 | M64: =IF(K64=0,0,'Summary of Hours'!D61/'Summary of Hours'!$L61) -> 0
A66: =DATE(YEAR(A63),MONTH(A63)+1,DAY(A63)) -> 2017-10-01 | K66: =SUM($B66:$H66) -> 0 | M66: =IF(K66=0,0,'Summary of Hours'!D63/'Summary of Hours'!$L63) -> 0
A67: =DATE(YEAR(A66),MONTH(A66)+1,DAY(A66)) -> 2017-11-01 | K67: 0 | M67: =IF(K67=0,0,'Summary of Hours'!D64/'Summary of Hours'!$L64) -> 0
A68: 2017-12-01 | K68: 0 | M68: =IF(K68=0,0,'Summary of Hours'!D65/'Summary of Hours'!$L65) -> 0
A69: 2018-01-01 | K69: 0 | M69: =IF(K69=0,0,'Summary of Hours'!D66/'Summary of Hours'!$L66) -> 0
A70: 2018-02-01 | K70: 0 | M70: =IF(K70=0,0,'Summary of Hours'!D67/'Summary of Hours'!$L67) -> 0
A71: 2018-03-01 | K71: 0 | M71: =IF(K71=0,0,'Summary of Hours'!D68/'Summary of Hours'!$L68) -> 0
A72: 2018-04-01 | K72: 0 | M72: =IF(K72=0,0,'Summary of Hours'!D69/'Summary of Hours'!$L69) -> 0
A73: 2018-05-01 | K73: 0 | M73: =IF(K73=0,0,'Summary of Hours'!D70/'Summary of Hours'!$L70) -> 0
A74: 2018-06-01 | K74: 0 | M74: =IF(K74=0,0,'Summary of Hours'!D71/'Summary of Hours'!$L71) -> 0
A75: 2018-07-01 | K75: 0 | M75: =IF(K75=0,0,'Summary of Hours'!D72/'Summary of Hours'!$L72) -> 0
A76: 2018-08-01 | K76: 0 | M76: =IF(K76=0,0,'Summary of Hours'!D73/'Summary of Hours'!$L73) -> 0
A77: 2018-09-01 | K77: 0 | M77: =IF(K77=0,0,'Summary of Hours'!D74/'Summary of Hours'!$L74) -> 0
A78: Total | B78: =SUM(B66:B77) -> 0 | C78: 0 | D78: 0 | E78: 0 | F78: =SUM(F66:F77) -> 0 | G78: =SUM(G66:G77) -> 0 | H78: 0 | K78: =SUM(K66:K77) -> 0 | M78: =IF(K78=0,0,'Summary of Hours'!D75/'Summary of Hours'!$L75) -> 0
A80: Grand Total | B80: =B$78+B$50+B$36+B$22+B$64 -> 0 | C80: 0 | D80: 0 | E80: 0 | F80: 0 | G80: 0 | H80: 13 | K80: =K$78+K$50+K$36+K$22+K$64 -> 13

Sheet Other 3
A1: TIME SHEET SUMMARY
A2: Funding Source: | B2: Select Funding Source | E2: *Record the actual hours worked under the relevant headings during a given month.
A3: Award/Project Number: | B3: Enter Award/Project Number | E3: *NB: you can also use separate tabs to record different activities (RTD, MGT etc.)
A4: Acronym/Short Title: | B4: Enter Acronym/Short Title | E4: *Please record any authorised absence in the “Absence” worksheet.
A5: Contract No./Funders Ref: | E5: *Even though project FTE% may look correct, the 'Recovery Summary' sheet will confirm whether effort has reached the minimum productive hours expected
A6: Project Type:
A8: Period | B8: RTD (CEC_Only) | C8: Demo (CEC_Only) | D8: Train (CEC_Only) | E8: Management (CEC_Only) | F8: Coord/Sup (CEC only) | G8: Marie Curie Worked Hours | H8: Other Hours Worked (CEC & Non CEC) | I8: Activity # or Work Package (CEC_Only) | J8: Additional Information (Optional) | K8: Total Productive Hours Worked | M8: Project FTE%
A10: ='Employee Details'!$L$9 -> 2013-10-01 | K10: =SUM($B10:$H10) -> 0 | M10: =IF(K10=0,0,'Summary of Hours'!E7/'Summary of Hours'!$L7) -> 0
A11: =DATE(YEAR(A10),MONTH(A10)+1,DAY(A10)) -> 2013-11-01 | K11: 0 | M11: =IF(K11=0,0,'Summary of Hours'!E8/'Summary of Hours'!$L8) -> 0
A12: =DATE(YEAR(A11),MONTH(A11)+1,DAY(A11)) -> 2013-12-01 | K12: 0 | M12: =IF(K12=0,0,'Summary of Hours'!E9/'Summary of Hours'!$L9) -> 0
A13: =DATE(YEAR(A12),MONTH(A12)+1,DAY(A12)) -> 2014-01-01 | K13: 0 | M13: =IF(K13=0,0,'Summary of Hours'!E10/'Summary of Hours'!$L10) -> 0
A14: =DATE(YEAR(A13),MONTH(A13)+1,DAY(A13)) -> 2014-02-01 | K14: 0 | M14: =IF(K14=0,0,'Summary of Hours'!E11/'Summary of Hours'!$L11) -> 0
A15: 2014-03-01 | K15: 0 | M15: =IF(K15=0,0,'Summary of Hours'!E12/'Summary of Hours'!$L12) -> 0
A16: 2014-04-01 | K16: 0 | M16: =IF(K16=0,0,'Summary of Hours'!E13/'Summary of Hours'!$L13) -> 0
A17: 2014-05-01 | K17: 0 | M17: =IF(K17=0,0,'Summary of Hours'!E14/'Summary of Hours'!$L14) -> 0
A18: 2014-06-01 | K18: 0 | M18: =IF(K18=0,0,'Summary of Hours'!E15/'Summary of Hours'!$L15) -> 0
A19: 2014-07-01 | K19: 0 | M19: =IF(K19=0,0,'Summary of Hours'!E16/'Summary of Hours'!$L16) -> 0
A20: 2014-08-01 | K20: 0 | M20: =IF(K20=0,0,'Summary of Hours'!E17/'Summary of Hours'!$L17) -> 0
A21: 2014-09-01 | K21: 0 | M21: =IF(K21=0,0,'Summary of Hours'!E18/'Summary of Hours'!$L18) -> 0
A22: Total | B22: =SUM(B10:B21) -> 0 | C22: 0 | D22: 0 | E22: 0 | F22: 0 | G22: =SUM(G10:G21) -> 0 | H22: 0 | K22: =SUM(K10:K21) -> 0 | M22: =IF(K22=0,0,'Summary of Hours'!E19/'Summary of Hours'!$L19) -> 0
A24: =DATE(YEAR(A21),MONTH(A21)+1,DAY(A21)) -> 2014-10-01 | K24: =SUM($B24:$H24) -> 0 | M24: =IF(K24=0,0,'Summary of Hours'!E21/'Summary of Hours'!$L21) -> 0
A25: =DATE(YEAR(A24),MONTH(A24)+1,DAY(A24)) -> 2014-11-01 | K25: 0 | M25: =IF(K25=0,0,'Summary of Hours'!E22/'Summary of Hours'!$L22) -> 0
A26: =DATE(YEAR(A25),MONTH(A25)+1,DAY(A25)) -> 2014-12-01 | K26: 0 | M26: =IF(K26=0,0,'Summary of Hours'!E23/'Summary of Hours'!$L23) -> 0
A27: =DATE(YEAR(A26),MONTH(A26)+1,DAY(A26)) -> 2015-01-01 | K27: 0 | M27: =IF(K27=0,0,'Summary of Hours'!E24/'Summary of Hours'!$L24) -> 0
A28: =DATE(YEAR(A27),MONTH(A27)+1,DAY(A27)) -> 2015-02-01 | K28: 0 | M28: =IF(K28=0,0,'Summary of Hours'!E25/'Summary of Hours'!$L25) -> 0
A29: 2015-03-01 | K29: 0 | M29: =IF(K29=0,0,'Summary of Hours'!E26/'Summary of Hours'!$L26) -> 0
A30: 2015-04-01 | K30: 0 | M30: =IF(K30=0,0,'Summary of Hours'!E27/'Summary of Hours'!$L27) -> 0
A31: 2015-05-01 | K31: 0 | M31: =IF(K31=0,0,'Summary of Hours'!E28/'Summary of Hours'!$L28) -> 0
A32: 2015-06-01 | K32: 0 | M32: =IF(K32=0,0,'Summary of Hours'!E29/'Summary of Hours'!$L29) -> 0
A33: 2015-07-01 | K33: 0 | M33: =IF(K33=0,0,'Summary of Hours'!E30/'Summary of Hours'!$L30) -> 0
A34: 2015-08-01 | K34: 0 | M34: =IF(K34=0,0,'Summary of Hours'!E31/'Summary of Hours'!$L31) -> 0
A35: 2015-09-01 | K35: 0 | M35: =IF(K35=0,0,'Summary of Hours'!E32/'Summary of Hours'!$L32) -> 0
A36: Total | B36: =SUM(B24:B35) -> 0 | C36: 0 | D36: 0 | E36: 0 | F36: 0 | G36: =SUM(G24:G35) -> 0 | H36: 0 | K36: =SUM(K24:K35) -> 0 | M36: =IF(K36=0,0,'Summary of Hours'!E33/'Summary of Hours'!$L33) -> 0
A38: =DATE(YEAR(A35),MONTH(A35)+1,DAY(A35)) -> 2015-10-01 | K38: =SUM($B38:$H38) -> 0 | M38: =IF(K38=0,0,'Summary of Hours'!E35/'Summary of Hours'!$L35) -> 0
A39: =DATE(YEAR(A38),MONTH(A38)+1,DAY(A38)) -> 2015-11-01 | K39: 0 | M39: =IF(K39=0,0,'Summary of Hours'!E36/'Summary of Hours'!$L36) -> 0
A40: 2015-12-01 | K40: 0 | M40: =IF(K40=0,0,'Summary of Hours'!E37/'Summary of Hours'!$L37) -> 0
A41: 2016-01-01 | K41: 0 | M41: =IF(K41=0,0,'Summary of Hours'!E38/'Summary of Hours'!$L38) -> 0
A42: 2016-02-01 | K42: 0 | M42: =IF(K42=0,0,'Summary of Hours'!E39/'Summary of Hours'!$L39) -> 0
A43: 2016-03-01 | K43: 0 | M43: =IF(K43=0,0,'Summary of Hours'!E40/'Summary of Hours'!$L40) -> 0
A44: 2016-04-01 | K44: 0 | M44: =IF(K44=0,0,'Summary of Hours'!E41/'Summary of Hours'!$L41) -> 0
A45: 2016-05-01 | K45: 0 | M45: =IF(K45=0,0,'Summary of Hours'!E42/'Summary of Hours'!$L42) -> 0
A46: 2016-06-01 | K46: 0 | M46: =IF(K46=0,0,'Summary of Hours'!E43/'Summary of Hours'!$L43) -> 0
A47: 2016-07-01 | K47: 0 | M47: =IF(K47=0,0,'Summary of Hours'!E44/'Summary of Hours'!$L44) -> 0
A48: 2016-08-01 | K48: 0 | M48: =IF(K48=0,0,'Summary of Hours'!E45/'Summary of Hours'!$L45) -> 0
A49: 2016-09-01 | K49: 0 | M49: =IF(K49=0,0,'Summary of Hours'!E46/'Summary of Hours'!$L46) -> 0
A50: Total | B50: =SUM(B38:B49) -> 0 | C50: 0 | D50: 0 | E50: 0 | F50: 0 | G50: =SUM(G38:G49) -> 0 | H50: 0 | K50: =SUM(K38:K49) -> 0 | M50: =IF(K50=0,0,'Summary of Hours'!E47/'Summary of Hours'!$L47) -> 0
A52: =DATE(YEAR(A49),MONTH(A49)+1,DAY(A49)) -> 2016-10-01 | K52: =SUM($B52:$H52) -> 0 | M52: =IF(K52=0,0,'Summary of Hours'!E49/'Summary of Hours'!$L49) -> 0
A53: =DATE(YEAR(A52),MONTH(A52)+1,DAY(A52)) -> 2016-11-01 | K53: 0 | M53: =IF(K53=0,0,'Summary of Hours'!E50/'Summary of Hours'!$L50) -> 0
A54: =DATE(YEAR(A53),MONTH(A53)+1,DAY(A53)) -> 2016-12-01 | K54: 0 | M54: =IF(K54=0,0,'Summary of Hours'!E51/'Summary of Hours'!$L51) -> 0
A55: 2017-01-01 | K55: 0 | M55: =IF(K55=0,0,'Summary of Hours'!E52/'Summary of Hours'!$L52) -> 0
A56: 2017-02-01 | K56: 0 | M56: =IF(K56=0,0,'Summary of Hours'!E53/'Summary of Hours'!$L53) -> 0
A57: 2017-03-01 | K57: 0 | M57: =IF(K57=0,0,'Summary of Hours'!E54/'Summary of Hours'!$L54) -> 0
A58: 2017-04-01 | K58: 0 | M58: =IF(K58=0,0,'Summary of Hours'!E55/'Summary of Hours'!$L55) -> 0
A59: 2017-05-01 | K59: 0 | M59: =IF(K59=0,0,'Summary of Hours'!E56/'Summary of Hours'!$L56) -> 0
A60: 2017-06-01 | K60: 0 | M60: =IF(K60=0,0,'Summary of Hours'!E57/'Summary of Hours'!$L57) -> 0
A61: 2017-07-01 | K61: 0 | M61: =IF(K61=0,0,'Summary of Hours'!E58/'Summary of Hours'!$L58) -> 0
A62: 2017-08-01 | K62: 0 | M62: =IF(K62=0,0,'Summary of Hours'!E59/'Summary of Hours'!$L59) -> 0
A63: 2017-09-01 | K63: 0 | M63: =IF(K63=0,0,'Summary of Hours'!E60/'Summary of Hours'!$L60) -> 0
A64: Total | B64: =SUM(B52:B63) -> 0 | C64: 0 | D64: 0 | E64: 0 | F64: 0 | G64: =SUM(G52:G63) -> 0 | H64: 0 | K64: =SUM(K52:K63) -> 0 | M64: =IF(K64=0,0,'Summary of Hours'!E61/'Summary of Hours'!$L61) -> 0
A66: =DATE(YEAR(A63),MONTH(A63)+1,DAY(A63)) -> 2017-10-01 | K66: =SUM($B66:$H66) -> 0 | M66: =IF(K66=0,0,'Summary of Hours'!E63/'Summary of Hours'!$L63) -> 0
A67: =DATE(YEAR(A66),MONTH(A66)+1,DAY(A66)) -> 2017-11-01 | K67: 0 | M67: =IF(K67=0,0,'Summary of Hours'!E64/'Summary of Hours'!$L64) -> 0
A68: 2017-12-01 | K68: 0 | M68: =IF(K68=0,0,'Summary of Hours'!E65/'Summary of Hours'!$L65) -> 0
A69: 2018-01-01 | K69: 0 | M69: =IF(K69=0,0,'Summary of Hours'!E66/'Summary of Hours'!$L66) -> 0
A70: 2018-02-01 | K70: 0 | M70: =IF(K70=0,0,'Summary of Hours'!E67/'Summary of Hours'!$L67) -> 0
A71: 2018-03-01 | K71: 0 | M71: =IF(K71=0,0,'Summary of Hours'!E68/'Summary of Hours'!$L68) -> 0
A72: 2018-04-01 | K72: 0 | M72: =IF(K72=0,0,'Summary of Hours'!E69/'Summary of Hours'!$L69) -> 0
A73: 2018-05-01 | K73: 0 | M73: =IF(K73=0,0,'Summary of Hours'!E70/'Summary of Hours'!$L70) -> 0
A74: 2018-06-01 | K74: 0 | M74: =IF(K74=0,0,'Summary of Hours'!E71/'Summary of Hours'!$L71) -> 0
A75: 2018-07-01 | K75: 0 | M75: =IF(K75=0,0,'Summary of Hours'!E72/'Summary of Hours'!$L72) -> 0
A76: 2018-08-01 | K76: 0 | M76: =IF(K76=0,0,'Summary of Hours'!E73/'Summary of Hours'!$L73) -> 0
A77: 2018-09-01 | K77: 0 | M77: =IF(K77=0,0,'Summary of Hours'!E74/'Summary of Hours'!$L74) -> 0
A78: Total | B78: =SUM(B66:B77) -> 0 | C78: 0 | D78: 0 | E78: 0 | F78: =SUM(F66:F77) -> 0 | G78: =SUM(G66:G77) -> 0 | H78: 0 | K78: =SUM(K66:K77) -> 0 | M78: =IF(K78=0,0,'Summary of Hours'!E75/'Summary of Hours'!$L75) -> 0
A80: Grand Total | B80: =B$78+B$50+B$36+B$22+B$64 -> 0 | C80: 0 | D80: 0 | E80: 0 | F80: 0 | G80: 0 | H80: 0 | K80: =K$78+K$50+K$36+K$22+K$64 -> 0

Sheet Other 4
A1: TIME SHEET SUMMARY
A2: Funding Source: | B2: Select Funding Source | E2: *Record the actual hours worked under the relevant headings during a given month.
A3: Award/Project Number: | B3: Enter Award/Project Number | E3: *NB: you can also use separate tabs to record different activities (RTD, MGT etc.)
A4: Acronym/Short Title: | B4: Enter Acronym/Short Title | E4: *Please record any authorised absence in the “Absence” worksheet.
A5: Contract No./Funders Ref: | E5: *Even though project FTE% may look correct, the 'Recovery Summary' sheet will confirm whether effort has reached the minimum productive hours expected
A6: Project Type:
A8: Period | B8: RTD (CEC_Only) | C8: Demo (CEC_Only) | D8: Train (CEC_Only) | E8: Management (CEC_Only) | F8: Coord/Sup (CEC only) | G8: Marie Curie Worked Hours | H8: Other Hours Worked (CEC & Non CEC) | I8: Activity # or Work Package (CEC_Only) | J8: Additional Information (Optional) | K8: Total Productive Hours Worked | M8: Project FTE%
A10: ='Employee Details'!$L$9 -> 2013-10-01 | K10: =SUM($B10:$H10) -> 0 | M10: =IF(K10=0,0,'Summary of Hours'!F7/'Summary of Hours'!$L7) -> 0
A11: =DATE(YEAR(A10),MONTH(A10)+1,DAY(A10)) -> 2013-11-01 | K11: 0 | M11: =IF(K11=0,0,'Summary of Hours'!F8/'Summary of Hours'!$L8) -> 0
A12: =DATE(YEAR(A11),MONTH(A11)+1,DAY(A11)) -> 2013-12-01 | K12: 0 | M12: =IF(K12=0,0,'Summary of Hours'!F9/'Summary of Hours'!$L9) -> 0
A13: =DATE(YEAR(A12),MONTH(A12)+1,DAY(A12)) -> 2014-01-01 | K13: 0 | M13: =IF(K13=0,0,'Summary of Hours'!F10/'Summary of Hours'!$L10) -> 0
A14: =DATE(YEAR(A13),MONTH(A13)+1,DAY(A13)) -> 2014-02-01 | K14: 0 | M14: =IF(K14=0,0,'Summary of Hours'!F11/'Summary of Hours'!$L11) -> 0
A15: 2014-03-01 | K15: 0 | M15: =IF(K15=0,0,'Summary of Hours'!F12/'Summary of Hours'!$L12) -> 0
A16: 2014-04-01 | K16: 0 | M16: =IF(K16=0,0,'Summary of Hours'!F13/'Summary of Hours'!$L13) -> 0
A17: 2014-05-01 | K17: 0 | M17: =IF(K17=0,0,'Summary of Hours'!F14/'Summary of Hours'!$L14) -> 0
A18: 2014-06-01 | K18: 0 | M18: =IF(K18=0,0,'Summary of Hours'!F15/'Summary of Hours'!$L15) -> 0
A19: 2014-07-01 | K19: 0 | M19: =IF(K19=0,0,'Summary of Hours'!F16/'Summary of Hours'!$L16) -> 0
A20: 2014-08-01 | K20: 0 | M20: =IF(K20=0,0,'Summary of Hours'!F17/'Summary of Hours'!$L17) -> 0
A21: 2014-09-01 | K21: 0 | M21: =IF(K21=0,0,'Summary of Hours'!F18/'Summary of Hours'!$L18) -> 0
A22: Total | B22: =SUM(B10:B21) -> 0 | C22: 0 | D22: 0 | E22: 0 | F22: 0 | G22: =SUM(G10:G21) -> 0 | H22: 0 | K22: =SUM(K10:K21) -> 0 | M22: =IF(K22=0,0,'Summary of Hours'!F19/'Summary of Hours'!$L19) -> 0
A24: =DATE(YEAR(A21),MONTH(A21)+1,DAY(A21)) -> 2014-10-01 | K24: =SUM($B24:$H24) -> 0 | M24: =IF(K24=0,0,'Summary of Hours'!F21/'Summary of Hours'!$L21) -> 0
A25: =DATE(YEAR(A24),MONTH(A24)+1,DAY(A24)) -> 2014-11-01 | K25: 0 | M25: =IF(K25=0,0,'Summary of Hours'!F22/'Summary of Hours'!$L22) -> 0
A26: =DATE(YEAR(A25),MONTH(A25)+1,DAY(A25)) -> 2014-12-01 | K26: 0 | M26: =IF(K26=0,0,'Summary of Hours'!F23/'Summary of Hours'!$L23) -> 0
A27: =DATE(YEAR(A26),MONTH(A26)+1,DAY(A26)) -> 2015-01-01 | K27: 0 | M27: =IF(K27=0,0,'Summary of Hours'!F24/'Summary of Hours'!$L24) -> 0
A28: =DATE(YEAR(A27),MONTH(A27)+1,DAY(A27)) -> 2015-02-01 | K28: 0 | M28: =IF(K28=0,0,'Summary of Hours'!F25/'Summary of Hours'!$L25) -> 0
A29: 2015-03-01 | K29: 0 | M29: =IF(K29=0,0,'Summary of Hours'!F26/'Summary of Hours'!$L26) -> 0
A30: 2015-04-01 | K30: 0 | M30: =IF(K30=0,0,'Summary of Hours'!F27/'Summary of Hours'!$L27) -> 0
A31: 2015-05-01 | K31: 0 | M31: =IF(K31=0,0,'Summary of Hours'!F28/'Summary of Hours'!$L28) -> 0
A32: 2015-06-01 | K32: 0 | M32: =IF(K32=0,0,'Summary of Hours'!F29/'Summary of Hours'!$L29) -> 0
A33: 2015-07-01 | K33: 0 | M33: =IF(K33=0,0,'Summary of Hours'!F30/'Summary of Hours'!$L30) -> 0
A34: 2015-08-01 | K34: 0 | M34: =IF(K34=0,0,'Summary of Hours'!F31/'Summary of Hours'!$L31) -> 0
A35: 2015-09-01 | K35: 0 | M35: =IF(K35=0,0,'Summary of Hours'!F32/'Summary of Hours'!$L32) -> 0
A36: Total | B36: =SUM(B24:B35) -> 0 | C36: 0 | D36: 0 | E36: 0 | F36: 0 | G36: =SUM(G24:G35) -> 0 | H36: 0 | K36: =SUM(K24:K35) -> 0 | M36: =IF(K36=0,0,'Summary of Hours'!F33/'Summary of Hours'!$L33) -> 0
A38: =DATE(YEAR(A35),MONTH(A35)+1,DAY(A35)) -> 2015-10-01 | K38: =SUM($B38:$H38) -> 0 | M38: =IF(K38=0,0,'Summary of Hours'!F35/'Summary of Hours'!$L35) -> 0
A39: =DATE(YEAR(A38),MONTH(A38)+1,DAY(A38)) -> 2015-11-01 | K39: 0 | M39: =IF(K39=0,0,'Summary of Hours'!F36/'Summary of Hours'!$L36) -> 0
A40: 2015-12-01 | K40: 0 | M40: =IF(K40=0,0,'Summary of Hours'!F37/'Summary of Hours'!$L37) -> 0
A41: 2016-01-01 | K41: 0 | M41: =IF(K41=0,0,'Summary of Hours'!F38/'Summary of Hours'!$L38) -> 0
A42: 2016-02-01 | K42: 0 | M42: =IF(K42=0,0,'Summary of Hours'!F39/'Summary of Hours'!$L39) -> 0
A43: 2016-03-01 | K43: 0 | M43: =IF(K43=0,0,'Summary of Hours'!F40/'Summary of Hours'!$L40) -> 0
A44: 2016-04-01 | K44: 0 | M44: =IF(K44=0,0,'Summary of Hours'!F41/'Summary of Hours'!$L41) -> 0
A45: 2016-05-01 | K45: 0 | M45: =IF(K45=0,0,'Summary of Hours'!F42/'Summary of Hours'!$L42) -> 0
A46: 2016-06-01 | K46: 0 | M46: =IF(K46=0,0,'Summary of Hours'!F43/'Summary of Hours'!$L43) -> 0
A47: 2016-07-01 | K47: 0 | M47: =IF(K47=0,0,'Summary of Hours'!F44/'Summary of Hours'!$L44) -> 0
A48: 2016-08-01 | K48: 0 | M48: =IF(K48=0,0,'Summary of Hours'!F45/'Summary of Hours'!$L45) -> 0
A49: 2016-09-01 | K49: 0 | M49: =IF(K49=0,0,'Summary of Hours'!F46/'Summary of Hours'!$L46) -> 0
A50: Total | B50: =SUM(B38:B49) -> 0 | C50: 0 | D50: 0 | E50: 0 | F50: 0 | G50: =SUM(G38:G49) -> 0 | H50: 0 | K50: =SUM(K38:K49) -> 0 | M50: =IF(K50=0,0,'Summary of Hours'!F47/'Summary of Hours'!$L47) -> 0
A52: =DATE(YEAR(A49),MONTH(A49)+1,DAY(A49)) -> 2016-10-01 | K52: =SUM($B52:$H52) -> 0 | M52: =IF(K52=0,0,'Summary of Hours'!F49/'Summary of Hours'!$L49) -> 0
A53: =DATE(YEAR(A52),MONTH(A52)+1,DAY(A52)) -> 2016-11-01 | K53: 0 | M53: =IF(K53=0,0,'Summary of Hours'!F50/'Summary of Hours'!$L50) -> 0
A54: =DATE(YEAR(A53),MONTH(A53)+1,DAY(A53)) -> 2016-12-01 | K54: 0 | M54: =IF(K54=0,0,'Summary of Hours'!F51/'Summary of Hours'!$L51) -> 0
A55: 2017-01-01 | K55: 0 | M55: =IF(K55=0,0,'Summary of Hours'!F52/'Summary of Hours'!$L52) -> 0
A56: 2017-02-01 | K56: 0 | M56: =IF(K56=0,0,'Summary of Hours'!F53/'Summary of Hours'!$L53) -> 0
A57: 2017-03-01 | K57: 0 | M57: =IF(K57=0,0,'Summary of Hours'!F54/'Summary of Hours'!$L54) -> 0
A58: 2017-04-01 | K58: 0 | M58: =IF(K58=0,0,'Summary of Hours'!F55/'Summary of Hours'!$L55) -> 0
A59: 2017-05-01 | K59: 0 | M59: =IF(K59=0,0,'Summary of Hours'!F56/'Summary of Hours'!$L56) -> 0
A60: 2017-06-01 | K60: 0 | M60: =IF(K60=0,0,'Summary of Hours'!F57/'Summary of Hours'!$L57) -> 0
A61: 2017-07-01 | K61: 0 | M61: =IF(K61=0,0,'Summary of Hours'!F58/'Summary of Hours'!$L58) -> 0
A62: 2017-08-01 | K62: 0 | M62: =IF(K62=0,0,'Summary of Hours'!F59/'Summary of Hours'!$L59) -> 0
A63: 2017-09-01 | K63: 0 | M63: =IF(K63=0,0,'Summary of Hours'!F60/'Summary of Hours'!$L60) -> 0
A64: Total | B64: =SUM(B52:B63) -> 0 | C64: 0 | D64: 0 | E64: 0 | F64: 0 | G64: =SUM(G52:G63) -> 0 | H64: 0 | K64: =SUM(K52:K63) -> 0 | M64: =IF(K64=0,0,'Summary of Hours'!F61/'Summary of Hours'!$L61) -> 0
A66: =DATE(YEAR(A63),MONTH(A63)+1,DAY(A63)) -> 2017-10-01 | K66: =SUM($B66:$H66) -> 0 | M66: =IF(K66=0,0,'Summary of Hours'!F63/'Summary of Hours'!$L63) -> 0
A67: =DATE(YEAR(A66),MONTH(A66)+1,DAY(A66)) -> 2017-11-01 | K67: 0 | M67: =IF(K67=0,0,'Summary of Hours'!F64/'Summary of Hours'!$L64) -> 0
A68: 2017-12-01 | K68: 0 | M68: =IF(K68=0,0,'Summary of Hours'!F65/'Summary of Hours'!$L65) -> 0
A69: 2018-01-01 | K69: 0 | M69: =IF(K69=0,0,'Summary of Hours'!F66/'Summary of Hours'!$L66) -> 0
A70: 2018-02-01 | K70: 0 | M70: =IF(K70=0,0,'Summary of Hours'!F67/'Summary of Hours'!$L67) -> 0
A71: 2018-03-01 | K71: 0 | M71: =IF(K71=0,0,'Summary of Hours'!F68/'Summary of Hours'!$L68) -> 0
A72: 2018-04-01 | K72: 0 | M72: =IF(K72=0,0,'Summary of Hours'!F69/'Summary of Hours'!$L69) -> 0
A73: 2018-05-01 | K73: 0 | M73: =IF(K73=0,0,'Summary of Hours'!F70/'Summary of Hours'!$L70) -> 0
A74: 2018-06-01 | K74: 0 | M74: =IF(K74=0,0,'Summary of Hours'!F71/'Summary of Hours'!$L71) -> 0
A75: 2018-07-01 | K75: 0 | M75: =IF(K75=0,0,'Summary of Hours'!F72/'Summary of Hours'!$L72) -> 0
A76: 2018-08-01 | K76: 0 | M76: =IF(K76=0,0,'Summary of Hours'!F73/'Summary of Hours'!$L73) -> 0
A77: 2018-09-01 | K77: 0 | M77: =IF(K77=0,0,'Summary of Hours'!F74/'Summary of Hours'!$L74) -> 0
A78: Total | B78: =SUM(B66:B77) -> 0 | C78: 0 | D78: 0 | E78: 0 | F78: =SUM(F66:F77) -> 0 | G78: =SUM(G66:G77) -> 0 | H78: 0 | K78: =SUM(K66:K77) -> 0 | M78: =IF(K78=0,0,'Summary of Hours'!F75/'Summary of Hours'!$L75) -> 0
A80: Grand Total | B80: =B$78+B$50+B$36+B$22+B$64 -> 0 | C80: 0 | D80: 0 | E80: 0 | F80: 0 | G80: 0 | H80: 0 | K80: =K$78+K$50+K$36+K$22+K$64 -> 0

Sheet Other 5 (hidden)
A1: TIME SHEET SUMMARY
A2: Funding Source: | B2: Select Funding Source | E2: *Record the actual hours worked under the relevant headings during a given month.
A3: Award/Project Number: | B3: Enter Award/Project Number | E3: *NB: you can also use separate tabs to record different activities (RTD, MGT etc.)
A4: Acronym/Short Title: | B4: Enter Acronym/Short Title | E4: *Please record any authorised absence in the “Absence” worksheet.
A5: Contract No./Funders Ref: | E5: *Even though project FTE% may look correct, the 'Recovery Summary' sheet will confirm whether effort has reached the minimum productive hours expected
A6: Project Type:
A8: Period | B8: RTD (CEC_Only) | C8: Demo (CEC_Only) | D8: Train (CEC_Only) | E8: Management (CEC_Only) | F8: Coord/Sup (CEC only) | G8: Marie Curie Worked Hours | H8: Other Hours Worked (CEC & Non CEC) | I8: Activity # or Work Package (CEC_Only) | J8: Additional Information (Optional) | K8: Total Productive Hours Worked | M8: Project FTE%
A10: ='Employee Details'!$L$9 -> 2013-10-01 | K10: =SUM($B10:$H10) -> 0 | M10: =IF(K10=0,0,'Summary of Hours'!G7/'Summary of Hours'!$L7) -> 0
A11: =DATE(YEAR(A10),MONTH(A10)+1,DAY(A10)) -> 2013-11-01 | K11: 0 | M11: =IF(K11=0,0,'Summary of Hours'!G8/'Summary of Hours'!$L8) -> 0
A12: =DATE(YEAR(A11),MONTH(A11)+1,DAY(A11)) -> 2013-12-01 | K12: 0 | M12: =IF(K12=0,0,'Summary of Hours'!G9/'Summary of Hours'!$L9) -> 0
A13: =DATE(YEAR(A12),MONTH(A12)+1,DAY(A12)) -> 2014-01-01 | K13: 0 | M13: =IF(K13=0,0,'Summary of Hours'!G10/'Summary of Hours'!$L10) -> 0
A14: =DATE(YEAR(A13),MONTH(A13)+1,DAY(A13)) -> 2014-02-01 | K14: 0 | M14: =IF(K14=0,0,'Summary of Hours'!G11/'Summary of Hours'!$L11) -> 0
A15: 2014-03-01 | K15: 0 | M15: =IF(K15=0,0,'Summary of Hours'!G12/'Summary of Hours'!$L12) -> 0
A16: 2014-04-01 | K16: 0 | M16: =IF(K16=0,0,'Summary of Hours'!G13/'Summary of Hours'!$L13) -> 0
A17: 2014-05-01 | K17: 0 | M17: =IF(K17=0,0,'Summary of Hours'!G14/'Summary of Hours'!$L14) -> 0
A18: 2014-06-01 | K18: 0 | M18: =IF(K18=0,0,'Summary of Hours'!G15/'Summary of Hours'!$L15) -> 0
A19: 2014-07-01 | K19: 0 | M19: =IF(K19=0,0,'Summary of Hours'!G16/'Summary of Hours'!$L16) -> 0
A20: 2014-08-01 | K20: 0 | M20: =IF(K20=0,0,'Summary of Hours'!G17/'Summary of Hours'!$L17) -> 0
A21: 2014-09-01 | K21: 0 | M21: =IF(K21=0,0,'Summary of Hours'!G18/'Summary of Hours'!$L18) -> 0
A22: Total | B22: =SUM(B10:B21) -> 0 | C22: 0 | D22: 0 | E22: 0 | F22: 0 | G22: =SUM(G10:G21) -> 0 | H22: 0 | K22: =SUM(K10:K21) -> 0 | M22: =IF(K22=0,0,'Summary of Hours'!G19/'Summary of Hours'!$L19) -> 0
A24: =DATE(YEAR(A21),MONTH(A21)+1,DAY(A21)) -> 2014-10-01 | K24: =SUM($B24:$H24) -> 0 | M24: =IF(K24=0,0,'Summary of Hours'!G21/'Summary of Hours'!$L21) -> 0
A25: =DATE(YEAR(A24),MONTH(A24)+1,DAY(A24)) -> 2014-11-01 | K25: 0 | M25: =IF(K25=0,0,'Summary of Hours'!G22/'Summary of Hours'!$L22) -> 0
A26: =DATE(YEAR(A25),MONTH(A25)+1,DAY(A25)) -> 2014-12-01 | K26: 0 | M26: =IF(K26=0,0,'Summary of Hours'!G23/'Summary of Hours'!$L23) -> 0
A27: =DATE(YEAR(A26),MONTH(A26)+1,DAY(A26)) -> 2015-01-01 | K27: 0 | M27: =IF(K27=0,0,'Summary of Hours'!G24/'Summary of Hours'!$L24) -> 0
A28: =DATE(YEAR(A27),MONTH(A27)+1,DAY(A27)) -> 2015-02-01 | K28: 0 | M28: =IF(K28=0,0,'Summary of Hours'!G25/'Summary of Hours'!$L25) -> 0
A29: 2015-03-01 | K29: 0 | M29: =IF(K29=0,0,'Summary of Hours'!G26/'Summary of Hours'!$L26) -> 0
A30: 2015-04-01 | K30: 0 | M30: =IF(K30=0,0,'Summary of Hours'!G27/'Summary of Hours'!$L27) -> 0
A31: 2015-05-01 | K31: 0 | M31: =IF(K31=0,0,'Summary of Hours'!G28/'Summary of Hours'!$L28) -> 0
A32: 2015-06-01 | K32: 0 | M32: =IF(K32=0,0,'Summary of Hours'!G29/'Summary of Hours'!$L29) -> 0
A33: 2015-07-01 | K33: 0 | M33: =IF(K33=0,0,'Summary of Hours'!G30/'Summary of Hours'!$L30) -> 0
A34: 2015-08-01 | K34: 0 | M34: =IF(K34=0,0,'Summary of Hours'!G31/'Summary of Hours'!$L31) -> 0
A35: 2015-09-01 | K35: 0 | M35: =IF(K35=0,0,'Summary of Hours'!G32/'Summary of Hours'!$L32) -> 0
A36: Total | B36: =SUM(B24:B35) -> 0 | C36: 0 | D36: 0 | E36: 0 | F36: 0 | G36: =SUM(G24:G35) -> 0 | H36: 0 | K36: =SUM(K24:K35) -> 0 | M36: =IF(K36=0,0,'Summary of Hours'!G33/'Summary of Hours'!$L33) -> 0
A38: =DATE(YEAR(A35),MONTH(A35)+1,DAY(A35)) -> 2015-10-01 | K38: =SUM($B38:$H38) -> 0 | M38: =IF(K38=0,0,'Summary of Hours'!G35/'Summary of Hours'!$L35) -> 0
A39: =DATE(YEAR(A38),MONTH(A38)+1,DAY(A38)) -> 2015-11-01 | K39: 0 | M39: =IF(K39=0,0,'Summary of Hours'!G36/'Summary of Hours'!$L36) -> 0
A40: 2015-12-01 | K40: 0 | M40: =IF(K40=0,0,'Summary of Hours'!G37/'Summary of Hours'!$L37) -> 0
A41: 2016-01-01 | K41: 0 | M41: =IF(K41=0,0,'Summary of Hours'!G38/'Summary of Hours'!$L38) -> 0
A42: 2016-02-01 | K42: 0 | M42: =IF(K42=0,0,'Summary of Hours'!G39/'Summary of Hours'!$L39) -> 0
A43: 2016-03-01 | K43: 0 | M43: =IF(K43=0,0,'Summary of Hours'!G40/'Summary of Hours'!$L40) -> 0
A44: 2016-04-01 | K44: 0 | M44: =IF(K44=0,0,'Summary of Hours'!G41/'Summary of Hours'!$L41) -> 0
A45: 2016-05-01 | K45: 0 | M45: =IF(K45=0,0,'Summary of Hours'!G42/'Summary of Hours'!$L42) -> 0
A46: 2016-06-01 | K46: 0 | M46: =IF(K46=0,0,'Summary of Hours'!G43/'Summary of Hours'!$L43) -> 0
A47: 2016-07-01 | K47: 0 | M47: =IF(K47=0,0,'Summary of Hours'!G44/'Summary of Hours'!$L44) -> 0
A48: 2016-08-01 | K48: 0 | M48: =IF(K48=0,0,'Summary of Hours'!G45/'Summary of Hours'!$L45) -> 0
A49: 2016-09-01 | K49: 0 | M49: =IF(K49=0,0,'Summary of Hours'!G46/'Summary of Hours'!$L46) -> 0
A50: Total | B50: =SUM(B38:B49) -> 0 | C50: 0 | D50: 0 | E50: 0 | F50: 0 | G50: =SUM(G38:G49) -> 0 | H50: 0 | K50: =SUM(K38:K49) -> 0 | M50: =IF(K50=0,0,'Summary of Hours'!G47/'Summary of Hours'!$L47) -> 0
A52: =DATE(YEAR(A49),MONTH(A49)+1,DAY(A49)) -> 2016-10-01 | K52: =SUM($B52:$H52) -> 0 | M52: =IF(K52=0,0,'Summary of Hours'!G49/'Summary of Hours'!$L49) -> 0
A53: =DATE(YEAR(A52),MONTH(A52)+1,DAY(A52)) -> 2016-11-01 | K53: 0 | M53: =IF(K53=0,0,'Summary of Hours'!G50/'Summary of Hours'!$L50) -> 0
A54: =DATE(YEAR(A53),MONTH(A53)+1,DAY(A53)) -> 2016-12-01 | K54: 0 | M54: =IF(K54=0,0,'Summary of Hours'!G51/'Summary of Hours'!$L51) -> 0
A55: 2017-01-01 | K55: 0 | M55: =IF(K55=0,0,'Summary of Hours'!G52/'Summary of Hours'!$L52) -> 0
A56: 2017-02-01 | K56: 0 | M56: =IF(K56=0,0,'Summary of Hours'!G53/'Summary of Hours'!$L53) -> 0
A57: 2017-03-01 | K57: 0 | M57: =IF(K57=0,0,'Summary of Hours'!G54/'Summary of Hours'!$L54) -> 0
A58: 2017-04-01 | K58: 0 | M58: =IF(K58=0,0,'Summary of Hours'!G55/'Summary of Hours'!$L55) -> 0
A59: 2017-05-01 | K59: 0 | M59: =IF(K59=0,0,'Summary of Hours'!G56/'Summary of Hours'!$L56) -> 0
A60: 2017-06-01 | K60: 0 | M60: =IF(K60=0,0,'Summary of Hours'!G57/'Summary of Hours'!$L57) -> 0
A61: 2017-07-01 | K61: 0 | M61: =IF(K61=0,0,'Summary of Hours'!G58/'Summary of Hours'!$L58) -> 0
A62: 2017-08-01 | K62: 0 | M62: =IF(K62=0,0,'Summary of Hours'!G59/'Summary of Hours'!$L59) -> 0
A63: 2017-09-01 | K63: 0 | M63: =IF(K63=0,0,'Summary of Hours'!G60/'Summary of Hours'!$L60) -> 0
A64: Total | B64: =SUM(B52:B63) -> 0 | C64: 0 | D64: 0 | E64: 0 | F64: 0 | G64: =SUM(G52:G63) -> 0 | H64: 0 | K64: =SUM(K52:K63) -> 0 | M64: =IF(K64=0,0,'Summary of Hours'!G61/'Summary of Hours'!$L61) -> 0
A66: =DATE(YEAR(A63),MONTH(A63)+1,DAY(A63)) -> 2017-10-01 | K66: =SUM($B66:$H66) -> 0 | M66: =IF(K66=0,0,'Summary of Hours'!G63/'Summary of Hours'!$L63) -> 0
A67: =DATE(YEAR(A66),MONTH(A66)+1,DAY(A66)) -> 2017-11-01 | K67: 0 | M67: =IF(K67=0,0,'Summary of Hours'!G64/'Summary of Hours'!$L64) -> 0
A68: 2017-12-01 | K68: 0 | M68: =IF(K68=0,0,'Summary of Hours'!G65/'Summary of Hours'!$L65) -> 0
A69: 2018-01-01 | K69: 0 | M69: =IF(K69=0,0,'Summary of Hours'!G66/'Summary of Hours'!$L66) -> 0
A70: 2018-02-01 | K70: 0 | M70: =IF(K70=0,0,'Summary of Hours'!G67/'Summary of Hours'!$L67) -> 0
A71: 2018-03-01 | K71: 0 | M71: =IF(K71=0,0,'Summary of Hours'!G68/'Summary of Hours'!$L68) -> 0
A72: 2018-04-01 | K72: 0 | M72: =IF(K72=0,0,'Summary of Hours'!G69/'Summary of Hours'!$L69) -> 0
A73: 2018-05-01 | K73: 0 | M73: =IF(K73=0,0,'Summary of Hours'!G70/'Summary of Hours'!$L70) -> 0
A74: 2018-06-01 | K74: 0 | M74: =IF(K74=0,0,'Summary of Hours'!G71/'Summary of Hours'!$L71) -> 0
A75: 2018-07-01 | K75: 0 | M75: =IF(K75=0,0,'Summary of Hours'!G72/'Summary of Hours'!$L72) -> 0
A76: 2018-08-01 | K76: 0 | M76: =IF(K76=0,0,'Summary of Hours'!G73/'Summary of Hours'!$L73) -> 0
A77: 2018-09-01 | K77: 0 | M77: =IF(K77=0,0,'Summary of Hours'!G74/'Summary of Hours'!$L74) -> 0
A78: Total | B78: =SUM(B66:B77) -> 0 | C78: 0 | D78: 0 | E78: 0 | F78: =SUM(F66:F77) -> 0 | G78: =SUM(G66:G77) -> 0 | H78: 0 | K78: =SUM(K66:K77) -> 0 | M78: =IF(K78=0,0,'Summary of Hours'!G75/'Summary of Hours'!$L75) -> 0
A80: Grand Total | B80: =B$78+B$50+B$36+B$22+B$64 -> 0 | C80: 0 | D80: 0 | E80: 0 | F80: 0 | G80: 0 | H80: 0 | K80: =K$78+K$50+K$36+K$22+K$64 -> 0

Sheet Other 6 (hidden)
A1: TIME SHEET SUMMARY
A2: Funding Source: | B2: Select Funding Source | E2: *Record the actual hours worked under the relevant headings during a given month.
A3: Award/Project Number: | B3: Enter Award/Project Number | E3: *NB: you can also use separate tabs to record different activities (RTD, MGT etc.)
A4: Acronym/Short Title: | B4: Enter Acronym/Short Title | E4: *Please record any authorised absence in the “Absence” worksheet.
A5: Contract No./Funders Ref: | E5: *Even though project FTE% may look correct, the 'Recovery Summary' sheet will confirm whether effort has reached the minimum productive hours expected
A6: Project Type:
A8: Period | B8: RTD (CEC_Only) | C8: Demo (CEC_Only) | D8: Train (CEC_Only) | E8: Management (CEC_Only) | F8: Coord/Sup (CEC only) | G8: Marie Curie Worked Hours | H8: Other Hours Worked (CEC & Non CEC) | I8: Activity # or Work Package (CEC_Only) | J8: Additional Information (Optional) | K8: Total Productive Hours Worked | M8: Project FTE%
A10: ='Employee Details'!$L$9 -> 2013-10-01 | K10: =SUM($B10:$H10) -> 0 | M10: =IF(K10=0,0,'Summary of Hours'!H7/'Summary of Hours'!$L7) -> 0
A11: =DATE(YEAR(A10),MONTH(A10)+1,DAY(A10)) -> 2013-11-01 | K11: 0 | M11: =IF(K11=0,0,'Summary of Hours'!H8/'Summary of Hours'!$L8) -> 0
A12: =DATE(YEAR(A11),MONTH(A11)+1,DAY(A11)) -> 2013-12-01 | K12: 0 | M12: =IF(K12=0,0,'Summary of Hours'!H9/'Summary of Hours'!$L9) -> 0
A13: =DATE(YEAR(A12),MONTH(A12)+1,DAY(A12)) -> 2014-01-01 | K13: 0 | M13: =IF(K13=0,0,'Summary of Hours'!H10/'Summary of Hours'!$L10) -> 0
A14: =DATE(YEAR(A13),MONTH(A13)+1,DAY(A13)) -> 2014-02-01 | K14: 0 | M14: =IF(K14=0,0,'Summary of Hours'!H11/'Summary of Hours'!$L11) -> 0
A15: 2014-03-01 | K15: 0 | M15: =IF(K15=0,0,'Summary of Hours'!H12/'Summary of Hours'!$L12) -> 0
A16: 2014-04-01 | K16: 0 | M16: =IF(K16=0,0,'Summary of Hours'!H13/'Summary of Hours'!$L13) -> 0
A17: 2014-05-01 | K17: 0 | M17: =IF(K17=0,0,'Summary of Hours'!H14/'Summary of Hours'!$L14) -> 0
A18: 2014-06-01 | K18: 0 | M18: =IF(K18=0,0,'Summary of Hours'!H15/'Summary of Hours'!$L15) -> 0
A19: 2014-07-01 | K19: 0 | M19: =IF(K19=0,0,'Summary of Hours'!H16/'Summary of Hours'!$L16) -> 0
A20: 2014-08-01 | K20: 0 | M20: =IF(K20=0,0,'Summary of Hours'!H17/'Summary of Hours'!$L17) -> 0
A21: 2014-09-01 | K21: 0 | M21: =IF(K21=0,0,'Summary of Hours'!H18/'Summary of Hours'!$L18) -> 0
A22: Total | B22: =SUM(B10:B21) -> 0 | C22: 0 | D22: 0 | E22: 0 | F22: 0 | G22: =SUM(G10:G21) -> 0 | H22: 0 | K22: =SUM(K10:K21) -> 0 | M22: =IF(K22=0,0,'Summary of Hours'!H19/'Summary of Hours'!$L19) -> 0
A24: =DATE(YEAR(A21),MONTH(A21)+1,DAY(A21)) -> 2014-10-01 | K24: =SUM($B24:$H24) -> 0 | M24: =IF(K24=0,0,'Summary of Hours'!H21/'Summary of Hours'!$L21) -> 0
A25: =DATE(YEAR(A24),MONTH(A24)+1,DAY(A24)) -> 2014-11-01 | K25: 0 | M25: =IF(K25=0,0,'Summary of Hours'!H22/'Summary of Hours'!$L22) -> 0
A26: =DATE(YEAR(A25),MONTH(A25)+1,DAY(A25)) -> 2014-12-01 | K26: 0 | M26: =IF(K26=0,0,'Summary of Hours'!H23/'Summary of Hours'!$L23) -> 0
A27: =DATE(YEAR(A26),MONTH(A26)+1,DAY(A26)) -> 2015-01-01 | K27: 0 | M27: =IF(K27=0,0,'Summary of Hours'!H24/'Summary of Hours'!$L24) -> 0
A28: =DATE(YEAR(A27),MONTH(A27)+1,DAY(A27)) -> 2015-02-01 | K28: 0 | M28: =IF(K28=0,0,'Summary of Hours'!H25/'Summary of Hours'!$L25) -> 0
A29: 2015-03-01 | K29: 0 | M29: =IF(K29=0,0,'Summary of Hours'!H26/'Summary of Hours'!$L26) -> 0
A30: 2015-04-01 | K30: 0 | M30: =IF(K30=0,0,'Summary of Hours'!H27/'Summary of Hours'!$L27) -> 0
A31: 2015-05-01 | K31: 0 | M31: =IF(K31=0,0,'Summary of Hours'!H28/'Summary of Hours'!$L28) -> 0
A32: 2015-06-01 | K32: 0 | M32: =IF(K32=0,0,'Summary of Hours'!H29/'Summary of Hours'!$L29) -> 0
A33: 2015-07-01 | K33: 0 | M33: =IF(K33=0,0,'Summary of Hours'!H30/'Summary of Hours'!$L30) -> 0
A34: 2015-08-01 | K34: 0 | M34: =IF(K34=0,0,'Summary of Hours'!H31/'Summary of Hours'!$L31) -> 0
A35: 2015-09-01 | K35: 0 | M35: =IF(K35=0,0,'Summary of Hours'!H32/'Summary of Hours'!$L32) -> 0
A36: Total | B36: =SUM(B24:B35) -> 0 | C36: 0 | D36: 0 | E36: 0 | F36: 0 | G36: =SUM(G24:G35) -> 0 | H36: 0 | K36: =SUM(K24:K35) -> 0 | M36: =IF(K36=0,0,'Summary of Hours'!H33/'Summary of Hours'!$L33) -> 0
A38: =DATE(YEAR(A35),MONTH(A35)+1,DAY(A35)) -> 2015-10-01 | K38: =SUM($B38:$H38) -> 0 | M38: =IF(K38=0,0,'Summary of Hours'!H35/'Summary of Hours'!$L35) -> 0
A39: =DATE(YEAR(A38),MONTH(A38)+1,DAY(A38)) -> 2015-11-01 | K39: 0 | M39: =IF(K39=0,0,'Summary of Hours'!H36/'Summary of Hours'!$L36) -> 0
A40: 2015-12-01 | K40: 0 | M40: =IF(K40=0,0,'Summary of Hours'!H37/'Summary of Hours'!$L37) -> 0
A41: 2016-01-01 | K41: 0 | M41: =IF(K41=0,0,'Summary of Hours'!H38/'Summary of Hours'!$L38) -> 0
A42: 2016-02-01 | K42: 0 | M42: =IF(K42=0,0,'Summary of Hours'!H39/'Summary of Hours'!$L39) -> 0
A43: 2016-03-01 | K43: 0 | M43: =IF(K43=0,0,'Summary of Hours'!H40/'Summary of Hours'!$L40) -> 0
A44: 2016-04-01 | K44: 0 | M44: =IF(K44=0,0,'Summary of Hours'!H41/'Summary of Hours'!$L41) -> 0
A45: 2016-05-01 | K45: 0 | M45: =IF(K45=0,0,'Summary of Hours'!H42/'Summary of Hours'!$L42) -> 0
A46: 2016-06-01 | K46: 0 | M46: =IF(K46=0,0,'Summary of Hours'!H43/'Summary of Hours'!$L43) -> 0
A47: 2016-07-01 | K47: 0 | M47: =IF(K47=0,0,'Summary of Hours'!H44/'Summary of Hours'!$L44) -> 0
A48: 2016-08-01 | K48: 0 | M48: =IF(K48=0,0,'Summary of Hours'!H45/'Summary of Hours'!$L45) -> 0
A49: 2016-09-01 | K49: 0 | M49: =IF(K49=0,0,'Summary of Hours'!H46/'Summary of Hours'!$L46) -> 0
A50: Total | B50: =SUM(B38:B49) -> 0 | C50: 0 | D50: 0 | E50: 0 | F50: 0 | G50: =SUM(G38:G49) -> 0 | H50: 0 | K50: =SUM(K38:K49) -> 0 | M50: =IF(K50=0,0,'Summary of Hours'!H47/'Summary of Hours'!$L47) -> 0
A52: =DATE(YEAR(A49),MONTH(A49)+1,DAY(A49)) -> 2016-10-01 | K52: =SUM($B52:$H52) -> 0 | M52: =IF(K52=0,0,'Summary of Hours'!H49/'Summary of Hours'!$L49) -> 0
A53: =DATE(YEAR(A52),MONTH(A52)+1,DAY(A52)) -> 2016-11-01 | K53: 0 | M53: =IF(K53=0,0,'Summary of Hours'!H50/'Summary of Hours'!$L50) -> 0
A54: =DATE(YEAR(A53),MONTH(A53)+1,DAY(A53)) -> 2016-12-01 | K54: 0 | M54: =IF(K54=0,0,'Summary of Hours'!H51/'Summary of Hours'!$L51) -> 0
A55: 2017-01-01 | K55: 0 | M55: =IF(K55=0,0,'Summary of Hours'!H52/'Summary of Hours'!$L52) -> 0
A56: 2017-02-01 | K56: 0 | M56: =IF(K56=0,0,'Summary of Hours'!H53/'Summary of Hours'!$L53) -> 0
A57: 2017-03-01 | K57: 0 | M57: =IF(K57=0,0,'Summary of Hours'!H54/'Summary of Hours'!$L54) -> 0
A58: 2017-04-01 | K58: 0 | M58: =IF(K58=0,0,'Summary of Hours'!H55/'Summary of Hours'!$L55) -> 0
A59: 2017-05-01 | K59: 0 | M59: =IF(K59=0,0,'Summary of Hours'!H56/'Summary of Hours'!$L56) -> 0
A60: 2017-06-01 | K60: 0 | M60: =IF(K60=0,0,'Summary of Hours'!H57/'Summary of Hours'!$L57) -> 0
A61: 2017-07-01 | K61: 0 | M61: =IF(K61=0,0,'Summary of Hours'!H58/'Summary of Hours'!$L58) -> 0
A62: 2017-08-01 | K62: 0 | M62: =IF(K62=0,0,'Summary of Hours'!H59/'Summary of Hours'!$L59) -> 0
A63: 2017-09-01 | K63: 0 | M63: =IF(K63=0,0,'Summary of Hours'!H60/'Summary of Hours'!$L60) -> 0
A64: Total | B64: =SUM(B52:B63) -> 0 | C64: 0 | D64: 0 | E64: 0 | F64: 0 | G64: =SUM(G52:G63) -> 0 | H64: 0 | K64: =SUM(K52:K63) -> 0 | M64: =IF(K64=0,0,'Summary of Hours'!H61/'Summary of Hours'!$L61) -> 0
A66: =DATE(YEAR(A63),MONTH(A63)+1,DAY(A63)) -> 2017-10-01 | K66: =SUM($B66:$H66) -> 0 | M66: =IF(K66=0,0,'Summary of Hours'!H63/'Summary of Hours'!$L63) -> 0
A67: =DATE(YEAR(A66),MONTH(A66)+1,DAY(A66)) -> 2017-11-01 | K67: 0 | M67: =IF(K67=0,0,'Summary of Hours'!H64/'Summary of Hours'!$L64) -> 0
A68: 2017-12-01 | K68: 0 | M68: =IF(K68=0,0,'Summary of Hours'!H65/'Summary of Hours'!$L65) -> 0
A69: 2018-01-01 | K69: 0 | M69: =IF(K69=0,0,'Summary of Hours'!H66/'Summary of Hours'!$L66) -> 0
A70: 2018-02-01 | K70: 0 | M70: =IF(K70=0,0,'Summary of Hours'!H67/'Summary of Hours'!$L67) -> 0
A71: 2018-03-01 | K71: 0 | M71: =IF(K71=0,0,'Summary of Hours'!H68/'Summary of Hours'!$L68) -> 0
A72: 2018-04-01 | K72: 0 | M72: =IF(K72=0,0,'Summary of Hours'!H69/'Summary of Hours'!$L69) -> 0
A73: 2018-05-01 | K73: 0 | M73: =IF(K73=0,0,'Summary of Hours'!H70/'Summary of Hours'!$L70) -> 0
A74: 2018-06-01 | K74: 0 | M74: =IF(K74=0,0,'Summary of Hours'!H71/'Summary of Hours'!$L71) -> 0
A75: 2018-07-01 | K75: 0 | M75: =IF(K75=0,0,'Summary of Hours'!H72/'Summary of Hours'!$L72) -> 0
A76: 2018-08-01 | K76: 0 | M76: =IF(K76=0,0,'Summary of Hours'!H73/'Summary of Hours'!$L73) -> 0
A77: 2018-09-01 | K77: 0 | M77: =IF(K77=0,0,'Summary of Hours'!H74/'Summary of Hours'!$L74) -> 0
A78: Total | B78: =SUM(B66:B77) -> 0 | C78: 0 | D78: 0 | E78: 0 | F78: =SUM(F66:F77) -> 0 | G78: =SUM(G66:G77) -> 0 | H78: 0 | K78: =SUM(K66:K77) -> 0 | M78: =IF(K78=0,0,'Summary of Hours'!H75/'Summary of Hours'!$L75) -> 0
A80: Grand Total | B80: =B$78+B$50+B$36+B$22+B$64 -> 0 | C80: 0 | D80: 0 | E80: 0 | F80: 0 | G80: 0 | H80: 0 | K80: =K$78+K$50+K$36+K$22+K$64 -> 0

Sheet Other 7 (hidden)
A1: TIME SHEET SUMMARY
A2: Funding Source: | B2: Select Funding Source | E2: *Record the actual hours worked under the relevant headings during a given month.
A3: Award/Project Number: | B3: Enter Award/Project Number | E3: *NB: you can also use separate tabs to record different activities (RTD, MGT etc.)
A4: Acronym/Short Title: | B4: Enter Acronym/Short Title | E4: *Please record any authorised absence in the “Absence” worksheet.
A5: Contract No./Funders Ref: | E5: *Even though project FTE% may look correct, the 'Recovery Summary' sheet will confirm whether effort has reached the minimum productive hours expected
A6: Project Type:
A8: Period | B8: RTD (CEC_Only) | C8: Demo (CEC_Only) | D8: Train (CEC_Only) | E8: Management (CEC_Only) | F8: Coord/Sup (CEC only) | G8: Marie Curie Worked Hours | H8: Other Hours Worked (CEC & Non CEC) | I8: Activity # or Work Package (CEC_Only) | J8: Additional Information (Optional) | K8: Total Productive Hours Worked | M8: Project FTE%
A10: ='Employee Details'!$L$9 -> 2013-10-01 | K10: =SUM($B10:$H10) -> 0 | M10: =IF(K10=0,0,'Summary of Hours'!I7/'Summary of Hours'!$L7) -> 0
A11: =DATE(YEAR(A10),MONTH(A10)+1,DAY(A10)) -> 2013-11-01 | K11: 0 | M11: =IF(K11=0,0,'Summary of Hours'!I8/'Summary of Hours'!$L8) -> 0
A12: =DATE(YEAR(A11),MONTH(A11)+1,DAY(A11)) -> 2013-12-01 | K12: 0 | M12: =IF(K12=0,0,'Summary of Hours'!I9/'Summary of Hours'!$L9) -> 0
A13: =DATE(YEAR(A12),MONTH(A12)+1,DAY(A12)) -> 2014-01-01 | K13: 0 | M13: =IF(K13=0,0,'Summary of Hours'!I10/'Summary of Hours'!$L10) -> 0
A14: =DATE(YEAR(A13),MONTH(A13)+1,DAY(A13)) -> 2014-02-01 | K14: 0 | M14: =IF(K14=0,0,'Summary of Hours'!I11/'Summary of Hours'!$L11) -> 0
A15: 2014-03-01 | K15: 0 | M15: =IF(K15=0,0,'Summary of Hours'!I12/'Summary of Hours'!$L12) -> 0
A16: 2014-04-01 | K16: 0 | M16: =IF(K16=0,0,'Summary of Hours'!I13/'Summary of Hours'!$L13) -> 0
A17: 2014-05-01 | K17: 0 | M17: =IF(K17=0,0,'Summary of Hours'!I14/'Summary of Hours'!$L14) -> 0
A18: 2014-06-01 | K18: 0 | M18: =IF(K18=0,0,'Summary of Hours'!I15/'Summary of Hours'!$L15) -> 0
A19: 2014-07-01 | K19: 0 | M19: =IF(K19=0,0,'Summary of Hours'!I16/'Summary of Hours'!$L16) -> 0
A20: 2014-08-01 | K20: 0 | M20: =IF(K20=0,0,'Summary of Hours'!I17/'Summary of Hours'!$L17) -> 0
A21: 2014-09-01 | K21: 0 | M21: =IF(K21=0,0,'Summary of Hours'!I18/'Summary of Hours'!$L18) -> 0
A22: Total | B22: =SUM(B10:B21) -> 0 | C22: 0 | D22: 0 | E22: 0 | F22: 0 | G22: =SUM(G10:G21) -> 0 | H22: 0 | K22: =SUM(K10:K21) -> 0 | M22: =IF(K22=0,0,'Summary of Hours'!I19/'Summary of Hours'!$L19) -> 0
A24: =DATE(YEAR(A21),MONTH(A21)+1,DAY(A21)) -> 2014-10-01 | K24: =SUM($B24:$H24) -> 0 | M24: =IF(K24=0,0,'Summary of Hours'!I21/'Summary of Hours'!$L21) -> 0
A25: =DATE(YEAR(A24),MONTH(A24)+1,DAY(A24)) -> 2014-11-01 | K25: 0 | M25: =IF(K25=0,0,'Summary of Hours'!I22/'Summary of Hours'!$L22) -> 0
A26: =DATE(YEAR(A25),MONTH(A25)+1,DAY(A25)) -> 2014-12-01 | K26: 0 | M26: =IF(K26=0,0,'Summary of Hours'!I23/'Summary of Hours'!$L23) -> 0
A27: =DATE(YEAR(A26),MONTH(A26)+1,DAY(A26)) -> 2015-01-01 | K27: 0 | M27: =IF(K27=0,0,'Summary of Hours'!I24/'Summary of Hours'!$L24) -> 0
A28: =DATE(YEAR(A27),MONTH(A27)+1,DAY(A27)) -> 2015-02-01 | K28: 0 | M28: =IF(K28=0,0,'Summary of Hours'!I25/'Summary of Hours'!$L25) -> 0
A29: 2015-03-01 | K29: 0 | M29: =IF(K29=0,0,'Summary of Hours'!I26/'Summary of Hours'!$L26) -> 0
A30: 2015-04-01 | K30: 0 | M30: =IF(K30=0,0,'Summary of Hours'!I27/'Summary of Hours'!$L27) -> 0
A31: 2015-05-01 | K31: 0 | M31: =IF(K31=0,0,'Summary of Hours'!I28/'Summary of Hours'!$L28) -> 0
A32: 2015-06-01 | K32: 0 | M32: =IF(K32=0,0,'Summary of Hours'!I29/'Summary of Hours'!$L29) -> 0
A33: 2015-07-01 | K33: 0 | M33: =IF(K33=0,0,'Summary of Hours'!I30/'Summary of Hours'!$L30) -> 0
A34: 2015-08-01 | K34: 0 | M34: =IF(K34=0,0,'Summary of Hours'!I31/'Summary of Hours'!$L31) -> 0
A35: 2015-09-01 | K35: 0 | M35: =IF(K35=0,0,'Summary of Hours'!I32/'Summary of Hours'!$L32) -> 0
A36: Total | B36: =SUM(B24:B35) -> 0 | C36: 0 | D36: 0 | E36: 0 | F36: 0 | G36: =SUM(G24:G35) -> 0 | H36: 0 | K36: =SUM(K24:K35) -> 0 | M36: =IF(K36=0,0,'Summary of Hours'!I33/'Summary of Hours'!$L33) -> 0
A38: =DATE(YEAR(A35),MONTH(A35)+1,DAY(A35)) -> 2015-10-01 | K38: =SUM($B38:$H38) -> 0 | M38: =IF(K38=0,0,'Summary of Hours'!I35/'Summary of Hours'!$L35) -> 0
A39: =DATE(YEAR(A38),MONTH(A38)+1,DAY(A38)) -> 2015-11-01 | K39: 0 | M39: =IF(K39=0,0,'Summary of Hours'!I36/'Summary of Hours'!$L36) -> 0
A40: 2015-12-01 | K40: 0 | M40: =IF(K40=0,0,'Summary of Hours'!I37/'Summary of Hours'!$L37) -> 0
A41: 2016-01-01 | K41: 0 | M41: =IF(K41=0,0,'Summary of Hours'!I38/'Summary of Hours'!$L38) -> 0
A42: 2016-02-01 | K42: 0 | M42: =IF(K42=0,0,'Summary of Hours'!I39/'Summary of Hours'!$L39) -> 0
A43: 2016-03-01 | K43: 0 | M43: =IF(K43=0,0,'Summary of Hours'!I40/'Summary of Hours'!$L40) -> 0
A44: 2016-04-01 | K44: 0 | M44: =IF(K44=0,0,'Summary of Hours'!I41/'Summary of Hours'!$L41) -> 0
A45: 2016-05-01 | K45: 0 | M45: =IF(K45=0,0,'Summary of Hours'!I42/'Summary of Hours'!$L42) -> 0
A46: 2016-06-01 | K46: 0 | M46: =IF(K46=0,0,'Summary of Hours'!I43/'Summary of Hours'!$L43) -> 0
A47: 2016-07-01 | K47: 0 | M47: =IF(K47=0,0,'Summary of Hours'!I44/'Summary of Hours'!$L44) -> 0
A48: 2016-08-01 | K48: 0 | M48: =IF(K48=0,0,'Summary of Hours'!I45/'Summary of Hours'!$L45) -> 0
A49: 2016-09-01 | K49: 0 | M49: =IF(K49=0,0,'Summary of Hours'!I46/'Summary of Hours'!$L46) -> 0
A50: Total | B50: =SUM(B38:B49) -> 0 | C50: 0 | D50: 0 | E50: 0 | F50: 0 | G50: =SUM(G38:G49) -> 0 | H50: 0 | K50: =SUM(K38:K49) -> 0 | M50: =IF(K50=0,0,'Summary of Hours'!I47/'Summary of Hours'!$L47) -> 0
A52: =DATE(YEAR(A49),MONTH(A49)+1,DAY(A49)) -> 2016-10-01 | K52: =SUM($B52:$H52) -> 0 | M52: =IF(K52=0,0,'Summary of Hours'!I49/'Summary of Hours'!$L49) -> 0
A53: =DATE(YEAR(A52),MONTH(A52)+1,DAY(A52)) -> 2016-11-01 | K53: 0 | M53: =IF(K53=0,0,'Summary of Hours'!I50/'Summary of Hours'!$L50) -> 0
A54: =DATE(YEAR(A53),MONTH(A53)+1,DAY(A53)) -> 2016-12-01 | K54: 0 | M54: =IF(K54=0,0,'Summary of Hours'!I51/'Summary of Hours'!$L51) -> 0
A55: 2017-01-01 | K55: 0 | M55: =IF(K55=0,0,'Summary of Hours'!I52/'Summary of Hours'!$L52) -> 0
A56: 2017-02-01 | K56: 0 | M56: =IF(K56=0,0,'Summary of Hours'!I53/'Summary of Hours'!$L53) -> 0
A57: 2017-03-01 | K57: 0 | M57: =IF(K57=0,0,'Summary of Hours'!I54/'Summary of Hours'!$L54) -> 0
A58: 2017-04-01 | K58: 0 | M58: =IF(K58=0,0,'Summary of Hours'!I55/'Summary of Hours'!$L55) -> 0
A59: 2017-05-01 | K59: 0 | M59: =IF(K59=0,0,'Summary of Hours'!I56/'Summary of Hours'!$L56) -> 0
A60: 2017-06-01 | K60: 0 | M60: =IF(K60=0,0,'Summary of Hours'!I57/'Summary of Hours'!$L57) -> 0
A61: 2017-07-01 | K61: 0 | M61: =IF(K61=0,0,'Summary of Hours'!I58/'Summary of Hours'!$L58) -> 0
A62: 2017-08-01 | K62: 0 | M62: =IF(K62=0,0,'Summary of Hours'!I59/'Summary of Hours'!$L59) -> 0
A63: 2017-09-01 | K63: 0 | M63: =IF(K63=0,0,'Summary of Hours'!I60/'Summary of Hours'!$L60) -> 0
A64: Total | B64: =SUM(B52:B63) -> 0 | C64: 0 | D64: 0 | E64: 0 | F64: 0 | G64: =SUM(G52:G63) -> 0 | H64: 0 | K64: =SUM(K52:K63) -> 0 | M64: =IF(K64=0,0,'Summary of Hours'!I61/'Summary of Hours'!$L61) -> 0
A66: =DATE(YEAR(A63),MONTH(A63)+1,DAY(A63)) -> 2017-10-01 | K66: =SUM($B66:$H66) -> 0 | M66: =IF(K66=0,0,'Summary of Hours'!I63/'Summary of Hours'!$L63) -> 0
A67: =DATE(YEAR(A66),MONTH(A66)+1,DAY(A66)) -> 2017-11-01 | K67: 0 | M67: =IF(K67=0,0,'Summary of Hours'!I64/'Summary of Hours'!$L64) -> 0
A68: 2017-12-01 | K68: 0 | M68: =IF(K68=0,0,'Summary of Hours'!I65/'Summary of Hours'!$L65) -> 0
A69: 2018-01-01 | K69: 0 | M69: =IF(K69=0,0,'Summary of Hours'!I66/'Summary of Hours'!$L66) -> 0
A70: 2018-02-01 | K70: 0 | M70: =IF(K70=0,0,'Summary of Hours'!I67/'Summary of Hours'!$L67) -> 0
A71: 2018-03-01 | K71: 0 | M71: =IF(K71=0,0,'Summary of Hours'!I68/'Summary of Hours'!$L68) -> 0
A72: 2018-04-01 | K72: 0 | M72: =IF(K72=0,0,'Summary of Hours'!I69/'Summary of Hours'!$L69) -> 0
A73: 2018-05-01 | K73: 0 | M73: =IF(K73=0,0,'Summary of Hours'!I70/'Summary of Hours'!$L70) -> 0
A74: 2018-06-01 | K74: 0 | M74: =IF(K74=0,0,'Summary of Hours'!I71/'Summary of Hours'!$L71) -> 0
A75: 2018-07-01 | K75: 0 | M75: =IF(K75=0,0,'Summary of Hours'!I72/'Summary of Hours'!$L72) -> 0
A76: 2018-08-01 | K76: 0 | M76: =IF(K76=0,0,'Summary of Hours'!I73/'Summary of Hours'!$L73) -> 0
A77: 2018-09-01 | K77: 0 | M77: =IF(K77=0,0,'Summary of Hours'!I74/'Summary of Hours'!$L74) -> 0
A78: Total | B78: =SUM(B66:B77) -> 0 | C78: 0 | D78: 0 | E78: 0 | F78: =SUM(F66:F77) -> 0 | G78: =SUM(G66:G77) -> 0 | H78: 0 | K78: =SUM(K66:K77) -> 0 | M78: =IF(K78=0,0,'Summary of Hours'!I75/'Summary of Hours'!$L75) -> 0
A80: Grand Total | B80: =B$78+B$50+B$36+B$22+B$64 -> 0 | C80: 0 | D80: 0 | E80: 0 | F80: 0 | G80: 0 | H80: 0 | K80: =K$78+K$50+K$36+K$22+K$64 -> 0

Sheet Other 8 (hidden)
A1: TIME SHEET SUMMARY
A2: Funding Source: | B2: Select Funding Source | E2: *Record the actual hours worked under the relevant headings during a given month.
A3: Award/Project Number: | B3: Enter Award/Project Number | E3: *NB: you can also use separate tabs to record different activities (RTD, MGT etc.)
A4: Acronym/Short Title: | B4: Enter Acronym/Short Title | E4: *Please record any authorised absence in the “Absence” worksheet.
A5: Contract No./Funders Ref: | E5: *Even though project FTE% may look correct, the 'Recovery Summary' sheet will confirm whether effort has reached the minimum productive hours expected
A6: Project Type:
A8: Period | B8: RTD (CEC_Only) | C8: Demo (CEC_Only) | D8: Train (CEC_Only) | E8: Management (CEC_Only) | F8: Coord/Sup (CEC only) | G8: Marie Curie Worked Hours | H8: Other Hours Worked (CEC & Non CEC) | I8: Activity # or Work Package (CEC_Only) | J8: Additional Information (Optional) | K8: Total Productive Hours Worked | M8: Project FTE%
A10: ='Employee Details'!$L$9 -> 2013-10-01 | K10: =SUM($B10:$H10) -> 0 | M10: =IF(K10=0,0,'Summary of Hours'!J7/'Summary of Hours'!$L7) -> 0
A11: =DATE(YEAR(A10),MONTH(A10)+1,DAY(A10)) -> 2013-11-01 | K11: 0 | M11: =IF(K11=0,0,'Summary of Hours'!J8/'Summary of Hours'!$L8) -> 0
A12: =DATE(YEAR(A11),MONTH(A11)+1,DAY(A11)) -> 2013-12-01 | K12: 0 | M12: =IF(K12=0,0,'Summary of Hours'!J9/'Summary of Hours'!$L9) -> 0
A13: =DATE(YEAR(A12),MONTH(A12)+1,DAY(A12)) -> 2014-01-01 | K13: 0 | M13: =IF(K13=0,0,'Summary of Hours'!J10/'Summary of Hours'!$L10) -> 0
A14: =DATE(YEAR(A13),MONTH(A13)+1,DAY(A13)) -> 2014-02-01 | K14: 0 | M14: =IF(K14=0,0,'Summary of Hours'!J11/'Summary of Hours'!$L11) -> 0
A15: 2014-03-01 | K15: 0 | M15: =IF(K15=0,0,'Summary of Hours'!J12/'Summary of Hours'!$L12) -> 0
A16: 2014-04-01 | K16: 0 | M16: =IF(K16=0,0,'Summary of Hours'!J13/'Summary of Hours'!$L13) -> 0
A17: 2014-05-01 | K17: 0 | M17: =IF(K17=0,0,'Summary of Hours'!J14/'Summary of Hours'!$L14) -> 0
A18: 2014-06-01 | K18: 0 | M18: =IF(K18=0,0,'Summary of Hours'!J15/'Summary of Hours'!$L15) -> 0
A19: 2014-07-01 | K19: 0 | M19: =IF(K19=0,0,'Summary of Hours'!J16/'Summary of Hours'!$L16) -> 0
A20: 2014-08-01 | K20: 0 | M20: =IF(K20=0,0,'Summary of Hours'!J17/'Summary of Hours'!$L17) -> 0
A21: 2014-09-01 | K21: 0 | M21: =IF(K21=0,0,'Summary of Hours'!J18/'Summary of Hours'!$L18) -> 0
A22: Total | B22: =SUM(B10:B21) -> 0 | C22: 0 | D22: 0 | E22: 0 | F22: 0 | G22: =SUM(G10:G21) -> 0 | H22: 0 | K22: =SUM(K10:K21) -> 0 | M22: =IF(K22=0,0,'Summary of Hours'!J19/'Summary of Hours'!$L19) -> 0
A24: =DATE(YEAR(A21),MONTH(A21)+1,DAY(A21)) -> 2014-10-01 | K24: =SUM($B24:$H24) -> 0 | M24: =IF(K24=0,0,'Summary of Hours'!J21/'Summary of Hours'!$L21) -> 0
A25: =DATE(YEAR(A24),MONTH(A24)+1,DAY(A24)) -> 2014-11-01 | K25: 0 | M25: =IF(K25=0,0,'Summary of Hours'!J22/'Summary of Hours'!$L22) -> 0
A26: =DATE(YEAR(A25),MONTH(A25)+1,DAY(A25)) -> 2014-12-01 | K26: 0 | M26: =IF(K26=0,0,'Summary of Hours'!J23/'Summary of Hours'!$L23) -> 0
A27: =DATE(YEAR(A26),MONTH(A26)+1,DAY(A26)) -> 2015-01-01 | K27: 0 | M27: =IF(K27=0,0,'Summary of Hours'!J24/'Summary of Hours'!$L24) -> 0
A28: =DATE(YEAR(A27),MONTH(A27)+1,DAY(A27)) -> 2015-02-01 | K28: 0 | M28: =IF(K28=0,0,'Summary of Hours'!J25/'Summary of Hours'!$L25) -> 0
A29: 2015-03-01 | K29: 0 | M29: =IF(K29=0,0,'Summary of Hours'!J26/'Summary of Hours'!$L26) -> 0
A30: 2015-04-01 | K30: 0 | M30: =IF(K30=0,0,'Summary of Hours'!J27/'Summary of Hours'!$L27) -> 0
A31: 2015-05-01 | K31: 0 | M31: =IF(K31=0,0,'Summary of Hours'!J28/'Summary of Hours'!$L28) -> 0
A32: 2015-06-01 | K32: 0 | M32: =IF(K32=0,0,'Summary of Hours'!J29/'Summary of Hours'!$L29) -> 0
A33: 2015-07-01 | K33: 0 | M33: =IF(K33=0,0,'Summary of Hours'!J30/'Summary of Hours'!$L30) -> 0
A34: 2015-08-01 | K34: 0 | M34: =IF(K34=0,0,'Summary of Hours'!J31/'Summary of Hours'!$L31) -> 0
A35: 2015-09-01 | K35: 0 | M35: =IF(K35=0,0,'Summary of Hours'!J32/'Summary of Hours'!$L32) -> 0
A36: Total | B36: =SUM(B24:B35) -> 0 | C36: 0 | D36: 0 | E36: 0 | F36: 0 | G36: =SUM(G24:G35) -> 0 | H36: 0 | K36: =SUM(K24:K35) -> 0 | M36: =IF(K36=0,0,'Summary of Hours'!J33/'Summary of Hours'!$L33) -> 0
A38: =DATE(YEAR(A35),MONTH(A35)+1,DAY(A35)) -> 2015-10-01 | K38: =SUM($B38:$H38) -> 0 | M38: =IF(K38=0,0,'Summary of Hours'!J35/'Summary of Hours'!$L35) -> 0
A39: =DATE(YEAR(A38),MONTH(A38)+1,DAY(A38)) -> 2015-11-01 | K39: 0 | M39: =IF(K39=0,0,'Summary of Hours'!J36/'Summary of Hours'!$L36) -> 0
A40: 2015-12-01 | K40: 0 | M40: =IF(K40=0,0,'Summary of Hours'!J37/'Summary of Hours'!$L37) -> 0
A41: 2016-01-01 | K41: 0 | M41: =IF(K41=0,0,'Summary of Hours'!J38/'Summary of Hours'!$L38) -> 0
A42: 2016-02-01 | K42: 0 | M42: =IF(K42=0,0,'Summary of Hours'!J39/'Summary of Hours'!$L39) -> 0
A43: 2016-03-01 | K43: 0 | M43: =IF(K43=0,0,'Summary of Hours'!J40/'Summary of Hours'!$L40) -> 0
A44: 2016-04-01 | K44: 0 | M44: =IF(K44=0,0,'Summary of Hours'!J41/'Summary of Hours'!$L41) -> 0
A45: 2016-05-01 | K45: 0 | M45: =IF(K45=0,0,'Summary of Hours'!J42/'Summary of Hours'!$L42) -> 0
A46: 2016-06-01 | K46: 0 | M46: =IF(K46=0,0,'Summary of Hours'!J43/'Summary of Hours'!$L43) -> 0
A47: 2016-07-01 | K47: 0 | M47: =IF(K47=0,0,'Summary of Hours'!J44/'Summary of Hours'!$L44) -> 0
A48: 2016-08-01 | K48: 0 | M48: =IF(K48=0,0,'Summary of Hours'!J45/'Summary of Hours'!$L45) -> 0
A49: 2016-09-01 | K49: 0 | M49: =IF(K49=0,0,'Summary of Hours'!J46/'Summary of Hours'!$L46) -> 0
A50: Total | B50: =SUM(B38:B49) -> 0 | C50: 0 | D50: 0 | E50: 0 | F50: 0 | G50: =SUM(G38:G49) -> 0 | H50: 0 | K50: =SUM(K38:K49) -> 0 | M50: =IF(K50=0,0,'Summary of Hours'!J47/'Summary of Hours'!$L47) -> 0
A52: =DATE(YEAR(A49),MONTH(A49)+1,DAY(A49)) -> 2016-10-01 | K52: =SUM($B52:$H52) -> 0 | M52: =IF(K52=0,0,'Summary of Hours'!J49/'Summary of Hours'!$L49) -> 0
A53: =DATE(YEAR(A52),MONTH(A52)+1,DAY(A52)) -> 2016-11-01 | K53: 0 | M53: =IF(K53=0,0,'Summary of Hours'!J50/'Summary of Hours'!$L50) -> 0
A54: =DATE(YEAR(A53),MONTH(A53)+1,DAY(A53)) -> 2016-12-01 | K54: 0 | M54: =IF(K54=0,0,'Summary of Hours'!J51/'Summary of Hours'!$L51) -> 0
A55: 2017-01-01 | K55: 0 | M55: =IF(K55=0,0,'Summary of Hours'!J52/'Summary of Hours'!$L52) -> 0
A56: 2017-02-01 | K56: 0 | M56: =IF(K56=0,0,'Summary of Hours'!J53/'Summary of Hours'!$L53) -> 0
A57: 2017-03-01 | K57: 0 | M57: =IF(K57=0,0,'Summary of Hours'!J54/'Summary of Hours'!$L54) -> 0
A58: 2017-04-01 | K58: 0 | M58: =IF(K58=0,0,'Summary of Hours'!J55/'Summary of Hours'!$L55) -> 0
A59: 2017-05-01 | K59: 0 | M59: =IF(K59=0,0,'Summary of Hours'!J56/'Summary of Hours'!$L56) -> 0
A60: 2017-06-01 | K60: 0 | M60: =IF(K60=0,0,'Summary of Hours'!J57/'Summary of Hours'!$L57) -> 0
A61: 2017-07-01 | K61: 0 | M61: =IF(K61=0,0,'Summary of Hours'!J58/'Summary of Hours'!$L58) -> 0
A62: 2017-08-01 | K62: 0 | M62: =IF(K62=0,0,'Summary of Hours'!J59/'Summary of Hours'!$L59) -> 0
A63: 2017-09-01 | K63: 0 | M63: =IF(K63=0,0,'Summary of Hours'!J60/'Summary of Hours'!$L60) -> 0
A64: Total | B64: =SUM(B52:B63) -> 0 | C64: 0 | D64: 0 | E64: 0 | F64: 0 | G64: =SUM(G52:G63) -> 0 | H64: 0 | K64: =SUM(K52:K63) -> 0 | M64: =IF(K64=0,0,'Summary of Hours'!J61/'Summary of Hours'!$L61) -> 0
A66: =DATE(YEAR(A63),MONTH(A63)+1,DAY(A63)) -> 2017-10-01 | K66: =SUM($B66:$H66) -> 0 | M66: =IF(K66=0,0,'Summary of Hours'!J63/'Summary of Hours'!$L63) -> 0
A67: =DATE(YEAR(A66),MONTH(A66)+1,DAY(A66)) -> 2017-11-01 | K67: 0 | M67: =IF(K67=0,0,'Summary of Hours'!J64/'Summary of Hours'!$L64) -> 0
A68: 2017-12-01 | K68: 0 | M68: =IF(K68=0,0,'Summary of Hours'!J65/'Summary of Hours'!$L65) -> 0
A69: 2018-01-01 | K69: 0 | M69: =IF(K69=0,0,'Summary of Hours'!J66/'Summary of Hours'!$L66) -> 0
A70: 2018-02-01 | K70: 0 | M70: =IF(K70=0,0,'Summary of Hours'!J67/'Summary of Hours'!$L67) -> 0
A71: 2018-03-01 | K71: 0 | M71: =IF(K71=0,0,'Summary of Hours'!J68/'Summary of Hours'!$L68) -> 0
A72: 2018-04-01 | K72: 0 | M72: =IF(K72=0,0,'Summary of Hours'!J69/'Summary of Hours'!$L69) -> 0
A73: 2018-05-01 | K73: 0 | M73: =IF(K73=0,0,'Summary of Hours'!J70/'Summary of Hours'!$L70) -> 0
A74: 2018-06-01 | K74: 0 | M74: =IF(K74=0,0,'Summary of Hours'!J71/'Summary of Hours'!$L71) -> 0
A75: 2018-07-01 | K75: 0 | M75: =IF(K75=0,0,'Summary of Hours'!J72/'Summary of Hours'!$L72) -> 0
A76: 2018-08-01 | K76: 0 | M76: =IF(K76=0,0,'Summary of Hours'!J73/'Summary of Hours'!$L73) -> 0
A77: 2018-09-01 | K77: 0 | M77: =IF(K77=0,0,'Summary of Hours'!J74/'Summary of Hours'!$L74) -> 0
A78: Total | B78: =SUM(B66:B77) -> 0 | C78: 0 | D78: 0 | E78: 0 | F78: =SUM(F66:F77) -> 0 | G78: =SUM(G66:G77) -> 0 | H78: 0 | K78: =SUM(K66:K77) -> 0 | M78: =IF(K78=0,0,'Summary of Hours'!J75/'Summary of Hours'!$L75) -> 0
A80: Grand Total | B80: =B$78+B$50+B$36+B$22+B$64 -> 0 | C80: 0 | D80: 0 | E80: 0 | F80: 0 | G80: 0 | H80: 0 | K80: =K$78+K$50+K$36+K$22+K$64 -> 0

Sheet Other 9 (hidden)
A1: TIME SHEET SUMMARY
A2: Funding Source: | B2: Select Funding Source | E2: *Record the actual hours worked under the relevant headings during a given month.
A3: Award/Project Number: | B3: Enter Award/Project Number | E3: *NB: you can also use separate tabs to record different activities (RTD, MGT etc.)
A4: Acronym/Short Title: | B4: Enter Acronym/Short Title | E4: *Please record any authorised absence in the “Absence” worksheet.
A5: Contract No./Funders Ref: | E5: *Even though project FTE% may look correct, the 'Recovery Summary' sheet will confirm whether effort has reached the minimum productive hours expected
A6: Project Type:
A8: Period | B8: RTD (CEC_Only) | C8: Demo (CEC_Only) | D8: Train (CEC_Only) | E8: Management (CEC_Only) | F8: Coord/Sup (CEC only) | G8: Marie Curie Worked Hours | H8: Other Hours Worked (CEC & Non CEC) | I8: Activity # or Work Package (CEC_Only) | J8: Additional Information (Optional) | K8: Total Productive Hours Worked | M8: Project FTE%
A10: ='Employee Details'!$L$9 -> 2013-10-01 | K10: =SUM($B10:$H10) -> 0 | M10: =IF(K10=0,0,'Summary of Hours'!K7/'Summary of Hours'!$L7) -> 0
A11: =DATE(YEAR(A10),MONTH(A10)+1,DAY(A10)) -> 2013-11-01 | K11: 0 | M11: =IF(K11=0,0,'Summary of Hours'!K8/'Summary of Hours'!$L8) -> 0
A12: =DATE(YEAR(A11),MONTH(A11)+1,DAY(A11)) -> 2013-12-01 | K12: 0 | M12: =IF(K12=0,0,'Summary of Hours'!K9/'Summary of Hours'!$L9) -> 0
A13: =DATE(YEAR(A12),MONTH(A12)+1,DAY(A12)) -> 2014-01-01 | K13: 0 | M13: =IF(K13=0,0,'Summary of Hours'!K10/'Summary of Hours'!$L10) -> 0
A14: =DATE(YEAR(A13),MONTH(A13)+1,DAY(A13)) -> 2014-02-01 | K14: 0 | M14: =IF(K14=0,0,'Summary of Hours'!K11/'Summary of Hours'!$L11) -> 0
A15: 2014-03-01 | K15: 0 | M15: =IF(K15=0,0,'Summary of Hours'!K12/'Summary of Hours'!$L12) -> 0
A16: 2014-04-01 | K16: 0 | M16: =IF(K16=0,0,'Summary of Hours'!K13/'Summary of Hours'!$L13) -> 0
A17: 2014-05-01 | K17: 0 | M17: =IF(K17=0,0,'Summary of Hours'!K14/'Summary of Hours'!$L14) -> 0
A18: 2014-06-01 | K18: 0 | M18: =IF(K18=0,0,'Summary of Hours'!K15/'Summary of Hours'!$L15) -> 0
A19: 2014-07-01 | K19: 0 | M19: =IF(K19=0,0,'Summary of Hours'!K16/'Summary of Hours'!$L16) -> 0
A20: 2014-08-01 | K20: 0 | M20: =IF(K20=0,0,'Summary of Hours'!K17/'Summary of Hours'!$L17) -> 0
A21: 2014-09-01 | K21: 0 | M21: =IF(K21=0,0,'Summary of Hours'!K18/'Summary of Hours'!$L18) -> 0
A22: Total | B22: =SUM(B10:B21) -> 0 | C22: 0 | D22: 0 | E22: 0 | F22: 0 | G22: =SUM(G10:G21) -> 0 | H22: 0 | K22: =SUM(K10:K21) -> 0 | M22: =IF(K22=0,0,'Summary of Hours'!K19/'Summary of Hours'!$L19) -> 0
A24: =DATE(YEAR(A21),MONTH(A21)+1,DAY(A21)) -> 2014-10-01 | K24: =SUM($B24:$H24) -> 0 | M24: =IF(K24=0,0,'Summary of Hours'!K21/'Summary of Hours'!$L21) -> 0
A25: =DATE(YEAR(A24),MONTH(A24)+1,DAY(A24)) -> 2014-11-01 | K25: 0 | M25: =IF(K25=0,0,'Summary of Hours'!K22/'Summary of Hours'!$L22) -> 0
A26: =DATE(YEAR(A25),MONTH(A25)+1,DAY(A25)) -> 2014-12-01 | K26: 0 | M26: =IF(K26=0,0,'Summary of Hours'!K23/'Summary of Hours'!$L23) -> 0
A27: =DATE(YEAR(A26),MONTH(A26)+1,DAY(A26)) -> 2015-01-01 | K27: 0 | M27: =IF(K27=0,0,'Summary of Hours'!K24/'Summary of Hours'!$L24) -> 0
A28: =DATE(YEAR(A27),MONTH(A27)+1,DAY(A27)) -> 2015-02-01 | K28: 0 | M28: =IF(K28=0,0,'Summary of Hours'!K25/'Summary of Hours'!$L25) -> 0
A29: 2015-03-01 | K29: 0 | M29: =IF(K29=0,0,'Summary of Hours'!K26/'Summary of Hours'!$L26) -> 0
A30: 2015-04-01 | K30: 0 | M30: =IF(K30=0,0,'Summary of Hours'!K27/'Summary of Hours'!$L27) -> 0
A31: 2015-05-01 | K31: 0 | M31: =IF(K31=0,0,'Summary of Hours'!K28/'Summary of Hours'!$L28) -> 0
A32: 2015-06-01 | K32: 0 | M32: =IF(K32=0,0,'Summary of Hours'!K29/'Summary of Hours'!$L29) -> 0
A33: 2015-07-01 | K33: 0 | M33: =IF(K33=0,0,'Summary of Hours'!K30/'Summary of Hours'!$L30) -> 0
A34: 2015-08-01 | K34: 0 | M34: =IF(K34=0,0,'Summary of Hours'!K31/'Summary of Hours'!$L31) -> 0
A35: 2015-09-01 | K35: 0 | M35: =IF(K35=0,0,'Summary of Hours'!K32/'Summary of Hours'!$L32) -> 0
A36: Total | B36: =SUM(B24:B35) -> 0 | C36: 0 | D36: 0 | E36: 0 | F36: 0 | G36: =SUM(G24:G35) -> 0 | H36: 0 | K36: =SUM(K24:K35) -> 0 | M36: =IF(K36=0,0,'Summary of Hours'!K33/'Summary of Hours'!$L33) -> 0
A38: =DATE(YEAR(A35),MONTH(A35)+1,DAY(A35)) -> 2015-10-01 | K38: =SUM($B38:$H38) -> 0 | M38: =IF(K38=0,0,'Summary of Hours'!K35/'Summary of Hours'!$L35) -> 0
A39: =DATE(YEAR(A38),MONTH(A38)+1,DAY(A38)) -> 2015-11-01 | K39: 0 | M39: =IF(K39=0,0,'Summary of Hours'!K36/'Summary of Hours'!$L36) -> 0
A40: 2015-12-01 | K40: 0 | M40: =IF(K40=0,0,'Summary of Hours'!K37/'Summary of Hours'!$L37) -> 0
A41: 2016-01-01 | K41: 0 | M41: =IF(K41=0,0,'Summary of Hours'!K38/'Summary of Hours'!$L38) -> 0
A42: 2016-02-01 | K42: 0 | M42: =IF(K42=0,0,'Summary of Hours'!K39/'Summary of Hours'!$L39) -> 0
A43: 2016-03-01 | K43: 0 | M43: =IF(K43=0,0,'Summary of Hours'!K40/'Summary of Hours'!$L40) -> 0
A44: 2016-04-01 | K44: 0 | M44: =IF(K44=0,0,'Summary of Hours'!K41/'Summary of Hours'!$L41) -> 0
A45: 2016-05-01 | K45: 0 | M45: =IF(K45=0,0,'Summary of Hours'!K42/'Summary of Hours'!$L42) -> 0
A46: 2016-06-01 | K46: 0 | M46: =IF(K46=0,0,'Summary of Hours'!K43/'Summary of Hours'!$L43) -> 0
A47: 2016-07-01 | K47: 0 | M47: =IF(K47=0,0,'Summary of Hours'!K44/'Summary of Hours'!$L44) -> 0
A48: 2016-08-01 | K48: 0 | M48: =IF(K48=0,0,'Summary of Hours'!K45/'Summary of Hours'!$L45) -> 0
A49: 2016-09-01 | K49: 0 | M49: =IF(K49=0,0,'Summary of Hours'!K46/'Summary of Hours'!$L46) -> 0
A50: Total | B50: =SUM(B38:B49) -> 0 | C50: 0 | D50: 0 | E50: 0 | F50: 0 | G50: =SUM(G38:G49) -> 0 | H50: 0 | K50: =SUM(K38:K49) -> 0 | M50: =IF(K50=0,0,'Summary of Hours'!K47/'Summary of Hours'!$L47) -> 0
A52: =DATE(YEAR(A49),MONTH(A49)+1,DAY(A49)) -> 2016-10-01 | K52: =SUM($B52:$H52) -> 0 | M52: =IF(K52=0,0,'Summary of Hours'!K49/'Summary of Hours'!$L49) -> 0
A53: =DATE(YEAR(A52),MONTH(A52)+1,DAY(A52)) -> 2016-11-01 | K53: 0 | M53: =IF(K53=0,0,'Summary of Hours'!K50/'Summary of Hours'!$L50) -> 0
A54: =DATE(YEAR(A53),MONTH(A53)+1,DAY(A53)) -> 2016-12-01 | K54: 0 | M54: =IF(K54=0,0,'Summary of Hours'!K51/'Summary of Hours'!$L51) -> 0
A55: 2017-01-01 | K55: 0 | M55: =IF(K55=0,0,'Summary of Hours'!K52/'Summary of Hours'!$L52) -> 0
A56: 2017-02-01 | K56: 0 | M56: =IF(K56=0,0,'Summary of Hours'!K53/'Summary of Hours'!$L53) -> 0
A57: 2017-03-01 | K57: 0 | M57: =IF(K57=0,0,'Summary of Hours'!K54/'Summary of Hours'!$L54) -> 0
A58: 2017-04-01 | K58: 0 | M58: =IF(K58=0,0,'Summary of Hours'!K55/'Summary of Hours'!$L55) -> 0
A59: 2017-05-01 | K59: 0 | M59: =IF(K59=0,0,'Summary of Hours'!K56/'Summary of Hours'!$L56) -> 0
A60: 2017-06-01 | K60: 0 | M60: =IF(K60=0,0,'Summary of Hours'!K57/'Summary of Hours'!$L57) -> 0
A61: 2017-07-01 | K61: 0 | M61: =IF(K61=0,0,'Summary of Hours'!K58/'Summary of Hours'!$L58) -> 0
A62: 2017-08-01 | K62: 0 | M62: =IF(K62=0,0,'Summary of Hours'!K59/'Summary of Hours'!$L59) -> 0
A63: 2017-09-01 | K63: 0 | M63: =IF(K63=0,0,'Summary of Hours'!K60/'Summary of Hours'!$L60) -> 0
A64: Total | B64: =SUM(B52:B63) -> 0 | C64: 0 | D64: 0 | E64: 0 | F64: 0 | G64: =SUM(G52:G63) -> 0 | H64: 0 | K64: =SUM(K52:K63) -> 0 | M64: =IF(K64=0,0,'Summary of Hours'!K61/'Summary of Hours'!$L61) -> 0
A66: =DATE(YEAR(A63),MONTH(A63)+1,DAY(A63)) -> 2017-10-01 | K66: =SUM($B66:$H66) -> 0 | M66: =IF(K66=0,0,'Summary of Hours'!K63/'Summary of Hours'!$L63) -> 0
A67: =DATE(YEAR(A66),MONTH(A66)+1,DAY(A66)) -> 2017-11-01 | K67: 0 | M67: =IF(K67=0,0,'Summary of Hours'!K64/'Summary of Hours'!$L64) -> 0
A68: 2017-12-01 | K68: 0 | M68: =IF(K68=0,0,'Summary of Hours'!K65/'Summary of Hours'!$L65) -> 0
A69: 2018-01-01 | K69: 0 | M69: =IF(K69=0,0,'Summary of Hours'!K66/'Summary of Hours'!$L66) -> 0
A70: 2018-02-01 | K70: 0 | M70: =IF(K70=0,0,'Summary of Hours'!K67/'Summary of Hours'!$L67) -> 0
A71: 2018-03-01 | K71: 0 | M71: =IF(K71=0,0,'Summary of Hours'!K68/'Summary of Hours'!$L68) -> 0
A72: 2018-04-01 | K72: 0 | M72: =IF(K72=0,0,'Summary of Hours'!K69/'Summary of Hours'!$L69) -> 0
A73: 2018-05-01 | K73: 0 | M73: =IF(K73=0,0,'Summary of Hours'!K70/'Summary of Hours'!$L70) -> 0
A74: 2018-06-01 | K74: 0 | M74: =IF(K74=0,0,'Summary of Hours'!K71/'Summary of Hours'!$L71) -> 0
A75: 2018-07-01 | K75: 0 | M75: =IF(K75=0,0,'Summary of Hours'!K72/'Summary of Hours'!$L72) -> 0
A76: 2018-08-01 | K76: 0 | M76: =IF(K76=0,0,'Summary of Hours'!K73/'Summary of Hours'!$L73) -> 0
A77: 2018-09-01 | K77: 0 | M77: =IF(K77=0,0,'Summary of Hours'!K74/'Summary of Hours'!$L74) -> 0
A78: Total | B78: =SUM(B66:B77) -> 0 | C78: 0 | D78: 0 | E78: 0 | F78: =SUM(F66:F77) -> 0 | G78: =SUM(G66:G77) -> 0 | H78: 0 | K78: =SUM(K66:K77) -> 0 | M78: =IF(K78=0,0,'Summary of Hours'!K75/'Summary of Hours'!$L75) -> 0
A80: Grand Total | B80: =B$78+B$50+B$36+B$22+B$64 -> 0 | C80: 0 | D80: 0 | E80: 0 | F80: 0 | G80: 0 | H80: 0 | K80: =K$78+K$50+K$36+K$22+K$64 -> 0

Sheet Absence
B1: Authorised Absence
B2: 7 hours absence corresponds to 1 working day if you are employed on a 35 hour weekly contract.
B3: 7.4 hours absence corresponds to 1 working day if you are employed on a 37 hour weekly contract.
B4: 7.5 hours absence corresponds to 1 working day if you are employed on a 37.5 hour weekly contract.
B5: 8 hours absence corresponds to 1 working day if you are employed on a 40 hour weekly contract.
B6: Period | C6: Annual Leave | D6: Bank Holidays / College Closures | E6: Sickness | F6: Maternity / Paternity Leave | G6: Other | H6: Total Hours Authorised Absence
B8: ='Employee Details'!$L$9 -> 2013-10-01 | H8: =SUM(C8:G8) -> 0
B9: =DATE(YEAR(B8),MONTH(B8)+1,DAY(B8)) -> 2013-11-01 | H9: =SUM(C9:G9) -> 0
B10: =DATE(YEAR(B9),MONTH(B9)+1,DAY(B9)) -> 2013-12-01 | D10: 49 | H10: 49
B11: 2014-01-01 | H11: 0
B12: 2014-02-01 | H12: 0
B13: 2014-03-01 | H13: 0
B14: 2014-04-01 | H14: 0
B15: 2014-05-01 | H15: 0
B16: 2014-06-01 | H16: 0
B17: 2014-07-01 | H17: 0
B18: 2014-08-01 | H18: 0
B19: 2014-09-01 | H19: 0
B20: Total | C20: =SUM(C8:C19) -> 0 | D20: 49 | E20: 0 | F20: 0 | G20: 0 | H20: 49
B22: =DATE(YEAR(B19),MONTH(B19)+1,DAY(B19)) -> 2014-10-01 | H22: =SUM(C22:G22) -> 0
B23: =DATE(YEAR(B22),MONTH(B22)+1,DAY(B22)) -> 2014-11-01 | H23: =SUM(C23:G23) -> 0
B24: =DATE(YEAR(B23),MONTH(B23)+1,DAY(B23)) -> 2014-12-01 | H24: 0
B25: =DATE(YEAR(B24),MONTH(B24)+1,DAY(B24)) -> 2015-01-01 | H25: 0
B26: =DATE(YEAR(B25),MONTH(B25)+1,DAY(B25)) -> 2015-02-01 | H26: 0
B27: 2015-03-01 | H27: 0
B28: 2015-04-01 | H28: 0
B29: 2015-05-01 | H29: 0
B30: 2015-06-01 | H30: 0
B31: 2015-07-01 | H31: 0
B32: 2015-08-01 | H32: 0
B33: 2015-09-01 | H33: 0
B34: Total | C34: =SUM(C22:C33) -> 0 | D34: 0 | E34: 0 | F34: 0 | G34: 0 | H34: 0
B36: =DATE(YEAR(B33),MONTH(B33)+1,DAY(B33)) -> 2015-10-01 | H36: =SUM(C36:G36) -> 0
B37: =DATE(YEAR(B36),MONTH(B36)+1,DAY(B36)) -> 2015-11-01 | H37: =SUM(C37:G37) -> 0
B38: 2015-12-01 | H38: 0
B39: 2016-01-01 | H39: 0
B40: 2016-02-01 | H40: 0
B41: 2016-03-01 | H41: 0
B42: 2016-04-01 | H42: 0
B43: 2016-05-01 | H43: 0
B44: 2016-06-01 | H44: 0
B45: 2016-07-01 | H45: 0
B46: 2016-08-01 | H46: 0
B47: 2016-09-01 | H47: 0
B48: Total | C48: =SUM(C36:C47) -> 0 | D48: 0 | E48: 0 | F48: 0 | G48: 0 | H48: 0
B50: =DATE(YEAR(B47),MONTH(B47)+1,DAY(B47)) -> 2016-10-01 | H50: =SUM(C50:G50) -> 0
B51: =DATE(YEAR(B50),MONTH(B50)+1,DAY(B50)) -> 2016-11-01 | H51: =SUM(C51:G51) -> 0
B52: =DATE(YEAR(B51),MONTH(B51)+1,DAY(B51)) -> 2016-12-01 | H52: 0
B53: 2017-01-01 | H53: 0
B54: 2017-02-01 | H54: 0
B55: 2017-03-01 | H55: 0
B56: 2017-04-01 | H56: 0
B57: 2017-05-01 | H57: 0
B58: 2017-06-01 | H58: 0
B59: 2017-07-01 | H59: 0
B60: 2017-08-01 | H60: 0
B61: 2017-09-01 | H61: 0
B62: Total | C62: =SUM(C50:C61) -> 0 | D62: 0 | E62: 0 | F62: 0 | G62: 0 | H62: 0
B64: =DATE(YEAR(B61),MONTH(B61)+1,DAY(B61)) -> 2017-10-01 | H64: =SUM(C64:G64) -> 0
B65: =DATE(YEAR(B64),MONTH(B64)+1,DAY(B64)) -> 2017-11-01 | H65: =SUM(C65:G65) -> 0
B66: 2017-12-01 | H66: 0
B67: 2018-01-01 | H67: 0
B68: 2018-02-01 | H68: 0
B69: 2018-03-01 | H69: 0
B70: 2018-04-01 | H70: 0
B71: 2018-05-01 | H71: 0
B72: 2018-06-01 | H72: 0
B73: 2018-07-01 | H73: 0
B74: 2018-08-01 | H74: 0
B75: 2018-09-01 | H75: 0
B76: Total | C76: =SUM(C64:C75) -> 0 | D76: 0 | E76: 0 | F76: 0 | G76: 0 | H76: 0
B78: Grand Total | C78: =C20+C34+C48+C62+C76 -> 0 | D78: 49 | E78: 0 | F78: 0 | G78: 0 | H78: 49

Sheet Timesheet
B1: TIME SHEET
B2: Staff Name: | C2: ='Employee Details'!$C$2 -> Dr Daniela Bauer | F2: CID: | G2: ='Employee Details'!$F$2 -> 231786
B3: Department: | C3: ='Employee Details'!$C$3 -> Physics | F3: Post Title: | G3: ='Employee Details'!$F$3 -> Researcher
B4: Faculty: | C4: =IF('Employee Details'!$C$4=0," ",'Employee Details'!$C$4) -> Natural Sciences | F4: FTE: | G4: =IF(C5="Select Hours Model"," ",IF(AND(C7>='Employee Details'!$L$9,C7<='Employee Details'!$M$9),'Employee Details'!B9,IF(AND(C7>='Employee Details'!$L$10,C7<='Employee Details'!$M$10),'Employee Details'!B10,IF(AND(C7>='Employee Details'!$L$11,C7<='Employee Details'!$M$11),'Employee Details'!B11,IF(AND(C7>='Employee Details'!$L$12,C7<='Employee Details'!$D$12),'Employee Details'!B12,IF(AND(C7>='Employee Details'!$L$13,C7<='Employee Details'!$M$13),'Employee Details'!B13,"")))))) -> 0
B5: Contracted Hours Model: | C5: ='Employee Details'!$G$5 -> 35 | D5: Contracted Hours based on % FTE: | G5: =IF(C5="Select Hours Model"," ",C5*G4) -> 0
Q6: Timesheet Errors Check
B7: Month / Year: | C7: 2013-12-01 | Q7: Hours model selected?
B8: Project/Award: | C8: Funding Source: | D8: Acronym/Short Title: | E8: Activity # or Work Package (CEC Only) | G8: Additional Information (optional) | H8: RTD | I8: Demo | J8: Train | K8: Management | L8: Coord / Sup | M8: Marie Curie Worked Hours | N8: Other Hours Worked (CEC & Non CEC) | O8: Number of hours | Q8: =IF('Employee Details'!$G$5="Select Hours Model",CONCATENATE("No contracted hours model has been selected. Please select from the drop down menu in the 'Employee Details' worksheet."),"YES") -> YES
B10: =IF('Main Award'!$B$3="","",'Main Award'!$B$3) -> PHHE P44300 | C10: ='Main Award'!$B$2 -> OST RESEARCH COUNCIL | D10: =IF('Main Award'!$B$4="","",'Main Award'!$B$4) -> GridPP Tranche II | E10: =IF(C10="Select Funding Source"," ",VLOOKUP($C$7,'Main Award'!$A:$M,9,FALSE)) -> 0 | G10: =IF(C10="Select Funding Source"," ",VLOOKUP($C$7,'Main Award'!$A:$M,10,FALSE)) -> 0 | H10: =IF(C10="Select Funding Source"," ",VLOOKUP($C$7,'Main Award'!$A:$M,2,FALSE)) -> 0 | I10: =IF(C10="Select Funding Source"," ",VLOOKUP($C$7,'Main Award'!$A:$M,3,FALSE)) -> 0 | J10: =IF(C10="Select Funding Source"," ",VLOOKUP($C$7,'Main Award'!$A:$M,4,FALSE)) -> 0 | K10: =IF(C10="Select Funding Source"," ",VLOOKUP($C$7,'Main Award'!$A:$M,5,FALSE)) -> 0 | L10: =IF(C10="Select Funding Source"," ",VLOOKUP($C$7,'Main Award'!$A:$M,6,FALSE)) -> 0 | M10: =IF(C10="Select Funding Source"," ",VLOOKUP($C$7,'Main Award'!$A:$M,7,FALSE)) -> 0 | N10: =IF(C10="Select Funding Source"," ",VLOOKUP($C$7,'Main Award'!$A:$M,8,FALSE)) -> 54 | O10: =IF(C10="Select Funding Source"," ",VLOOKUP($C$7,'Main Award'!$A:$M,11,FALSE)) -> 54
B11: =IF('Other 1'!$B$3="","",'Other 1'!$B$3) -> PHHE P32997 | C11: ='Other 1'!$B$2 -> FP7 EU COMMISSION | D11: =IF('Other 1'!$B$4="","",'Other 1'!$B$4) -> EGI Research | E11: =IF(C11="Select Funding Source"," ",VLOOKUP($C$7,'Other 1'!$A:$M,9,FALSE)) -> 0 | G11: =IF(C11="Select Funding Source"," ",VLOOKUP($C$7,'Other 1'!$A:$M,10,FALSE)) -> 0 | H11: =IF(C11="Select Funding Source"," ",VLOOKUP($C$7,'Other 1'!$A:$M,2,FALSE)) -> 0 | I11: =IF(C11="Select Funding Source"," ",VLOOKUP($C$7,'Other 1'!$A:$M,3,FALSE)) -> 0 | J11: =IF(C11="Select Funding Source"," ",VLOOKUP($C$7,'Other 1'!$A:$M,4,FALSE)) -> 0 | K11: =IF(C11="Select Funding Source"," ",VLOOKUP($C$7,'Other 1'!$A:$M,5,FALSE)) -> 0 | L11: =IF(C11="Select Funding Source"," ",VLOOKUP($C$7,'Other 1'!$A:$M,6,FALSE)) -> 0 | M11: =IF(C11="Select Funding Source"," ",VLOOKUP($C$7,'Other 1'!$A:$M,7,FALSE)) -> 0 | N11: =IF(C11="Select Funding Source"," ",VLOOKUP($C$7,'Other 1'!$A:$M,8,FALSE)) -> 51 | O11: =IF(C11="Select Funding Source"," ",VLOOKUP($C$7,'Other 1'!$A:$M,11,FALSE)) -> 51 | Q11: Have all hours been accounted for?
B12: =IF('Other 2'!$B$3="","",'Other 2'!$B$3) -> PHHE P32997 | C12: ='Other 2'!$B$2 -> FP7 EU COMMISSION | D12: =IF('Other 2'!$B$4="","",'Other 2'!$B$4) -> EGI Coordination | E12: =IF(C12="Select Funding Source"," ",VLOOKUP($C$7,'Other 2'!$A:$M,9,FALSE)) -> 0 | G12: =IF(C12="Select Funding Source"," ",VLOOKUP($C$7,'Other 2'!$A:$M,10,FALSE)) -> 0 | H12: =IF(C12="Select Funding Source"," ",VLOOKUP($C$7,'Other 2'!$A:$M,2,FALSE)) -> 0 | I12: =IF(C12="Select Funding Source"," ",VLOOKUP($C$7,'Other 2'!$A:$M,3,FALSE)) -> 0 | J12: =IF(C12="Select Funding Source"," ",VLOOKUP($C$7,'Other 2'!$A:$M,4,FALSE)) -> 0 | K12: =IF(C12="Select Funding Source"," ",VLOOKUP($C$7,'Other 2'!$A:$M,5,FALSE)) -> 0 | L12: =IF(C12="Select Funding Source"," ",VLOOKUP($C$7,'Other 2'!$A:$M,6,FALSE)) -> 0 | M12: =IF(C12="Select Funding Source"," ",VLOOKUP($C$7,'Other 2'!$A:$M,7,FALSE)) -> 0 | N12: =IF(C12="Select Funding Source"," ",VLOOKUP($C$7,'Other 2'!$A:$M,8,FALSE)) -> 3.5 | O12: =IF(C12="Select Funding Source"," ",VLOOKUP($C$7,'Other 2'!$A:$M,11,FALSE)) -> 3.5 | Q12: =IF($O$22<100%,CONCATENATE("Hours recorded are less than the contractual effort expected (FTE% is less than 100%). Please review the variances indicated in the 'Recovery Summary' worksheet and amend if necessary."),"YES") -> Hours recorded are less than the contractual effort expected (FTE% is less than 100%). Please review the variances indicated in the 'Recovery Summary' worksheet and amend if necessary.
B13: =IF('Other 3'!$B$3="","",'Other 3'!$B$3) -> Enter Award/Project Number | C13: ='Other 3'!$B$2 -> Select Funding Source | D13: =IF('Other 3'!$B$4="","",'Other 3'!$B$4) -> Enter Acronym/Short Title | E13: =IF(C13="Select Funding Source"," ",VLOOKUP($C$7,'Other 3'!$A:$M,9,FALSE)) ->  | G13: =IF(C13="Select Funding Source"," ",VLOOKUP($C$7,'Other 3'!$A:$M,10,FALSE)) ->  | H13: =IF(C13="Select Funding Source"," ",VLOOKUP($C$7,'Other 3'!$A:$M,2,FALSE)) ->  | I13: =IF(C13="Select Funding Source"," ",VLOOKUP($C$7,'Other 3'!$A:$M,3,FALSE)) ->  | J13: =IF(C13="Select Funding Source"," ",VLOOKUP($C$7,'Other 3'!$A:$M,4,FALSE)) ->  | K13: =IF(C13="Select Funding Source"," ",VLOOKUP($C$7,'Other 3'!$A:$M,5,FALSE)) ->  | L13: =IF(C13="Select Funding Source"," ",VLOOKUP($C$7,'Other 3'!$A:$M,6,FALSE)) ->  | M13: =IF(C13="Select Funding Source"," ",VLOOKUP($C$7,'Other 3'!$A:$M,7,FALSE)) ->  | N13: =IF(C13="Select Funding Source"," ",VLOOKUP($C$7,'Other 3'!$A:$M,8,FALSE)) ->  | O13: =IF(C13="Select Funding Source"," ",VLOOKUP($C$7,'Other 3'!$A:$M,11,FALSE)) -> 
B14: =IF('Other 4'!$B$3="","",'Other 4'!$B$3) -> Enter Award/Project Number | C14: ='Other 4'!$B$2 -> Select Funding Source | D14: =IF('Other 4'!$B$4="","",'Other 4'!$B$4) -> Enter Acronym/Short Title | E14: =IF(C14="Select Funding Source"," ",VLOOKUP($C$7,'Other 4'!$A:$M,9,FALSE)) ->  | G14: =IF(C14="Select Funding Source"," ",VLOOKUP($C$7,'Other 4'!$A:$M,10,FALSE)) ->  | H14: =IF(C14="Select Funding Source"," ",VLOOKUP($C$7,'Other 4'!$A:$M,2,FALSE)) ->  | I14: =IF(C14="Select Funding Source"," ",VLOOKUP($C$7,'Other 4'!$A:$M,3,FALSE)) ->  | J14: =IF(C14="Select Funding Source"," ",VLOOKUP($C$7,'Other 4'!$A:$M,4,FALSE)) ->  | K14: =IF(C14="Select Funding Source"," ",VLOOKUP($C$7,'Other 4'!$A:$M,5,FALSE)) ->  | L14: =IF(C14="Select Funding Source"," ",VLOOKUP($C$7,'Other 4'!$A:$M,6,FALSE)) ->  | M14: =IF(C14="Select Funding Source"," ",VLOOKUP($C$7,'Other 4'!$A:$M,7,FALSE)) ->  | N14: =IF(C14="Select Funding Source"," ",VLOOKUP($C$7,'Other 4'!$A:$M,8,FALSE)) ->  | O14: =IF(C14="Select Funding Source"," ",VLOOKUP($C$7,'Other 4'!$A:$M,11,FALSE)) -> 
B15: =IF('Other 5'!$B$3="","",'Other 5'!$B$3) -> Enter Award/Project Number | C15: ='Other 5'!$B$2 -> Select Funding Source | D15: =IF('Other 5'!$B$4="","",'Other 5'!$B$4) -> Enter Acronym/Short Title | E15: =IF(C15="Select Funding Source"," ",VLOOKUP($C$7,'Other 5'!$A:$M,9,FALSE)) ->  | G15: =IF(C15="Select Funding Source"," ",VLOOKUP($C$7,'Other 5'!$A:$M,10,FALSE)) ->  | H15: =IF(C15="Select Funding Source"," ",VLOOKUP($C$7,'Other 5'!$A:$M,2,FALSE)) ->  | I15: =IF(C15="Select Funding Source"," ",VLOOKUP($C$7,'Other 5'!$A:$M,3,FALSE)) ->  | J15: =IF(C15="Select Funding Source"," ",VLOOKUP($C$7,'Other 5'!$A:$M,4,FALSE)) ->  | K15: =IF(C15="Select Funding Source"," ",VLOOKUP($C$7,'Other 5'!$A:$M,5,FALSE)) ->  | L15: =IF(C15="Select Funding Source"," ",VLOOKUP($C$7,'Other 5'!$A:$M,6,FALSE)) ->  | M15: =IF(C15="Select Funding Source"," ",VLOOKUP($C$7,'Other 5'!$A:$M,7,FALSE)) ->  | N15: =IF(C15="Select Funding Source"," ",VLOOKUP($C$7,'Other 5'!$A:$M,8,FALSE)) ->  | O15: =IF(C15="Select Funding Source"," ",VLOOKUP($C$7,'Other 5'!$A:$M,11,FALSE)) ->  | Q15: Employee details completed correctly?
B16: =IF('Other 6'!$B$3="","",'Other 6'!$B$3) -> Enter Award/Project Number | C16: ='Other 6'!$B$2 -> Select Funding Source | D16: =IF('Other 6'!$B$4="","",'Other 6'!$B$4) -> Enter Acronym/Short Title | E16: =IF(C16="Select Funding Source"," ",VLOOKUP($C$7,'Other 6'!$A:$M,9,FALSE)) ->  | G16: =IF(C16="Select Funding Source"," ",VLOOKUP($C$7,'Other 6'!$A:$M,10,FALSE)) ->  | H16: =IF(C16="Select Funding Source"," ",VLOOKUP($C$7,'Other 6'!$A:$M,2,FALSE)) ->  | I16: =IF(C16="Select Funding Source"," ",VLOOKUP($C$7,'Other 6'!$A:$M,3,FALSE)) ->  | J16: =IF(C16="Select Funding Source"," ",VLOOKUP($C$7,'Other 6'!$A:$M,4,FALSE)) ->  | K16: =IF(C16="Select Funding Source"," ",VLOOKUP($C$7,'Other 6'!$A:$M,5,FALSE)) ->  | L16: =IF(C16="Select Funding Source"," ",VLOOKUP($C$7,'Other 6'!$A:$M,6,FALSE)) ->  | M16: =IF(C16="Select Funding Source"," ",VLOOKUP($C$7,'Other 6'!$A:$M,7,FALSE)) ->  | N16: =IF(C16="Select Funding Source"," ",VLOOKUP($C$7,'Other 6'!$A:$M,8,FALSE)) ->  | O16: =IF(C16="Select Funding Source"," ",VLOOKUP($C$7,'Other 6'!$A:$M,11,FALSE)) ->  | Q16: =IF($C$2="Enter Your Name (inc. Title)",CONCATENATE("The 'Employee Details' worksheet has not been completed correctly. Please review before printing the monthly timesheet"),IF($C$3="Enter Your Department",CONCATENATE("The 'Employee Details' worksheet has not been completed correctly. Please review before printing the monthly timesheet"),IF($G$2="Enter College ID Number",CONCATENATE("The 'Employee Details' worksheet has not been completed correctly. Please review before printing the monthly timesheet"),IF($G$3="Select Your Post Title",CONCATENATE("The 'Employee Details' worksheet has not been completed correctly. Please review before printing the monthly timesheet"),"YES")))) -> YES
B17: =IF('Other 7'!$B$3="","",'Other 7'!$B$3) -> Enter Award/Project Number | C17: ='Other 7'!$B$2 -> Select Funding Source | D17: =IF('Other 7'!$B$4="","",'Other 7'!$B$4) -> Enter Acronym/Short Title | E17: =IF(C17="Select Funding Source"," ",VLOOKUP($C$7,'Other 7'!$A:$M,9,FALSE)) ->  | G17: =IF(C17="Select Funding Source"," ",VLOOKUP($C$7,'Other 7'!$A:$M,10,FALSE)) ->  | H17: =IF(C17="Select Funding Source"," ",VLOOKUP($C$7,'Other 7'!$A:$M,2,FALSE)) ->  | I17: =IF(C17="Select Funding Source"," ",VLOOKUP($C$7,'Other 7'!$A:$M,3,FALSE)) ->  | J17: =IF(C17="Select Funding Source"," ",VLOOKUP($C$7,'Other 7'!$A:$M,4,FALSE)) ->  | K17: =IF(C17="Select Funding Source"," ",VLOOKUP($C$7,'Other 7'!$A:$M,5,FALSE)) ->  | L17: =IF(C17="Select Funding Source"," ",VLOOKUP($C$7,'Other 7'!$A:$M,6,FALSE)) ->  | M17: =IF(C17="Select Funding Source"," ",VLOOKUP($C$7,'Other 7'!$A:$M,7,FALSE)) ->  | N17: =IF(C17="Select Funding Source"," ",VLOOKUP($C$7,'Other 7'!$A:$M,8,FALSE)) ->  | O17: =IF(C17="Select Funding Source"," ",VLOOKUP($C$7,'Other 7'!$A:$M,11,FALSE)) -> 
B18: =IF('Other 8'!$B$3="","",'Other 8'!$B$3) -> Enter Award/Project Number | C18: ='Other 8'!$B$2 -> Select Funding Source | D18: =IF('Other 8'!$B$4="","",'Other 8'!$B$4) -> Enter Acronym/Short Title | E18: =IF(C18="Select Funding Source"," ",VLOOKUP($C$7,'Other 8'!$A:$M,9,FALSE)) ->  | G18: =IF(C18="Select Funding Source"," ",VLOOKUP($C$7,'Other 8'!$A:$M,10,FALSE)) ->  | H18: =IF(C18="Select Funding Source"," ",VLOOKUP($C$7,'Other 8'!$A:$M,2,FALSE)) ->  | I18: =IF(C18="Select Funding Source"," ",VLOOKUP($C$7,'Other 8'!$A:$M,3,FALSE)) ->  | J18: =IF(C18="Select Funding Source"," ",VLOOKUP($C$7,'Other 8'!$A:$M,4,FALSE)) ->  | K18: =IF(C18="Select Funding Source"," ",VLOOKUP($C$7,'Other 8'!$A:$M,5,FALSE)) ->  | L18: =IF(C18="Select Funding Source"," ",VLOOKUP($C$7,'Other 8'!$A:$M,6,FALSE)) ->  | M18: =IF(C18="Select Funding Source"," ",VLOOKUP($C$7,'Other 8'!$A:$M,7,FALSE)) ->  | N18: =IF(C18="Select Funding Source"," ",VLOOKUP($C$7,'Other 8'!$A:$M,8,FALSE)) ->  | O18: =IF(C18="Select Funding Source"," ",VLOOKUP($C$7,'Other 8'!$A:$M,11,FALSE)) -> 
B19: =IF('Other 9'!$B$3="","",'Other 9'!$B$3) -> Enter Award/Project Number | C19: ='Other 9'!$B$2 -> Select Funding Source | D19: =IF('Other 9'!$B$4="","",'Other 9'!$B$4) -> Enter Acronym/Short Title | E19: =IF(C19="Select Funding Source"," ",VLOOKUP($C$7,'Other 9'!$A:$M,9,FALSE)) ->  | G19: =IF(C19="Select Funding Source"," ",VLOOKUP($C$7,'Other 9'!$A:$M,10,FALSE)) ->  | H19: =IF(C19="Select Funding Source"," ",VLOOKUP($C$7,'Other 9'!$A:$M,2,FALSE)) ->  | I19: =IF(C19="Select Funding Source"," ",VLOOKUP($C$7,'Other 9'!$A:$M,3,FALSE)) ->  | J19: =IF(C19="Select Funding Source"," ",VLOOKUP($C$7,'Other 9'!$A:$M,4,FALSE)) ->  | K19: =IF(C19="Select Funding Source"," ",VLOOKUP($C$7,'Other 9'!$A:$M,5,FALSE)) ->  | L19: =IF(C19="Select Funding Source"," ",VLOOKUP($C$7,'Other 9'!$A:$M,6,FALSE)) ->  | M19: =IF(C19="Select Funding Source"," ",VLOOKUP($C$7,'Other 9'!$A:$M,7,FALSE)) ->  | N19: =IF(C19="Select Funding Source"," ",VLOOKUP($C$7,'Other 9'!$A:$M,8,FALSE)) ->  | O19: =IF(C19="Select Funding Source"," ",VLOOKUP($C$7,'Other 9'!$A:$M,11,FALSE)) -> 
B20: =CONCATENATE("Total Productive Hours Worked for ",TEXT(C7,"mmmm yyyy")) -> Total Productive Hours Worked for December 2013 | H20: =SUM(H10:H19) -> 0 | I20: =SUM(I10:I19) -> 0 | J20: 0 | K20: 0 | L20: 0 | M20: 0 | N20: 108.5 | O20: =SUM(O10:O19) -> 108.5
B22: Full Time Equivalent (Across All Projects) | O22: =IF(C5="Select Hours Model",0,VLOOKUP($C$7,'Summary of Recovery'!A:Q,17,FALSE)) -> 0
B23: No. of hours of Authorised Absence | O23: =IF(C10=" "," ",VLOOKUP($C$7,Absence!B:H,7,FALSE)) -> 49
B26: Timesheet Certification
B27: =$G$3 -> Researcher | E27: Signed:
B31: =C2 -> Dr Daniela Bauer | E31: Date:
B33: =IF($B$27="Principal Investigator","Head of Department/Section","Principal Investigator / HoD") -> Principal Investigator / HoD | E33: Signed:
B37: ='Employee Details'!C5 -> Dr David Colling | E37: Date:

Sheet Summary of Hours
A1: Summary of Hours Worked
A2: *The 'Summary of Hours' worksheet summarises working time across multiple projects, activities or work packages (see section 7 in the Instructions worksheet for further information)
A3: Funding Source: | B3: =IF('Main Award'!$B$2="Select Funding Source"," ",'Main Award'!$B$2) -> OST RESEARCH COUNCIL | C3: =IF('Other 1'!$B$2="Select Funding Source"," ",'Other 1'!$B$2) -> FP7 EU COMMISSION | D3: =IF('Other 2'!$B$2="Select Funding Source"," ",'Other 2'!$B$2) -> FP7 EU COMMISSION | E3: =IF('Other 3'!$B$2="Select Funding Source"," ",'Other 3'!$B$2) ->  | F3: =IF('Other 4'!$B$2="Select Funding Source"," ",'Other 4'!$B$2) ->  | G3: =IF('Other 5'!$B$2="Select Funding Source"," ",'Other 5'!$B$2) ->  | H3: =IF('Other 6'!$B$2="Select Funding Source"," ",'Other 6'!$B$2) ->  | I3: =IF('Other 7'!$B$2="Select Funding Source"," ",'Other 7'!$B$2) ->  | J3: =IF('Other 8'!$B$2="Select Funding Source"," ",'Other 8'!$B$2) ->  | K3: =IF('Other 9'!$B$2="Select Funding Source"," ",'Other 9'!$B$2) -> 
A4: Award / Project Number: | B4: =IF('Main Award'!$B$3="Enter Award/Project Number"," ",'Main Award'!$B$3) -> PHHE P44300 | C4: =IF('Other 1'!$B$3="Enter Award/Project Number"," ",'Other 1'!$B$3) -> PHHE P32997 | D4: =IF('Other 2'!$B$3="Enter Award/Project Number"," ",'Other 2'!$B$3) -> PHHE P32997 | E4: =IF('Other 3'!$B$3="Enter Award/Project Number"," ",'Other 3'!$B$3) ->  | F4: =IF('Other 4'!$B$3="Enter Award/Project Number"," ",'Other 4'!$B$3) ->  | G4: =IF('Other 5'!$B$3="Enter Award/Project Number"," ",'Other 5'!$B$3) ->  | H4: =IF('Other 6'!$B$3="Enter Award/Project Number"," ",'Other 6'!$B$3) ->  | I4: =IF('Other 7'!$B$3="Enter Award/Project Number"," ",'Other 7'!$B$3) ->  | J4: =IF('Other 8'!$B$3="Enter Award/Project Number"," ",'Other 8'!$B$3) ->  | K4: =IF('Other 9'!$B$3="Enter Award/Project Number"," ",'Other 9'!$B$3) -> 
A5: Short Title: | B5: =IF('Main Award'!$B$4="Enter Acronym/Short Title"," ",'Main Award'!$B$4) -> GridPP Tranche II | C5: =IF('Other 1'!$B$4="Enter Acronym/Short Title"," ",'Other 1'!$B$4) -> EGI Research | D5: =IF('Other 2'!$B$4="Enter Acronym/Short Title"," ",'Other 2'!$B$4) -> EGI Coordination | E5: =IF('Other 3'!$B$4="Enter Acronym/Short Title"," ",'Other 3'!$B$4) ->  | F5: =IF('Other 4'!$B$4="Enter Acronym/Short Title"," ",'Other 4'!$B$4) ->  | G5: =IF('Other 5'!$B$4="Enter Acronym/Short Title"," ",'Other 5'!$B$4) ->  | H5: =IF('Other 6'!$B$4="Enter Acronym/Short Title"," ",'Other 6'!$B$4) ->  | I5: =IF('Other 7'!$B$4="Enter Acronym/Short Title"," ",'Other 7'!$B$4) ->  | J5: =IF('Other 8'!$B$4="Enter Acronym/Short Title"," ",'Other 8'!$B$4) ->  | K5: =IF('Other 9'!$B$4="Enter Acronym/Short Title"," ",'Other 9'!$B$4) -> 
A7: ='Employee Details'!$L$9 -> 2013-10-01 | B7: ='Main Award'!$K10 -> 82 | C7: ='Other 1'!$K10 -> 77 | D7: ='Other 2'!$K10 -> 5 | E7: ='Other 3'!$K10 -> 0 | F7: ='Other 4'!$K10 -> 0 | G7: ='Other 5'!$K10 -> 0 | H7: ='Other 6'!$K10 -> 0 | I7: ='Other 7'!$K10 -> 0 | J7: ='Other 8'!$K10 -> 0 | K7: ='Other 9'!$K10 -> 0 | L7: =SUM(B7:K7) -> 164
A8: =EOMONTH(A7,0)+1 -> 2013-11-01 | B8: ='Main Award'!$K11 -> 78 | C8: ='Other 1'!$K11 -> 73 | D8: ='Other 2'!$K11 -> 4.5 | E8: ='Other 3'!$K11 -> 0 | F8: ='Other 4'!$K11 -> 0 | G8: ='Other 5'!$K11 -> 0 | H8: ='Other 6'!$K11 -> 0 | I8: ='Other 7'!$K11 -> 0 | J8: ='Other 8'!$K11 -> 0 | K8: ='Other 9'!$K11 -> 0 | L8: =SUM(B8:K8) -> 155.5
A9: =EOMONTH(A8,0)+1 -> 2013-12-01 | B9: ='Main Award'!$K12 -> 54 | C9: ='Other 1'!$K12 -> 51 | D9: ='Other 2'!$K12 -> 3.5 | E9: ='Other 3'!$K12 -> 0 | F9: ='Other 4'!$K12 -> 0 | G9: ='Other 5'!$K12 -> 0 | H9: ='Other 6'!$K12 -> 0 | I9: ='Other 7'!$K12 -> 0 | J9: ='Other 8'!$K12 -> 0 | K9: ='Other 9'!$K12 -> 0 | L9: 108.5
A10: 2014-01-01 | B10: ='Main Award'!$K13 -> 0 | C10: ='Other 1'!$K13 -> 0 | D10: ='Other 2'!$K13 -> 0 | E10: ='Other 3'!$K13 -> 0 | F10: ='Other 4'!$K13 -> 0 | G10: ='Other 5'!$K13 -> 0 | H10: ='Other 6'!$K13 -> 0 | I10: ='Other 7'!$K13 -> 0 | J10: ='Other 8'!$K13 -> 0 | K10: ='Other 9'!$K13 -> 0 | L10: 0
A11: 2014-02-01 | B11: ='Main Award'!$K14 -> 0 | C11: ='Other 1'!$K14 -> 0 | D11: ='Other 2'!$K14 -> 0 | E11: ='Other 3'!$K14 -> 0 | F11: ='Other 4'!$K14 -> 0 | G11: ='Other 5'!$K14 -> 0 | H11: ='Other 6'!$K14 -> 0 | I11: ='Other 7'!$K14 -> 0 | J11: ='Other 8'!$K14 -> 0 | K11: ='Other 9'!$K14 -> 0 | L11: 0
A12: 2014-03-01 | B12: ='Main Award'!$K15 -> 0 | C12: ='Other 1'!$K15 -> 0 | D12: ='Other 2'!$K15 -> 0 | E12: ='Other 3'!$K15 -> 0 | F12: ='Other 4'!$K15 -> 0 | G12: ='Other 5'!$K15 -> 0 | H12: ='Other 6'!$K15 -> 0 | I12: ='Other 7'!$K15 -> 0 | J12: ='Other 8'!$K15 -> 0 | K12: ='Other 9'!$K15 -> 0 | L12: 0
A13: 2014-04-01 | B13: ='Main Award'!$K16 -> 0 | C13: ='Other 1'!$K16 -> 0 | D13: ='Other 2'!$K16 -> 0 | E13: ='Other 3'!$K16 -> 0 | F13: ='Other 4'!$K16 -> 0 | G13: ='Other 5'!$K16 -> 0 | H13: ='Other 6'!$K16 -> 0 | I13: ='Other 7'!$K16 -> 0 | J13: ='Other 8'!$K16 -> 0 | K13: ='Other 9'!$K16 -> 0 | L13: 0
A14: 2014-05-01 | B14: ='Main Award'!$K17 -> 0 | C14: ='Other 1'!$K17 -> 0 | D14: ='Other 2'!$K17 -> 0 | E14: ='Other 3'!$K17 -> 0 | F14: ='Other 4'!$K17 -> 0 | G14: ='Other 5'!$K17 -> 0 | H14: ='Other 6'!$K17 -> 0 | I14: ='Other 7'!$K17 -> 0 | J14: ='Other 8'!$K17 -> 0 | K14: ='Other 9'!$K17 -> 0 | L14: 0
A15: 2014-06-01 | B15: ='Main Award'!$K18 -> 0 | C15: ='Other 1'!$K18 -> 0 | D15: ='Other 2'!$K18 -> 0 | E15: ='Other 3'!$K18 -> 0 | F15: ='Other 4'!$K18 -> 0 | G15: ='Other 5'!$K18 -> 0 | H15: ='Other 6'!$K18 -> 0 | I15: ='Other 7'!$K18 -> 0 | J15: ='Other 8'!$K18 -> 0 | K15: ='Other 9'!$K18 -> 0 | L15: 0
A16: 2014-07-01 | B16: ='Main Award'!$K19 -> 0 | C16: ='Other 1'!$K19 -> 0 | D16: ='Other 2'!$K19 -> 0 | E16: ='Other 3'!$K19 -> 0 | F16: ='Other 4'!$K19 -> 0 | G16: ='Other 5'!$K19 -> 0 | H16: ='Other 6'!$K19 -> 0 | I16: ='Other 7'!$K19 -> 0 | J16: ='Other 8'!$K19 -> 0 | K16: ='Other 9'!$K19 -> 0 | L16: 0
A17: 2014-08-01 | B17: ='Main Award'!$K20 -> 0 | C17: ='Other 1'!$K20 -> 0 | D17: ='Other 2'!$K20 -> 0 | E17: ='Other 3'!$K20 -> 0 | F17: ='Other 4'!$K20 -> 0 | G17: ='Other 5'!$K20 -> 0 | H17: ='Other 6'!$K20 -> 0 | I17: ='Other 7'!$K20 -> 0 | J17: ='Other 8'!$K20 -> 0 | K17: ='Other 9'!$K20 -> 0 | L17: 0
A18: 2014-09-01 | B18: ='Main Award'!$K21 -> 0 | C18: ='Other 1'!$K21 -> 0 | D18: ='Other 2'!$K21 -> 0 | E18: ='Other 3'!$K21 -> 0 | F18: ='Other 4'!$K21 -> 0 | G18: ='Other 5'!$K21 -> 0 | H18: ='Other 6'!$K21 -> 0 | I18: ='Other 7'!$K21 -> 0 | J18: ='Other 8'!$K21 -> 0 | K18: ='Other 9'!$K21 -> 0 | L18: 0
A19: Total | B19: =SUM(B7:B18) -> 214 | C19: 201 | D19: 13 | E19: 0 | F19: 0 | G19: 0 | H19: 0 | I19: 0 | J19: 0 | K19: 0 | L19: 428
A21: =EOMONTH(A18,0)+1 -> 2014-10-01 | B21: ='Main Award'!$K24 -> 0 | C21: ='Other 1'!$K24 -> 0 | D21: ='Other 2'!$K24 -> 0 | E21: ='Other 3'!$K24 -> 0 | F21: ='Other 4'!$K24 -> 0 | G21: ='Other 5'!$K24 -> 0 | H21: ='Other 6'!$K24 -> 0 | I21: ='Other 7'!$K24 -> 0 | J21: ='Other 8'!$K24 -> 0 | K21: ='Other 9'!$K24 -> 0 | L21: =SUM(B21:K21) -> 0
A22: =EOMONTH(A21,0)+1 -> 2014-11-01 | B22: ='Main Award'!$K25 -> 0 | C22: ='Other 1'!$K25 -> 0 | D22: ='Other 2'!$K25 -> 0 | E22: ='Other 3'!$K25 -> 0 | F22: ='Other 4'!$K25 -> 0 | G22: ='Other 5'!$K25 -> 0 | H22: ='Other 6'!$K25 -> 0 | I22: ='Other 7'!$K25 -> 0 | J22: ='Other 8'!$K25 -> 0 | K22: ='Other 9'!$K25 -> 0 | L22: =SUM(B22:K22) -> 0
A23: =EOMONTH(A22,0)+1 -> 2014-12-01 | B23: ='Main Award'!$K26 -> 0 | C23: ='Other 1'!$K26 -> 0 | D23: ='Other 2'!$K26 -> 0 | E23: ='Other 3'!$K26 -> 0 | F23: ='Other 4'!$K26 -> 0 | G23: ='Other 5'!$K26 -> 0 | H23: ='Other 6'!$K26 -> 0 | I23: ='Other 7'!$K26 -> 0 | J23: ='Other 8'!$K26 -> 0 | K23: ='Other 9'!$K26 -> 0 | L23: 0
A24: 2015-01-01 | B24: ='Main Award'!$K27 -> 0 | C24: ='Other 1'!$K27 -> 0 | D24: ='Other 2'!$K27 -> 0 | E24: ='Other 3'!$K27 -> 0 | F24: ='Other 4'!$K27 -> 0 | G24: ='Other 5'!$K27 -> 0 | H24: ='Other 6'!$K27 -> 0 | I24: ='Other 7'!$K27 -> 0 | J24: ='Other 8'!$K27 -> 0 | K24: ='Other 9'!$K27 -> 0 | L24: 0
A25: 2015-02-01 | B25: ='Main Award'!$K28 -> 0 | C25: ='Other 1'!$K28 -> 0 | D25: ='Other 2'!$K28 -> 0 | E25: ='Other 3'!$K28 -> 0 | F25: ='Other 4'!$K28 -> 0 | G25: ='Other 5'!$K28 -> 0 | H25: ='Other 6'!$K28 -> 0 | I25: ='Other 7'!$K28 -> 0 | J25: ='Other 8'!$K28 -> 0 | K25: ='Other 9'!$K28 -> 0 | L25: 0
A26: 2015-03-01 | B26: ='Main Award'!$K29 -> 0 | C26: ='Other 1'!$K29 -> 0 | D26: ='Other 2'!$K29 -> 0 | E26: ='Other 3'!$K29 -> 0 | F26: ='Other 4'!$K29 -> 0 | G26: ='Other 5'!$K29 -> 0 | H26: ='Other 6'!$K29 -> 0 | I26: ='Other 7'!$K29 -> 0 | J26: ='Other 8'!$K29 -> 0 | K26: ='Other 9'!$K29 -> 0 | L26: 0
A27: 2015-04-01 | B27: ='Main Award'!$K30 -> 0 | C27: ='Other 1'!$K30 -> 0 | D27: ='Other 2'!$K30 -> 0 | E27: ='Other 3'!$K30 -> 0 | F27: ='Other 4'!$K30 -> 0 | G27: ='Other 5'!$K30 -> 0 | H27: ='Other 6'!$K30 -> 0 | I27: ='Other 7'!$K30 -> 0 | J27: ='Other 8'!$K30 -> 0 | K27: ='Other 9'!$K30 -> 0 | L27: 0
A28: 2015-05-01 | B28: ='Main Award'!$K31 -> 0 | C28: ='Other 1'!$K31 -> 0 | D28: ='Other 2'!$K31 -> 0 | E28: ='Other 3'!$K31 -> 0 | F28: ='Other 4'!$K31 -> 0 | G28: ='Other 5'!$K31 -> 0 | H28: ='Other 6'!$K31 -> 0 | I28: ='Other 7'!$K31 -> 0 | J28: ='Other 8'!$K31 -> 0 | K28: ='Other 9'!$K31 -> 0 | L28: 0
A29: 2015-06-01 | B29: ='Main Award'!$K32 -> 0 | C29: ='Other 1'!$K32 -> 0 | D29: ='Other 2'!$K32 -> 0 | E29: ='Other 3'!$K32 -> 0 | F29: ='Other 4'!$K32 -> 0 | G29: ='Other 5'!$K32 -> 0 | H29: ='Other 6'!$K32 -> 0 | I29: ='Other 7'!$K32 -> 0 | J29: ='Other 8'!$K32 -> 0 | K29: ='Other 9'!$K32 -> 0 | L29: 0
A30: 2015-07-01 | B30: ='Main Award'!$K33 -> 0 | C30: ='Other 1'!$K33 -> 0 | D30: ='Other 2'!$K33 -> 0 | E30: ='Other 3'!$K33 -> 0 | F30: ='Other 4'!$K33 -> 0 | G30: ='Other 5'!$K33 -> 0 | H30: ='Other 6'!$K33 -> 0 | I30: ='Other 7'!$K33 -> 0 | J30: ='Other 8'!$K33 -> 0 | K30: ='Other 9'!$K33 -> 0 | L30: 0
A31: 2015-08-01 | B31: ='Main Award'!$K34 -> 0 | C31: ='Other 1'!$K34 -> 0 | D31: ='Other 2'!$K34 -> 0 | E31: ='Other 3'!$K34 -> 0 | F31: ='Other 4'!$K34 -> 0 | G31: ='Other 5'!$K34 -> 0 | H31: ='Other 6'!$K34 -> 0 | I31: ='Other 7'!$K34 -> 0 | J31: ='Other 8'!$K34 -> 0 | K31: ='Other 9'!$K34 -> 0 | L31: 0
A32: 2015-09-01 | B32: ='Main Award'!$K35 -> 0 | C32: ='Other 1'!$K35 -> 0 | D32: ='Other 2'!$K35 -> 0 | E32: ='Other 3'!$K35 -> 0 | F32: ='Other 4'!$K35 -> 0 | G32: ='Other 5'!$K35 -> 0 | H32: ='Other 6'!$K35 -> 0 | I32: ='Other 7'!$K35 -> 0 | J32: ='Other 8'!$K35 -> 0 | K32: ='Other 9'!$K35 -> 0 | L32: 0
A33: Total | B33: =SUM(B21:B32) -> 0 | C33: 0 | D33: 0 | E33: 0 | F33: 0 | G33: 0 | H33: 0 | I33: 0 | J33: 0 | K33: 0 | L33: 0
A35: =EOMONTH(A32,0)+1 -> 2015-10-01 | B35: ='Main Award'!$K38 -> 0 | C35: ='Other 1'!$K38 -> 0 | D35: ='Other 2'!$K38 -> 0 | E35: ='Other 3'!$K38 -> 0 | F35: ='Other 4'!$K38 -> 0 | G35: ='Other 5'!$K38 -> 0 | H35: ='Other 6'!$K38 -> 0 | I35: ='Other 7'!$K38 -> 0 | J35: ='Other 8'!$K38 -> 0 | K35: ='Other 9'!$K38 -> 0 | L35: =SUM(B35:K35) -> 0
A36: =EOMONTH(A35,0)+1 -> 2015-11-01 | B36: ='Main Award'!$K39 -> 0 | C36: ='Other 1'!$K39 -> 0 | D36: ='Other 2'!$K39 -> 0 | E36: ='Other 3'!$K39 -> 0 | F36: ='Other 4'!$K39 -> 0 | G36: ='Other 5'!$K39 -> 0 | H36: ='Other 6'!$K39 -> 0 | I36: ='Other 7'!$K39 -> 0 | J36: ='Other 8'!$K39 -> 0 | K36: ='Other 9'!$K39 -> 0 | L36: =SUM(B36:K36) -> 0
A37: =EOMONTH(A36,0)+1 -> 2015-12-01 | B37: ='Main Award'!$K40 -> 0 | C37: ='Other 1'!$K40 -> 0 | D37: ='Other 2'!$K40 -> 0 | E37: ='Other 3'!$K40 -> 0 | F37: ='Other 4'!$K40 -> 0 | G37: ='Other 5'!$K40 -> 0 | H37: ='Other 6'!$K40 -> 0 | I37: ='Other 7'!$K40 -> 0 | J37: ='Other 8'!$K40 -> 0 | K37: ='Other 9'!$K40 -> 0 | L37: 0
A38: 2016-01-01 | B38: ='Main Award'!$K41 -> 0 | C38: ='Other 1'!$K41 -> 0 | D38: ='Other 2'!$K41 -> 0 | E38: ='Other 3'!$K41 -> 0 | F38: ='Other 4'!$K41 -> 0 | G38: ='Other 5'!$K41 -> 0 | H38: ='Other 6'!$K41 -> 0 | I38: ='Other 7'!$K41 -> 0 | J38: ='Other 8'!$K41 -> 0 | K38: ='Other 9'!$K41 -> 0 | L38: 0
A39: 2016-02-01 | B39: ='Main Award'!$K42 -> 0 | C39: ='Other 1'!$K42 -> 0 | D39: ='Other 2'!$K42 -> 0 | E39: ='Other 3'!$K42 -> 0 | F39: ='Other 4'!$K42 -> 0 | G39: ='Other 5'!$K42 -> 0 | H39: ='Other 6'!$K42 -> 0 | I39: ='Other 7'!$K42 -> 0 | J39: ='Other 8'!$K42 -> 0 | K39: ='Other 9'!$K42 -> 0 | L39: 0
A40: 2016-03-01 | B40: ='Main Award'!$K43 -> 0 | C40: ='Other 1'!$K43 -> 0 | D40: ='Other 2'!$K43 -> 0 | E40: ='Other 3'!$K43 -> 0 | F40: ='Other 4'!$K43 -> 0 | G40: ='Other 5'!$K43 -> 0 | H40: ='Other 6'!$K43 -> 0 | I40: ='Other 7'!$K43 -> 0 | J40: ='Other 8'!$K43 -> 0 | K40: ='Other 9'!$K43 -> 0 | L40: 0
A41: 2016-04-01 | B41: ='Main Award'!$K44 -> 0 | C41: ='Other 1'!$K44 -> 0 | D41: ='Other 2'!$K44 -> 0 | E41: ='Other 3'!$K44 -> 0 | F41: ='Other 4'!$K44 -> 0 | G41: ='Other 5'!$K44 -> 0 | H41: ='Other 6'!$K44 -> 0 | I41: ='Other 7'!$K44 -> 0 | J41: ='Other 8'!$K44 -> 0 | K41: ='Other 9'!$K44 -> 0 | L41: 0
A42: 2016-05-01 | B42: ='Main Award'!$K45 -> 0 | C42: ='Other 1'!$K45 -> 0 | D42: ='Other 2'!$K45 -> 0 | E42: ='Other 3'!$K45 -> 0 | F42: ='Other 4'!$K45 -> 0 | G42: ='Other 5'!$K45 -> 0 | H42: ='Other 6'!$K45 -> 0 | I42: ='Other 7'!$K45 -> 0 | J42: ='Other 8'!$K45 -> 0 | K42: ='Other 9'!$K45 -> 0 | L42: 0
A43: 2016-06-01 | B43: ='Main Award'!$K46 -> 0 | C43: ='Other 1'!$K46 -> 0 | D43: ='Other 2'!$K46 -> 0 | E43: ='Other 3'!$K46 -> 0 | F43: ='Other 4'!$K46 -> 0 | G43: ='Other 5'!$K46 -> 0 | H43: ='Other 6'!$K46 -> 0 | I43: ='Other 7'!$K46 -> 0 | J43: ='Other 8'!$K46 -> 0 | K43: ='Other 9'!$K46 -> 0 | L43: 0
A44: 2016-07-01 | B44: ='Main Award'!$K47 -> 0 | C44: ='Other 1'!$K47 -> 0 | D44: ='Other 2'!$K47 -> 0 | E44: ='Other 3'!$K47 -> 0 | F44: ='Other 4'!$K47 -> 0 | G44: ='Other 5'!$K47 -> 0 | H44: ='Other 6'!$K47 -> 0 | I44: ='Other 7'!$K47 -> 0 | J44: ='Other 8'!$K47 -> 0 | K44: ='Other 9'!$K47 -> 0 | L44: 0
A45: 2016-08-01 | B45: ='Main Award'!$K48 -> 0 | C45: ='Other 1'!$K48 -> 0 | D45: ='Other 2'!$K48 -> 0 | E45: ='Other 3'!$K48 -> 0 | F45: ='Other 4'!$K48 -> 0 | G45: ='Other 5'!$K48 -> 0 | H45: ='Other 6'!$K48 -> 0 | I45: ='Other 7'!$K48 -> 0 | J45: ='Other 8'!$K48 -> 0 | K45: ='Other 9'!$K48 -> 0 | L45: 0
A46: 2016-09-01 | B46: ='Main Award'!$K49 -> 0 | C46: ='Other 1'!$K49 -> 0 | D46: ='Other 2'!$K49 -> 0 | E46: ='Other 3'!$K49 -> 0 | F46: ='Other 4'!$K49 -> 0 | G46: ='Other 5'!$K49 -> 0 | H46: ='Other 6'!$K49 -> 0 | I46: ='Other 7'!$K49 -> 0 | J46: ='Other 8'!$K49 -> 0 | K46: ='Other 9'!$K49 -> 0 | L46: 0
A47: Total | B47: =SUM(B35:B46) -> 0 | C47: 0 | D47: 0 | E47: 0 | F47: 0 | G47: 0 | H47: 0 | I47: 0 | J47: 0 | K47: 0 | L47: 0
A49: =EOMONTH(A46,0)+1 -> 2016-10-01 | B49: ='Main Award'!$K52 -> 0 | C49: ='Other 1'!$K52 -> 0 | D49: ='Other 2'!$K52 -> 0 | E49: ='Other 3'!$K52 -> 0 | F49: ='Other 4'!$K52 -> 0 | G49: ='Other 5'!$K52 -> 0 | H49: ='Other 6'!$K52 -> 0 | I49: ='Other 7'!$K52 -> 0 | J49: ='Other 8'!$K52 -> 0 | K49: ='Other 9'!$K52 -> 0 | L49: =SUM(B49:K49) -> 0
A50: =EOMONTH(A49,0)+1 -> 2016-11-01 | B50: ='Main Award'!$K53 -> 0 | C50: ='Other 1'!$K53 -> 0 | D50: ='Other 2'!$K53 -> 0 | E50: ='Other 3'!$K53 -> 0 | F50: ='Other 4'!$K53 -> 0 | G50: ='Other 5'!$K53 -> 0 | H50: ='Other 6'!$K53 -> 0 | I50: ='Other 7'!$K53 -> 0 | J50: ='Other 8'!$K53 -> 0 | K50: ='Other 9'!$K53 -> 0 | L50: =SUM(B50:K50) -> 0
A51: =EOMONTH(A50,0)+1 -> 2016-12-01 | B51: ='Main Award'!$K54 -> 0 | C51: ='Other 1'!$K54 -> 0 | D51: ='Other 2'!$K54 -> 0 | E51: ='Other 3'!$K54 -> 0 | F51: ='Other 4'!$K54 -> 0 | G51: ='Other 5'!$K54 -> 0 | H51: ='Other 6'!$K54 -> 0 | I51: ='Other 7'!$K54 -> 0 | J51: ='Other 8'!$K54 -> 0 | K51: ='Other 9'!$K54 -> 0 | L51: 0
A52: 2017-01-01 | B52: ='Main Award'!$K55 -> 0 | C52: ='Other 1'!$K55 -> 0 | D52: ='Other 2'!$K55 -> 0 | E52: ='Other 3'!$K55 -> 0 | F52: ='Other 4'!$K55 -> 0 | G52: ='Other 5'!$K55 -> 0 | H52: ='Other 6'!$K55 -> 0 | I52: ='Other 7'!$K55 -> 0 | J52: ='Other 8'!$K55 -> 0 | K52: ='Other 9'!$K55 -> 0 | L52: 0
A53: 2017-02-01 | B53: ='Main Award'!$K56 -> 0 | C53: ='Other 1'!$K56 -> 0 | D53: ='Other 2'!$K56 -> 0 | E53: ='Other 3'!$K56 -> 0 | F53: ='Other 4'!$K56 -> 0 | G53: ='Other 5'!$K56 -> 0 | H53: ='Other 6'!$K56 -> 0 | I53: ='Other 7'!$K56 -> 0 | J53: ='Other 8'!$K56 -> 0 | K53: ='Other 9'!$K56 -> 0 | L53: 0
A54: 2017-03-01 | B54: ='Main Award'!$K57 -> 0 | C54: ='Other 1'!$K57 -> 0 | D54: ='Other 2'!$K57 -> 0 | E54: ='Other 3'!$K57 -> 0 | F54: ='Other 4'!$K57 -> 0 | G54: ='Other 5'!$K57 -> 0 | H54: ='Other 6'!$K57 -> 0 | I54: ='Other 7'!$K57 -> 0 | J54: ='Other 8'!$K57 -> 0 | K54: ='Other 9'!$K57 -> 0 | L54: 0
A55: 2017-04-01 | B55: ='Main Award'!$K58 -> 0 | C55: ='Other 1'!$K58 -> 0 | D55: ='Other 2'!$K58 -> 0 | E55: ='Other 3'!$K58 -> 0 | F55: ='Other 4'!$K58 -> 0 | G55: ='Other 5'!$K58 -> 0 | H55: ='Other 6'!$K58 -> 0 | I55: ='Other 7'!$K58 -> 0 | J55: ='Other 8'!$K58 -> 0 | K55: ='Other 9'!$K58 -> 0 | L55: 0
A56: 2017-05-01 | B56: ='Main Award'!$K59 -> 0 | C56: ='Other 1'!$K59 -> 0 | D56: ='Other 2'!$K59 -> 0 | E56: ='Other 3'!$K59 -> 0 | F56: ='Other 4'!$K59 -> 0 | G56: ='Other 5'!$K59 -> 0 | H56: ='Other 6'!$K59 -> 0 | I56: ='Other 7'!$K59 -> 0 | J56: ='Other 8'!$K59 -> 0 | K56: ='Other 9'!$K59 -> 0 | L56: 0
A57: 2017-06-01 | B57: ='Main Award'!$K60 -> 0 | C57: ='Other 1'!$K60 -> 0 | D57: ='Other 2'!$K60 -> 0 | E57: ='Other 3'!$K60 -> 0 | F57: ='Other 4'!$K60 -> 0 | G57: ='Other 5'!$K60 -> 0 | H57: ='Other 6'!$K60 -> 0 | I57: ='Other 7'!$K60 -> 0 | J57: ='Other 8'!$K60 -> 0 | K57: ='Other 9'!$K60 -> 0 | L57: 0
A58: 2017-07-01 | B58: ='Main Award'!$K61 -> 0 | C58: ='Other 1'!$K61 -> 0 | D58: ='Other 2'!$K61 -> 0 | E58: ='Other 3'!$K61 -> 0 | F58: ='Other 4'!$K61 -> 0 | G58: ='Other 5'!$K61 -> 0 | H58: ='Other 6'!$K61 -> 0 | I58: ='Other 7'!$K61 -> 0 | J58: ='Other 8'!$K61 -> 0 | K58: ='Other 9'!$K61 -> 0 | L58: 0
A59: 2017-08-01 | B59: ='Main Award'!$K62 -> 0 | C59: ='Other 1'!$K62 -> 0 | D59: ='Other 2'!$K62 -> 0 | E59: ='Other 3'!$K62 -> 0 | F59: ='Other 4'!$K62 -> 0 | G59: ='Other 5'!$K62 -> 0 | H59: ='Other 6'!$K62 -> 0 | I59: ='Other 7'!$K62 -> 0 | J59: ='Other 8'!$K62 -> 0 | K59: ='Other 9'!$K62 -> 0 | L59: 0
A60: 2017-09-01 | B60: ='Main Award'!$K63 -> 0 | C60: ='Other 1'!$K63 -> 0 | D60: ='Other 2'!$K63 -> 0 | E60: ='Other 3'!$K63 -> 0 | F60: ='Other 4'!$K63 -> 0 | G60: ='Other 5'!$K63 -> 0 | H60: ='Other 6'!$K63 -> 0 | I60: ='Other 7'!$K63 -> 0 | J60: ='Other 8'!$K63 -> 0 | K60: ='Other 9'!$K63 -> 0 | L60: 0
A61: Total | B61: =SUM(B49:B60) -> 0 | C61: 0 | D61: 0 | E61: 0 | F61: 0 | G61: 0 | H61: 0 | I61: 0 | J61: 0 | K61: 0 | L61: 0
A63: =EOMONTH(A60,0)+1 -> 2017-10-01 | B63: ='Main Award'!$K66 -> 0 | C63: ='Other 1'!$K66 -> 0 | D63: ='Other 2'!$K66 -> 0 | E63: ='Other 3'!$K66 -> 0 | F63: ='Other 4'!$K66 -> 0 | G63: ='Other 5'!$K66 -> 0 | H63: ='Other 6'!$K66 -> 0 | I63: ='Other 7'!$K66 -> 0 | J63: ='Other 8'!$K66 -> 0 | K63: ='Other 9'!$K66 -> 0 | L63: =SUM(B63:K63) -> 0
A64: =EOMONTH(A63,0)+1 -> 2017-11-01 | B64: ='Main Award'!$K67 -> 0 | C64: ='Other 1'!$K67 -> 0 | D64: ='Other 2'!$K67 -> 0 | E64: ='Other 3'!$K67 -> 0 | F64: ='Other 4'!$K67 -> 0 | G64: ='Other 5'!$K67 -> 0 | H64: ='Other 6'!$K67 -> 0 | I64: ='Other 7'!$K67 -> 0 | J64: ='Other 8'!$K67 -> 0 | K64: ='Other 9'!$K67 -> 0 | L64: =SUM(B64:K64) -> 0
A65: =EOMONTH(A64,0)+1 -> 2017-12-01 | B65: ='Main Award'!$K68 -> 0 | C65: ='Other 1'!$K68 -> 0 | D65: ='Other 2'!$K68 -> 0 | E65: ='Other 3'!$K68 -> 0 | F65: ='Other 4'!$K68 -> 0 | G65: ='Other 5'!$K68 -> 0 | H65: ='Other 6'!$K68 -> 0 | I65: ='Other 7'!$K68 -> 0 | J65: ='Other 8'!$K68 -> 0 | K65: ='Other 9'!$K68 -> 0 | L65: 0
A66: 2018-01-01 | B66: ='Main Award'!$K69 -> 0 | C66: ='Other 1'!$K69 -> 0 | D66: ='Other 2'!$K69 -> 0 | E66: ='Other 3'!$K69 -> 0 | F66: ='Other 4'!$K69 -> 0 | G66: ='Other 5'!$K69 -> 0 | H66: ='Other 6'!$K69 -> 0 | I66: ='Other 7'!$K69 -> 0 | J66: ='Other 8'!$K69 -> 0 | K66: ='Other 9'!$K69 -> 0 | L66: 0
A67: 2018-02-01 | B67: ='Main Award'!$K70 -> 0 | C67: ='Other 1'!$K70 -> 0 | D67: ='Other 2'!$K70 -> 0 | E67: ='Other 3'!$K70 -> 0 | F67: ='Other 4'!$K70 -> 0 | G67: ='Other 5'!$K70 -> 0 | H67: ='Other 6'!$K70 -> 0 | I67: ='Other 7'!$K70 -> 0 | J67: ='Other 8'!$K70 -> 0 | K67: ='Other 9'!$K70 -> 0 | L67: 0
A68: 2018-03-01 | B68: ='Main Award'!$K71 -> 0 | C68: ='Other 1'!$K71 -> 0 | D68: ='Other 2'!$K71 -> 0 | E68: ='Other 3'!$K71 -> 0 | F68: ='Other 4'!$K71 -> 0 | G68: ='Other 5'!$K71 -> 0 | H68: ='Other 6'!$K71 -> 0 | I68: ='Other 7'!$K71 -> 0 | J68: ='Other 8'!$K71 -> 0 | K68: ='Other 9'!$K71 -> 0 | L68: 0
A69: 2018-04-01 | B69: ='Main Award'!$K72 -> 0 | C69: ='Other 1'!$K72 -> 0 | D69: ='Other 2'!$K72 -> 0 | E69: ='Other 3'!$K72 -> 0 | F69: ='Other 4'!$K72 -> 0 | G69: ='Other 5'!$K72 -> 0 | H69: ='Other 6'!$K72 -> 0 | I69: ='Other 7'!$K72 -> 0 | J69: ='Other 8'!$K72 -> 0 | K69: ='Other 9'!$K72 -> 0 | L69: 0
A70: 2018-05-01 | B70: ='Main Award'!$K73 -> 0 | C70: ='Other 1'!$K73 -> 0 | D70: ='Other 2'!$K73 -> 0 | E70: ='Other 3'!$K73 -> 0 | F70: ='Other 4'!$K73 -> 0 | G70: ='Other 5'!$K73 -> 0 | H70: ='Other 6'!$K73 -> 0 | I70: ='Other 7'!$K73 -> 0 | J70: ='Other 8'!$K73 -> 0 | K70: ='Other 9'!$K73 -> 0 | L70: 0
A71: 2018-06-01 | B71: ='Main Award'!$K74 -> 0 | C71: ='Other 1'!$K74 -> 0 | D71: ='Other 2'!$K74 -> 0 | E71: ='Other 3'!$K74 -> 0 | F71: ='Other 4'!$K74 -> 0 | G71: ='Other 5'!$K74 -> 0 | H71: ='Other 6'!$K74 -> 0 | I71: ='Other 7'!$K74 -> 0 | J71: ='Other 8'!$K74 -> 0 | K71: ='Other 9'!$K74 -> 0 | L71: 0
A72: 2018-07-01 | B72: ='Main Award'!$K75 -> 0 | C72: ='Other 1'!$K75 -> 0 | D72: ='Other 2'!$K75 -> 0 | E72: ='Other 3'!$K75 -> 0 | F72: ='Other 4'!$K75 -> 0 | G72: ='Other 5'!$K75 -> 0 | H72: ='Other 6'!$K75 -> 0 | I72: ='Other 7'!$K75 -> 0 | J72: ='Other 8'!$K75 -> 0 | K72: ='Other 9'!$K75 -> 0 | L72: 0
A73: 2018-08-01 | B73: ='Main Award'!$K76 -> 0 | C73: ='Other 1'!$K76 -> 0 | D73: ='Other 2'!$K76 -> 0 | E73: ='Other 3'!$K76 -> 0 | F73: ='Other 4'!$K76 -> 0 | G73: ='Other 5'!$K76 -> 0 | H73: ='Other 6'!$K76 -> 0 | I73: ='Other 7'!$K76 -> 0 | J73: ='Other 8'!$K76 -> 0 | K73: ='Other 9'!$K76 -> 0 | L73: 0
A74: 2018-09-01 | B74: ='Main Award'!$K77 -> 0 | C74: ='Other 1'!$K77 -> 0 | D74: ='Other 2'!$K77 -> 0 | E74: ='Other 3'!$K77 -> 0 | F74: ='Other 4'!$K77 -> 0 | G74: ='Other 5'!$K77 -> 0 | H74: ='Other 6'!$K77 -> 0 | I74: ='Other 7'!$K77 -> 0 | J74: ='Other 8'!$K77 -> 0 | K74: ='Other 9'!$K77 -> 0 | L74: 0
A75: Total | B75: =SUM(B63:B74) -> 0 | C75: 0 | D75: 0 | E75: 0 | F75: 0 | G75: 0 | H75: 0 | I75: 0 | J75: 0 | K75: 0 | L75: 0
A77: Grand Total | B77: =B19+B33+B47+B61+B75 -> 214 | C77: 201 | D77: 13 | E77: 0 | F77: 0 | G77: 0 | H77: 0 | I77: 0 | J77: 0 | K77: 0 | L77: 428

Sheet Summary of FTE%
A1: Summary of FTE %
A2: *The 'Summary of FTE%' worksheet summarises the proportion of time (FTE%) spent across multiple projects, activities or work packages (see section 8 in the Instructions worksheet for further information)
A3: Funding Source: | B3: =IF('Main Award'!$B$2="Select Funding Source"," ",'Main Award'!$B$2) -> OST RESEARCH COUNCIL | C3: =IF('Other 1'!$B$2="Select Funding Source"," ",'Other 1'!$B$2) -> FP7 EU COMMISSION | D3: =IF('Other 2'!$B$2="Select Funding Source"," ",'Other 2'!$B$2) -> FP7 EU COMMISSION | E3: =IF('Other 3'!$B$2="Select Funding Source"," ",'Other 3'!$B$2) ->  | F3: =IF('Other 4'!$B$2="Select Funding Source"," ",'Other 4'!$B$2) ->  | G3: =IF('Other 5'!$B$2="Select Funding Source"," ",'Other 5'!$B$2) ->  | H3: =IF('Other 6'!$B$2="Select Funding Source"," ",'Other 6'!$B$2) ->  | I3: =IF('Other 7'!$B$2="Select Funding Source"," ",'Other 7'!$B$2) ->  | J3: =IF('Other 8'!$B$2="Select Funding Source"," ",'Other 8'!$B$2) ->  | K3: =IF('Other 9'!$B$2="Select Funding Source"," ",'Other 9'!$B$2) -> 
A4: Award / Project Number: | B4: =IF('Main Award'!$B$3="Enter Award/Project Number"," ",'Main Award'!$B$3) -> PHHE P44300 | C4: =IF('Other 1'!$B$3="Enter Award/Project Number"," ",'Other 1'!$B$3) -> PHHE P32997 | D4: =IF('Other 2'!$B$3="Enter Award/Project Number"," ",'Other 2'!$B$3) -> PHHE P32997 | E4: =IF('Other 3'!$B$3="Enter Award/Project Number"," ",'Other 3'!$B$3) ->  | F4: =IF('Other 4'!$B$3="Enter Award/Project Number"," ",'Other 4'!$B$3) ->  | G4: =IF('Other 5'!$B$3="Enter Award/Project Number"," ",'Other 5'!$B$3) ->  | H4: =IF('Other 6'!$B$3="Enter Award/Project Number"," ",'Other 6'!$B$3) ->  | I4: =IF('Other 7'!$B$3="Enter Award/Project Number"," ",'Other 7'!$B$3) ->  | J4: =IF('Other 8'!$B$3="Enter Award/Project Number"," ",'Other 8'!$B$3) ->  | K4: =IF('Other 9'!$B$3="Enter Award/Project Number"," ",'Other 9'!$B$3) -> 
A5: Short Title: | B5: =IF('Main Award'!$B$4="Enter Acronym/Short Title"," ",'Main Award'!$B$4) -> GridPP Tranche II | C5: =IF('Other 1'!$B$4="Enter Acronym/Short Title"," ",'Other 1'!$B$4) -> EGI Research | D5: =IF('Other 2'!$B$4="Enter Acronym/Short Title"," ",'Other 2'!$B$4) -> EGI Coordination | E5: =IF('Other 3'!$B$4="Enter Acronym/Short Title"," ",'Other 3'!$B$4) ->  | F5: =IF('Other 4'!$B$4="Enter Acronym/Short Title"," ",'Other 4'!$B$4) ->  | G5: =IF('Other 5'!$B$4="Enter Acronym/Short Title"," ",'Other 5'!$B$4) ->  | H5: =IF('Other 6'!$B$4="Enter Acronym/Short Title"," ",'Other 6'!$B$4) ->  | I5: =IF('Other 7'!$B$4="Enter Acronym/Short Title"," ",'Other 7'!$B$4) ->  | J5: =IF('Other 8'!$B$4="Enter Acronym/Short Title"," ",'Other 8'!$B$4) ->  | K5: =IF('Other 9'!$B$4="Enter Acronym/Short Title"," ",'Other 9'!$B$4) -> 
A7: ='Employee Details'!$L$9 -> 2013-10-01 | B7: =IF('Summary of Hours'!B7=0,0,('Summary of Hours'!B7/'Summary of Hours'!$L7)) -> 0.5 | C7: =IF('Summary of Hours'!C7=0,0,('Summary of Hours'!C7/'Summary of Hours'!$L7)) -> 0.4695121951 | D7: =IF('Summary of Hours'!D7=0,0,('Summary of Hours'!D7/'Summary of Hours'!$L7)) -> 0.03048780488 | E7: =IF('Summary of Hours'!E7=0,0,('Summary of Hours'!E7/'Summary of Hours'!$L7)) -> 0 | F7: =IF('Summary of Hours'!F7=0,0,('Summary of Hours'!F7/'Summary of Hours'!$L7)) -> 0 | G7: =IF('Summary of Hours'!G7=0,0,('Summary of Hours'!G7/'Summary of Hours'!$L7)) -> 0 | H7: =IF('Summary of Hours'!H7=0,0,('Summary of Hours'!H7/'Summary of Hours'!$L7)) -> 0 | I7: =IF('Summary of Hours'!I7=0,0,('Summary of Hours'!I7/'Summary of Hours'!$L7)) -> 0 | J7: =IF('Summary of Hours'!J7=0,0,('Summary of Hours'!J7/'Summary of Hours'!$L7)) -> 0 | K7: =IF('Summary of Hours'!K7=0,0,('Summary of Hours'!K7/'Summary of Hours'!$L7)) -> 0 | L7: =SUM(B7:K7) -> 1
A8: =EOMONTH(A7,0)+1 -> 2013-11-01 | B8: =IF('Summary of Hours'!B8=0,0,('Summary of Hours'!B8/'Summary of Hours'!$L8)) -> 0.501607717 | C8: =IF('Summary of Hours'!C8=0,0,('Summary of Hours'!C8/'Summary of Hours'!$L8)) -> 0.4694533762 | D8: =IF('Summary of Hours'!D8=0,0,('Summary of Hours'!D8/'Summary of Hours'!$L8)) -> 0.02893890675 | E8: =IF('Summary of Hours'!E8=0,0,('Summary of Hours'!E8/'Summary of Hours'!$L8)) -> 0 | F8: =IF('Summary of Hours'!F8=0,0,('Summary of Hours'!F8/'Summary of Hours'!$L8)) -> 0 | G8: =IF('Summary of Hours'!G8=0,0,('Summary of Hours'!G8/'Summary of Hours'!$L8)) -> 0 | H8: =IF('Summary of Hours'!H8=0,0,('Summary of Hours'!H8/'Summary of Hours'!$L8)) -> 0 | I8: =IF('Summary of Hours'!I8=0,0,('Summary of Hours'!I8/'Summary of Hours'!$L8)) -> 0 | J8: =IF('Summary of Hours'!J8=0,0,('Summary of Hours'!J8/'Summary of Hours'!$L8)) -> 0 | K8: =IF('Summary of Hours'!K8=0,0,('Summary of Hours'!K8/'Summary of Hours'!$L8)) -> 0 | L8: =SUM(B8:K8) -> 1
A9: =EOMONTH(A8,0)+1 -> 2013-12-01 | B9: =IF('Summary of Hours'!B9=0,0,('Summary of Hours'!B9/'Summary of Hours'!$L9)) -> 0.4976958525 | C9: =IF('Summary of Hours'!C9=0,0,('Summary of Hours'!C9/'Summary of Hours'!$L9)) -> 0.4700460829 | D9: =IF('Summary of Hours'!D9=0,0,('Summary of Hours'!D9/'Summary of Hours'!$L9)) -> 0.03225806452 | E9: =IF('Summary of Hours'!E9=0,0,('Summary of Hours'!E9/'Summary of Hours'!$L9)) -> 0 | F9: =IF('Summary of Hours'!F9=0,0,('Summary of Hours'!F9/'Summary of Hours'!$L9)) -> 0 | G9: =IF('Summary of Hours'!G9=0,0,('Summary of Hours'!G9/'Summary of Hours'!$L9)) -> 0 | H9: =IF('Summary of Hours'!H9=0,0,('Summary of Hours'!H9/'Summary of Hours'!$L9)) -> 0 | I9: =IF('Summary of Hours'!I9=0,0,('Summary of Hours'!I9/'Summary of Hours'!$L9)) -> 0 | J9: =IF('Summary of Hours'!J9=0,0,('Summary of Hours'!J9/'Summary of Hours'!$L9)) -> 0 | K9: =IF('Summary of Hours'!K9=0,0,('Summary of Hours'!K9/'Summary of Hours'!$L9)) -> 0 | L9: 1
A10: 2014-01-01 | B10: =IF('Summary of Hours'!B10=0,0,('Summary of Hours'!B10/'Summary of Hours'!$L10)) -> 0 | C10: =IF('Summary of Hours'!C10=0,0,('Summary of Hours'!C10/'Summary of Hours'!$L10)) -> 0 | D10: =IF('Summary of Hours'!D10=0,0,('Summary of Hours'!D10/'Summary of Hours'!$L10)) -> 0 | E10: =IF('Summary of Hours'!E10=0,0,('Summary of Hours'!E10/'Summary of Hours'!$L10)) -> 0 | F10: =IF('Summary of Hours'!F10=0,0,('Summary of Hours'!F10/'Summary of Hours'!$L10)) -> 0 | G10: =IF('Summary of Hours'!G10=0,0,('Summary of Hours'!G10/'Summary of Hours'!$L10)) -> 0 | H10: =IF('Summary of Hours'!H10=0,0,('Summary of Hours'!H10/'Summary of Hours'!$L10)) -> 0 | I10: =IF('Summary of Hours'!I10=0,0,('Summary of Hours'!I10/'Summary of Hours'!$L10)) -> 0 | J10: =IF('Summary of Hours'!J10=0,0,('Summary of Hours'!J10/'Summary of Hours'!$L10)) -> 0 | K10: =IF('Summary of Hours'!K10=0,0,('Summary of Hours'!K10/'Summary of Hours'!$L10)) -> 0 | L10: 0
A11: 2014-02-01 | B11: =IF('Summary of Hours'!B11=0,0,('Summary of Hours'!B11/'Summary of Hours'!$L11)) -> 0 | C11: =IF('Summary of Hours'!C11=0,0,('Summary of Hours'!C11/'Summary of Hours'!$L11)) -> 0 | D11: =IF('Summary of Hours'!D11=0,0,('Summary of Hours'!D11/'Summary of Hours'!$L11)) -> 0 | E11: =IF('Summary of Hours'!E11=0,0,('Summary of Hours'!E11/'Summary of Hours'!$L11)) -> 0 | F11: =IF('Summary of Hours'!F11=0,0,('Summary of Hours'!F11/'Summary of Hours'!$L11)) -> 0 | G11: =IF('Summary of Hours'!G11=0,0,('Summary of Hours'!G11/'Summary of Hours'!$L11)) -> 0 | H11: =IF('Summary of Hours'!H11=0,0,('Summary of Hours'!H11/'Summary of Hours'!$L11)) -> 0 | I11: =IF('Summary of Hours'!I11=0,0,('Summary of Hours'!I11/'Summary of Hours'!$L11)) -> 0 | J11: =IF('Summary of Hours'!J11=0,0,('Summary of Hours'!J11/'Summary of Hours'!$L11)) -> 0 | K11: =IF('Summary of Hours'!K11=0,0,('Summary of Hours'!K11/'Summary of Hours'!$L11)) -> 0 | L11: 0
A12: 2014-03-01 | B12: =IF('Summary of Hours'!B12=0,0,('Summary of Hours'!B12/'Summary of Hours'!$L12)) -> 0 | C12: =IF('Summary of Hours'!C12=0,0,('Summary of Hours'!C12/'Summary of Hours'!$L12)) -> 0 | D12: =IF('Summary of Hours'!D12=0,0,('Summary of Hours'!D12/'Summary of Hours'!$L12)) -> 0 | E12: =IF('Summary of Hours'!E12=0,0,('Summary of Hours'!E12/'Summary of Hours'!$L12)) -> 0 | F12: =IF('Summary of Hours'!F12=0,0,('Summary of Hours'!F12/'Summary of Hours'!$L12)) -> 0 | G12: =IF('Summary of Hours'!G12=0,0,('Summary of Hours'!G12/'Summary of Hours'!$L12)) -> 0 | H12: =IF('Summary of Hours'!H12=0,0,('Summary of Hours'!H12/'Summary of Hours'!$L12)) -> 0 | I12: =IF('Summary of Hours'!I12=0,0,('Summary of Hours'!I12/'Summary of Hours'!$L12)) -> 0 | J12: =IF('Summary of Hours'!J12=0,0,('Summary of Hours'!J12/'Summary of Hours'!$L12)) -> 0 | K12: =IF('Summary of Hours'!K12=0,0,('Summary of Hours'!K12/'Summary of Hours'!$L12)) -> 0 | L12: 0
A13: 2014-04-01 | B13: =IF('Summary of Hours'!B13=0,0,('Summary of Hours'!B13/'Summary of Hours'!$L13)) -> 0 | C13: =IF('Summary of Hours'!C13=0,0,('Summary of Hours'!C13/'Summary of Hours'!$L13)) -> 0 | D13: =IF('Summary of Hours'!D13=0,0,('Summary of Hours'!D13/'Summary of Hours'!$L13)) -> 0 | E13: =IF('Summary of Hours'!E13=0,0,('Summary of Hours'!E13/'Summary of Hours'!$L13)) -> 0 | F13: =IF('Summary of Hours'!F13=0,0,('Summary of Hours'!F13/'Summary of Hours'!$L13)) -> 0 | G13: =IF('Summary of Hours'!G13=0,0,('Summary of Hours'!G13/'Summary of Hours'!$L13)) -> 0 | H13: =IF('Summary of Hours'!H13=0,0,('Summary of Hours'!H13/'Summary of Hours'!$L13)) -> 0 | I13: =IF('Summary of Hours'!I13=0,0,('Summary of Hours'!I13/'Summary of Hours'!$L13)) -> 0 | J13: =IF('Summary of Hours'!J13=0,0,('Summary of Hours'!J13/'Summary of Hours'!$L13)) -> 0 | K13: =IF('Summary of Hours'!K13=0,0,('Summary of Hours'!K13/'Summary of Hours'!$L13)) -> 0 | L13: 0
A14: 2014-05-01 | B14: =IF('Summary of Hours'!B14=0,0,('Summary of Hours'!B14/'Summary of Hours'!$L14)) -> 0 | C14: =IF('Summary of Hours'!C14=0,0,('Summary of Hours'!C14/'Summary of Hours'!$L14)) -> 0 | D14: =IF('Summary of Hours'!D14=0,0,('Summary of Hours'!D14/'Summary of Hours'!$L14)) -> 0 | E14: =IF('Summary of Hours'!E14=0,0,('Summary of Hours'!E14/'Summary of Hours'!$L14)) -> 0 | F14: =IF('Summary of Hours'!F14=0,0,('Summary of Hours'!F14/'Summary of Hours'!$L14)) -> 0 | G14: =IF('Summary of Hours'!G14=0,0,('Summary of Hours'!G14/'Summary of Hours'!$L14)) -> 0 | H14: =IF('Summary of Hours'!H14=0,0,('Summary of Hours'!H14/'Summary of Hours'!$L14)) -> 0 | I14: =IF('Summary of Hours'!I14=0,0,('Summary of Hours'!I14/'Summary of Hours'!$L14)) -> 0 | J14: =IF('Summary of Hours'!J14=0,0,('Summary of Hours'!J14/'Summary of Hours'!$L14)) -> 0 | K14: =IF('Summary of Hours'!K14=0,0,('Summary of Hours'!K14/'Summary of Hours'!$L14)) -> 0 | L14: 0
A15: 2014-06-01 | B15: =IF('Summary of Hours'!B15=0,0,('Summary of Hours'!B15/'Summary of Hours'!$L15)) -> 0 | C15: =IF('Summary of Hours'!C15=0,0,('Summary of Hours'!C15/'Summary of Hours'!$L15)) -> 0 | D15: =IF('Summary of Hours'!D15=0,0,('Summary of Hours'!D15/'Summary of Hours'!$L15)) -> 0 | E15: =IF('Summary of Hours'!E15=0,0,('Summary of Hours'!E15/'Summary of Hours'!$L15)) -> 0 | F15: =IF('Summary of Hours'!F15=0,0,('Summary of Hours'!F15/'Summary of Hours'!$L15)) -> 0 | G15: =IF('Summary of Hours'!G15=0,0,('Summary of Hours'!G15/'Summary of Hours'!$L15)) -> 0 | H15: =IF('Summary of Hours'!H15=0,0,('Summary of Hours'!H15/'Summary of Hours'!$L15)) -> 0 | I15: =IF('Summary of Hours'!I15=0,0,('Summary of Hours'!I15/'Summary of Hours'!$L15)) -> 0 | J15: =IF('Summary of Hours'!J15=0,0,('Summary of Hours'!J15/'Summary of Hours'!$L15)) -> 0 | K15: =IF('Summary of Hours'!K15=0,0,('Summary of Hours'!K15/'Summary of Hours'!$L15)) -> 0 | L15: 0
A16: 2014-07-01 | B16: =IF('Summary of Hours'!B16=0,0,('Summary of Hours'!B16/'Summary of Hours'!$L16)) -> 0 | C16: =IF('Summary of Hours'!C16=0,0,('Summary of Hours'!C16/'Summary of Hours'!$L16)) -> 0 | D16: =IF('Summary of Hours'!D16=0,0,('Summary of Hours'!D16/'Summary of Hours'!$L16)) -> 0 | E16: =IF('Summary of Hours'!E16=0,0,('Summary of Hours'!E16/'Summary of Hours'!$L16)) -> 0 | F16: =IF('Summary of Hours'!F16=0,0,('Summary of Hours'!F16/'Summary of Hours'!$L16)) -> 0 | G16: =IF('Summary of Hours'!G16=0,0,('Summary of Hours'!G16/'Summary of Hours'!$L16)) -> 0 | H16: =IF('Summary of Hours'!H16=0,0,('Summary of Hours'!H16/'Summary of Hours'!$L16)) -> 0 | I16: =IF('Summary of Hours'!I16=0,0,('Summary of Hours'!I16/'Summary of Hours'!$L16)) -> 0 | J16: =IF('Summary of Hours'!J16=0,0,('Summary of Hours'!J16/'Summary of Hours'!$L16)) -> 0 | K16: =IF('Summary of Hours'!K16=0,0,('Summary of Hours'!K16/'Summary of Hours'!$L16)) -> 0 | L16: 0
A17: 2014-08-01 | B17: =IF('Summary of Hours'!B17=0,0,('Summary of Hours'!B17/'Summary of Hours'!$L17)) -> 0 | C17: =IF('Summary of Hours'!C17=0,0,('Summary of Hours'!C17/'Summary of Hours'!$L17)) -> 0 | D17: =IF('Summary of Hours'!D17=0,0,('Summary of Hours'!D17/'Summary of Hours'!$L17)) -> 0 | E17: =IF('Summary of Hours'!E17=0,0,('Summary of Hours'!E17/'Summary of Hours'!$L17)) -> 0 | F17: =IF('Summary of Hours'!F17=0,0,('Summary of Hours'!F17/'Summary of Hours'!$L17)) -> 0 | G17: =IF('Summary of Hours'!G17=0,0,('Summary of Hours'!G17/'Summary of Hours'!$L17)) -> 0 | H17: =IF('Summary of Hours'!H17=0,0,('Summary of Hours'!H17/'Summary of Hours'!$L17)) -> 0 | I17: =IF('Summary of Hours'!I17=0,0,('Summary of Hours'!I17/'Summary of Hours'!$L17)) -> 0 | J17: =IF('Summary of Hours'!J17=0,0,('Summary of Hours'!J17/'Summary of Hours'!$L17)) -> 0 | K17: =IF('Summary of Hours'!K17=0,0,('Summary of Hours'!K17/'Summary of Hours'!$L17)) -> 0 | L17: 0
A18: 2014-09-01 | B18: =IF('Summary of Hours'!B18=0,0,('Summary of Hours'!B18/'Summary of Hours'!$L18)) -> 0 | C18: =IF('Summary of Hours'!C18=0,0,('Summary of Hours'!C18/'Summary of Hours'!$L18)) -> 0 | D18: =IF('Summary of Hours'!D18=0,0,('Summary of Hours'!D18/'Summary of Hours'!$L18)) -> 0 | E18: =IF('Summary of Hours'!E18=0,0,('Summary of Hours'!E18/'Summary of Hours'!$L18)) -> 0 | F18: =IF('Summary of Hours'!F18=0,0,('Summary of Hours'!F18/'Summary of Hours'!$L18)) -> 0 | G18: =IF('Summary of Hours'!G18=0,0,('Summary of Hours'!G18/'Summary of Hours'!$L18)) -> 0 | H18: =IF('Summary of Hours'!H18=0,0,('Summary of Hours'!H18/'Summary of Hours'!$L18)) -> 0 | I18: =IF('Summary of Hours'!I18=0,0,('Summary of Hours'!I18/'Summary of Hours'!$L18)) -> 0 | J18: =IF('Summary of Hours'!J18=0,0,('Summary of Hours'!J18/'Summary of Hours'!$L18)) -> 0 | K18: =IF('Summary of Hours'!K18=0,0,('Summary of Hours'!K18/'Summary of Hours'!$L18)) -> 0 | L18: 0
A19: Charge | B19: =IF('Summary of Hours'!B19=0,0,('Summary of Hours'!B19/(SUMIF('Summary of Hours'!B7:B18,">0",'Summary of Hours'!$L7:$L18)))) -> 0.5 | C19: =IF('Summary of Hours'!C19=0,0,('Summary of Hours'!C19/(SUMIF('Summary of Hours'!C7:C18,">0",'Summary of Hours'!$L7:$L18)))) -> 0.4696261682 | D19: =IF('Summary of Hours'!D19=0,0,('Summary of Hours'!D19/(SUMIF('Summary of Hours'!D7:D18,">0",'Summary of Hours'!$L7:$L18)))) -> 0.03037383178 | E19: =IF('Summary of Hours'!E19=0,0,('Summary of Hours'!E19/(SUMIF('Summary of Hours'!E7:E18,">0",'Summary of Hours'!$L7:$L18)))) -> 0 | F19: =IF('Summary of Hours'!F19=0,0,('Summary of Hours'!F19/(SUMIF('Summary of Hours'!F7:F18,">0",'Summary of Hours'!$L7:$L18)))) -> 0 | G19: =IF('Summary of Hours'!G19=0,0,('Summary of Hours'!G19/(SUMIF('Summary of Hours'!G7:G18,">0",'Summary of Hours'!$L7:$L18)))) -> 0 | H19: =IF('Summary of Hours'!H19=0,0,('Summary of Hours'!H19/(SUMIF('Summary of Hours'!H7:H18,">0",'Summary of Hours'!$L7:$L18)))) -> 0 | I19: =IF('Summary of Hours'!I19=0,0,('Summary of Hours'!I19/(SUMIF('Summary of Hours'!I7:I18,">0",'Summary of Hours'!$L7:$L18)))) -> 0 | J19: =IF('Summary of Hours'!J19=0,0,('Summary of Hours'!J19/(SUMIF('Summary of Hours'!J7:J18,">0",'Summary of Hours'!$L7:$L18)))) -> 0 | K19: =IF('Summary of Hours'!K19=0,0,('Summary of Hours'!K19/(SUMIF('Summary of Hours'!K7:K18,">0",'Summary of Hours'!$L7:$L18)))) -> 0
A20: Months Charged | B20: =COUNTIF(B7:B18,">0") -> 3 | C20: =COUNTIF(C7:C18,">0") -> 3 | D20: 3 | E20: 0 | F20: 0 | G20: 0 | H20: 0 | I20: 0 | J20: 0 | K20: 0
A22: =EOMONTH(A18,0)+1 -> 2014-10-01 | B22: =IF('Summary of Hours'!B21=0,0,('Summary of Hours'!B21/'Summary of Hours'!$L21)) -> 0 | C22: =IF('Summary of Hours'!C21=0,0,('Summary of Hours'!C21/'Summary of Hours'!$L21)) -> 0 | D22: =IF('Summary of Hours'!D21=0,0,('Summary of Hours'!D21/'Summary of Hours'!$L21)) -> 0 | E22: =IF('Summary of Hours'!E21=0,0,('Summary of Hours'!E21/'Summary of Hours'!$L21)) -> 0 | F22: =IF('Summary of Hours'!F21=0,0,('Summary of Hours'!F21/'Summary of Hours'!$L21)) -> 0 | G22: =IF('Summary of Hours'!G21=0,0,('Summary of Hours'!G21/'Summary of Hours'!$L21)) -> 0 | H22: =IF('Summary of Hours'!H21=0,0,('Summary of Hours'!H21/'Summary of Hours'!$L21)) -> 0 | I22: =IF('Summary of Hours'!I21=0,0,('Summary of Hours'!I21/'Summary of Hours'!$L21)) -> 0 | J22: =IF('Summary of Hours'!J21=0,0,('Summary of Hours'!J21/'Summary of Hours'!$L21)) -> 0 | K22: =IF('Summary of Hours'!K21=0,0,('Summary of Hours'!K21/'Summary of Hours'!$L21)) -> 0 | L22: =SUM(B22:K22) -> 0
A23: =EOMONTH(A22,0)+1 -> 2014-11-01 | B23: =IF('Summary of Hours'!B22=0,0,('Summary of Hours'!B22/'Summary of Hours'!$L22)) -> 0 | C23: =IF('Summary of Hours'!C22=0,0,('Summary of Hours'!C22/'Summary of Hours'!$L22)) -> 0 | D23: =IF('Summary of Hours'!D22=0,0,('Summary of Hours'!D22/'Summary of Hours'!$L22)) -> 0 | E23: =IF('Summary of Hours'!E22=0,0,('Summary of Hours'!E22/'Summary of Hours'!$L22)) -> 0 | F23: =IF('Summary of Hours'!F22=0,0,('Summary of Hours'!F22/'Summary of Hours'!$L22)) -> 0 | G23: =IF('Summary of Hours'!G22=0,0,('Summary of Hours'!G22/'Summary of Hours'!$L22)) -> 0 | H23: =IF('Summary of Hours'!H22=0,0,('Summary of Hours'!H22/'Summary of Hours'!$L22)) -> 0 | I23: =IF('Summary of Hours'!I22=0,0,('Summary of Hours'!I22/'Summary of Hours'!$L22)) -> 0 | J23: =IF('Summary of Hours'!J22=0,0,('Summary of Hours'!J22/'Summary of Hours'!$L22)) -> 0 | K23: =IF('Summary of Hours'!K22=0,0,('Summary of Hours'!K22/'Summary of Hours'!$L22)) -> 0 | L23: =SUM(B23:K23) -> 0
A24: =EOMONTH(A23,0)+1 -> 2014-12-01 | B24: =IF('Summary of Hours'!B23=0,0,('Summary of Hours'!B23/'Summary of Hours'!$L23)) -> 0 | C24: =IF('Summary of Hours'!C23=0,0,('Summary of Hours'!C23/'Summary of Hours'!$L23)) -> 0 | D24: =IF('Summary of Hours'!D23=0,0,('Summary of Hours'!D23/'Summary of Hours'!$L23)) -> 0 | E24: =IF('Summary of Hours'!E23=0,0,('Summary of Hours'!E23/'Summary of Hours'!$L23)) -> 0 | F24: =IF('Summary of Hours'!F23=0,0,('Summary of Hours'!F23/'Summary of Hours'!$L23)) -> 0 | G24: =IF('Summary of Hours'!G23=0,0,('Summary of Hours'!G23/'Summary of Hours'!$L23)) -> 0 | H24: =IF('Summary of Hours'!H23=0,0,('Summary of Hours'!H23/'Summary of Hours'!$L23)) -> 0 | I24: =IF('Summary of Hours'!I23=0,0,('Summary of Hours'!I23/'Summary of Hours'!$L23)) -> 0 | J24: =IF('Summary of Hours'!J23=0,0,('Summary of Hours'!J23/'Summary of Hours'!$L23)) -> 0 | K24: =IF('Summary of Hours'!K23=0,0,('Summary of Hours'!K23/'Summary of Hours'!$L23)) -> 0 | L24: 0
A25: 2015-01-01 | B25: =IF('Summary of Hours'!B24=0,0,('Summary of Hours'!B24/'Summary of Hours'!$L24)) -> 0 | C25: =IF('Summary of Hours'!C24=0,0,('Summary of Hours'!C24/'Summary of Hours'!$L24)) -> 0 | D25: =IF('Summary of Hours'!D24=0,0,('Summary of Hours'!D24/'Summary of Hours'!$L24)) -> 0 | E25: =IF('Summary of Hours'!E24=0,0,('Summary of Hours'!E24/'Summary of Hours'!$L24)) -> 0 | F25: =IF('Summary of Hours'!F24=0,0,('Summary of Hours'!F24/'Summary of Hours'!$L24)) -> 0 | G25: =IF('Summary of Hours'!G24=0,0,('Summary of Hours'!G24/'Summary of Hours'!$L24)) -> 0 | H25: =IF('Summary of Hours'!H24=0,0,('Summary of Hours'!H24/'Summary of Hours'!$L24)) -> 0 | I25: =IF('Summary of Hours'!I24=0,0,('Summary of Hours'!I24/'Summary of Hours'!$L24)) -> 0 | J25: =IF('Summary of Hours'!J24=0,0,('Summary of Hours'!J24/'Summary of Hours'!$L24)) -> 0 | K25: =IF('Summary of Hours'!K24=0,0,('Summary of Hours'!K24/'Summary of Hours'!$L24)) -> 0 | L25: 0
A26: 2015-02-01 | B26: =IF('Summary of Hours'!B25=0,0,('Summary of Hours'!B25/'Summary of Hours'!$L25)) -> 0 | C26: =IF('Summary of Hours'!C25=0,0,('Summary of Hours'!C25/'Summary of Hours'!$L25)) -> 0 | D26: =IF('Summary of Hours'!D25=0,0,('Summary of Hours'!D25/'Summary of Hours'!$L25)) -> 0 | E26: =IF('Summary of Hours'!E25=0,0,('Summary of Hours'!E25/'Summary of Hours'!$L25)) -> 0 | F26: =IF('Summary of Hours'!F25=0,0,('Summary of Hours'!F25/'Summary of Hours'!$L25)) -> 0 | G26: =IF('Summary of Hours'!G25=0,0,('Summary of Hours'!G25/'Summary of Hours'!$L25)) -> 0 | H26: =IF('Summary of Hours'!H25=0,0,('Summary of Hours'!H25/'Summary of Hours'!$L25)) -> 0 | I26: =IF('Summary of Hours'!I25=0,0,('Summary of Hours'!I25/'Summary of Hours'!$L25)) -> 0 | J26: =IF('Summary of Hours'!J25=0,0,('Summary of Hours'!J25/'Summary of Hours'!$L25)) -> 0 | K26: =IF('Summary of Hours'!K25=0,0,('Summary of Hours'!K25/'Summary of Hours'!$L25)) -> 0 | L26: 0
A27: 2015-03-01 | B27: =IF('Summary of Hours'!B26=0,0,('Summary of Hours'!B26/'Summary of Hours'!$L26)) -> 0 | C27: =IF('Summary of Hours'!C26=0,0,('Summary of Hours'!C26/'Summary of Hours'!$L26)) -> 0 | D27: =IF('Summary of Hours'!D26=0,0,('Summary of Hours'!D26/'Summary of Hours'!$L26)) -> 0 | E27: =IF('Summary of Hours'!E26=0,0,('Summary of Hours'!E26/'Summary of Hours'!$L26)) -> 0 | F27: =IF('Summary of Hours'!F26=0,0,('Summary of Hours'!F26/'Summary of Hours'!$L26)) -> 0 | G27: =IF('Summary of Hours'!G26=0,0,('Summary of Hours'!G26/'Summary of Hours'!$L26)) -> 0 | H27: =IF('Summary of Hours'!H26=0,0,('Summary of Hours'!H26/'Summary of Hours'!$L26)) -> 0 | I27: =IF('Summary of Hours'!I26=0,0,('Summary of Hours'!I26/'Summary of Hours'!$L26)) -> 0 | J27: =IF('Summary of Hours'!J26=0,0,('Summary of Hours'!J26/'Summary of Hours'!$L26)) -> 0 | K27: =IF('Summary of Hours'!K26=0,0,('Summary of Hours'!K26/'Summary of Hours'!$L26)) -> 0 | L27: 0
A28: 2015-04-01 | B28: =IF('Summary of Hours'!B27=0,0,('Summary of Hours'!B27/'Summary of Hours'!$L27)) -> 0 | C28: =IF('Summary of Hours'!C27=0,0,('Summary of Hours'!C27/'Summary of Hours'!$L27)) -> 0 | D28: =IF('Summary of Hours'!D27=0,0,('Summary of Hours'!D27/'Summary of Hours'!$L27)) -> 0 | E28: =IF('Summary of Hours'!E27=0,0,('Summary of Hours'!E27/'Summary of Hours'!$L27)) -> 0 | F28: =IF('Summary of Hours'!F27=0,0,('Summary of Hours'!F27/'Summary of Hours'!$L27)) -> 0 | G28: =IF('Summary of Hours'!G27=0,0,('Summary of Hours'!G27/'Summary of Hours'!$L27)) -> 0 | H28: =IF('Summary of Hours'!H27=0,0,('Summary of Hours'!H27/'Summary of Hours'!$L27)) -> 0 | I28: =IF('Summary of Hours'!I27=0,0,('Summary of Hours'!I27/'Summary of Hours'!$L27)) -> 0 | J28: =IF('Summary of Hours'!J27=0,0,('Summary of Hours'!J27/'Summary of Hours'!$L27)) -> 0 | K28: =IF('Summary of Hours'!K27=0,0,('Summary of Hours'!K27/'Summary of Hours'!$L27)) -> 0 | L28: 0
A29: 2015-05-01 | B29: =IF('Summary of Hours'!B28=0,0,('Summary of Hours'!B28/'Summary of Hours'!$L28)) -> 0 | C29: =IF('Summary of Hours'!C28=0,0,('Summary of Hours'!C28/'Summary of Hours'!$L28)) -> 0 | D29: =IF('Summary of Hours'!D28=0,0,('Summary of Hours'!D28/'Summary of Hours'!$L28)) -> 0 | E29: =IF('Summary of Hours'!E28=0,0,('Summary of Hours'!E28/'Summary of Hours'!$L28)) -> 0 | F29: =IF('Summary of Hours'!F28=0,0,('Summary of Hours'!F28/'Summary of Hours'!$L28)) -> 0 | G29: =IF('Summary of Hours'!G28=0,0,('Summary of Hours'!G28/'Summary of Hours'!$L28)) -> 0 | H29: =IF('Summary of Hours'!H28=0,0,('Summary of Hours'!H28/'Summary of Hours'!$L28)) -> 0 | I29: =IF('Summary of Hours'!I28=0,0,('Summary of Hours'!I28/'Summary of Hours'!$L28)) -> 0 | J29: =IF('Summary of Hours'!J28=0,0,('Summary of Hours'!J28/'Summary of Hours'!$L28)) -> 0 | K29: =IF('Summary of Hours'!K28=0,0,('Summary of Hours'!K28/'Summary of Hours'!$L28)) -> 0 | L29: 0
A30: 2015-06-01 | B30: =IF('Summary of Hours'!B29=0,0,('Summary of Hours'!B29/'Summary of Hours'!$L29)) -> 0 | C30: =IF('Summary of Hours'!C29=0,0,('Summary of Hours'!C29/'Summary of Hours'!$L29)) -> 0 | D30: =IF('Summary of Hours'!D29=0,0,('Summary of Hours'!D29/'Summary of Hours'!$L29)) -> 0 | E30: =IF('Summary of Hours'!E29=0,0,('Summary of Hours'!E29/'Summary of Hours'!$L29)) -> 0 | F30: =IF('Summary of Hours'!F29=0,0,('Summary of Hours'!F29/'Summary of Hours'!$L29)) -> 0 | G30: =IF('Summary of Hours'!G29=0,0,('Summary of Hours'!G29/'Summary of Hours'!$L29)) -> 0 | H30: =IF('Summary of Hours'!H29=0,0,('Summary of Hours'!H29/'Summary of Hours'!$L29)) -> 0 | I30: =IF('Summary of Hours'!I29=0,0,('Summary of Hours'!I29/'Summary of Hours'!$L29)) -> 0 | J30: =IF('Summary of Hours'!J29=0,0,('Summary of Hours'!J29/'Summary of Hours'!$L29)) -> 0 | K30: =IF('Summary of Hours'!K29=0,0,('Summary of Hours'!K29/'Summary of Hours'!$L29)) -> 0 | L30: 0
A31: 2015-07-01 | B31: =IF('Summary of Hours'!B30=0,0,('Summary of Hours'!B30/'Summary of Hours'!$L30)) -> 0 | C31: =IF('Summary of Hours'!C30=0,0,('Summary of Hours'!C30/'Summary of Hours'!$L30)) -> 0 | D31: =IF('Summary of Hours'!D30=0,0,('Summary of Hours'!D30/'Summary of Hours'!$L30)) -> 0 | E31: =IF('Summary of Hours'!E30=0,0,('Summary of Hours'!E30/'Summary of Hours'!$L30)) -> 0 | F31: =IF('Summary of Hours'!F30=0,0,('Summary of Hours'!F30/'Summary of Hours'!$L30)) -> 0 | G31: =IF('Summary of Hours'!G30=0,0,('Summary of Hours'!G30/'Summary of Hours'!$L30)) -> 0 | H31: =IF('Summary of Hours'!H30=0,0,('Summary of Hours'!H30/'Summary of Hours'!$L30)) -> 0 | I31: =IF('Summary of Hours'!I30=0,0,('Summary of Hours'!I30/'Summary of Hours'!$L30)) -> 0 | J31: =IF('Summary of Hours'!J30=0,0,('Summary of Hours'!J30/'Summary of Hours'!$L30)) -> 0 | K31: =IF('Summary of Hours'!K30=0,0,('Summary of Hours'!K30/'Summary of Hours'!$L30)) -> 0 | L31: 0
A32: 2015-08-01 | B32: =IF('Summary of Hours'!B31=0,0,('Summary of Hours'!B31/'Summary of Hours'!$L31)) -> 0 | C32: =IF('Summary of Hours'!C31=0,0,('Summary of Hours'!C31/'Summary of Hours'!$L31)) -> 0 | D32: =IF('Summary of Hours'!D31=0,0,('Summary of Hours'!D31/'Summary of Hours'!$L31)) -> 0 | E32: =IF('Summary of Hours'!E31=0,0,('Summary of Hours'!E31/'Summary of Hours'!$L31)) -> 0 | F32: =IF('Summary of Hours'!F31=0,0,('Summary of Hours'!F31/'Summary of Hours'!$L31)) -> 0 | G32: =IF('Summary of Hours'!G31=0,0,('Summary of Hours'!G31/'Summary of Hours'!$L31)) -> 0 | H32: =IF('Summary of Hours'!H31=0,0,('Summary of Hours'!H31/'Summary of Hours'!$L31)) -> 0 | I32: =IF('Summary of Hours'!I31=0,0,('Summary of Hours'!I31/'Summary of Hours'!$L31)) -> 0 | J32: =IF('Summary of Hours'!J31=0,0,('Summary of Hours'!J31/'Summary of Hours'!$L31)) -> 0 | K32: =IF('Summary of Hours'!K31=0,0,('Summary of Hours'!K31/'Summary of Hours'!$L31)) -> 0 | L32: 0
A33: 2015-09-01 | B33: =IF('Summary of Hours'!B32=0,0,('Summary of Hours'!B32/'Summary of Hours'!$L32)) -> 0 | C33: =IF('Summary of Hours'!C32=0,0,('Summary of Hours'!C32/'Summary of Hours'!$L32)) -> 0 | D33: =IF('Summary of Hours'!D32=0,0,('Summary of Hours'!D32/'Summary of Hours'!$L32)) -> 0 | E33: =IF('Summary of Hours'!E32=0,0,('Summary of Hours'!E32/'Summary of Hours'!$L32)) -> 0 | F33: =IF('Summary of Hours'!F32=0,0,('Summary of Hours'!F32/'Summary of Hours'!$L32)) -> 0 | G33: =IF('Summary of Hours'!G32=0,0,('Summary of Hours'!G32/'Summary of Hours'!$L32)) -> 0 | H33: =IF('Summary of Hours'!H32=0,0,('Summary of Hours'!H32/'Summary of Hours'!$L32)) -> 0 | I33: =IF('Summary of Hours'!I32=0,0,('Summary of Hours'!I32/'Summary of Hours'!$L32)) -> 0 | J33: =IF('Summary of Hours'!J32=0,0,('Summary of Hours'!J32/'Summary of Hours'!$L32)) -> 0 | K33: =IF('Summary of Hours'!K32=0,0,('Summary of Hours'!K32/'Summary of Hours'!$L32)) -> 0 | L33: 0
A34: Charge | B34: =IF('Summary of Hours'!B33=0,0,('Summary of Hours'!B33/(SUMIF('Summary of Hours'!B21:B32,">0",'Summary of Hours'!$L21:$L32)))) -> 0 | C34: =IF('Summary of Hours'!C33=0,0,('Summary of Hours'!C33/(SUMIF('Summary of Hours'!C21:C32,">0",'Summary of Hours'!$L21:$L32)))) -> 0 | D34: =IF('Summary of Hours'!D33=0,0,('Summary of Hours'!D33/(SUMIF('Summary of Hours'!D21:D32,">0",'Summary of Hours'!$L21:$L32)))) -> 0 | E34: =IF('Summary of Hours'!E33=0,0,('Summary of Hours'!E33/(SUMIF('Summary of Hours'!E21:E32,">0",'Summary of Hours'!$L21:$L32)))) -> 0 | F34: =IF('Summary of Hours'!F33=0,0,('Summary of Hours'!F33/(SUMIF('Summary of Hours'!F21:F32,">0",'Summary of Hours'!$L21:$L32)))) -> 0 | G34: =IF('Summary of Hours'!G33=0,0,('Summary of Hours'!G33/(SUMIF('Summary of Hours'!G21:G32,">0",'Summary of Hours'!$L21:$L32)))) -> 0 | H34: =IF('Summary of Hours'!H33=0,0,('Summary of Hours'!H33/(SUMIF('Summary of Hours'!H21:H32,">0",'Summary of Hours'!$L21:$L32)))) -> 0 | I34: =IF('Summary of Hours'!I33=0,0,('Summary of Hours'!I33/(SUMIF('Summary of Hours'!I21:I32,">0",'Summary of Hours'!$L21:$L32)))) -> 0 | J34: =IF('Summary of Hours'!J33=0,0,('Summary of Hours'!J33/(SUMIF('Summary of Hours'!J21:J32,">0",'Summary of Hours'!$L21:$L32)))) -> 0 | K34: =IF('Summary of Hours'!K33=0,0,('Summary of Hours'!K33/(SUMIF('Summary of Hours'!K21:K32,">0",'Summary of Hours'!$L21:$L32)))) -> 0
A35: Months Charged | B35: =COUNTIF(B22:B33,">0") -> 0 | C35: =COUNTIF(C22:C33,">0") -> 0 | D35: 0 | E35: 0 | F35: 0 | G35: 0 | H35: 0 | I35: 0 | J35: 0 | K35: 0
A37: =EOMONTH(A33,0)+1 -> 2015-10-01 | B37: =IF('Summary of Hours'!B35=0,0,('Summary of Hours'!B35/'Summary of Hours'!$L35)) -> 0 | C37: =IF('Summary of Hours'!C35=0,0,('Summary of Hours'!C35/'Summary of Hours'!$L35)) -> 0 | D37: =IF('Summary of Hours'!D35=0,0,('Summary of Hours'!D35/'Summary of Hours'!$L35)) -> 0 | E37: =IF('Summary of Hours'!E35=0,0,('Summary of Hours'!E35/'Summary of Hours'!$L35)) -> 0 | F37: =IF('Summary of Hours'!F35=0,0,('Summary of Hours'!F35/'Summary of Hours'!$L35)) -> 0 | G37: =IF('Summary of Hours'!G35=0,0,('Summary of Hours'!G35/'Summary of Hours'!$L35)) -> 0 | H37: =IF('Summary of Hours'!H35=0,0,('Summary of Hours'!H35/'Summary of Hours'!$L35)) -> 0 | I37: =IF('Summary of Hours'!I35=0,0,('Summary of Hours'!I35/'Summary of Hours'!$L35)) -> 0 | J37: =IF('Summary of Hours'!J35=0,0,('Summary of Hours'!J35/'Summary of Hours'!$L35)) -> 0 | K37: =IF('Summary of Hours'!K35=0,0,('Summary of Hours'!K35/'Summary of Hours'!$L35)) -> 0 | L37: =SUM(B37:K37) -> 0
A38: =EOMONTH(A37,0)+1 -> 2015-11-01 | B38: =IF('Summary of Hours'!B36=0,0,('Summary of Hours'!B36/'Summary of Hours'!$L36)) -> 0 | C38: =IF('Summary of Hours'!C36=0,0,('Summary of Hours'!C36/'Summary of Hours'!$L36)) -> 0 | D38: =IF('Summary of Hours'!D36=0,0,('Summary of Hours'!D36/'Summary of Hours'!$L36)) -> 0 | E38: =IF('Summary of Hours'!E36=0,0,('Summary of Hours'!E36/'Summary of Hours'!$L36)) -> 0 | F38: =IF('Summary of Hours'!F36=0,0,('Summary of Hours'!F36/'Summary of Hours'!$L36)) -> 0 | G38: =IF('Summary of Hours'!G36=0,0,('Summary of Hours'!G36/'Summary of Hours'!$L36)) -> 0 | H38: =IF('Summary of Hours'!H36=0,0,('Summary of Hours'!H36/'Summary of Hours'!$L36)) -> 0 | I38: =IF('Summary of Hours'!I36=0,0,('Summary of Hours'!I36/'Summary of Hours'!$L36)) -> 0 | J38: =IF('Summary of Hours'!J36=0,0,('Summary of Hours'!J36/'Summary of Hours'!$L36)) -> 0 | K38: =IF('Summary of Hours'!K36=0,0,('Summary of Hours'!K36/'Summary of Hours'!$L36)) -> 0 | L38: =SUM(B38:K38) -> 0
A39: =EOMONTH(A38,0)+1 -> 2015-12-01 | B39: =IF('Summary of Hours'!B37=0,0,('Summary of Hours'!B37/'Summary of Hours'!$L37)) -> 0 | C39: =IF('Summary of Hours'!C37=0,0,('Summary of Hours'!C37/'Summary of Hours'!$L37)) -> 0 | D39: =IF('Summary of Hours'!D37=0,0,('Summary of Hours'!D37/'Summary of Hours'!$L37)) -> 0 | E39: =IF('Summary of Hours'!E37=0,0,('Summary of Hours'!E37/'Summary of Hours'!$L37)) -> 0 | F39: =IF('Summary of Hours'!F37=0,0,('Summary of Hours'!F37/'Summary of Hours'!$L37)) -> 0 | G39: =IF('Summary of Hours'!G37=0,0,('Summary of Hours'!G37/'Summary of Hours'!$L37)) -> 0 | H39: =IF('Summary of Hours'!H37=0,0,('Summary of Hours'!H37/'Summary of Hours'!$L37)) -> 0 | I39: =IF('Summary of Hours'!I37=0,0,('Summary of Hours'!I37/'Summary of Hours'!$L37)) -> 0 | J39: =IF('Summary of Hours'!J37=0,0,('Summary of Hours'!J37/'Summary of Hours'!$L37)) -> 0 | K39: =IF('Summary of Hours'!K37=0,0,('Summary of Hours'!K37/'Summary of Hours'!$L37)) -> 0 | L39: 0
A40: 2016-01-01 | B40: =IF('Summary of Hours'!B38=0,0,('Summary of Hours'!B38/'Summary of Hours'!$L38)) -> 0 | C40: =IF('Summary of Hours'!C38=0,0,('Summary of Hours'!C38/'Summary of Hours'!$L38)) -> 0 | D40: =IF('Summary of Hours'!D38=0,0,('Summary of Hours'!D38/'Summary of Hours'!$L38)) -> 0 | E40: =IF('Summary of Hours'!E38=0,0,('Summary of Hours'!E38/'Summary of Hours'!$L38)) -> 0 | F40: =IF('Summary of Hours'!F38=0,0,('Summary of Hours'!F38/'Summary of Hours'!$L38)) -> 0 | G40: =IF('Summary of Hours'!G38=0,0,('Summary of Hours'!G38/'Summary of Hours'!$L38)) -> 0 | H40: =IF('Summary of Hours'!H38=0,0,('Summary of Hours'!H38/'Summary of Hours'!$L38)) -> 0 | I40: =IF('Summary of Hours'!I38=0,0,('Summary of Hours'!I38/'Summary of Hours'!$L38)) -> 0 | J40: =IF('Summary of Hours'!J38=0,0,('Summary of Hours'!J38/'Summary of Hours'!$L38)) -> 0 | K40: =IF('Summary of Hours'!K38=0,0,('Summary of Hours'!K38/'Summary of Hours'!$L38)) -> 0 | L40: 0
A41: 2016-02-01 | B41: =IF('Summary of Hours'!B39=0,0,('Summary of Hours'!B39/'Summary of Hours'!$L39)) -> 0 | C41: =IF('Summary of Hours'!C39=0,0,('Summary of Hours'!C39/'Summary of Hours'!$L39)) -> 0 | D41: =IF('Summary of Hours'!D39=0,0,('Summary of Hours'!D39/'Summary of Hours'!$L39)) -> 0 | E41: =IF('Summary of Hours'!E39=0,0,('Summary of Hours'!E39/'Summary of Hours'!$L39)) -> 0 | F41: =IF('Summary of Hours'!F39=0,0,('Summary of Hours'!F39/'Summary of Hours'!$L39)) -> 0 | G41: =IF('Summary of Hours'!G39=0,0,('Summary of Hours'!G39/'Summary of Hours'!$L39)) -> 0 | H41: =IF('Summary of Hours'!H39=0,0,('Summary of Hours'!H39/'Summary of Hours'!$L39)) -> 0 | I41: =IF('Summary of Hours'!I39=0,0,('Summary of Hours'!I39/'Summary of Hours'!$L39)) -> 0 | J41: =IF('Summary of Hours'!J39=0,0,('Summary of Hours'!J39/'Summary of Hours'!$L39)) -> 0 | K41: =IF('Summary of Hours'!K39=0,0,('Summary of Hours'!K39/'Summary of Hours'!$L39)) -> 0 | L41: 0
A42: 2016-03-01 | B42: =IF('Summary of Hours'!B40=0,0,('Summary of Hours'!B40/'Summary of Hours'!$L40)) -> 0 | C42: =IF('Summary of Hours'!C40=0,0,('Summary of Hours'!C40/'Summary of Hours'!$L40)) -> 0 | D42: =IF('Summary of Hours'!D40=0,0,('Summary of Hours'!D40/'Summary of Hours'!$L40)) -> 0 | E42: =IF('Summary of Hours'!E40=0,0,('Summary of Hours'!E40/'Summary of Hours'!$L40)) -> 0 | F42: =IF('Summary of Hours'!F40=0,0,('Summary of Hours'!F40/'Summary of Hours'!$L40)) -> 0 | G42: =IF('Summary of Hours'!G40=0,0,('Summary of Hours'!G40/'Summary of Hours'!$L40)) -> 0 | H42: =IF('Summary of Hours'!H40=0,0,('Summary of Hours'!H40/'Summary of Hours'!$L40)) -> 0 | I42: =IF('Summary of Hours'!I40=0,0,('Summary of Hours'!I40/'Summary of Hours'!$L40)) -> 0 | J42: =IF('Summary of Hours'!J40=0,0,('Summary of Hours'!J40/'Summary of Hours'!$L40)) -> 0 | K42: =IF('Summary of Hours'!K40=0,0,('Summary of Hours'!K40/'Summary of Hours'!$L40)) -> 0 | L42: 0
A43: 2016-04-01 | B43: =IF('Summary of Hours'!B41=0,0,('Summary of Hours'!B41/'Summary of Hours'!$L41)) -> 0 | C43: =IF('Summary of Hours'!C41=0,0,('Summary of Hours'!C41/'Summary of Hours'!$L41)) -> 0 | D43: =IF('Summary of Hours'!D41=0,0,('Summary of Hours'!D41/'Summary of Hours'!$L41)) -> 0 | E43: =IF('Summary of Hours'!E41=0,0,('Summary of Hours'!E41/'Summary of Hours'!$L41)) -> 0 | F43: =IF('Summary of Hours'!F41=0,0,('Summary of Hours'!F41/'Summary of Hours'!$L41)) -> 0 | G43: =IF('Summary of Hours'!G41=0,0,('Summary of Hours'!G41/'Summary of Hours'!$L41)) -> 0 | H43: =IF('Summary of Hours'!H41=0,0,('Summary of Hours'!H41/'Summary of Hours'!$L41)) -> 0 | I43: =IF('Summary of Hours'!I41=0,0,('Summary of Hours'!I41/'Summary of Hours'!$L41)) -> 0 | J43: =IF('Summary of Hours'!J41=0,0,('Summary of Hours'!J41/'Summary of Hours'!$L41)) -> 0 | K43: =IF('Summary of Hours'!K41=0,0,('Summary of Hours'!K41/'Summary of Hours'!$L41)) -> 0 | L43: 0
A44: 2016-05-01 | B44: =IF('Summary of Hours'!B42=0,0,('Summary of Hours'!B42/'Summary of Hours'!$L42)) -> 0 | C44: =IF('Summary of Hours'!C42=0,0,('Summary of Hours'!C42/'Summary of Hours'!$L42)) -> 0 | D44: =IF('Summary of Hours'!D42=0,0,('Summary of Hours'!D42/'Summary of Hours'!$L42)) -> 0 | E44: =IF('Summary of Hours'!E42=0,0,('Summary of Hours'!E42/'Summary of Hours'!$L42)) -> 0 | F44: =IF('Summary of Hours'!F42=0,0,('Summary of Hours'!F42/'Summary of Hours'!$L42)) -> 0 | G44: =IF('Summary of Hours'!G42=0,0,('Summary of Hours'!G42/'Summary of Hours'!$L42)) -> 0 | H44: =IF('Summary of Hours'!H42=0,0,('Summary of Hours'!H42/'Summary of Hours'!$L42)) -> 0 | I44: =IF('Summary of Hours'!I42=0,0,('Summary of Hours'!I42/'Summary of Hours'!$L42)) -> 0 | J44: =IF('Summary of Hours'!J42=0,0,('Summary of Hours'!J42/'Summary of Hours'!$L42)) -> 0 | K44: =IF('Summary of Hours'!K42=0,0,('Summary of Hours'!K42/'Summary of Hours'!$L42)) -> 0 | L44: 0
A45: 2016-06-01 | B45: =IF('Summary of Hours'!B43=0,0,('Summary of Hours'!B43/'Summary of Hours'!$L43)) -> 0 | C45: =IF('Summary of Hours'!C43=0,0,('Summary of Hours'!C43/'Summary of Hours'!$L43)) -> 0 | D45: =IF('Summary of Hours'!D43=0,0,('Summary of Hours'!D43/'Summary of Hours'!$L43)) -> 0 | E45: =IF('Summary of Hours'!E43=0,0,('Summary of Hours'!E43/'Summary of Hours'!$L43)) -> 0 | F45: =IF('Summary of Hours'!F43=0,0,('Summary of Hours'!F43/'Summary of Hours'!$L43)) -> 0 | G45: =IF('Summary of Hours'!G43=0,0,('Summary of Hours'!G43/'Summary of Hours'!$L43)) -> 0 | H45: =IF('Summary of Hours'!H43=0,0,('Summary of Hours'!H43/'Summary of Hours'!$L43)) -> 0 | I45: =IF('Summary of Hours'!I43=0,0,('Summary of Hours'!I43/'Summary of Hours'!$L43)) -> 0 | J45: =IF('Summary of Hours'!J43=0,0,('Summary of Hours'!J43/'Summary of Hours'!$L43)) -> 0 | K45: =IF('Summary of Hours'!K43=0,0,('Summary of Hours'!K43/'Summary of Hours'!$L43)) -> 0 | L45: 0
A46: 2016-07-01 | B46: =IF('Summary of Hours'!B44=0,0,('Summary of Hours'!B44/'Summary of Hours'!$L44)) -> 0 | C46: =IF('Summary of Hours'!C44=0,0,('Summary of Hours'!C44/'Summary of Hours'!$L44)) -> 0 | D46: =IF('Summary of Hours'!D44=0,0,('Summary of Hours'!D44/'Summary of Hours'!$L44)) -> 0 | E46: =IF('Summary of Hours'!E44=0,0,('Summary of Hours'!E44/'Summary of Hours'!$L44)) -> 0 | F46: =IF('Summary of Hours'!F44=0,0,('Summary of Hours'!F44/'Summary of Hours'!$L44)) -> 0 | G46: =IF('Summary of Hours'!G44=0,0,('Summary of Hours'!G44/'Summary of Hours'!$L44)) -> 0 | H46: =IF('Summary of Hours'!H44=0,0,('Summary of Hours'!H44/'Summary of Hours'!$L44)) -> 0 | I46: =IF('Summary of Hours'!I44=0,0,('Summary of Hours'!I44/'Summary of Hours'!$L44)) -> 0 | J46: =IF('Summary of Hours'!J44=0,0,('Summary of Hours'!J44/'Summary of Hours'!$L44)) -> 0 | K46: =IF('Summary of Hours'!K44=0,0,('Summary of Hours'!K44/'Summary of Hours'!$L44)) -> 0 | L46: 0
A47: 2016-08-01 | B47: =IF('Summary of Hours'!B45=0,0,('Summary of Hours'!B45/'Summary of Hours'!$L45)) -> 0 | C47: =IF('Summary of Hours'!C45=0,0,('Summary of Hours'!C45/'Summary of Hours'!$L45)) -> 0 | D47: =IF('Summary of Hours'!D45=0,0,('Summary of Hours'!D45/'Summary of Hours'!$L45)) -> 0 | E47: =IF('Summary of Hours'!E45=0,0,('Summary of Hours'!E45/'Summary of Hours'!$L45)) -> 0 | F47: =IF('Summary of Hours'!F45=0,0,('Summary of Hours'!F45/'Summary of Hours'!$L45)) -> 0 | G47: =IF('Summary of Hours'!G45=0,0,('Summary of Hours'!G45/'Summary of Hours'!$L45)) -> 0 | H47: =IF('Summary of Hours'!H45=0,0,('Summary of Hours'!H45/'Summary of Hours'!$L45)) -> 0 | I47: =IF('Summary of Hours'!I45=0,0,('Summary of Hours'!I45/'Summary of Hours'!$L45)) -> 0 | J47: =IF('Summary of Hours'!J45=0,0,('Summary of Hours'!J45/'Summary of Hours'!$L45)) -> 0 | K47: =IF('Summary of Hours'!K45=0,0,('Summary of Hours'!K45/'Summary of Hours'!$L45)) -> 0 | L47: 0
A48: 2016-09-01 | B48: =IF('Summary of Hours'!B46=0,0,('Summary of Hours'!B46/'Summary of Hours'!$L46)) -> 0 | C48: =IF('Summary of Hours'!C46=0,0,('Summary of Hours'!C46/'Summary of Hours'!$L46)) -> 0 | D48: =IF('Summary of Hours'!D46=0,0,('Summary of Hours'!D46/'Summary of Hours'!$L46)) -> 0 | E48: =IF('Summary of Hours'!E46=0,0,('Summary of Hours'!E46/'Summary of Hours'!$L46)) -> 0 | F48: =IF('Summary of Hours'!F46=0,0,('Summary of Hours'!F46/'Summary of Hours'!$L46)) -> 0 | G48: =IF('Summary of Hours'!G46=0,0,('Summary of Hours'!G46/'Summary of Hours'!$L46)) -> 0 | H48: =IF('Summary of Hours'!H46=0,0,('Summary of Hours'!H46/'Summary of Hours'!$L46)) -> 0 | I48: =IF('Summary of Hours'!I46=0,0,('Summary of Hours'!I46/'Summary of Hours'!$L46)) -> 0 | J48: =IF('Summary of Hours'!J46=0,0,('Summary of Hours'!J46/'Summary of Hours'!$L46)) -> 0 | K48: =IF('Summary of Hours'!K46=0,0,('Summary of Hours'!K46/'Summary of Hours'!$L46)) -> 0 | L48: 0
A49: Charge | B49: =IF('Summary of Hours'!B47=0,0,('Summary of Hours'!B47/(SUMIF('Summary of Hours'!B35:B46,">0",'Summary of Hours'!$L35:$L46)))) -> 0 | C49: =IF('Summary of Hours'!C47=0,0,('Summary of Hours'!C47/(SUMIF('Summary of Hours'!C35:C46,">0",'Summary of Hours'!$L35:$L46)))) -> 0 | D49: =IF('Summary of Hours'!D47=0,0,('Summary of Hours'!D47/(SUMIF('Summary of Hours'!D35:D46,">0",'Summary of Hours'!$L35:$L46)))) -> 0 | E49: =IF('Summary of Hours'!E47=0,0,('Summary of Hours'!E47/(SUMIF('Summary of Hours'!E35:E46,">0",'Summary of Hours'!$L35:$L46)))) -> 0 | F49: =IF('Summary of Hours'!F47=0,0,('Summary of Hours'!F47/(SUMIF('Summary of Hours'!F35:F46,">0",'Summary of Hours'!$L35:$L46)))) -> 0 | G49: =IF('Summary of Hours'!G47=0,0,('Summary of Hours'!G47/(SUMIF('Summary of Hours'!G35:G46,">0",'Summary of Hours'!$L35:$L46)))) -> 0 | H49: =IF('Summary of Hours'!H47=0,0,('Summary of Hours'!H47/(SUMIF('Summary of Hours'!H35:H46,">0",'Summary of Hours'!$L35:$L46)))) -> 0 | I49: =IF('Summary of Hours'!I47=0,0,('Summary of Hours'!I47/(SUMIF('Summary of Hours'!I35:I46,">0",'Summary of Hours'!$L35:$L46)))) -> 0 | J49: =IF('Summary of Hours'!J47=0,0,('Summary of Hours'!J47/(SUMIF('Summary of Hours'!J35:J46,">0",'Summary of Hours'!$L35:$L46)))) -> 0 | K49: =IF('Summary of Hours'!K47=0,0,('Summary of Hours'!K47/(SUMIF('Summary of Hours'!K35:K46,">0",'Summary of Hours'!$L35:$L46)))) -> 0
A50: Months Charged | B50: =COUNTIF(B37:B48,">0") -> 0 | C50: =COUNTIF(C37:C48,">0") -> 0 | D50: 0 | E50: 0 | F50: 0 | G50: 0 | H50: 0 | I50: 0 | J50: 0 | K50: 0
A52: =EOMONTH(A48,0)+1 -> 2016-10-01 | B52: =IF('Summary of Hours'!B49=0,0,('Summary of Hours'!B49/'Summary of Hours'!$L49)) -> 0 | C52: =IF('Summary of Hours'!C49=0,0,('Summary of Hours'!C49/'Summary of Hours'!$L49)) -> 0 | D52: =IF('Summary of Hours'!D49=0,0,('Summary of Hours'!D49/'Summary of Hours'!$L49)) -> 0 | E52: =IF('Summary of Hours'!E49=0,0,('Summary of Hours'!E49/'Summary of Hours'!$L49)) -> 0 | F52: =IF('Summary of Hours'!F49=0,0,('Summary of Hours'!F49/'Summary of Hours'!$L49)) -> 0 | G52: =IF('Summary of Hours'!G49=0,0,('Summary of Hours'!G49/'Summary of Hours'!$L49)) -> 0 | H52: =IF('Summary of Hours'!H49=0,0,('Summary of Hours'!H49/'Summary of Hours'!$L49)) -> 0 | I52: =IF('Summary of Hours'!I49=0,0,('Summary of Hours'!I49/'Summary of Hours'!$L49)) -> 0 | J52: =IF('Summary of Hours'!J49=0,0,('Summary of Hours'!J49/'Summary of Hours'!$L49)) -> 0 | K52: =IF('Summary of Hours'!K49=0,0,('Summary of Hours'!K49/'Summary of Hours'!$L49)) -> 0 | L52: =SUM(B52:K52) -> 0
A53: =EOMONTH(A52,0)+1 -> 2016-11-01 | B53: =IF('Summary of Hours'!B50=0,0,('Summary of Hours'!B50/'Summary of Hours'!$L50)) -> 0 | C53: =IF('Summary of Hours'!C50=0,0,('Summary of Hours'!C50/'Summary of Hours'!$L50)) -> 0 | D53: =IF('Summary of Hours'!D50=0,0,('Summary of Hours'!D50/'Summary of Hours'!$L50)) -> 0 | E53: =IF('Summary of Hours'!E50=0,0,('Summary of Hours'!E50/'Summary of Hours'!$L50)) -> 0 | F53: =IF('Summary of Hours'!F50=0,0,('Summary of Hours'!F50/'Summary of Hours'!$L50)) -> 0 | G53: =IF('Summary of Hours'!G50=0,0,('Summary of Hours'!G50/'Summary of Hours'!$L50)) -> 0 | H53: =IF('Summary of Hours'!H50=0,0,('Summary of Hours'!H50/'Summary of Hours'!$L50)) -> 0 | I53: =IF('Summary of Hours'!I50=0,0,('Summary of Hours'!I50/'Summary of Hours'!$L50)) -> 0 | J53: =IF('Summary of Hours'!J50=0,0,('Summary of Hours'!J50/'Summary of Hours'!$L50)) -> 0 | K53: =IF('Summary of Hours'!K50=0,0,('Summary of Hours'!K50/'Summary of Hours'!$L50)) -> 0 | L53: =SUM(B53:K53) -> 0
A54: =EOMONTH(A53,0)+1 -> 2016-12-01 | B54: =IF('Summary of Hours'!B51=0,0,('Summary of Hours'!B51/'Summary of Hours'!$L51)) -> 0 | C54: =IF('Summary of Hours'!C51=0,0,('Summary of Hours'!C51/'Summary of Hours'!$L51)) -> 0 | D54: =IF('Summary of Hours'!D51=0,0,('Summary of Hours'!D51/'Summary of Hours'!$L51)) -> 0 | E54: =IF('Summary of Hours'!E51=0,0,('Summary of Hours'!E51/'Summary of Hours'!$L51)) -> 0 | F54: =IF('Summary of Hours'!F51=0,0,('Summary of Hours'!F51/'Summary of Hours'!$L51)) -> 0 | G54: =IF('Summary of Hours'!G51=0,0,('Summary of Hours'!G51/'Summary of Hours'!$L51)) -> 0 | H54: =IF('Summary of Hours'!H51=0,0,('Summary of Hours'!H51/'Summary of Hours'!$L51)) -> 0 | I54: =IF('Summary of Hours'!I51=0,0,('Summary of Hours'!I51/'Summary of Hours'!$L51)) -> 0 | J54: =IF('Summary of Hours'!J51=0,0,('Summary of Hours'!J51/'Summary of Hours'!$L51)) -> 0 | K54: =IF('Summary of Hours'!K51=0,0,('Summary of Hours'!K51/'Summary of Hours'!$L51)) -> 0 | L54: 0
A55: 2017-01-01 | B55: =IF('Summary of Hours'!B52=0,0,('Summary of Hours'!B52/'Summary of Hours'!$L52)) -> 0 | C55: =IF('Summary of Hours'!C52=0,0,('Summary of Hours'!C52/'Summary of Hours'!$L52)) -> 0 | D55: =IF('Summary of Hours'!D52=0,0,('Summary of Hours'!D52/'Summary of Hours'!$L52)) -> 0 | E55: =IF('Summary of Hours'!E52=0,0,('Summary of Hours'!E52/'Summary of Hours'!$L52)) -> 0 | F55: =IF('Summary of Hours'!F52=0,0,('Summary of Hours'!F52/'Summary of Hours'!$L52)) -> 0 | G55: =IF('Summary of Hours'!G52=0,0,('Summary of Hours'!G52/'Summary of Hours'!$L52)) -> 0 | H55: =IF('Summary of Hours'!H52=0,0,('Summary of Hours'!H52/'Summary of Hours'!$L52)) -> 0 | I55: =IF('Summary of Hours'!I52=0,0,('Summary of Hours'!I52/'Summary of Hours'!$L52)) -> 0 | J55: =IF('Summary of Hours'!J52=0,0,('Summary of Hours'!J52/'Summary of Hours'!$L52)) -> 0 | K55: =IF('Summary of Hours'!K52=0,0,('Summary of Hours'!K52/'Summary of Hours'!$L52)) -> 0 | L55: 0
A56: 2017-02-01 | B56: =IF('Summary of Hours'!B53=0,0,('Summary of Hours'!B53/'Summary of Hours'!$L53)) -> 0 | C56: =IF('Summary of Hours'!C53=0,0,('Summary of Hours'!C53/'Summary of Hours'!$L53)) -> 0 | D56: =IF('Summary of Hours'!D53=0,0,('Summary of Hours'!D53/'Summary of Hours'!$L53)) -> 0 | E56: =IF('Summary of Hours'!E53=0,0,('Summary of Hours'!E53/'Summary of Hours'!$L53)) -> 0 | F56: =IF('Summary of Hours'!F53=0,0,('Summary of Hours'!F53/'Summary of Hours'!$L53)) -> 0 | G56: =IF('Summary of Hours'!G53=0,0,('Summary of Hours'!G53/'Summary of Hours'!$L53)) -> 0 | H56: =IF('Summary of Hours'!H53=0,0,('Summary of Hours'!H53/'Summary of Hours'!$L53)) -> 0 | I56: =IF('Summary of Hours'!I53=0,0,('Summary of Hours'!I53/'Summary of Hours'!$L53)) -> 0 | J56: =IF('Summary of Hours'!J53=0,0,('Summary of Hours'!J53/'Summary of Hours'!$L53)) -> 0 | K56: =IF('Summary of Hours'!K53=0,0,('Summary of Hours'!K53/'Summary of Hours'!$L53)) -> 0 | L56: 0
A57: 2017-03-01 | B57: =IF('Summary of Hours'!B54=0,0,('Summary of Hours'!B54/'Summary of Hours'!$L54)) -> 0 | C57: =IF('Summary of Hours'!C54=0,0,('Summary of Hours'!C54/'Summary of Hours'!$L54)) -> 0 | D57: =IF('Summary of Hours'!D54=0,0,('Summary of Hours'!D54/'Summary of Hours'!$L54)) -> 0 | E57: =IF('Summary of Hours'!E54=0,0,('Summary of Hours'!E54/'Summary of Hours'!$L54)) -> 0 | F57: =IF('Summary of Hours'!F54=0,0,('Summary of Hours'!F54/'Summary of Hours'!$L54)) -> 0 | G57: =IF('Summary of Hours'!G54=0,0,('Summary of Hours'!G54/'Summary of Hours'!$L54)) -> 0 | H57: =IF('Summary of Hours'!H54=0,0,('Summary of Hours'!H54/'Summary of Hours'!$L54)) -> 0 | I57: =IF('Summary of Hours'!I54=0,0,('Summary of Hours'!I54/'Summary of Hours'!$L54)) -> 0 | J57: =IF('Summary of Hours'!J54=0,0,('Summary of Hours'!J54/'Summary of Hours'!$L54)) -> 0 | K57: =IF('Summary of Hours'!K54=0,0,('Summary of Hours'!K54/'Summary of Hours'!$L54)) -> 0 | L57: 0
A58: 2017-04-01 | B58: =IF('Summary of Hours'!B55=0,0,('Summary of Hours'!B55/'Summary of Hours'!$L55)) -> 0 | C58: =IF('Summary of Hours'!C55=0,0,('Summary of Hours'!C55/'Summary of Hours'!$L55)) -> 0 | D58: =IF('Summary of Hours'!D55=0,0,('Summary of Hours'!D55/'Summary of Hours'!$L55)) -> 0 | E58: =IF('Summary of Hours'!E55=0,0,('Summary of Hours'!E55/'Summary of Hours'!$L55)) -> 0 | F58: =IF('Summary of Hours'!F55=0,0,('Summary of Hours'!F55/'Summary of Hours'!$L55)) -> 0 | G58: =IF('Summary of Hours'!G55=0,0,('Summary of Hours'!G55/'Summary of Hours'!$L55)) -> 0 | H58: =IF('Summary of Hours'!H55=0,0,('Summary of Hours'!H55/'Summary of Hours'!$L55)) -> 0 | I58: =IF('Summary of Hours'!I55=0,0,('Summary of Hours'!I55/'Summary of Hours'!$L55)) -> 0 | J58: =IF('Summary of Hours'!J55=0,0,('Summary of Hours'!J55/'Summary of Hours'!$L55)) -> 0 | K58: =IF('Summary of Hours'!K55=0,0,('Summary of Hours'!K55/'Summary of Hours'!$L55)) -> 0 | L58: 0
A59: 2017-05-01 | B59: =IF('Summary of Hours'!B56=0,0,('Summary of Hours'!B56/'Summary of Hours'!$L56)) -> 0 | C59: =IF('Summary of Hours'!C56=0,0,('Summary of Hours'!C56/'Summary of Hours'!$L56)) -> 0 | D59: =IF('Summary of Hours'!D56=0,0,('Summary of Hours'!D56/'Summary of Hours'!$L56)) -> 0 | E59: =IF('Summary of Hours'!E56=0,0,('Summary of Hours'!E56/'Summary of Hours'!$L56)) -> 0 | F59: =IF('Summary of Hours'!F56=0,0,('Summary of Hours'!F56/'Summary of Hours'!$L56)) -> 0 | G59: =IF('Summary of Hours'!G56=0,0,('Summary of Hours'!G56/'Summary of Hours'!$L56)) -> 0 | H59: =IF('Summary of Hours'!H56=0,0,('Summary of Hours'!H56/'Summary of Hours'!$L56)) -> 0 | I59: =IF('Summary of Hours'!I56=0,0,('Summary of Hours'!I56/'Summary of Hours'!$L56)) -> 0 | J59: =IF('Summary of Hours'!J56=0,0,('Summary of Hours'!J56/'Summary of Hours'!$L56)) -> 0 | K59: =IF('Summary of Hours'!K56=0,0,('Summary of Hours'!K56/'Summary of Hours'!$L56)) -> 0 | L59: 0
A60: 2017-06-01 | B60: =IF('Summary of Hours'!B57=0,0,('Summary of Hours'!B57/'Summary of Hours'!$L57)) -> 0 | C60: =IF('Summary of Hours'!C57=0,0,('Summary of Hours'!C57/'Summary of Hours'!$L57)) -> 0 | D60: =IF('Summary of Hours'!D57=0,0,('Summary of Hours'!D57/'Summary of Hours'!$L57)) -> 0 | E60: =IF('Summary of Hours'!E57=0,0,('Summary of Hours'!E57/'Summary of Hours'!$L57)) -> 0 | F60: =IF('Summary of Hours'!F57=0,0,('Summary of Hours'!F57/'Summary of Hours'!$L57)) -> 0 | G60: =IF('Summary of Hours'!G57=0,0,('Summary of Hours'!G57/'Summary of Hours'!$L57)) -> 0 | H60: =IF('Summary of Hours'!H57=0,0,('Summary of Hours'!H57/'Summary of Hours'!$L57)) -> 0 | I60: =IF('Summary of Hours'!I57=0,0,('Summary of Hours'!I57/'Summary of Hours'!$L57)) -> 0 | J60: =IF('Summary of Hours'!J57=0,0,('Summary of Hours'!J57/'Summary of Hours'!$L57)) -> 0 | K60: =IF('Summary of Hours'!K57=0,0,('Summary of Hours'!K57/'Summary of Hours'!$L57)) -> 0 | L60: 0
A61: 2017-07-01 | B61: =IF('Summary of Hours'!B58=0,0,('Summary of Hours'!B58/'Summary of Hours'!$L58)) -> 0 | C61: =IF('Summary of Hours'!C58=0,0,('Summary of Hours'!C58/'Summary of Hours'!$L58)) -> 0 | D61: =IF('Summary of Hours'!D58=0,0,('Summary of Hours'!D58/'Summary of Hours'!$L58)) -> 0 | E61: =IF('Summary of Hours'!E58=0,0,('Summary of Hours'!E58/'Summary of Hours'!$L58)) -> 0 | F61: =IF('Summary of Hours'!F58=0,0,('Summary of Hours'!F58/'Summary of Hours'!$L58)) -> 0 | G61: =IF('Summary of Hours'!G58=0,0,('Summary of Hours'!G58/'Summary of Hours'!$L58)) -> 0 | H61: =IF('Summary of Hours'!H58=0,0,('Summary of Hours'!H58/'Summary of Hours'!$L58)) -> 0 | I61: =IF('Summary of Hours'!I58=0,0,('Summary of Hours'!I58/'Summary of Hours'!$L58)) -> 0 | J61: =IF('Summary of Hours'!J58=0,0,('Summary of Hours'!J58/'Summary of Hours'!$L58)) -> 0 | K61: =IF('Summary of Hours'!K58=0,0,('Summary of Hours'!K58/'Summary of Hours'!$L58)) -> 0 | L61: 0
A62: 2017-08-01 | B62: =IF('Summary of Hours'!B59=0,0,('Summary of Hours'!B59/'Summary of Hours'!$L59)) -> 0 | C62: =IF('Summary of Hours'!C59=0,0,('Summary of Hours'!C59/'Summary of Hours'!$L59)) -> 0 | D62: =IF('Summary of Hours'!D59=0,0,('Summary of Hours'!D59/'Summary of Hours'!$L59)) -> 0 | E62: =IF('Summary of Hours'!E59=0,0,('Summary of Hours'!E59/'Summary of Hours'!$L59)) -> 0 | F62: =IF('Summary of Hours'!F59=0,0,('Summary of Hours'!F59/'Summary of Hours'!$L59)) -> 0 | G62: =IF('Summary of Hours'!G59=0,0,('Summary of Hours'!G59/'Summary of Hours'!$L59)) -> 0 | H62: =IF('Summary of Hours'!H59=0,0,('Summary of Hours'!H59/'Summary of Hours'!$L59)) -> 0 | I62: =IF('Summary of Hours'!I59=0,0,('Summary of Hours'!I59/'Summary of Hours'!$L59)) -> 0 | J62: =IF('Summary of Hours'!J59=0,0,('Summary of Hours'!J59/'Summary of Hours'!$L59)) -> 0 | K62: =IF('Summary of Hours'!K59=0,0,('Summary of Hours'!K59/'Summary of Hours'!$L59)) -> 0 | L62: 0
A63: 2017-09-01 | B63: =IF('Summary of Hours'!B60=0,0,('Summary of Hours'!B60/'Summary of Hours'!$L60)) -> 0 | C63: =IF('Summary of Hours'!C60=0,0,('Summary of Hours'!C60/'Summary of Hours'!$L60)) -> 0 | D63: =IF('Summary of Hours'!D60=0,0,('Summary of Hours'!D60/'Summary of Hours'!$L60)) -> 0 | E63: =IF('Summary of Hours'!E60=0,0,('Summary of Hours'!E60/'Summary of Hours'!$L60)) -> 0 | F63: =IF('Summary of Hours'!F60=0,0,('Summary of Hours'!F60/'Summary of Hours'!$L60)) -> 0 | G63: =IF('Summary of Hours'!G60=0,0,('Summary of Hours'!G60/'Summary of Hours'!$L60)) -> 0 | H63: =IF('Summary of Hours'!H60=0,0,('Summary of Hours'!H60/'Summary of Hours'!$L60)) -> 0 | I63: =IF('Summary of Hours'!I60=0,0,('Summary of Hours'!I60/'Summary of Hours'!$L60)) -> 0 | J63: =IF('Summary of Hours'!J60=0,0,('Summary of Hours'!J60/'Summary of Hours'!$L60)) -> 0 | K63: =IF('Summary of Hours'!K60=0,0,('Summary of Hours'!K60/'Summary of Hours'!$L60)) -> 0 | L63: 0
A64: Charge | B64: =IF('Summary of Hours'!B61=0,0,('Summary of Hours'!B61/(SUMIF('Summary of Hours'!B49:B60,">0",'Summary of Hours'!$L49:$L60)))) -> 0 | C64: =IF('Summary of Hours'!C61=0,0,('Summary of Hours'!C61/(SUMIF('Summary of Hours'!C49:C60,">0",'Summary of Hours'!$L49:$L60)))) -> 0 | D64: =IF('Summary of Hours'!D61=0,0,('Summary of Hours'!D61/(SUMIF('Summary of Hours'!D49:D60,">0",'Summary of Hours'!$L49:$L60)))) -> 0 | E64: =IF('Summary of Hours'!E61=0,0,('Summary of Hours'!E61/(SUMIF('Summary of Hours'!E49:E60,">0",'Summary of Hours'!$L49:$L60)))) -> 0 | F64: =IF('Summary of Hours'!F61=0,0,('Summary of Hours'!F61/(SUMIF('Summary of Hours'!F49:F60,">0",'Summary of Hours'!$L49:$L60)))) -> 0 | G64: =IF('Summary of Hours'!G61=0,0,('Summary of Hours'!G61/(SUMIF('Summary of Hours'!G49:G60,">0",'Summary of Hours'!$L49:$L60)))) -> 0 | H64: =IF('Summary of Hours'!H61=0,0,('Summary of Hours'!H61/(SUMIF('Summary of Hours'!H49:H60,">0",'Summary of Hours'!$L49:$L60)))) -> 0 | I64: =IF('Summary of Hours'!I61=0,0,('Summary of Hours'!I61/(SUMIF('Summary of Hours'!I49:I60,">0",'Summary of Hours'!$L49:$L60)))) -> 0 | J64: =IF('Summary of Hours'!J61=0,0,('Summary of Hours'!J61/(SUMIF('Summary of Hours'!J49:J60,">0",'Summary of Hours'!$L49:$L60)))) -> 0 | K64: =IF('Summary of Hours'!K61=0,0,('Summary of Hours'!K61/(SUMIF('Summary of Hours'!K49:K60,">0",'Summary of Hours'!$L49:$L60)))) -> 0
A65: Months Charged | B65: =COUNTIF(B52:B63,">0") -> 0 | C65: =COUNTIF(C52:C63,">0") -> 0 | D65: 0 | E65: 0 | F65: 0 | G65: 0 | H65: 0 | I65: 0 | J65: 0 | K65: 0
A67: =EOMONTH(A63,0)+1 -> 2017-10-01 | B67: =IF('Summary of Hours'!B63=0,0,('Summary of Hours'!B63/'Summary of Hours'!$L63)) -> 0 | C67: =IF('Summary of Hours'!C63=0,0,('Summary of Hours'!C63/'Summary of Hours'!$L63)) -> 0 | D67: =IF('Summary of Hours'!D63=0,0,('Summary of Hours'!D63/'Summary of Hours'!$L63)) -> 0 | E67: =IF('Summary of Hours'!E63=0,0,('Summary of Hours'!E63/'Summary of Hours'!$L63)) -> 0 | F67: =IF('Summary of Hours'!F63=0,0,('Summary of Hours'!F63/'Summary of Hours'!$L63)) -> 0 | G67: =IF('Summary of Hours'!G63=0,0,('Summary of Hours'!G63/'Summary of Hours'!$L63)) -> 0 | H67: =IF('Summary of Hours'!H63=0,0,('Summary of Hours'!H63/'Summary of Hours'!$L63)) -> 0 | I67: =IF('Summary of Hours'!I63=0,0,('Summary of Hours'!I63/'Summary of Hours'!$L63)) -> 0 | J67: =IF('Summary of Hours'!J63=0,0,('Summary of Hours'!J63/'Summary of Hours'!$L63)) -> 0 | K67: =IF('Summary of Hours'!K63=0,0,('Summary of Hours'!K63/'Summary of Hours'!$L63)) -> 0 | L67: =SUM(B67:K67) -> 0
A68: =EOMONTH(A67,0)+1 -> 2017-11-01 | B68: =IF('Summary of Hours'!B64=0,0,('Summary of Hours'!B64/'Summary of Hours'!$L64)) -> 0 | C68: =IF('Summary of Hours'!C64=0,0,('Summary of Hours'!C64/'Summary of Hours'!$L64)) -> 0 | D68: =IF('Summary of Hours'!D64=0,0,('Summary of Hours'!D64/'Summary of Hours'!$L64)) -> 0 | E68: =IF('Summary of Hours'!E64=0,0,('Summary of Hours'!E64/'Summary of Hours'!$L64)) -> 0 | F68: =IF('Summary of Hours'!F64=0,0,('Summary of Hours'!F64/'Summary of Hours'!$L64)) -> 0 | G68: =IF('Summary of Hours'!G64=0,0,('Summary of Hours'!G64/'Summary of Hours'!$L64)) -> 0 | H68: =IF('Summary of Hours'!H64=0,0,('Summary of Hours'!H64/'Summary of Hours'!$L64)) -> 0 | I68: =IF('Summary of Hours'!I64=0,0,('Summary of Hours'!I64/'Summary of Hours'!$L64)) -> 0 | J68: =IF('Summary of Hours'!J64=0,0,('Summary of Hours'!J64/'Summary of Hours'!$L64)) -> 0 | K68: =IF('Summary of Hours'!K64=0,0,('Summary of Hours'!K64/'Summary of Hours'!$L64)) -> 0 | L68: =SUM(B68:K68) -> 0
A69: =EOMONTH(A68,0)+1 -> 2017-12-01 | B69: =IF('Summary of Hours'!B65=0,0,('Summary of Hours'!B65/'Summary of Hours'!$L65)) -> 0 | C69: =IF('Summary of Hours'!C65=0,0,('Summary of Hours'!C65/'Summary of Hours'!$L65)) -> 0 | D69: =IF('Summary of Hours'!D65=0,0,('Summary of Hours'!D65/'Summary of Hours'!$L65)) -> 0 | E69: =IF('Summary of Hours'!E65=0,0,('Summary of Hours'!E65/'Summary of Hours'!$L65)) -> 0 | F69: =IF('Summary of Hours'!F65=0,0,('Summary of Hours'!F65/'Summary of Hours'!$L65)) -> 0 | G69: =IF('Summary of Hours'!G65=0,0,('Summary of Hours'!G65/'Summary of Hours'!$L65)) -> 0 | H69: =IF('Summary of Hours'!H65=0,0,('Summary of Hours'!H65/'Summary of Hours'!$L65)) -> 0 | I69: =IF('Summary of Hours'!I65=0,0,('Summary of Hours'!I65/'Summary of Hours'!$L65)) -> 0 | J69: =IF('Summary of Hours'!J65=0,0,('Summary of Hours'!J65/'Summary of Hours'!$L65)) -> 0 | K69: =IF('Summary of Hours'!K65=0,0,('Summary of Hours'!K65/'Summary of Hours'!$L65)) -> 0 | L69: 0
A70: 2018-01-01 | B70: =IF('Summary of Hours'!B66=0,0,('Summary of Hours'!B66/'Summary of Hours'!$L66)) -> 0 | C70: =IF('Summary of Hours'!C66=0,0,('Summary of Hours'!C66/'Summary of Hours'!$L66)) -> 0 | D70: =IF('Summary of Hours'!D66=0,0,('Summary of Hours'!D66/'Summary of Hours'!$L66)) -> 0 | E70: =IF('Summary of Hours'!E66=0,0,('Summary of Hours'!E66/'Summary of Hours'!$L66)) -> 0 | F70: =IF('Summary of Hours'!F66=0,0,('Summary of Hours'!F66/'Summary of Hours'!$L66)) -> 0 | G70: =IF('Summary of Hours'!G66=0,0,('Summary of Hours'!G66/'Summary of Hours'!$L66)) -> 0 | H70: =IF('Summary of Hours'!H66=0,0,('Summary of Hours'!H66/'Summary of Hours'!$L66)) -> 0 | I70: =IF('Summary of Hours'!I66=0,0,('Summary of Hours'!I66/'Summary of Hours'!$L66)) -> 0 | J70: =IF('Summary of Hours'!J66=0,0,('Summary of Hours'!J66/'Summary of Hours'!$L66)) -> 0 | K70: =IF('Summary of Hours'!K66=0,0,('Summary of Hours'!K66/'Summary of Hours'!$L66)) -> 0 | L70: 0
A71: 2018-02-01 | B71: =IF('Summary of Hours'!B67=0,0,('Summary of Hours'!B67/'Summary of Hours'!$L67)) -> 0 | C71: =IF('Summary of Hours'!C67=0,0,('Summary of Hours'!C67/'Summary of Hours'!$L67)) -> 0 | D71: =IF('Summary of Hours'!D67=0,0,('Summary of Hours'!D67/'Summary of Hours'!$L67)) -> 0 | E71: =IF('Summary of Hours'!E67=0,0,('Summary of Hours'!E67/'Summary of Hours'!$L67)) -> 0 | F71: =IF('Summary of Hours'!F67=0,0,('Summary of Hours'!F67/'Summary of Hours'!$L67)) -> 0 | G71: =IF('Summary of Hours'!G67=0,0,('Summary of Hours'!G67/'Summary of Hours'!$L67)) -> 0 | H71: =IF('Summary of Hours'!H67=0,0,('Summary of Hours'!H67/'Summary of Hours'!$L67)) -> 0 | I71: =IF('Summary of Hours'!I67=0,0,('Summary of Hours'!I67/'Summary of Hours'!$L67)) -> 0 | J71: =IF('Summary of Hours'!J67=0,0,('Summary of Hours'!J67/'Summary of Hours'!$L67)) -> 0 | K71: =IF('Summary of Hours'!K67=0,0,('Summary of Hours'!K67/'Summary of Hours'!$L67)) -> 0 | L71: 0
A72: 2018-03-01 | B72: =IF('Summary of Hours'!B68=0,0,('Summary of Hours'!B68/'Summary of Hours'!$L68)) -> 0 | C72: =IF('Summary of Hours'!C68=0,0,('Summary of Hours'!C68/'Summary of Hours'!$L68)) -> 0 | D72: =IF('Summary of Hours'!D68=0,0,('Summary of Hours'!D68/'Summary of Hours'!$L68)) -> 0 | E72: =IF('Summary of Hours'!E68=0,0,('Summary of Hours'!E68/'Summary of Hours'!$L68)) -> 0 | F72: =IF('Summary of Hours'!F68=0,0,('Summary of Hours'!F68/'Summary of Hours'!$L68)) -> 0 | G72: =IF('Summary of Hours'!G68=0,0,('Summary of Hours'!G68/'Summary of Hours'!$L68)) -> 0 | H72: =IF('Summary of Hours'!H68=0,0,('Summary of Hours'!H68/'Summary of Hours'!$L68)) -> 0 | I72: =IF('Summary of Hours'!I68=0,0,('Summary of Hours'!I68/'Summary of Hours'!$L68)) -> 0 | J72: =IF('Summary of Hours'!J68=0,0,('Summary of Hours'!J68/'Summary of Hours'!$L68)) -> 0 | K72: =IF('Summary of Hours'!K68=0,0,('Summary of Hours'!K68/'Summary of Hours'!$L68)) -> 0 | L72: 0
A73: 2018-04-01 | B73: =IF('Summary of Hours'!B69=0,0,('Summary of Hours'!B69/'Summary of Hours'!$L69)) -> 0 | C73: =IF('Summary of Hours'!C69=0,0,('Summary of Hours'!C69/'Summary of Hours'!$L69)) -> 0 | D73: =IF('Summary of Hours'!D69=0,0,('Summary of Hours'!D69/'Summary of Hours'!$L69)) -> 0 | E73: =IF('Summary of Hours'!E69=0,0,('Summary of Hours'!E69/'Summary of Hours'!$L69)) -> 0 | F73: =IF('Summary of Hours'!F69=0,0,('Summary of Hours'!F69/'Summary of Hours'!$L69)) -> 0 | G73: =IF('Summary of Hours'!G69=0,0,('Summary of Hours'!G69/'Summary of Hours'!$L69)) -> 0 | H73: =IF('Summary of Hours'!H69=0,0,('Summary of Hours'!H69/'Summary of Hours'!$L69)) -> 0 | I73: =IF('Summary of Hours'!I69=0,0,('Summary of Hours'!I69/'Summary of Hours'!$L69)) -> 0 | J73: =IF('Summary of Hours'!J69=0,0,('Summary of Hours'!J69/'Summary of Hours'!$L69)) -> 0 | K73: =IF('Summary of Hours'!K69=0,0,('Summary of Hours'!K69/'Summary of Hours'!$L69)) -> 0 | L73: 0
A74: 2018-05-01 | B74: =IF('Summary of Hours'!B70=0,0,('Summary of Hours'!B70/'Summary of Hours'!$L70)) -> 0 | C74: =IF('Summary of Hours'!C70=0,0,('Summary of Hours'!C70/'Summary of Hours'!$L70)) -> 0 | D74: =IF('Summary of Hours'!D70=0,0,('Summary of Hours'!D70/'Summary of Hours'!$L70)) -> 0 | E74: =IF('Summary of Hours'!E70=0,0,('Summary of Hours'!E70/'Summary of Hours'!$L70)) -> 0 | F74: =IF('Summary of Hours'!F70=0,0,('Summary of Hours'!F70/'Summary of Hours'!$L70)) -> 0 | G74: =IF('Summary of Hours'!G70=0,0,('Summary of Hours'!G70/'Summary of Hours'!$L70)) -> 0 | H74: =IF('Summary of Hours'!H70=0,0,('Summary of Hours'!H70/'Summary of Hours'!$L70)) -> 0 | I74: =IF('Summary of Hours'!I70=0,0,('Summary of Hours'!I70/'Summary of Hours'!$L70)) -> 0 | J74: =IF('Summary of Hours'!J70=0,0,('Summary of Hours'!J70/'Summary of Hours'!$L70)) -> 0 | K74: =IF('Summary of Hours'!K70=0,0,('Summary of Hours'!K70/'Summary of Hours'!$L70)) -> 0 | L74: 0
A75: 2018-06-01 | B75: =IF('Summary of Hours'!B71=0,0,('Summary of Hours'!B71/'Summary of Hours'!$L71)) -> 0 | C75: =IF('Summary of Hours'!C71=0,0,('Summary of Hours'!C71/'Summary of Hours'!$L71)) -> 0 | D75: =IF('Summary of Hours'!D71=0,0,('Summary of Hours'!D71/'Summary of Hours'!$L71)) -> 0 | E75: =IF('Summary of Hours'!E71=0,0,('Summary of Hours'!E71/'Summary of Hours'!$L71)) -> 0 | F75: =IF('Summary of Hours'!F71=0,0,('Summary of Hours'!F71/'Summary of Hours'!$L71)) -> 0 | G75: =IF('Summary of Hours'!G71=0,0,('Summary of Hours'!G71/'Summary of Hours'!$L71)) -> 0 | H75: =IF('Summary of Hours'!H71=0,0,('Summary of Hours'!H71/'Summary of Hours'!$L71)) -> 0 | I75: =IF('Summary of Hours'!I71=0,0,('Summary of Hours'!I71/'Summary of Hours'!$L71)) -> 0 | J75: =IF('Summary of Hours'!J71=0,0,('Summary of Hours'!J71/'Summary of Hours'!$L71)) -> 0 | K75: =IF('Summary of Hours'!K71=0,0,('Summary of Hours'!K71/'Summary of Hours'!$L71)) -> 0 | L75: 0
A76: 2018-07-01 | B76: =IF('Summary of Hours'!B72=0,0,('Summary of Hours'!B72/'Summary of Hours'!$L72)) -> 0 | C76: =IF('Summary of Hours'!C72=0,0,('Summary of Hours'!C72/'Summary of Hours'!$L72)) -> 0 | D76: =IF('Summary of Hours'!D72=0,0,('Summary of Hours'!D72/'Summary of Hours'!$L72)) -> 0 | E76: =IF('Summary of Hours'!E72=0,0,('Summary of Hours'!E72/'Summary of Hours'!$L72)) -> 0 | F76: =IF('Summary of Hours'!F72=0,0,('Summary of Hours'!F72/'Summary of Hours'!$L72)) -> 0 | G76: =IF('Summary of Hours'!G72=0,0,('Summary of Hours'!G72/'Summary of Hours'!$L72)) -> 0 | H76: =IF('Summary of Hours'!H72=0,0,('Summary of Hours'!H72/'Summary of Hours'!$L72)) -> 0 | I76: =IF('Summary of Hours'!I72=0,0,('Summary of Hours'!I72/'Summary of Hours'!$L72)) -> 0 | J76: =IF('Summary of Hours'!J72=0,0,('Summary of Hours'!J72/'Summary of Hours'!$L72)) -> 0 | K76: =IF('Summary of Hours'!K72=0,0,('Summary of Hours'!K72/'Summary of Hours'!$L72)) -> 0 | L76: 0
A77: 2018-08-01 | B77: =IF('Summary of Hours'!B73=0,0,('Summary of Hours'!B73/'Summary of Hours'!$L73)) -> 0 | C77: =IF('Summary of Hours'!C73=0,0,('Summary of Hours'!C73/'Summary of Hours'!$L73)) -> 0 | D77: =IF('Summary of Hours'!D73=0,0,('Summary of Hours'!D73/'Summary of Hours'!$L73)) -> 0 | E77: =IF('Summary of Hours'!E73=0,0,('Summary of Hours'!E73/'Summary of Hours'!$L73)) -> 0 | F77: =IF('Summary of Hours'!F73=0,0,('Summary of Hours'!F73/'Summary of Hours'!$L73)) -> 0 | G77: =IF('Summary of Hours'!G73=0,0,('Summary of Hours'!G73/'Summary of Hours'!$L73)) -> 0 | H77: =IF('Summary of Hours'!H73=0,0,('Summary of Hours'!H73/'Summary of Hours'!$L73)) -> 0 | I77: =IF('Summary of Hours'!I73=0,0,('Summary of Hours'!I73/'Summary of Hours'!$L73)) -> 0 | J77: =IF('Summary of Hours'!J73=0,0,('Summary of Hours'!J73/'Summary of Hours'!$L73)) -> 0 | K77: =IF('Summary of Hours'!K73=0,0,('Summary of Hours'!K73/'Summary of Hours'!$L73)) -> 0 | L77: 0
A78: 2018-09-01 | B78: =IF('Summary of Hours'!B74=0,0,('Summary of Hours'!B74/'Summary of Hours'!$L74)) -> 0 | C78: =IF('Summary of Hours'!C74=0,0,('Summary of Hours'!C74/'Summary of Hours'!$L74)) -> 0 | D78: =IF('Summary of Hours'!D74=0,0,('Summary of Hours'!D74/'Summary of Hours'!$L74)) -> 0 | E78: =IF('Summary of Hours'!E74=0,0,('Summary of Hours'!E74/'Summary of Hours'!$L74)) -> 0 | F78: =IF('Summary of Hours'!F74=0,0,('Summary of Hours'!F74/'Summary of Hours'!$L74)) -> 0 | G78: =IF('Summary of Hours'!G74=0,0,('Summary of Hours'!G74/'Summary of Hours'!$L74)) -> 0 | H78: =IF('Summary of Hours'!H74=0,0,('Summary of Hours'!H74/'Summary of Hours'!$L74)) -> 0 | I78: =IF('Summary of Hours'!I74=0,0,('Summary of Hours'!I74/'Summary of Hours'!$L74)) -> 0 | J78: =IF('Summary of Hours'!J74=0,0,('Summary of Hours'!J74/'Summary of Hours'!$L74)) -> 0 | K78: =IF('Summary of Hours'!K74=0,0,('Summary of Hours'!K74/'Summary of Hours'!$L74)) -> 0 | L78: 0
A79: Charge | B79: =IF('Summary of Hours'!B75=0,0,('Summary of Hours'!B75/(SUMIF('Summary of Hours'!B63:B74,">0",'Summary of Hours'!$L63:$L74)))) -> 0 | C79: =IF('Summary of Hours'!C75=0,0,('Summary of Hours'!C75/(SUMIF('Summary of Hours'!C63:C74,">0",'Summary of Hours'!$L63:$L74)))) -> 0 | D79: =IF('Summary of Hours'!D75=0,0,('Summary of Hours'!D75/(SUMIF('Summary of Hours'!D63:D74,">0",'Summary of Hours'!$L63:$L74)))) -> 0 | E79: =IF('Summary of Hours'!E75=0,0,('Summary of Hours'!E75/(SUMIF('Summary of Hours'!E63:E74,">0",'Summary of Hours'!$L63:$L74)))) -> 0 | F79: =IF('Summary of Hours'!F75=0,0,('Summary of Hours'!F75/(SUMIF('Summary of Hours'!F63:F74,">0",'Summary of Hours'!$L63:$L74)))) -> 0 | G79: =IF('Summary of Hours'!G75=0,0,('Summary of Hours'!G75/(SUMIF('Summary of Hours'!G63:G74,">0",'Summary of Hours'!$L63:$L74)))) -> 0 | H79: =IF('Summary of Hours'!H75=0,0,('Summary of Hours'!H75/(SUMIF('Summary of Hours'!H63:H74,">0",'Summary of Hours'!$L63:$L74)))) -> 0 | I79: =IF('Summary of Hours'!I75=0,0,('Summary of Hours'!I75/(SUMIF('Summary of Hours'!I63:I74,">0",'Summary of Hours'!$L63:$L74)))) -> 0 | J79: =IF('Summary of Hours'!J75=0,0,('Summary of Hours'!J75/(SUMIF('Summary of Hours'!J63:J74,">0",'Summary of Hours'!$L63:$L74)))) -> 0 | K79: =IF('Summary of Hours'!K75=0,0,('Summary of Hours'!K75/(SUMIF('Summary of Hours'!K63:K74,">0",'Summary of Hours'!$L63:$L74)))) -> 0
A80: Months Charged | B80: =COUNTIF(B67:B78,">0") -> 0 | C80: =COUNTIF(C67:C78,">0") -> 0 | D80: 0 | E80: 0 | F80: 0 | G80: 0 | H80: 0 | I80: 0 | J80: 0 | K80: 0

Sheet Summary of Recovery
A1: Summary of Recovery
A2: *The 'Recovery Summary' worksheet tracks working time against the minimum productive hours required in accordance with the employee's contracted hours of employment (see section 9 in the Instructions worksheet for further information)
A3: Funding Source: | B3: =IF('Main Award'!$B$2="Select Funding Source"," ",'Main Award'!$B$2) -> OST RESEARCH COUNCIL | C3: =IF('Other 1'!$B$2="Select Funding Source"," ",'Other 1'!$B$2) -> FP7 EU COMMISSION | D3: =IF('Other 2'!$B$2="Select Funding Source"," ",'Other 2'!$B$2) -> FP7 EU COMMISSION | E3: =IF('Other 3'!$B$2="Select Funding Source"," ",'Other 3'!$B$2) ->  | F3: =IF('Other 4'!$B$2="Select Funding Source"," ",'Other 4'!$B$2) ->  | G3: =IF('Other 5'!$B$2="Select Funding Source"," ",'Other 5'!$B$2) ->  | H3: =IF('Other 6'!$B$2="Select Funding Source"," ",'Other 6'!$B$2) ->  | I3: =IF('Other 7'!$B$2="Select Funding Source"," ",'Other 7'!$B$2) ->  | J3: =IF('Other 8'!$B$2="Select Funding Source"," ",'Other 8'!$B$2) ->  | K3: =IF('Other 9'!$B$2="Select Funding Source"," ",'Other 9'!$B$2) ->  | L3: Total Productive Hours Worked | M3: Total Hours Absence | N3: Total of Productive Hours Worked and Absence | O3: Total Weekday Hours Per Month | P3: Variance of Hours | Q3: Recovery
A4: Award / Project Number: | B4: =IF('Main Award'!$B$3="Enter Award/Project Number"," ",'Main Award'!$B$3) -> PHHE P44300 | C4: =IF('Other 1'!$B$3="Enter Award/Project Number"," ",'Other 1'!$B$3) -> PHHE P32997 | D4: =IF('Other 2'!$B$3="Enter Award/Project Number"," ",'Other 2'!$B$3) -> PHHE P32997 | E4: =IF('Other 3'!$B$3="Enter Award/Project Number"," ",'Other 3'!$B$3) ->  | F4: =IF('Other 4'!$B$3="Enter Award/Project Number"," ",'Other 4'!$B$3) ->  | G4: =IF('Other 5'!$B$3="Enter Award/Project Number"," ",'Other 5'!$B$3) ->  | H4: =IF('Other 6'!$B$3="Enter Award/Project Number"," ",'Other 6'!$B$3) ->  | I4: =IF('Other 7'!$B$3="Enter Award/Project Number"," ",'Other 7'!$B$3) ->  | J4: =IF('Other 8'!$B$3="Enter Award/Project Number"," ",'Other 8'!$B$3) ->  | K4: =IF('Other 9'!$B$3="Enter Award/Project Number"," ",'Other 9'!$B$3) -> 
A5: Short Title: | B5: =IF('Main Award'!$B$4="Enter Acronym/Short Title"," ",'Main Award'!$B$4) -> GridPP Tranche II | C5: =IF('Other 1'!$B$4="Enter Acronym/Short Title"," ",'Other 1'!$B$4) -> EGI Research | D5: =IF('Other 2'!$B$4="Enter Acronym/Short Title"," ",'Other 2'!$B$4) -> EGI Coordination | E5: =IF('Other 3'!$B$4="Enter Acronym/Short Title"," ",'Other 3'!$B$4) ->  | F5: =IF('Other 4'!$B$4="Enter Acronym/Short Title"," ",'Other 4'!$B$4) ->  | G5: =IF('Other 5'!$B$4="Enter Acronym/Short Title"," ",'Other 5'!$B$4) ->  | H5: =IF('Other 6'!$B$4="Enter Acronym/Short Title"," ",'Other 6'!$B$4) ->  | I5: =IF('Other 7'!$B$4="Enter Acronym/Short Title"," ",'Other 7'!$B$4) ->  | J5: =IF('Other 8'!$B$4="Enter Acronym/Short Title"," ",'Other 8'!$B$4) ->  | K5: =IF('Other 9'!$B$4="Enter Acronym/Short Title"," ",'Other 9'!$B$4) -> 
A7: ='Employee Details'!$L$9 -> 2013-10-01 | B7: ='Main Award'!$K10 -> 82 | C7: ='Other 1'!$K10 -> 77 | D7: ='Other 2'!$K10 -> 5 | E7: ='Other 3'!$K10 -> 0 | F7: ='Other 4'!$K10 -> 0 | G7: ='Other 5'!$K10 -> 0 | H7: ='Other 6'!$K10 -> 0 | I7: ='Other 7'!$K10 -> 0 | J7: ='Other 8'!$K10 -> 0 | K7: ='Other 9'!$K10 -> 0 | L7: =SUM(B7:K7) -> 164 | M7: =Absence!H8 -> 0 | N7: =SUM(L7:M7) -> 164 | O7: =(IF(N7=0,0,IF('Employee Details'!$G$5="Select Hours Model",0,((NETWORKDAYS(A7,EOMONTH(A7,0),0)*'Employee Details'!$G$5/5))))*(IF(N7=0,0,IF('Employee Details'!$G$5="Select Hours Model",0,IF(AND(A7>='Employee Details'!$L$9,A7<='Employee Details'!$M$9),'Employee Details'!$K$9,IF(AND(A7>='Employee Details'!$L$10,A7<='Employee Details'!$M$10),'Employee Details'!$K$10,IF(AND(A7>='Employee Details'!$L$11,A7<='Employee Details'!$M$11),'Employee Details'!$K$11,IF(AND(A7>='Employee Details'!$L$12,A7<='Employee Details'!$M$12),'Employee Details'!$K$12,IF(AND(A7>='Employee Details'!$L$13,A7<='Employee Details'!$M$13),'Employee Details'!$K$13,'Employee Details'!$K$9))))))))) -> 161 | P7: =N7-O7 -> 3 | Q7: =IF(L7=0,0,IF(O7=0,0,L7/(O7-M7))) -> 1.01863354
A8: =EOMONTH(A7,0)+1 -> 2013-11-01 | B8: ='Main Award'!$K11 -> 78 | C8: ='Other 1'!$K11 -> 73 | D8: ='Other 2'!$K11 -> 4.5 | E8: ='Other 3'!$K11 -> 0 | F8: ='Other 4'!$K11 -> 0 | G8: ='Other 5'!$K11 -> 0 | H8: ='Other 6'!$K11 -> 0 | I8: ='Other 7'!$K11 -> 0 | J8: ='Other 8'!$K11 -> 0 | K8: ='Other 9'!$K11 -> 0 | L8: =SUM(B8:K8) -> 155.5 | M8: =Absence!H9 -> 0 | N8: =SUM(L8:M8) -> 155.5 | O8: =(IF(N8=0,0,IF('Employee Details'!$G$5="Select Hours Model",0,((NETWORKDAYS(A8,EOMONTH(A8,0),0)*'Employee Details'!$G$5/5))))*(IF(N8=0,0,IF('Employee Details'!$G$5="Select Hours Model",0,IF(AND(A8>='Employee Details'!$L$9,A8<='Employee Details'!$M$9),'Employee Details'!$K$9,IF(AND(A8>='Employee Details'!$L$10,A8<='Employee Details'!$M$10),'Employee Details'!$K$10,IF(AND(A8>='Employee Details'!$L$11,A8<='Employee Details'!$M$11),'Employee Details'!$K$11,IF(AND(A8>='Employee Details'!$L$12,A8<='Employee Details'!$M$12),'Employee Details'!$K$12,IF(AND(A8>='Employee Details'!$L$13,A8<='Employee Details'!$M$13),'Employee Details'!$K$13,'Employee Details'!$K$9))))))))) -> 0 | P8: =N8-O8 -> 155.5 | Q8: =IF(L8=0,0,IF(O8=0,0,L8/(O8-M8))) -> 0
A9: =EOMONTH(A8,0)+1 -> 2013-12-01 | B9: ='Main Award'!$K12 -> 54 | C9: ='Other 1'!$K12 -> 51 | D9: ='Other 2'!$K12 -> 3.5 | E9: ='Other 3'!$K12 -> 0 | F9: ='Other 4'!$K12 -> 0 | G9: ='Other 5'!$K12 -> 0 | H9: ='Other 6'!$K12 -> 0 | I9: ='Other 7'!$K12 -> 0 | J9: ='Other 8'!$K12 -> 0 | K9: ='Other 9'!$K12 -> 0 | L9: 108.5 | M9: =Absence!H10 -> 49 | N9: =SUM(L9:M9) -> 157.5 | O9: =(IF(N9=0,0,IF('Employee Details'!$G$5="Select Hours Model",0,((NETWORKDAYS(A9,EOMONTH(A9,0),0)*'Employee Details'!$G$5/5))))*(IF(N9=0,0,IF('Employee Details'!$G$5="Select Hours Model",0,IF(AND(A9>='Employee Details'!$L$9,A9<='Employee Details'!$M$9),'Employee Details'!$K$9,IF(AND(A9>='Employee Details'!$L$10,A9<='Employee Details'!$M$10),'Employee Details'!$K$10,IF(AND(A9>='Employee Details'!$L$11,A9<='Employee Details'!$M$11),'Employee Details'!$K$11,IF(AND(A9>='Employee Details'!$L$12,A9<='Employee Details'!$M$12),'Employee Details'!$K$12,IF(AND(A9>='Employee Details'!$L$13,A9<='Employee Details'!$M$13),'Employee Details'!$K$13,'Employee Details'!$K$9))))))))) -> 0 | P9: 157.5 | Q9: =IF(L9=0,0,IF(O9=0,0,L9/(O9-M9))) -> 0
A10: 2014-01-01 | B10: ='Main Award'!$K13 -> 0 | C10: ='Other 1'!$K13 -> 0 | D10: ='Other 2'!$K13 -> 0 | E10: ='Other 3'!$K13 -> 0 | F10: ='Other 4'!$K13 -> 0 | G10: ='Other 5'!$K13 -> 0 | H10: ='Other 6'!$K13 -> 0 | I10: ='Other 7'!$K13 -> 0 | J10: ='Other 8'!$K13 -> 0 | K10: ='Other 9'!$K13 -> 0 | L10: 0 | M10: =Absence!H11 -> 0 | N10: 0 | O10: =(IF(N10=0,0,IF('Employee Details'!$G$5="Select Hours Model",0,((NETWORKDAYS(A10,EOMONTH(A10,0),0)*'Employee Details'!$G$5/5))))*(IF(N10=0,0,IF('Employee Details'!$G$5="Select Hours Model",0,IF(AND(A10>='Employee Details'!$L$9,A10<='Employee Details'!$M$9),'Employee Details'!$K$9,IF(AND(A10>='Employee Details'!$L$10,A10<='Employee Details'!$M$10),'Employee Details'!$K$10,IF(AND(A10>='Employee Details'!$L$11,A10<='Employee Details'!$M$11),'Employee Details'!$K$11,IF(AND(A10>='Employee Details'!$L$12,A10<='Employee Details'!$M$12),'Employee Details'!$K$12,IF(AND(A10>='Employee Details'!$L$13,A10<='Employee Details'!$M$13),'Employee Details'!$K$13,'Employee Details'!$K$9))))))))) -> 0 | P10: 0 | Q10: 0
A11: 2014-02-01 | B11: ='Main Award'!$K14 -> 0 | C11: ='Other 1'!$K14 -> 0 | D11: ='Other 2'!$K14 -> 0 | E11: ='Other 3'!$K14 -> 0 | F11: ='Other 4'!$K14 -> 0 | G11: ='Other 5'!$K14 -> 0 | H11: ='Other 6'!$K14 -> 0 | I11: ='Other 7'!$K14 -> 0 | J11: ='Other 8'!$K14 -> 0 | K11: ='Other 9'!$K14 -> 0 | L11: 0 | M11: =Absence!H12 -> 0 | N11: 0 | O11: =(IF(N11=0,0,IF('Employee Details'!$G$5="Select Hours Model",0,((NETWORKDAYS(A11,EOMONTH(A11,0),0)*'Employee Details'!$G$5/5))))*(IF(N11=0,0,IF('Employee Details'!$G$5="Select Hours Model",0,IF(AND(A11>='Employee Details'!$L$9,A11<='Employee Details'!$M$9),'Employee Details'!$K$9,IF(AND(A11>='Employee Details'!$L$10,A11<='Employee Details'!$M$10),'Employee Details'!$K$10,IF(AND(A11>='Employee Details'!$L$11,A11<='Employee Details'!$M$11),'Employee Details'!$K$11,IF(AND(A11>='Employee Details'!$L$12,A11<='Employee Details'!$M$12),'Employee Details'!$K$12,IF(AND(A11>='Employee Details'!$L$13,A11<='Employee Details'!$M$13),'Employee Details'!$K$13,'Employee Details'!$K$9))))))))) -> 0 | P11: 0 | Q11: 0
A12: 2014-03-01 | B12: ='Main Award'!$K15 -> 0 | C12: ='Other 1'!$K15 -> 0 | D12: ='Other 2'!$K15 -> 0 | E12: ='Other 3'!$K15 -> 0 | F12: ='Other 4'!$K15 -> 0 | G12: ='Other 5'!$K15 -> 0 | H12: ='Other 6'!$K15 -> 0 | I12: ='Other 7'!$K15 -> 0 | J12: ='Other 8'!$K15 -> 0 | K12: ='Other 9'!$K15 -> 0 | L12: 0 | M12: =Absence!H13 -> 0 | N12: 0 | O12: =(IF(N12=0,0,IF('Employee Details'!$G$5="Select Hours Model",0,((NETWORKDAYS(A12,EOMONTH(A12,0),0)*'Employee Details'!$G$5/5))))*(IF(N12=0,0,IF('Employee Details'!$G$5="Select Hours Model",0,IF(AND(A12>='Employee Details'!$L$9,A12<='Employee Details'!$M$9),'Employee Details'!$K$9,IF(AND(A12>='Employee Details'!$L$10,A12<='Employee Details'!$M$10),'Employee Details'!$K$10,IF(AND(A12>='Employee Details'!$L$11,A12<='Employee Details'!$M$11),'Employee Details'!$K$11,IF(AND(A12>='Employee Details'!$L$12,A12<='Employee Details'!$M$12),'Employee Details'!$K$12,IF(AND(A12>='Employee Details'!$L$13,A12<='Employee Details'!$M$13),'Employee Details'!$K$13,'Employee Details'!$K$9))))))))) -> 0 | P12: 0 | Q12: 0
A13: 2014-04-01 | B13: ='Main Award'!$K16 -> 0 | C13: ='Other 1'!$K16 -> 0 | D13: ='Other 2'!$K16 -> 0 | E13: ='Other 3'!$K16 -> 0 | F13: ='Other 4'!$K16 -> 0 | G13: ='Other 5'!$K16 -> 0 | H13: ='Other 6'!$K16 -> 0 | I13: ='Other 7'!$K16 -> 0 | J13: ='Other 8'!$K16 -> 0 | K13: ='Other 9'!$K16 -> 0 | L13: 0 | M13: =Absence!H14 -> 0 | N13: 0 | O13: =(IF(N13=0,0,IF('Employee Details'!$G$5="Select Hours Model",0,((NETWORKDAYS(A13,EOMONTH(A13,0),0)*'Employee Details'!$G$5/5))))*(IF(N13=0,0,IF('Employee Details'!$G$5="Select Hours Model",0,IF(AND(A13>='Employee Details'!$L$9,A13<='Employee Details'!$M$9),'Employee Details'!$K$9,IF(AND(A13>='Employee Details'!$L$10,A13<='Employee Details'!$M$10),'Employee Details'!$K$10,IF(AND(A13>='Employee Details'!$L$11,A13<='Employee Details'!$M$11),'Employee Details'!$K$11,IF(AND(A13>='Employee Details'!$L$12,A13<='Employee Details'!$M$12),'Employee Details'!$K$12,IF(AND(A13>='Employee Details'!$L$13,A13<='Employee Details'!$M$13),'Employee Details'!$K$13,'Employee Details'!$K$9))))))))) -> 0 | P13: 0 | Q13: 0
A14: 2014-05-01 | B14: ='Main Award'!$K17 -> 0 | C14: ='Other 1'!$K17 -> 0 | D14: ='Other 2'!$K17 -> 0 | E14: ='Other 3'!$K17 -> 0 | F14: ='Other 4'!$K17 -> 0 | G14: ='Other 5'!$K17 -> 0 | H14: ='Other 6'!$K17 -> 0 | I14: ='Other 7'!$K17 -> 0 | J14: ='Other 8'!$K17 -> 0 | K14: ='Other 9'!$K17 -> 0 | L14: 0 | M14: =Absence!H15 -> 0 | N14: 0 | O14: =(IF(N14=0,0,IF('Employee Details'!$G$5="Select Hours Model",0,((NETWORKDAYS(A14,EOMONTH(A14,0),0)*'Employee Details'!$G$5/5))))*(IF(N14=0,0,IF('Employee Details'!$G$5="Select Hours Model",0,IF(AND(A14>='Employee Details'!$L$9,A14<='Employee Details'!$M$9),'Employee Details'!$K$9,IF(AND(A14>='Employee Details'!$L$10,A14<='Employee Details'!$M$10),'Employee Details'!$K$10,IF(AND(A14>='Employee Details'!$L$11,A14<='Employee Details'!$M$11),'Employee Details'!$K$11,IF(AND(A14>='Employee Details'!$L$12,A14<='Employee Details'!$M$12),'Employee Details'!$K$12,IF(AND(A14>='Employee Details'!$L$13,A14<='Employee Details'!$M$13),'Employee Details'!$K$13,'Employee Details'!$K$9))))))))) -> 0 | P14: 0 | Q14: 0
A15: 2014-06-01 | B15: ='Main Award'!$K18 -> 0 | C15: ='Other 1'!$K18 -> 0 | D15: ='Other 2'!$K18 -> 0 | E15: ='Other 3'!$K18 -> 0 | F15: ='Other 4'!$K18 -> 0 | G15: ='Other 5'!$K18 -> 0 | H15: ='Other 6'!$K18 -> 0 | I15: ='Other 7'!$K18 -> 0 | J15: ='Other 8'!$K18 -> 0 | K15: ='Other 9'!$K18 -> 0 | L15: 0 | M15: =Absence!H16 -> 0 | N15: 0 | O15: =(IF(N15=0,0,IF('Employee Details'!$G$5="Select Hours Model",0,((NETWORKDAYS(A15,EOMONTH(A15,0),0)*'Employee Details'!$G$5/5))))*(IF(N15=0,0,IF('Employee Details'!$G$5="Select Hours Model",0,IF(AND(A15>='Employee Details'!$L$9,A15<='Employee Details'!$M$9),'Employee Details'!$K$9,IF(AND(A15>='Employee Details'!$L$10,A15<='Employee Details'!$M$10),'Employee Details'!$K$10,IF(AND(A15>='Employee Details'!$L$11,A15<='Employee Details'!$M$11),'Employee Details'!$K$11,IF(AND(A15>='Employee Details'!$L$12,A15<='Employee Details'!$M$12),'Employee Details'!$K$12,IF(AND(A15>='Employee Details'!$L$13,A15<='Employee Details'!$M$13),'Employee Details'!$K$13,'Employee Details'!$K$9))))))))) -> 0 | P15: 0 | Q15: 0
A16: 2014-07-01 | B16: ='Main Award'!$K19 -> 0 | C16: ='Other 1'!$K19 -> 0 | D16: ='Other 2'!$K19 -> 0 | E16: ='Other 3'!$K19 -> 0 | F16: ='Other 4'!$K19 -> 0 | G16: ='Other 5'!$K19 -> 0 | H16: ='Other 6'!$K19 -> 0 | I16: ='Other 7'!$K19 -> 0 | J16: ='Other 8'!$K19 -> 0 | K16: ='Other 9'!$K19 -> 0 | L16: 0 | M16: =Absence!H17 -> 0 | N16: 0 | O16: =(IF(N16=0,0,IF('Employee Details'!$G$5="Select Hours Model",0,((NETWORKDAYS(A16,EOMONTH(A16,0),0)*'Employee Details'!$G$5/5))))*(IF(N16=0,0,IF('Employee Details'!$G$5="Select Hours Model",0,IF(AND(A16>='Employee Details'!$L$9,A16<='Employee Details'!$M$9),'Employee Details'!$K$9,IF(AND(A16>='Employee Details'!$L$10,A16<='Employee Details'!$M$10),'Employee Details'!$K$10,IF(AND(A16>='Employee Details'!$L$11,A16<='Employee Details'!$M$11),'Employee Details'!$K$11,IF(AND(A16>='Employee Details'!$L$12,A16<='Employee Details'!$M$12),'Employee Details'!$K$12,IF(AND(A16>='Employee Details'!$L$13,A16<='Employee Details'!$M$13),'Employee Details'!$K$13,'Employee Details'!$K$9))))))))) -> 0 | P16: 0 | Q16: 0
A17: 2014-08-01 | B17: ='Main Award'!$K20 -> 0 | C17: ='Other 1'!$K20 -> 0 | D17: ='Other 2'!$K20 -> 0 | E17: ='Other 3'!$K20 -> 0 | F17: ='Other 4'!$K20 -> 0 | G17: ='Other 5'!$K20 -> 0 | H17: ='Other 6'!$K20 -> 0 | I17: ='Other 7'!$K20 -> 0 | J17: ='Other 8'!$K20 -> 0 | K17: ='Other 9'!$K20 -> 0 | L17: 0 | M17: =Absence!H18 -> 0 | N17: 0 | O17: =(IF(N17=0,0,IF('Employee Details'!$G$5="Select Hours Model",0,((NETWORKDAYS(A17,EOMONTH(A17,0),0)*'Employee Details'!$G$5/5))))*(IF(N17=0,0,IF('Employee Details'!$G$5="Select Hours Model",0,IF(AND(A17>='Employee Details'!$L$9,A17<='Employee Details'!$M$9),'Employee Details'!$K$9,IF(AND(A17>='Employee Details'!$L$10,A17<='Employee Details'!$M$10),'Employee Details'!$K$10,IF(AND(A17>='Employee Details'!$L$11,A17<='Employee Details'!$M$11),'Employee Details'!$K$11,IF(AND(A17>='Employee Details'!$L$12,A17<='Employee Details'!$M$12),'Employee Details'!$K$12,IF(AND(A17>='Employee Details'!$L$13,A17<='Employee Details'!$M$13),'Employee Details'!$K$13,'Employee Details'!$K$9))))))))) -> 0 | P17: 0 | Q17: 0
A18: 2014-09-01 | B18: ='Main Award'!$K21 -> 0 | C18: ='Other 1'!$K21 -> 0 | D18: ='Other 2'!$K21 -> 0 | E18: ='Other 3'!$K21 -> 0 | F18: ='Other 4'!$K21 -> 0 | G18: ='Other 5'!$K21 -> 0 | H18: ='Other 6'!$K21 -> 0 | I18: ='Other 7'!$K21 -> 0 | J18: ='Other 8'!$K21 -> 0 | K18: ='Other 9'!$K21 -> 0 | L18: 0 | M18: =Absence!H19 -> 0 | N18: 0 | O18: =(IF(N18=0,0,IF('Employee Details'!$G$5="Select Hours Model",0,((NETWORKDAYS(A18,EOMONTH(A18,0),0)*'Employee Details'!$G$5/5))))*(IF(N18=0,0,IF('Employee Details'!$G$5="Select Hours Model",0,IF(AND(A18>='Employee Details'!$L$9,A18<='Employee Details'!$M$9),'Employee Details'!$K$9,IF(AND(A18>='Employee Details'!$L$10,A18<='Employee Details'!$M$10),'Employee Details'!$K$10,IF(AND(A18>='Employee Details'!$L$11,A18<='Employee Details'!$M$11),'Employee Details'!$K$11,IF(AND(A18>='Employee Details'!$L$12,A18<='Employee Details'!$M$12),'Employee Details'!$K$12,IF(AND(A18>='Employee Details'!$L$13,A18<='Employee Details'!$M$13),'Employee Details'!$K$13,'Employee Details'!$K$9))))))))) -> 0 | P18: 0 | Q18: 0
A19: Total | B19: =SUM(B7:B18) -> 214 | C19: 201 | D19: 13 | E19: =SUM(E7:E18) -> 0 | F19: 0 | G19: 0 | H19: 0 | I19: 0 | J19: 0 | K19: 0 | L19: =ROUND(SUM(L7:L18),2) -> 428 | M19: =ROUND(SUM(M7:M18),2) -> 49 | N19: 477 | O19: 161 | P19: 316 | Q19: =IF(O19=0,0,L19/(O19-M19)) -> 3.821428571
A21: =EOMONTH(A18,0)+1 -> 2014-10-01 | B21: ='Main Award'!$K24 -> 0 | C21: ='Other 1'!$K24 -> 0 | D21: ='Other 2'!$K24 -> 0 | E21: ='Other 3'!$K24 -> 0 | F21: ='Other 4'!$K24 -> 0 | G21: ='Other 5'!$K24 -> 0 | H21: ='Other 6'!$K24 -> 0 | I21: ='Other 7'!$K24 -> 0 | J21: ='Other 8'!$K24 -> 0 | K21: ='Other 9'!$K24 -> 0 | L21: =SUM(B21:K21) -> 0 | M21: =Absence!H22 -> 0 | N21: =SUM(L21:M21) -> 0 | O21: =(IF(N21=0,0,IF('Employee Details'!$G$5="Select Hours Model",0,((NETWORKDAYS(A21,EOMONTH(A21,0),0)*'Employee Details'!$G$5/5))))*(IF(N21=0,0,IF('Employee Details'!$G$5="Select Hours Model",0,IF(AND(A21>='Employee Details'!$L$9,A21<='Employee Details'!$M$9),'Employee Details'!$K$9,IF(AND(A21>='Employee Details'!$L$10,A21<='Employee Details'!$M$10),'Employee Details'!$K$10,IF(AND(A21>='Employee Details'!$L$11,A21<='Employee Details'!$M$11),'Employee Details'!$K$11,IF(AND(A21>='Employee Details'!$L$12,A21<='Employee Details'!$M$12),'Employee Details'!$K$12,IF(AND(A21>='Employee Details'!$L$13,A21<='Employee Details'!$M$13),'Employee Details'!$K$13,'Employee Details'!$K$9))))))))) -> 0 | P21: =N21-O21 -> 0 | Q21: =IF(L21=0,0,IF(O21=0,0,L21/(O21-M21))) -> 0
A22: =EOMONTH(A21,0)+1 -> 2014-11-01 | B22: ='Main Award'!$K25 -> 0 | C22: ='Other 1'!$K25 -> 0 | D22: ='Other 2'!$K25 -> 0 | E22: ='Other 3'!$K25 -> 0 | F22: ='Other 4'!$K25 -> 0 | G22: ='Other 5'!$K25 -> 0 | H22: ='Other 6'!$K25 -> 0 | I22: ='Other 7'!$K25 -> 0 | J22: ='Other 8'!$K25 -> 0 | K22: ='Other 9'!$K25 -> 0 | L22: =SUM(B22:K22) -> 0 | M22: =Absence!H23 -> 0 | N22: =SUM(L22:M22) -> 0 | O22: =(IF(N22=0,0,IF('Employee Details'!$G$5="Select Hours Model",0,((NETWORKDAYS(A22,EOMONTH(A22,0),0)*'Employee Details'!$G$5/5))))*(IF(N22=0,0,IF('Employee Details'!$G$5="Select Hours Model",0,IF(AND(A22>='Employee Details'!$L$9,A22<='Employee Details'!$M$9),'Employee Details'!$K$9,IF(AND(A22>='Employee Details'!$L$10,A22<='Employee Details'!$M$10),'Employee Details'!$K$10,IF(AND(A22>='Employee Details'!$L$11,A22<='Employee Details'!$M$11),'Employee Details'!$K$11,IF(AND(A22>='Employee Details'!$L$12,A22<='Employee Details'!$M$12),'Employee Details'!$K$12,IF(AND(A22>='Employee Details'!$L$13,A22<='Employee Details'!$M$13),'Employee Details'!$K$13,'Employee Details'!$K$9))))))))) -> 0 | P22: =N22-O22 -> 0 | Q22: 0
A23: =EOMONTH(A22,0)+1 -> 2014-12-01 | B23: ='Main Award'!$K26 -> 0 | C23: ='Other 1'!$K26 -> 0 | D23: ='Other 2'!$K26 -> 0 | E23: ='Other 3'!$K26 -> 0 | F23: ='Other 4'!$K26 -> 0 | G23: ='Other 5'!$K26 -> 0 | H23: ='Other 6'!$K26 -> 0 | I23: ='Other 7'!$K26 -> 0 | J23: ='Other 8'!$K26 -> 0 | K23: ='Other 9'!$K26 -> 0 | L23: 0 | M23: =Absence!H24 -> 0 | N23: 0 | O23: =(IF(N23=0,0,IF('Employee Details'!$G$5="Select Hours Model",0,((NETWORKDAYS(A23,EOMONTH(A23,0),0)*'Employee Details'!$G$5/5))))*(IF(N23=0,0,IF('Employee Details'!$G$5="Select Hours Model",0,IF(AND(A23>='Employee Details'!$L$9,A23<='Employee Details'!$M$9),'Employee Details'!$K$9,IF(AND(A23>='Employee Details'!$L$10,A23<='Employee Details'!$M$10),'Employee Details'!$K$10,IF(AND(A23>='Employee Details'!$L$11,A23<='Employee Details'!$M$11),'Employee Details'!$K$11,IF(AND(A23>='Employee Details'!$L$12,A23<='Employee Details'!$M$12),'Employee Details'!$K$12,IF(AND(A23>='Employee Details'!$L$13,A23<='Employee Details'!$M$13),'Employee Details'!$K$13,'Employee Details'!$K$9))))))))) -> 0 | P23: 0 | Q23: 0
A24: 2015-01-01 | B24: ='Main Award'!$K27 -> 0 | C24: ='Other 1'!$K27 -> 0 | D24: ='Other 2'!$K27 -> 0 | E24: ='Other 3'!$K27 -> 0 | F24: ='Other 4'!$K27 -> 0 | G24: ='Other 5'!$K27 -> 0 | H24: ='Other 6'!$K27 -> 0 | I24: ='Other 7'!$K27 -> 0 | J24: ='Other 8'!$K27 -> 0 | K24: ='Other 9'!$K27 -> 0 | L24: 0 | M24: =Absence!H25 -> 0 | N24: 0 | O24: =(IF(N24=0,0,IF('Employee Details'!$G$5="Select Hours Model",0,((NETWORKDAYS(A24,EOMONTH(A24,0),0)*'Employee Details'!$G$5/5))))*(IF(N24=0,0,IF('Employee Details'!$G$5="Select Hours Model",0,IF(AND(A24>='Employee Details'!$L$9,A24<='Employee Details'!$M$9),'Employee Details'!$K$9,IF(AND(A24>='Employee Details'!$L$10,A24<='Employee Details'!$M$10),'Employee Details'!$K$10,IF(AND(A24>='Employee Details'!$L$11,A24<='Employee Details'!$M$11),'Employee Details'!$K$11,IF(AND(A24>='Employee Details'!$L$12,A24<='Employee Details'!$M$12),'Employee Details'!$K$12,IF(AND(A24>='Employee Details'!$L$13,A24<='Employee Details'!$M$13),'Employee Details'!$K$13,'Employee Details'!$K$9))))))))) -> 0 | P24: 0 | Q24: 0
A25: 2015-02-01 | B25: ='Main Award'!$K28 -> 0 | C25: ='Other 1'!$K28 -> 0 | D25: ='Other 2'!$K28 -> 0 | E25: ='Other 3'!$K28 -> 0 | F25: ='Other 4'!$K28 -> 0 | G25: ='Other 5'!$K28 -> 0 | H25: ='Other 6'!$K28 -> 0 | I25: ='Other 7'!$K28 -> 0 | J25: ='Other 8'!$K28 -> 0 | K25: ='Other 9'!$K28 -> 0 | L25: 0 | M25: =Absence!H26 -> 0 | N25: 0 | O25: =(IF(N25=0,0,IF('Employee Details'!$G$5="Select Hours Model",0,((NETWORKDAYS(A25,EOMONTH(A25,0),0)*'Employee Details'!$G$5/5))))*(IF(N25=0,0,IF('Employee Details'!$G$5="Select Hours Model",0,IF(AND(A25>='Employee Details'!$L$9,A25<='Employee Details'!$M$9),'Employee Details'!$K$9,IF(AND(A25>='Employee Details'!$L$10,A25<='Employee Details'!$M$10),'Employee Details'!$K$10,IF(AND(A25>='Employee Details'!$L$11,A25<='Employee Details'!$M$11),'Employee Details'!$K$11,IF(AND(A25>='Employee Details'!$L$12,A25<='Employee Details'!$M$12),'Employee Details'!$K$12,IF(AND(A25>='Employee Details'!$L$13,A25<='Employee Details'!$M$13),'Employee Details'!$K$13,'Employee Details'!$K$9))))))))) -> 0 | P25: 0 | Q25: 0
A26: 2015-03-01 | B26: ='Main Award'!$K29 -> 0 | C26: ='Other 1'!$K29 -> 0 | D26: ='Other 2'!$K29 -> 0 | E26: ='Other 3'!$K29 -> 0 | F26: ='Other 4'!$K29 -> 0 | G26: ='Other 5'!$K29 -> 0 | H26: ='Other 6'!$K29 -> 0 | I26: ='Other 7'!$K29 -> 0 | J26: ='Other 8'!$K29 -> 0 | K26: ='Other 9'!$K29 -> 0 | L26: 0 | M26: =Absence!H27 -> 0 | N26: 0 | O26: =(IF(N26=0,0,IF('Employee Details'!$G$5="Select Hours Model",0,((NETWORKDAYS(A26,EOMONTH(A26,0),0)*'Employee Details'!$G$5/5))))*(IF(N26=0,0,IF('Employee Details'!$G$5="Select Hours Model",0,IF(AND(A26>='Employee Details'!$L$9,A26<='Employee Details'!$M$9),'Employee Details'!$K$9,IF(AND(A26>='Employee Details'!$L$10,A26<='Employee Details'!$M$10),'Employee Details'!$K$10,IF(AND(A26>='Employee Details'!$L$11,A26<='Employee Details'!$M$11),'Employee Details'!$K$11,IF(AND(A26>='Employee Details'!$L$12,A26<='Employee Details'!$M$12),'Employee Details'!$K$12,IF(AND(A26>='Employee Details'!$L$13,A26<='Employee Details'!$M$13),'Employee Details'!$K$13,'Employee Details'!$K$9))))))))) -> 0 | P26: 0 | Q26: 0
A27: 2015-04-01 | B27: ='Main Award'!$K30 -> 0 | C27: ='Other 1'!$K30 -> 0 | D27: ='Other 2'!$K30 -> 0 | E27: ='Other 3'!$K30 -> 0 | F27: ='Other 4'!$K30 -> 0 | G27: ='Other 5'!$K30 -> 0 | H27: ='Other 6'!$K30 -> 0 | I27: ='Other 7'!$K30 -> 0 | J27: ='Other 8'!$K30 -> 0 | K27: ='Other 9'!$K30 -> 0 | L27: 0 | M27: =Absence!H28 -> 0 | N27: 0 | O27: =(IF(N27=0,0,IF('Employee Details'!$G$5="Select Hours Model",0,((NETWORKDAYS(A27,EOMONTH(A27,0),0)*'Employee Details'!$G$5/5))))*(IF(N27=0,0,IF('Employee Details'!$G$5="Select Hours Model",0,IF(AND(A27>='Employee Details'!$L$9,A27<='Employee Details'!$M$9),'Employee Details'!$K$9,IF(AND(A27>='Employee Details'!$L$10,A27<='Employee Details'!$M$10),'Employee Details'!$K$10,IF(AND(A27>='Employee Details'!$L$11,A27<='Employee Details'!$M$11),'Employee Details'!$K$11,IF(AND(A27>='Employee Details'!$L$12,A27<='Employee Details'!$M$12),'Employee Details'!$K$12,IF(AND(A27>='Employee Details'!$L$13,A27<='Employee Details'!$M$13),'Employee Details'!$K$13,'Employee Details'!$K$9))))))))) -> 0 | P27: 0 | Q27: 0
A28: 2015-05-01 | B28: ='Main Award'!$K31 -> 0 | C28: ='Other 1'!$K31 -> 0 | D28: ='Other 2'!$K31 -> 0 | E28: ='Other 3'!$K31 -> 0 | F28: ='Other 4'!$K31 -> 0 | G28: ='Other 5'!$K31 -> 0 | H28: ='Other 6'!$K31 -> 0 | I28: ='Other 7'!$K31 -> 0 | J28: ='Other 8'!$K31 -> 0 | K28: ='Other 9'!$K31 -> 0 | L28: 0 | M28: =Absence!H29 -> 0 | N28: 0 | O28: =(IF(N28=0,0,IF('Employee Details'!$G$5="Select Hours Model",0,((NETWORKDAYS(A28,EOMONTH(A28,0),0)*'Employee Details'!$G$5/5))))*(IF(N28=0,0,IF('Employee Details'!$G$5="Select Hours Model",0,IF(AND(A28>='Employee Details'!$L$9,A28<='Employee Details'!$M$9),'Employee Details'!$K$9,IF(AND(A28>='Employee Details'!$L$10,A28<='Employee Details'!$M$10),'Employee Details'!$K$10,IF(AND(A28>='Employee Details'!$L$11,A28<='Employee Details'!$M$11),'Employee Details'!$K$11,IF(AND(A28>='Employee Details'!$L$12,A28<='Employee Details'!$M$12),'Employee Details'!$K$12,IF(AND(A28>='Employee Details'!$L$13,A28<='Employee Details'!$M$13),'Employee Details'!$K$13,'Employee Details'!$K$9))))))))) -> 0 | P28: 0 | Q28: 0
A29: 2015-06-01 | B29: ='Main Award'!$K32 -> 0 | C29: ='Other 1'!$K32 -> 0 | D29: ='Other 2'!$K32 -> 0 | E29: ='Other 3'!$K32 -> 0 | F29: ='Other 4'!$K32 -> 0 | G29: ='Other 5'!$K32 -> 0 | H29: ='Other 6'!$K32 -> 0 | I29: ='Other 7'!$K32 -> 0 | J29: ='Other 8'!$K32 -> 0 | K29: ='Other 9'!$K32 -> 0 | L29: 0 | M29: =Absence!H30 -> 0 | N29: 0 | O29: =(IF(N29=0,0,IF('Employee Details'!$G$5="Select Hours Model",0,((NETWORKDAYS(A29,EOMONTH(A29,0),0)*'Employee Details'!$G$5/5))))*(IF(N29=0,0,IF('Employee Details'!$G$5="Select Hours Model",0,IF(AND(A29>='Employee Details'!$L$9,A29<='Employee Details'!$M$9),'Employee Details'!$K$9,IF(AND(A29>='Employee Details'!$L$10,A29<='Employee Details'!$M$10),'Employee Details'!$K$10,IF(AND(A29>='Employee Details'!$L$11,A29<='Employee Details'!$M$11),'Employee Details'!$K$11,IF(AND(A29>='Employee Details'!$L$12,A29<='Employee Details'!$M$12),'Employee Details'!$K$12,IF(AND(A29>='Employee Details'!$L$13,A29<='Employee Details'!$M$13),'Employee Details'!$K$13,'Employee Details'!$K$9))))))))) -> 0 | P29: 0 | Q29: 0
A30: 2015-07-01 | B30: ='Main Award'!$K33 -> 0 | C30: ='Other 1'!$K33 -> 0 | D30: ='Other 2'!$K33 -> 0 | E30: ='Other 3'!$K33 -> 0 | F30: ='Other 4'!$K33 -> 0 | G30: ='Other 5'!$K33 -> 0 | H30: ='Other 6'!$K33 -> 0 | I30: ='Other 7'!$K33 -> 0 | J30: ='Other 8'!$K33 -> 0 | K30: ='Other 9'!$K33 -> 0 | L30: 0 | M30: =Absence!H31 -> 0 | N30: 0 | O30: =(IF(N30=0,0,IF('Employee Details'!$G$5="Select Hours Model",0,((NETWORKDAYS(A30,EOMONTH(A30,0),0)*'Employee Details'!$G$5/5))))*(IF(N30=0,0,IF('Employee Details'!$G$5="Select Hours Model",0,IF(AND(A30>='Employee Details'!$L$9,A30<='Employee Details'!$M$9),'Employee Details'!$K$9,IF(AND(A30>='Employee Details'!$L$10,A30<='Employee Details'!$M$10),'Employee Details'!$K$10,IF(AND(A30>='Employee Details'!$L$11,A30<='Employee Details'!$M$11),'Employee Details'!$K$11,IF(AND(A30>='Employee Details'!$L$12,A30<='Employee Details'!$M$12),'Employee Details'!$K$12,IF(AND(A30>='Employee Details'!$L$13,A30<='Employee Details'!$M$13),'Employee Details'!$K$13,'Employee Details'!$K$9))))))))) -> 0 | P30: 0 | Q30: 0
A31: 2015-08-01 | B31: ='Main Award'!$K34 -> 0 | C31: ='Other 1'!$K34 -> 0 | D31: ='Other 2'!$K34 -> 0 | E31: ='Other 3'!$K34 -> 0 | F31: ='Other 4'!$K34 -> 0 | G31: ='Other 5'!$K34 -> 0 | H31: ='Other 6'!$K34 -> 0 | I31: ='Other 7'!$K34 -> 0 | J31: ='Other 8'!$K34 -> 0 | K31: ='Other 9'!$K34 -> 0 | L31: 0 | M31: =Absence!H32 -> 0 | N31: 0 | O31: =(IF(N31=0,0,IF('Employee Details'!$G$5="Select Hours Model",0,((NETWORKDAYS(A31,EOMONTH(A31,0),0)*'Employee Details'!$G$5/5))))*(IF(N31=0,0,IF('Employee Details'!$G$5="Select Hours Model",0,IF(AND(A31>='Employee Details'!$L$9,A31<='Employee Details'!$M$9),'Employee Details'!$K$9,IF(AND(A31>='Employee Details'!$L$10,A31<='Employee Details'!$M$10),'Employee Details'!$K$10,IF(AND(A31>='Employee Details'!$L$11,A31<='Employee Details'!$M$11),'Employee Details'!$K$11,IF(AND(A31>='Employee Details'!$L$12,A31<='Employee Details'!$M$12),'Employee Details'!$K$12,IF(AND(A31>='Employee Details'!$L$13,A31<='Employee Details'!$M$13),'Employee Details'!$K$13,'Employee Details'!$K$9))))))))) -> 0 | P31: 0 | Q31: 0
A32: 2015-09-01 | B32: ='Main Award'!$K35 -> 0 | C32: ='Other 1'!$K35 -> 0 | D32: ='Other 2'!$K35 -> 0 | E32: ='Other 3'!$K35 -> 0 | F32: ='Other 4'!$K35 -> 0 | G32: ='Other 5'!$K35 -> 0 | H32: ='Other 6'!$K35 -> 0 | I32: ='Other 7'!$K35 -> 0 | J32: ='Other 8'!$K35 -> 0 | K32: ='Other 9'!$K35 -> 0 | L32: 0 | M32: =Absence!H33 -> 0 | N32: 0 | O32: =(IF(N32=0,0,IF('Employee Details'!$G$5="Select Hours Model",0,((NETWORKDAYS(A32,EOMONTH(A32,0),0)*'Employee Details'!$G$5/5))))*(IF(N32=0,0,IF('Employee Details'!$G$5="Select Hours Model",0,IF(AND(A32>='Employee Details'!$L$9,A32<='Employee Details'!$M$9),'Employee Details'!$K$9,IF(AND(A32>='Employee Details'!$L$10,A32<='Employee Details'!$M$10),'Employee Details'!$K$10,IF(AND(A32>='Employee Details'!$L$11,A32<='Employee Details'!$M$11),'Employee Details'!$K$11,IF(AND(A32>='Employee Details'!$L$12,A32<='Employee Details'!$M$12),'Employee Details'!$K$12,IF(AND(A32>='Employee Details'!$L$13,A32<='Employee Details'!$M$13),'Employee Details'!$K$13,'Employee Details'!$K$9))))))))) -> 0 | P32: 0 | Q32: 0
A33: Total | B33: =SUM(B21:B32) -> 0 | C33: 0 | D33: 0 | E33: =SUM(E21:E32) -> 0 | F33: 0 | G33: 0 | H33: 0 | I33: 0 | J33: 0 | K33: 0 | L33: =ROUND(SUM(L21:L32),2) -> 0 | M33: =ROUND(SUM(M21:M32),2) -> 0 | N33: 0 | O33: 0 | P33: 0 | Q33: =IF(O33=0,0,L33/(O33-M33)) -> 0
A35: =EOMONTH(A32,0)+1 -> 2015-10-01 | B35: ='Main Award'!$K38 -> 0 | C35: ='Other 1'!$K38 -> 0 | D35: ='Other 2'!$K38 -> 0 | E35: ='Other 3'!$K38 -> 0 | F35: ='Other 4'!$K38 -> 0 | G35: ='Other 5'!$K38 -> 0 | H35: ='Other 6'!$K38 -> 0 | I35: ='Other 7'!$K38 -> 0 | J35: ='Other 8'!$K38 -> 0 | K35: ='Other 9'!$K38 -> 0 | L35: =SUM(B35:K35) -> 0 | M35: =Absence!H36 -> 0 | N35: =SUM(L35:M35) -> 0 | O35: =(IF(N35=0,0,IF('Employee Details'!$G$5="Select Hours Model",0,((NETWORKDAYS(A35,EOMONTH(A35,0),0)*'Employee Details'!$G$5/5))))*(IF(N35=0,0,IF('Employee Details'!$G$5="Select Hours Model",0,IF(AND(A35>='Employee Details'!$L$9,A35<='Employee Details'!$M$9),'Employee Details'!$K$9,IF(AND(A35>='Employee Details'!$L$10,A35<='Employee Details'!$M$10),'Employee Details'!$K$10,IF(AND(A35>='Employee Details'!$L$11,A35<='Employee Details'!$M$11),'Employee Details'!$K$11,IF(AND(A35>='Employee Details'!$L$12,A35<='Employee Details'!$M$12),'Employee Details'!$K$12,IF(AND(A35>='Employee Details'!$L$13,A35<='Employee Details'!$M$13),'Employee Details'!$K$13,'Employee Details'!$K$9))))))))) -> 0 | P35: =N35-O35 -> 0 | Q35: =IF(L35=0,0,IF(O35=0,0,L35/(O35-M35))) -> 0
A36: =EOMONTH(A35,0)+1 -> 2015-11-01 | B36: ='Main Award'!$K39 -> 0 | C36: ='Other 1'!$K39 -> 0 | D36: ='Other 2'!$K39 -> 0 | E36: ='Other 3'!$K39 -> 0 | F36: ='Other 4'!$K39 -> 0 | G36: ='Other 5'!$K39 -> 0 | H36: ='Other 6'!$K39 -> 0 | I36: ='Other 7'!$K39 -> 0 | J36: ='Other 8'!$K39 -> 0 | K36: ='Other 9'!$K39 -> 0 | L36: =SUM(B36:K36) -> 0 | M36: =Absence!H37 -> 0 | N36: =SUM(L36:M36) -> 0 | O36: =(IF(N36=0,0,IF('Employee Details'!$G$5="Select Hours Model",0,((NETWORKDAYS(A36,EOMONTH(A36,0),0)*'Employee Details'!$G$5/5))))*(IF(N36=0,0,IF('Employee Details'!$G$5="Select Hours Model",0,IF(AND(A36>='Employee Details'!$L$9,A36<='Employee Details'!$M$9),'Employee Details'!$K$9,IF(AND(A36>='Employee Details'!$L$10,A36<='Employee Details'!$M$10),'Employee Details'!$K$10,IF(AND(A36>='Employee Details'!$L$11,A36<='Employee Details'!$M$11),'Employee Details'!$K$11,IF(AND(A36>='Employee Details'!$L$12,A36<='Employee Details'!$M$12),'Employee Details'!$K$12,IF(AND(A36>='Employee Details'!$L$13,A36<='Employee Details'!$M$13),'Employee Details'!$K$13,'Employee Details'!$K$9))))))))) -> 0 | P36: =N36-O36 -> 0 | Q36: 0
A37: =EOMONTH(A36,0)+1 -> 2015-12-01 | B37: ='Main Award'!$K40 -> 0 | C37: ='Other 1'!$K40 -> 0 | D37: ='Other 2'!$K40 -> 0 | E37: ='Other 3'!$K40 -> 0 | F37: ='Other 4'!$K40 -> 0 | G37: ='Other 5'!$K40 -> 0 | H37: ='Other 6'!$K40 -> 0 | I37: ='Other 7'!$K40 -> 0 | J37: ='Other 8'!$K40 -> 0 | K37: ='Other 9'!$K40 -> 0 | L37: 0 | M37: =Absence!H38 -> 0 | N37: 0 | O37: =(IF(N37=0,0,IF('Employee Details'!$G$5="Select Hours Model",0,((NETWORKDAYS(A37,EOMONTH(A37,0),0)*'Employee Details'!$G$5/5))))*(IF(N37=0,0,IF('Employee Details'!$G$5="Select Hours Model",0,IF(AND(A37>='Employee Details'!$L$9,A37<='Employee Details'!$M$9),'Employee Details'!$K$9,IF(AND(A37>='Employee Details'!$L$10,A37<='Employee Details'!$M$10),'Employee Details'!$K$10,IF(AND(A37>='Employee Details'!$L$11,A37<='Employee Details'!$M$11),'Employee Details'!$K$11,IF(AND(A37>='Employee Details'!$L$12,A37<='Employee Details'!$M$12),'Employee Details'!$K$12,IF(AND(A37>='Employee Details'!$L$13,A37<='Employee Details'!$M$13),'Employee Details'!$K$13,'Employee Details'!$K$9))))))))) -> 0 | P37: 0 | Q37: 0
A38: 2016-01-01 | B38: ='Main Award'!$K41 -> 0 | C38: ='Other 1'!$K41 -> 0 | D38: ='Other 2'!$K41 -> 0 | E38: ='Other 3'!$K41 -> 0 | F38: ='Other 4'!$K41 -> 0 | G38: ='Other 5'!$K41 -> 0 | H38: ='Other 6'!$K41 -> 0 | I38: ='Other 7'!$K41 -> 0 | J38: ='Other 8'!$K41 -> 0 | K38: ='Other 9'!$K41 -> 0 | L38: 0 | M38: =Absence!H39 -> 0 | N38: 0 | O38: =(IF(N38=0,0,IF('Employee Details'!$G$5="Select Hours Model",0,((NETWORKDAYS(A38,EOMONTH(A38,0),0)*'Employee Details'!$G$5/5))))*(IF(N38=0,0,IF('Employee Details'!$G$5="Select Hours Model",0,IF(AND(A38>='Employee Details'!$L$9,A38<='Employee Details'!$M$9),'Employee Details'!$K$9,IF(AND(A38>='Employee Details'!$L$10,A38<='Employee Details'!$M$10),'Employee Details'!$K$10,IF(AND(A38>='Employee Details'!$L$11,A38<='Employee Details'!$M$11),'Employee Details'!$K$11,IF(AND(A38>='Employee Details'!$L$12,A38<='Employee Details'!$M$12),'Employee Details'!$K$12,IF(AND(A38>='Employee Details'!$L$13,A38<='Employee Details'!$M$13),'Employee Details'!$K$13,'Employee Details'!$K$9))))))))) -> 0 | P38: 0 | Q38: 0
A39: 2016-02-01 | B39: ='Main Award'!$K42 -> 0 | C39: ='Other 1'!$K42 -> 0 | D39: ='Other 2'!$K42 -> 0 | E39: ='Other 3'!$K42 -> 0 | F39: ='Other 4'!$K42 -> 0 | G39: ='Other 5'!$K42 -> 0 | H39: ='Other 6'!$K42 -> 0 | I39: ='Other 7'!$K42 -> 0 | J39: ='Other 8'!$K42 -> 0 | K39: ='Other 9'!$K42 -> 0 | L39: 0 | M39: =Absence!H40 -> 0 | N39: 0 | O39: =(IF(N39=0,0,IF('Employee Details'!$G$5="Select Hours Model",0,((NETWORKDAYS(A39,EOMONTH(A39,0),0)*'Employee Details'!$G$5/5))))*(IF(N39=0,0,IF('Employee Details'!$G$5="Select Hours Model",0,IF(AND(A39>='Employee Details'!$L$9,A39<='Employee Details'!$M$9),'Employee Details'!$K$9,IF(AND(A39>='Employee Details'!$L$10,A39<='Employee Details'!$M$10),'Employee Details'!$K$10,IF(AND(A39>='Employee Details'!$L$11,A39<='Employee Details'!$M$11),'Employee Details'!$K$11,IF(AND(A39>='Employee Details'!$L$12,A39<='Employee Details'!$M$12),'Employee Details'!$K$12,IF(AND(A39>='Employee Details'!$L$13,A39<='Employee Details'!$M$13),'Employee Details'!$K$13,'Employee Details'!$K$9))))))))) -> 0 | P39: 0 | Q39: 0
A40: 2016-03-01 | B40: ='Main Award'!$K43 -> 0 | C40: ='Other 1'!$K43 -> 0 | D40: ='Other 2'!$K43 -> 0 | E40: ='Other 3'!$K43 -> 0 | F40: ='Other 4'!$K43 -> 0 | G40: ='Other 5'!$K43 -> 0 | H40: ='Other 6'!$K43 -> 0 | I40: ='Other 7'!$K43 -> 0 | J40: ='Other 8'!$K43 -> 0 | K40: ='Other 9'!$K43 -> 0 | L40: 0 | M40: =Absence!H41 -> 0 | N40: 0 | O40: =(IF(N40=0,0,IF('Employee Details'!$G$5="Select Hours Model",0,((NETWORKDAYS(A40,EOMONTH(A40,0),0)*'Employee Details'!$G$5/5))))*(IF(N40=0,0,IF('Employee Details'!$G$5="Select Hours Model",0,IF(AND(A40>='Employee Details'!$L$9,A40<='Employee Details'!$M$9),'Employee Details'!$K$9,IF(AND(A40>='Employee Details'!$L$10,A40<='Employee Details'!$M$10),'Employee Details'!$K$10,IF(AND(A40>='Employee Details'!$L$11,A40<='Employee Details'!$M$11),'Employee Details'!$K$11,IF(AND(A40>='Employee Details'!$L$12,A40<='Employee Details'!$M$12),'Employee Details'!$K$12,IF(AND(A40>='Employee Details'!$L$13,A40<='Employee Details'!$M$13),'Employee Details'!$K$13,'Employee Details'!$K$9))))))))) -> 0 | P40: 0 | Q40: 0
A41: 2016-04-01 | B41: ='Main Award'!$K44 -> 0 | C41: ='Other 1'!$K44 -> 0 | D41: ='Other 2'!$K44 -> 0 | E41: ='Other 3'!$K44 -> 0 | F41: ='Other 4'!$K44 -> 0 | G41: ='Other 5'!$K44 -> 0 | H41: ='Other 6'!$K44 -> 0 | I41: ='Other 7'!$K44 -> 0 | J41: ='Other 8'!$K44 -> 0 | K41: ='Other 9'!$K44 -> 0 | L41: 0 | M41: =Absence!H42 -> 0 | N41: 0 | O41: =(IF(N41=0,0,IF('Employee Details'!$G$5="Select Hours Model",0,((NETWORKDAYS(A41,EOMONTH(A41,0),0)*'Employee Details'!$G$5/5))))*(IF(N41=0,0,IF('Employee Details'!$G$5="Select Hours Model",0,IF(AND(A41>='Employee Details'!$L$9,A41<='Employee Details'!$M$9),'Employee Details'!$K$9,IF(AND(A41>='Employee Details'!$L$10,A41<='Employee Details'!$M$10),'Employee Details'!$K$10,IF(AND(A41>='Employee Details'!$L$11,A41<='Employee Details'!$M$11),'Employee Details'!$K$11,IF(AND(A41>='Employee Details'!$L$12,A41<='Employee Details'!$M$12),'Employee Details'!$K$12,IF(AND(A41>='Employee Details'!$L$13,A41<='Employee Details'!$M$13),'Employee Details'!$K$13,'Employee Details'!$K$9))))))))) -> 0 | P41: 0 | Q41: 0
A42: 2016-05-01 | B42: ='Main Award'!$K45 -> 0 | C42: ='Other 1'!$K45 -> 0 | D42: ='Other 2'!$K45 -> 0 | E42: ='Other 3'!$K45 -> 0 | F42: ='Other 4'!$K45 -> 0 | G42: ='Other 5'!$K45 -> 0 | H42: ='Other 6'!$K45 -> 0 | I42: ='Other 7'!$K45 -> 0 | J42: ='Other 8'!$K45 -> 0 | K42: ='Other 9'!$K45 -> 0 | L42: 0 | M42: =Absence!H43 -> 0 | N42: 0 | O42: =(IF(N42=0,0,IF('Employee Details'!$G$5="Select Hours Model",0,((NETWORKDAYS(A42,EOMONTH(A42,0),0)*'Employee Details'!$G$5/5))))*(IF(N42=0,0,IF('Employee Details'!$G$5="Select Hours Model",0,IF(AND(A42>='Employee Details'!$L$9,A42<='Employee Details'!$M$9),'Employee Details'!$K$9,IF(AND(A42>='Employee Details'!$L$10,A42<='Employee Details'!$M$10),'Employee Details'!$K$10,IF(AND(A42>='Employee Details'!$L$11,A42<='Employee Details'!$M$11),'Employee Details'!$K$11,IF(AND(A42>='Employee Details'!$L$12,A42<='Employee Details'!$M$12),'Employee Details'!$K$12,IF(AND(A42>='Employee Details'!$L$13,A42<='Employee Details'!$M$13),'Employee Details'!$K$13,'Employee Details'!$K$9))))))))) -> 0 | P42: 0 | Q42: 0
A43: 2016-06-01 | B43: ='Main Award'!$K46 -> 0 | C43: ='Other 1'!$K46 -> 0 | D43: ='Other 2'!$K46 -> 0 | E43: ='Other 3'!$K46 -> 0 | F43: ='Other 4'!$K46 -> 0 | G43: ='Other 5'!$K46 -> 0 | H43: ='Other 6'!$K46 -> 0 | I43: ='Other 7'!$K46 -> 0 | J43: ='Other 8'!$K46 -> 0 | K43: ='Other 9'!$K46 -> 0 | L43: 0 | M43: =Absence!H44 -> 0 | N43: 0 | O43: =(IF(N43=0,0,IF('Employee Details'!$G$5="Select Hours Model",0,((NETWORKDAYS(A43,EOMONTH(A43,0),0)*'Employee Details'!$G$5/5))))*(IF(N43=0,0,IF('Employee Details'!$G$5="Select Hours Model",0,IF(AND(A43>='Employee Details'!$L$9,A43<='Employee Details'!$M$9),'Employee Details'!$K$9,IF(AND(A43>='Employee Details'!$L$10,A43<='Employee Details'!$M$10),'Employee Details'!$K$10,IF(AND(A43>='Employee Details'!$L$11,A43<='Employee Details'!$M$11),'Employee Details'!$K$11,IF(AND(A43>='Employee Details'!$L$12,A43<='Employee Details'!$M$12),'Employee Details'!$K$12,IF(AND(A43>='Employee Details'!$L$13,A43<='Employee Details'!$M$13),'Employee Details'!$K$13,'Employee Details'!$K$9))))))))) -> 0 | P43: 0 | Q43: 0
A44: 2016-07-01 | B44: ='Main Award'!$K47 -> 0 | C44: ='Other 1'!$K47 -> 0 | D44: ='Other 2'!$K47 -> 0 | E44: ='Other 3'!$K47 -> 0 | F44: ='Other 4'!$K47 -> 0 | G44: ='Other 5'!$K47 -> 0 | H44: ='Other 6'!$K47 -> 0 | I44: ='Other 7'!$K47 -> 0 | J44: ='Other 8'!$K47 -> 0 | K44: ='Other 9'!$K47 -> 0 | L44: 0 | M44: =Absence!H45 -> 0 | N44: 0 | O44: =(IF(N44=0,0,IF('Employee Details'!$G$5="Select Hours Model",0,((NETWORKDAYS(A44,EOMONTH(A44,0),0)*'Employee Details'!$G$5/5))))*(IF(N44=0,0,IF('Employee Details'!$G$5="Select Hours Model",0,IF(AND(A44>='Employee Details'!$L$9,A44<='Employee Details'!$M$9),'Employee Details'!$K$9,IF(AND(A44>='Employee Details'!$L$10,A44<='Employee Details'!$M$10),'Employee Details'!$K$10,IF(AND(A44>='Employee Details'!$L$11,A44<='Employee Details'!$M$11),'Employee Details'!$K$11,IF(AND(A44>='Employee Details'!$L$12,A44<='Employee Details'!$M$12),'Employee Details'!$K$12,IF(AND(A44>='Employee Details'!$L$13,A44<='Employee Details'!$M$13),'Employee Details'!$K$13,'Employee Details'!$K$9))))))))) -> 0 | P44: 0 | Q44: 0
A45: 2016-08-01 | B45: ='Main Award'!$K48 -> 0 | C45: ='Other 1'!$K48 -> 0 | D45: ='Other 2'!$K48 -> 0 | E45: ='Other 3'!$K48 -> 0 | F45: ='Other 4'!$K48 -> 0 | G45: ='Other 5'!$K48 -> 0 | H45: ='Other 6'!$K48 -> 0 | I45: ='Other 7'!$K48 -> 0 | J45: ='Other 8'!$K48 -> 0 | K45: ='Other 9'!$K48 -> 0 | L45: 0 | M45: =Absence!H46 -> 0 | N45: 0 | O45: =(IF(N45=0,0,IF('Employee Details'!$G$5="Select Hours Model",0,((NETWORKDAYS(A45,EOMONTH(A45,0),0)*'Employee Details'!$G$5/5))))*(IF(N45=0,0,IF('Employee Details'!$G$5="Select Hours Model",0,IF(AND(A45>='Employee Details'!$L$9,A45<='Employee Details'!$M$9),'Employee Details'!$K$9,IF(AND(A45>='Employee Details'!$L$10,A45<='Employee Details'!$M$10),'Employee Details'!$K$10,IF(AND(A45>='Employee Details'!$L$11,A45<='Employee Details'!$M$11),'Employee Details'!$K$11,IF(AND(A45>='Employee Details'!$L$12,A45<='Employee Details'!$M$12),'Employee Details'!$K$12,IF(AND(A45>='Employee Details'!$L$13,A45<='Employee Details'!$M$13),'Employee Details'!$K$13,'Employee Details'!$K$9))))))))) -> 0 | P45: 0 | Q45: 0
A46: 2016-09-01 | B46: ='Main Award'!$K49 -> 0 | C46: ='Other 1'!$K49 -> 0 | D46: ='Other 2'!$K49 -> 0 | E46: ='Other 3'!$K49 -> 0 | F46: ='Other 4'!$K49 -> 0 | G46: ='Other 5'!$K49 -> 0 | H46: ='Other 6'!$K49 -> 0 | I46: ='Other 7'!$K49 -> 0 | J46: ='Other 8'!$K49 -> 0 | K46: ='Other 9'!$K49 -> 0 | L46: 0 | M46: =Absence!H47 -> 0 | N46: 0 | O46: =(IF(N46=0,0,IF('Employee Details'!$G$5="Select Hours Model",0,((NETWORKDAYS(A46,EOMONTH(A46,0),0)*'Employee Details'!$G$5/5))))*(IF(N46=0,0,IF('Employee Details'!$G$5="Select Hours Model",0,IF(AND(A46>='Employee Details'!$L$9,A46<='Employee Details'!$M$9),'Employee Details'!$K$9,IF(AND(A46>='Employee Details'!$L$10,A46<='Employee Details'!$M$10),'Employee Details'!$K$10,IF(AND(A46>='Employee Details'!$L$11,A46<='Employee Details'!$M$11),'Employee Details'!$K$11,IF(AND(A46>='Employee Details'!$L$12,A46<='Employee Details'!$M$12),'Employee Details'!$K$12,IF(AND(A46>='Employee Details'!$L$13,A46<='Employee Details'!$M$13),'Employee Details'!$K$13,'Employee Details'!$K$9))))))))) -> 0 | P46: 0 | Q46: 0
A47: Total | B47: =SUM(B35:B46) -> 0 | C47: 0 | D47: 0 | E47: =SUM(E35:E46) -> 0 | F47: 0 | G47: 0 | H47: 0 | I47: 0 | J47: 0 | K47: 0 | L47: =ROUND(SUM(L35:L46),2) -> 0 | M47: =ROUND(SUM(M35:M46),2) -> 0 | N47: 0 | O47: 0 | P47: 0 | Q47: =IF(O47=0,0,L47/(O47-M47)) -> 0
A49: =EOMONTH(A46,0)+1 -> 2016-10-01 | B49: ='Main Award'!$K52 -> 0 | C49: ='Other 1'!$K52 -> 0 | D49: ='Other 2'!$K52 -> 0 | E49: ='Other 3'!$K52 -> 0 | F49: ='Other 4'!$K52 -> 0 | G49: ='Other 5'!$K52 -> 0 | H49: ='Other 6'!$K52 -> 0 | I49: ='Other 7'!$K52 -> 0 | J49: ='Other 8'!$K52 -> 0 | K49: ='Other 9'!$K52 -> 0 | L49: =SUM(B49:K49) -> 0 | M49: =Absence!H50 -> 0 | N49: =SUM(L49:M49) -> 0 | O49: =(IF(N49=0,0,IF('Employee Details'!$G$5="Select Hours Model",0,((NETWORKDAYS(A49,EOMONTH(A49,0),0)*'Employee Details'!$G$5/5))))*(IF(N49=0,0,IF('Employee Details'!$G$5="Select Hours Model",0,IF(AND(A49>='Employee Details'!$L$9,A49<='Employee Details'!$M$9),'Employee Details'!$K$9,IF(AND(A49>='Employee Details'!$L$10,A49<='Employee Details'!$M$10),'Employee Details'!$K$10,IF(AND(A49>='Employee Details'!$L$11,A49<='Employee Details'!$M$11),'Employee Details'!$K$11,IF(AND(A49>='Employee Details'!$L$12,A49<='Employee Details'!$M$12),'Employee Details'!$K$12,IF(AND(A49>='Employee Details'!$L$13,A49<='Employee Details'!$M$13),'Employee Details'!$K$13,'Employee Details'!$K$9))))))))) -> 0 | P49: =N49-O49 -> 0 | Q49: =IF(L49=0,0,IF(O49=0,0,L49/(O49-M49))) -> 0
A50: =EOMONTH(A49,0)+1 -> 2016-11-01 | B50: ='Main Award'!$K53 -> 0 | C50: ='Other 1'!$K53 -> 0 | D50: ='Other 2'!$K53 -> 0 | E50: ='Other 3'!$K53 -> 0 | F50: ='Other 4'!$K53 -> 0 | G50: ='Other 5'!$K53 -> 0 | H50: ='Other 6'!$K53 -> 0 | I50: ='Other 7'!$K53 -> 0 | J50: ='Other 8'!$K53 -> 0 | K50: ='Other 9'!$K53 -> 0 | L50: =SUM(B50:K50) -> 0 | M50: =Absence!H51 -> 0 | N50: =SUM(L50:M50) -> 0 | O50: =(IF(N50=0,0,IF('Employee Details'!$G$5="Select Hours Model",0,((NETWORKDAYS(A50,EOMONTH(A50,0),0)*'Employee Details'!$G$5/5))))*(IF(N50=0,0,IF('Employee Details'!$G$5="Select Hours Model",0,IF(AND(A50>='Employee Details'!$L$9,A50<='Employee Details'!$M$9),'Employee Details'!$K$9,IF(AND(A50>='Employee Details'!$L$10,A50<='Employee Details'!$M$10),'Employee Details'!$K$10,IF(AND(A50>='Employee Details'!$L$11,A50<='Employee Details'!$M$11),'Employee Details'!$K$11,IF(AND(A50>='Employee Details'!$L$12,A50<='Employee Details'!$M$12),'Employee Details'!$K$12,IF(AND(A50>='Employee Details'!$L$13,A50<='Employee Details'!$M$13),'Employee Details'!$K$13,'Employee Details'!$K$9))))))))) -> 0 | P50: =N50-O50 -> 0 | Q50: 0
A51: =EOMONTH(A50,0)+1 -> 2016-12-01 | B51: ='Main Award'!$K54 -> 0 | C51: ='Other 1'!$K54 -> 0 | D51: ='Other 2'!$K54 -> 0 | E51: ='Other 3'!$K54 -> 0 | F51: ='Other 4'!$K54 -> 0 | G51: ='Other 5'!$K54 -> 0 | H51: ='Other 6'!$K54 -> 0 | I51: ='Other 7'!$K54 -> 0 | J51: ='Other 8'!$K54 -> 0 | K51: ='Other 9'!$K54 -> 0 | L51: 0 | M51: =Absence!H52 -> 0 | N51: 0 | O51: =(IF(N51=0,0,IF('Employee Details'!$G$5="Select Hours Model",0,((NETWORKDAYS(A51,EOMONTH(A51,0),0)*'Employee Details'!$G$5/5))))*(IF(N51=0,0,IF('Employee Details'!$G$5="Select Hours Model",0,IF(AND(A51>='Employee Details'!$L$9,A51<='Employee Details'!$M$9),'Employee Details'!$K$9,IF(AND(A51>='Employee Details'!$L$10,A51<='Employee Details'!$M$10),'Employee Details'!$K$10,IF(AND(A51>='Employee Details'!$L$11,A51<='Employee Details'!$M$11),'Employee Details'!$K$11,IF(AND(A51>='Employee Details'!$L$12,A51<='Employee Details'!$M$12),'Employee Details'!$K$12,IF(AND(A51>='Employee Details'!$L$13,A51<='Employee Details'!$M$13),'Employee Details'!$K$13,'Employee Details'!$K$9))))))))) -> 0 | P51: 0 | Q51: 0
A52: 2017-01-01 | B52: ='Main Award'!$K55 -> 0 | C52: ='Other 1'!$K55 -> 0 | D52: ='Other 2'!$K55 -> 0 | E52: ='Other 3'!$K55 -> 0 | F52: ='Other 4'!$K55 -> 0 | G52: ='Other 5'!$K55 -> 0 | H52: ='Other 6'!$K55 -> 0 | I52: ='Other 7'!$K55 -> 0 | J52: ='Other 8'!$K55 -> 0 | K52: ='Other 9'!$K55 -> 0 | L52: 0 | M52: =Absence!H53 -> 0 | N52: 0 | O52: =(IF(N52=0,0,IF('Employee Details'!$G$5="Select Hours Model",0,((NETWORKDAYS(A52,EOMONTH(A52,0),0)*'Employee Details'!$G$5/5))))*(IF(N52=0,0,IF('Employee Details'!$G$5="Select Hours Model",0,IF(AND(A52>='Employee Details'!$L$9,A52<='Employee Details'!$M$9),'Employee Details'!$K$9,IF(AND(A52>='Employee Details'!$L$10,A52<='Employee Details'!$M$10),'Employee Details'!$K$10,IF(AND(A52>='Employee Details'!$L$11,A52<='Employee Details'!$M$11),'Employee Details'!$K$11,IF(AND(A52>='Employee Details'!$L$12,A52<='Employee Details'!$M$12),'Employee Details'!$K$12,IF(AND(A52>='Employee Details'!$L$13,A52<='Employee Details'!$M$13),'Employee Details'!$K$13,'Employee Details'!$K$9))))))))) -> 0 | P52: 0 | Q52: 0
A53: 2017-02-01 | B53: ='Main Award'!$K56 -> 0 | C53: ='Other 1'!$K56 -> 0 | D53: ='Other 2'!$K56 -> 0 | E53: ='Other 3'!$K56 -> 0 | F53: ='Other 4'!$K56 -> 0 | G53: ='Other 5'!$K56 -> 0 | H53: ='Other 6'!$K56 -> 0 | I53: ='Other 7'!$K56 -> 0 | J53: ='Other 8'!$K56 -> 0 | K53: ='Other 9'!$K56 -> 0 | L53: 0 | M53: =Absence!H54 -> 0 | N53: 0 | O53: =(IF(N53=0,0,IF('Employee Details'!$G$5="Select Hours Model",0,((NETWORKDAYS(A53,EOMONTH(A53,0),0)*'Employee Details'!$G$5/5))))*(IF(N53=0,0,IF('Employee Details'!$G$5="Select Hours Model",0,IF(AND(A53>='Employee Details'!$L$9,A53<='Employee Details'!$M$9),'Employee Details'!$K$9,IF(AND(A53>='Employee Details'!$L$10,A53<='Employee Details'!$M$10),'Employee Details'!$K$10,IF(AND(A53>='Employee Details'!$L$11,A53<='Employee Details'!$M$11),'Employee Details'!$K$11,IF(AND(A53>='Employee Details'!$L$12,A53<='Employee Details'!$M$12),'Employee Details'!$K$12,IF(AND(A53>='Employee Details'!$L$13,A53<='Employee Details'!$M$13),'Employee Details'!$K$13,'Employee Details'!$K$9))))))))) -> 0 | P53: 0 | Q53: 0
A54: 2017-03-01 | B54: ='Main Award'!$K57 -> 0 | C54: ='Other 1'!$K57 -> 0 | D54: ='Other 2'!$K57 -> 0 | E54: ='Other 3'!$K57 -> 0 | F54: ='Other 4'!$K57 -> 0 | G54: ='Other 5'!$K57 -> 0 | H54: ='Other 6'!$K57 -> 0 | I54: ='Other 7'!$K57 -> 0 | J54: ='Other 8'!$K57 -> 0 | K54: ='Other 9'!$K57 -> 0 | L54: 0 | M54: =Absence!H55 -> 0 | N54: 0 | O54: =(IF(N54=0,0,IF('Employee Details'!$G$5="Select Hours Model",0,((NETWORKDAYS(A54,EOMONTH(A54,0),0)*'Employee Details'!$G$5/5))))*(IF(N54=0,0,IF('Employee Details'!$G$5="Select Hours Model",0,IF(AND(A54>='Employee Details'!$L$9,A54<='Employee Details'!$M$9),'Employee Details'!$K$9,IF(AND(A54>='Employee Details'!$L$10,A54<='Employee Details'!$M$10),'Employee Details'!$K$10,IF(AND(A54>='Employee Details'!$L$11,A54<='Employee Details'!$M$11),'Employee Details'!$K$11,IF(AND(A54>='Employee Details'!$L$12,A54<='Employee Details'!$M$12),'Employee Details'!$K$12,IF(AND(A54>='Employee Details'!$L$13,A54<='Employee Details'!$M$13),'Employee Details'!$K$13,'Employee Details'!$K$9))))))))) -> 0 | P54: 0 | Q54: 0
A55: 2017-04-01 | B55: ='Main Award'!$K58 -> 0 | C55: ='Other 1'!$K58 -> 0 | D55: ='Other 2'!$K58 -> 0 | E55: ='Other 3'!$K58 -> 0 | F55: ='Other 4'!$K58 -> 0 | G55: ='Other 5'!$K58 -> 0 | H55: ='Other 6'!$K58 -> 0 | I55: ='Other 7'!$K58 -> 0 | J55: ='Other 8'!$K58 -> 0 | K55: ='Other 9'!$K58 -> 0 | L55: 0 | M55: =Absence!H56 -> 0 | N55: 0 | O55: =(IF(N55=0,0,IF('Employee Details'!$G$5="Select Hours Model",0,((NETWORKDAYS(A55,EOMONTH(A55,0),0)*'Employee Details'!$G$5/5))))*(IF(N55=0,0,IF('Employee Details'!$G$5="Select Hours Model",0,IF(AND(A55>='Employee Details'!$L$9,A55<='Employee Details'!$M$9),'Employee Details'!$K$9,IF(AND(A55>='Employee Details'!$L$10,A55<='Employee Details'!$M$10),'Employee Details'!$K$10,IF(AND(A55>='Employee Details'!$L$11,A55<='Employee Details'!$M$11),'Employee Details'!$K$11,IF(AND(A55>='Employee Details'!$L$12,A55<='Employee Details'!$M$12),'Employee Details'!$K$12,IF(AND(A55>='Employee Details'!$L$13,A55<='Employee Details'!$M$13),'Employee Details'!$K$13,'Employee Details'!$K$9))))))))) -> 0 | P55: 0 | Q55: 0
A56: 2017-05-01 | B56: ='Main Award'!$K59 -> 0 | C56: ='Other 1'!$K59 -> 0 | D56: ='Other 2'!$K59 -> 0 | E56: ='Other 3'!$K59 -> 0 | F56: ='Other 4'!$K59 -> 0 | G56: ='Other 5'!$K59 -> 0 | H56: ='Other 6'!$K59 -> 0 | I56: ='Other 7'!$K59 -> 0 | J56: ='Other 8'!$K59 -> 0 | K56: ='Other 9'!$K59 -> 0 | L56: 0 | M56: =Absence!H57 -> 0 | N56: 0 | O56: =(IF(N56=0,0,IF('Employee Details'!$G$5="Select Hours Model",0,((NETWORKDAYS(A56,EOMONTH(A56,0),0)*'Employee Details'!$G$5/5))))*(IF(N56=0,0,IF('Employee Details'!$G$5="Select Hours Model",0,IF(AND(A56>='Employee Details'!$L$9,A56<='Employee Details'!$M$9),'Employee Details'!$K$9,IF(AND(A56>='Employee Details'!$L$10,A56<='Employee Details'!$M$10),'Employee Details'!$K$10,IF(AND(A56>='Employee Details'!$L$11,A56<='Employee Details'!$M$11),'Employee Details'!$K$11,IF(AND(A56>='Employee Details'!$L$12,A56<='Employee Details'!$M$12),'Employee Details'!$K$12,IF(AND(A56>='Employee Details'!$L$13,A56<='Employee Details'!$M$13),'Employee Details'!$K$13,'Employee Details'!$K$9))))))))) -> 0 | P56: 0 | Q56: 0
A57: 2017-06-01 | B57: ='Main Award'!$K60 -> 0 | C57: ='Other 1'!$K60 -> 0 | D57: ='Other 2'!$K60 -> 0 | E57: ='Other 3'!$K60 -> 0 | F57: ='Other 4'!$K60 -> 0 | G57: ='Other 5'!$K60 -> 0 | H57: ='Other 6'!$K60 -> 0 | I57: ='Other 7'!$K60 -> 0 | J57: ='Other 8'!$K60 -> 0 | K57: ='Other 9'!$K60 -> 0 | L57: 0 | M57: =Absence!H58 -> 0 | N57: 0 | O57: =(IF(N57=0,0,IF('Employee Details'!$G$5="Select Hours Model",0,((NETWORKDAYS(A57,EOMONTH(A57,0),0)*'Employee Details'!$G$5/5))))*(IF(N57=0,0,IF('Employee Details'!$G$5="Select Hours Model",0,IF(AND(A57>='Employee Details'!$L$9,A57<='Employee Details'!$M$9),'Employee Details'!$K$9,IF(AND(A57>='Employee Details'!$L$10,A57<='Employee Details'!$M$10),'Employee Details'!$K$10,IF(AND(A57>='Employee Details'!$L$11,A57<='Employee Details'!$M$11),'Employee Details'!$K$11,IF(AND(A57>='Employee Details'!$L$12,A57<='Employee Details'!$M$12),'Employee Details'!$K$12,IF(AND(A57>='Employee Details'!$L$13,A57<='Employee Details'!$M$13),'Employee Details'!$K$13,'Employee Details'!$K$9))))))))) -> 0 | P57: 0 | Q57: 0
A58: 2017-07-01 | B58: ='Main Award'!$K61 -> 0 | C58: ='Other 1'!$K61 -> 0 | D58: ='Other 2'!$K61 -> 0 | E58: ='Other 3'!$K61 -> 0 | F58: ='Other 4'!$K61 -> 0 | G58: ='Other 5'!$K61 -> 0 | H58: ='Other 6'!$K61 -> 0 | I58: ='Other 7'!$K61 -> 0 | J58: ='Other 8'!$K61 -> 0 | K58: ='Other 9'!$K61 -> 0 | L58: 0 | M58: =Absence!H59 -> 0 | N58: 0 | O58: =(IF(N58=0,0,IF('Employee Details'!$G$5="Select Hours Model",0,((NETWORKDAYS(A58,EOMONTH(A58,0),0)*'Employee Details'!$G$5/5))))*(IF(N58=0,0,IF('Employee Details'!$G$5="Select Hours Model",0,IF(AND(A58>='Employee Details'!$L$9,A58<='Employee Details'!$M$9),'Employee Details'!$K$9,IF(AND(A58>='Employee Details'!$L$10,A58<='Employee Details'!$M$10),'Employee Details'!$K$10,IF(AND(A58>='Employee Details'!$L$11,A58<='Employee Details'!$M$11),'Employee Details'!$K$11,IF(AND(A58>='Employee Details'!$L$12,A58<='Employee Details'!$M$12),'Employee Details'!$K$12,IF(AND(A58>='Employee Details'!$L$13,A58<='Employee Details'!$M$13),'Employee Details'!$K$13,'Employee Details'!$K$9))))))))) -> 0 | P58: 0 | Q58: 0
A59: 2017-08-01 | B59: ='Main Award'!$K62 -> 0 | C59: ='Other 1'!$K62 -> 0 | D59: ='Other 2'!$K62 -> 0 | E59: ='Other 3'!$K62 -> 0 | F59: ='Other 4'!$K62 -> 0 | G59: ='Other 5'!$K62 -> 0 | H59: ='Other 6'!$K62 -> 0 | I59: ='Other 7'!$K62 -> 0 | J59: ='Other 8'!$K62 -> 0 | K59: ='Other 9'!$K62 -> 0 | L59: 0 | M59: =Absence!H60 -> 0 | N59: 0 | O59: =(IF(N59=0,0,IF('Employee Details'!$G$5="Select Hours Model",0,((NETWORKDAYS(A59,EOMONTH(A59,0),0)*'Employee Details'!$G$5/5))))*(IF(N59=0,0,IF('Employee Details'!$G$5="Select Hours Model",0,IF(AND(A59>='Employee Details'!$L$9,A59<='Employee Details'!$M$9),'Employee Details'!$K$9,IF(AND(A59>='Employee Details'!$L$10,A59<='Employee Details'!$M$10),'Employee Details'!$K$10,IF(AND(A59>='Employee Details'!$L$11,A59<='Employee Details'!$M$11),'Employee Details'!$K$11,IF(AND(A59>='Employee Details'!$L$12,A59<='Employee Details'!$M$12),'Employee Details'!$K$12,IF(AND(A59>='Employee Details'!$L$13,A59<='Employee Details'!$M$13),'Employee Details'!$K$13,'Employee Details'!$K$9))))))))) -> 0 | P59: 0 | Q59: 0
A60: 2017-09-01 | B60: ='Main Award'!$K63 -> 0 | C60: ='Other 1'!$K63 -> 0 | D60: ='Other 2'!$K63 -> 0 | E60: ='Other 3'!$K63 -> 0 | F60: ='Other 4'!$K63 -> 0 | G60: ='Other 5'!$K63 -> 0 | H60: ='Other 6'!$K63 -> 0 | I60: ='Other 7'!$K63 -> 0 | J60: ='Other 8'!$K63 -> 0 | K60: ='Other 9'!$K63 -> 0 | L60: 0 | M60: =Absence!H61 -> 0 | N60: 0 | O60: =(IF(N60=0,0,IF('Employee Details'!$G$5="Select Hours Model",0,((NETWORKDAYS(A60,EOMONTH(A60,0),0)*'Employee Details'!$G$5/5))))*(IF(N60=0,0,IF('Employee Details'!$G$5="Select Hours Model",0,IF(AND(A60>='Employee Details'!$L$9,A60<='Employee Details'!$M$9),'Employee Details'!$K$9,IF(AND(A60>='Employee Details'!$L$10,A60<='Employee Details'!$M$10),'Employee Details'!$K$10,IF(AND(A60>='Employee Details'!$L$11,A60<='Employee Details'!$M$11),'Employee Details'!$K$11,IF(AND(A60>='Employee Details'!$L$12,A60<='Employee Details'!$M$12),'Employee Details'!$K$12,IF(AND(A60>='Employee Details'!$L$13,A60<='Employee Details'!$M$13),'Employee Details'!$K$13,'Employee Details'!$K$9))))))))) -> 0 | P60: 0 | Q60: 0
A61: Total | B61: =SUM(B49:B60) -> 0 | C61: 0 | D61: 0 | E61: =SUM(E49:E60) -> 0 | F61: 0 | G61: 0 | H61: 0 | I61: 0 | J61: 0 | K61: 0 | L61: =ROUND(SUM(L49:L60),2) -> 0 | M61: =ROUND(SUM(M49:M60),2) -> 0 | N61: 0 | O61: 0 | P61: 0 | Q61: =IF(O61=0,0,L61/(O61-M61)) -> 0
A63: =EOMONTH(A60,0)+1 -> 2017-10-01 | B63: ='Main Award'!$K66 -> 0 | C63: ='Other 1'!$K66 -> 0 | D63: ='Other 2'!$K66 -> 0 | E63: ='Other 3'!$K66 -> 0 | F63: ='Other 4'!$K66 -> 0 | G63: ='Other 5'!$K66 -> 0 | H63: ='Other 6'!$K66 -> 0 | I63: ='Other 7'!$K66 -> 0 | J63: ='Other 8'!$K66 -> 0 | K63: ='Other 9'!$K66 -> 0 | L63: =SUM(B63:K63) -> 0 | M63: =Absence!H64 -> 0 | N63: =SUM(L63:M63) -> 0 | O63: =(IF(N63=0,0,IF('Employee Details'!$G$5="Select Hours Model",0,((NETWORKDAYS(A63,EOMONTH(A63,0),0)*'Employee Details'!$G$5/5))))*(IF(N63=0,0,IF('Employee Details'!$G$5="Select Hours Model",0,IF(AND(A63>='Employee Details'!$L$9,A63<='Employee Details'!$M$9),'Employee Details'!$K$9,IF(AND(A63>='Employee Details'!$L$10,A63<='Employee Details'!$M$10),'Employee Details'!$K$10,IF(AND(A63>='Employee Details'!$L$11,A63<='Employee Details'!$M$11),'Employee Details'!$K$11,IF(AND(A63>='Employee Details'!$L$12,A63<='Employee Details'!$M$12),'Employee Details'!$K$12,IF(AND(A63>='Employee Details'!$L$13,A63<='Employee Details'!$M$13),'Employee Details'!$K$13,'Employee Details'!$K$9))))))))) -> 0 | P63: =N63-O63 -> 0 | Q63: =IF(L63=0,0,IF(O63=0,0,L63/(O63-M63))) -> 0
A64: =EOMONTH(A63,0)+1 -> 2017-11-01 | B64: ='Main Award'!$K67 -> 0 | C64: ='Other 1'!$K67 -> 0 | D64: ='Other 2'!$K67 -> 0 | E64: ='Other 3'!$K67 -> 0 | F64: ='Other 4'!$K67 -> 0 | G64: ='Other 5'!$K67 -> 0 | H64: ='Other 6'!$K67 -> 0 | I64: ='Other 7'!$K67 -> 0 | J64: ='Other 8'!$K67 -> 0 | K64: ='Other 9'!$K67 -> 0 | L64: =SUM(B64:K64) -> 0 | M64: =Absence!H65 -> 0 | N64: =SUM(L64:M64) -> 0 | O64: =(IF(N64=0,0,IF('Employee Details'!$G$5="Select Hours Model",0,((NETWORKDAYS(A64,EOMONTH(A64,0),0)*'Employee Details'!$G$5/5))))*(IF(N64=0,0,IF('Employee Details'!$G$5="Select Hours Model",0,IF(AND(A64>='Employee Details'!$L$9,A64<='Employee Details'!$M$9),'Employee Details'!$K$9,IF(AND(A64>='Employee Details'!$L$10,A64<='Employee Details'!$M$10),'Employee Details'!$K$10,IF(AND(A64>='Employee Details'!$L$11,A64<='Employee Details'!$M$11),'Employee Details'!$K$11,IF(AND(A64>='Employee Details'!$L$12,A64<='Employee Details'!$M$12),'Employee Details'!$K$12,IF(AND(A64>='Employee Details'!$L$13,A64<='Employee Details'!$M$13),'Employee Details'!$K$13,'Employee Details'!$K$9))))))))) -> 0 | P64: =N64-O64 -> 0 | Q64: 0
A65: =EOMONTH(A64,0)+1 -> 2017-12-01 | B65: ='Main Award'!$K68 -> 0 | C65: ='Other 1'!$K68 -> 0 | D65: ='Other 2'!$K68 -> 0 | E65: ='Other 3'!$K68 -> 0 | F65: ='Other 4'!$K68 -> 0 | G65: ='Other 5'!$K68 -> 0 | H65: ='Other 6'!$K68 -> 0 | I65: ='Other 7'!$K68 -> 0 | J65: ='Other 8'!$K68 -> 0 | K65: ='Other 9'!$K68 -> 0 | L65: 0 | M65: =Absence!H66 -> 0 | N65: 0 | O65: =(IF(N65=0,0,IF('Employee Details'!$G$5="Select Hours Model",0,((NETWORKDAYS(A65,EOMONTH(A65,0),0)*'Employee Details'!$G$5/5))))*(IF(N65=0,0,IF('Employee Details'!$G$5="Select Hours Model",0,IF(AND(A65>='Employee Details'!$L$9,A65<='Employee Details'!$M$9),'Employee Details'!$K$9,IF(AND(A65>='Employee Details'!$L$10,A65<='Employee Details'!$M$10),'Employee Details'!$K$10,IF(AND(A65>='Employee Details'!$L$11,A65<='Employee Details'!$M$11),'Employee Details'!$K$11,IF(AND(A65>='Employee Details'!$L$12,A65<='Employee Details'!$M$12),'Employee Details'!$K$12,IF(AND(A65>='Employee Details'!$L$13,A65<='Employee Details'!$M$13),'Employee Details'!$K$13,'Employee Details'!$K$9))))))))) -> 0 | P65: 0 | Q65: 0
A66: 2018-01-01 | B66: ='Main Award'!$K69 -> 0 | C66: ='Other 1'!$K69 -> 0 | D66: ='Other 2'!$K69 -> 0 | E66: ='Other 3'!$K69 -> 0 | F66: ='Other 4'!$K69 -> 0 | G66: ='Other 5'!$K69 -> 0 | H66: ='Other 6'!$K69 -> 0 | I66: ='Other 7'!$K69 -> 0 | J66: ='Other 8'!$K69 -> 0 | K66: ='Other 9'!$K69 -> 0 | L66: 0 | M66: =Absence!H67 -> 0 | N66: 0 | O66: =(IF(N66=0,0,IF('Employee Details'!$G$5="Select Hours Model",0,((NETWORKDAYS(A66,EOMONTH(A66,0),0)*'Employee Details'!$G$5/5))))*(IF(N66=0,0,IF('Employee Details'!$G$5="Select Hours Model",0,IF(AND(A66>='Employee Details'!$L$9,A66<='Employee Details'!$M$9),'Employee Details'!$K$9,IF(AND(A66>='Employee Details'!$L$10,A66<='Employee Details'!$M$10),'Employee Details'!$K$10,IF(AND(A66>='Employee Details'!$L$11,A66<='Employee Details'!$M$11),'Employee Details'!$K$11,IF(AND(A66>='Employee Details'!$L$12,A66<='Employee Details'!$M$12),'Employee Details'!$K$12,IF(AND(A66>='Employee Details'!$L$13,A66<='Employee Details'!$M$13),'Employee Details'!$K$13,'Employee Details'!$K$9))))))))) -> 0 | P66: 0 | Q66: 0
A67: 2018-02-01 | B67: ='Main Award'!$K70 -> 0 | C67: ='Other 1'!$K70 -> 0 | D67: ='Other 2'!$K70 -> 0 | E67: ='Other 3'!$K70 -> 0 | F67: ='Other 4'!$K70 -> 0 | G67: ='Other 5'!$K70 -> 0 | H67: ='Other 6'!$K70 -> 0 | I67: ='Other 7'!$K70 -> 0 | J67: ='Other 8'!$K70 -> 0 | K67: ='Other 9'!$K70 -> 0 | L67: 0 | M67: =Absence!H68 -> 0 | N67: 0 | O67: =(IF(N67=0,0,IF('Employee Details'!$G$5="Select Hours Model",0,((NETWORKDAYS(A67,EOMONTH(A67,0),0)*'Employee Details'!$G$5/5))))*(IF(N67=0,0,IF('Employee Details'!$G$5="Select Hours Model",0,IF(AND(A67>='Employee Details'!$L$9,A67<='Employee Details'!$M$9),'Employee Details'!$K$9,IF(AND(A67>='Employee Details'!$L$10,A67<='Employee Details'!$M$10),'Employee Details'!$K$10,IF(AND(A67>='Employee Details'!$L$11,A67<='Employee Details'!$M$11),'Employee Details'!$K$11,IF(AND(A67>='Employee Details'!$L$12,A67<='Employee Details'!$M$12),'Employee Details'!$K$12,IF(AND(A67>='Employee Details'!$L$13,A67<='Employee Details'!$M$13),'Employee Details'!$K$13,'Employee Details'!$K$9))))))))) -> 0 | P67: 0 | Q67: 0
A68: 2018-03-01 | B68: ='Main Award'!$K71 -> 0 | C68: ='Other 1'!$K71 -> 0 | D68: ='Other 2'!$K71 -> 0 | E68: ='Other 3'!$K71 -> 0 | F68: ='Other 4'!$K71 -> 0 | G68: ='Other 5'!$K71 -> 0 | H68: ='Other 6'!$K71 -> 0 | I68: ='Other 7'!$K71 -> 0 | J68: ='Other 8'!$K71 -> 0 | K68: ='Other 9'!$K71 -> 0 | L68: 0 | M68: =Absence!H69 -> 0 | N68: 0 | O68: =(IF(N68=0,0,IF('Employee Details'!$G$5="Select Hours Model",0,((NETWORKDAYS(A68,EOMONTH(A68,0),0)*'Employee Details'!$G$5/5))))*(IF(N68=0,0,IF('Employee Details'!$G$5="Select Hours Model",0,IF(AND(A68>='Employee Details'!$L$9,A68<='Employee Details'!$M$9),'Employee Details'!$K$9,IF(AND(A68>='Employee Details'!$L$10,A68<='Employee Details'!$M$10),'Employee Details'!$K$10,IF(AND(A68>='Employee Details'!$L$11,A68<='Employee Details'!$M$11),'Employee Details'!$K$11,IF(AND(A68>='Employee Details'!$L$12,A68<='Employee Details'!$M$12),'Employee Details'!$K$12,IF(AND(A68>='Employee Details'!$L$13,A68<='Employee Details'!$M$13),'Employee Details'!$K$13,'Employee Details'!$K$9))))))))) -> 0 | P68: 0 | Q68: 0
A69: 2018-04-01 | B69: ='Main Award'!$K72 -> 0 | C69: ='Other 1'!$K72 -> 0 | D69: ='Other 2'!$K72 -> 0 | E69: ='Other 3'!$K72 -> 0 | F69: ='Other 4'!$K72 -> 0 | G69: ='Other 5'!$K72 -> 0 | H69: ='Other 6'!$K72 -> 0 | I69: ='Other 7'!$K72 -> 0 | J69: ='Other 8'!$K72 -> 0 | K69: ='Other 9'!$K72 -> 0 | L69: 0 | M69: =Absence!H70 -> 0 | N69: 0 | O69: =(IF(N69=0,0,IF('Employee Details'!$G$5="Select Hours Model",0,((NETWORKDAYS(A69,EOMONTH(A69,0),0)*'Employee Details'!$G$5/5))))*(IF(N69=0,0,IF('Employee Details'!$G$5="Select Hours Model",0,IF(AND(A69>='Employee Details'!$L$9,A69<='Employee Details'!$M$9),'Employee Details'!$K$9,IF(AND(A69>='Employee Details'!$L$10,A69<='Employee Details'!$M$10),'Employee Details'!$K$10,IF(AND(A69>='Employee Details'!$L$11,A69<='Employee Details'!$M$11),'Employee Details'!$K$11,IF(AND(A69>='Employee Details'!$L$12,A69<='Employee Details'!$M$12),'Employee Details'!$K$12,IF(AND(A69>='Employee Details'!$L$13,A69<='Employee Details'!$M$13),'Employee Details'!$K$13,'Employee Details'!$K$9))))))))) -> 0 | P69: 0 | Q69: 0
A70: 2018-05-01 | B70: ='Main Award'!$K73 -> 0 | C70: ='Other 1'!$K73 -> 0 | D70: ='Other 2'!$K73 -> 0 | E70: ='Other 3'!$K73 -> 0 | F70: ='Other 4'!$K73 -> 0 | G70: ='Other 5'!$K73 -> 0 | H70: ='Other 6'!$K73 -> 0 | I70: ='Other 7'!$K73 -> 0 | J70: ='Other 8'!$K73 -> 0 | K70: ='Other 9'!$K73 -> 0 | L70: 0 | M70: =Absence!H71 -> 0 | N70: 0 | O70: =(IF(N70=0,0,IF('Employee Details'!$G$5="Select Hours Model",0,((NETWORKDAYS(A70,EOMONTH(A70,0),0)*'Employee Details'!$G$5/5))))*(IF(N70=0,0,IF('Employee Details'!$G$5="Select Hours Model",0,IF(AND(A70>='Employee Details'!$L$9,A70<='Employee Details'!$M$9),'Employee Details'!$K$9,IF(AND(A70>='Employee Details'!$L$10,A70<='Employee Details'!$M$10),'Employee Details'!$K$10,IF(AND(A70>='Employee Details'!$L$11,A70<='Employee Details'!$M$11),'Employee Details'!$K$11,IF(AND(A70>='Employee Details'!$L$12,A70<='Employee Details'!$M$12),'Employee Details'!$K$12,IF(AND(A70>='Employee Details'!$L$13,A70<='Employee Details'!$M$13),'Employee Details'!$K$13,'Employee Details'!$K$9))))))))) -> 0 | P70: 0 | Q70: 0
A71: 2018-06-01 | B71: ='Main Award'!$K74 -> 0 | C71: ='Other 1'!$K74 -> 0 | D71: ='Other 2'!$K74 -> 0 | E71: ='Other 3'!$K74 -> 0 | F71: ='Other 4'!$K74 -> 0 | G71: ='Other 5'!$K74 -> 0 | H71: ='Other 6'!$K74 -> 0 | I71: ='Other 7'!$K74 -> 0 | J71: ='Other 8'!$K74 -> 0 | K71: ='Other 9'!$K74 -> 0 | L71: 0 | M71: =Absence!H72 -> 0 | N71: 0 | O71: =(IF(N71=0,0,IF('Employee Details'!$G$5="Select Hours Model",0,((NETWORKDAYS(A71,EOMONTH(A71,0),0)*'Employee Details'!$G$5/5))))*(IF(N71=0,0,IF('Employee Details'!$G$5="Select Hours Model",0,IF(AND(A71>='Employee Details'!$L$9,A71<='Employee Details'!$M$9),'Employee Details'!$K$9,IF(AND(A71>='Employee Details'!$L$10,A71<='Employee Details'!$M$10),'Employee Details'!$K$10,IF(AND(A71>='Employee Details'!$L$11,A71<='Employee Details'!$M$11),'Employee Details'!$K$11,IF(AND(A71>='Employee Details'!$L$12,A71<='Employee Details'!$M$12),'Employee Details'!$K$12,IF(AND(A71>='Employee Details'!$L$13,A71<='Employee Details'!$M$13),'Employee Details'!$K$13,'Employee Details'!$K$9))))))))) -> 0 | P71: 0 | Q71: 0
A72: 2018-07-01 | B72: ='Main Award'!$K75 -> 0 | C72: ='Other 1'!$K75 -> 0 | D72: ='Other 2'!$K75 -> 0 | E72: ='Other 3'!$K75 -> 0 | F72: ='Other 4'!$K75 -> 0 | G72: ='Other 5'!$K75 -> 0 | H72: ='Other 6'!$K75 -> 0 | I72: ='Other 7'!$K75 -> 0 | J72: ='Other 8'!$K75 -> 0 | K72: ='Other 9'!$K75 -> 0 | L72: 0 | M72: =Absence!H73 -> 0 | N72: 0 | O72: =(IF(N72=0,0,IF('Employee Details'!$G$5="Select Hours Model",0,((NETWORKDAYS(A72,EOMONTH(A72,0),0)*'Employee Details'!$G$5/5))))*(IF(N72=0,0,IF('Employee Details'!$G$5="Select Hours Model",0,IF(AND(A72>='Employee Details'!$L$9,A72<='Employee Details'!$M$9),'Employee Details'!$K$9,IF(AND(A72>='Employee Details'!$L$10,A72<='Employee Details'!$M$10),'Employee Details'!$K$10,IF(AND(A72>='Employee Details'!$L$11,A72<='Employee Details'!$M$11),'Employee Details'!$K$11,IF(AND(A72>='Employee Details'!$L$12,A72<='Employee Details'!$M$12),'Employee Details'!$K$12,IF(AND(A72>='Employee Details'!$L$13,A72<='Employee Details'!$M$13),'Employee Details'!$K$13,'Employee Details'!$K$9))))))))) -> 0 | P72: 0 | Q72: 0
A73: 2018-08-01 | B73: ='Main Award'!$K76 -> 0 | C73: ='Other 1'!$K76 -> 0 | D73: ='Other 2'!$K76 -> 0 | E73: ='Other 3'!$K76 -> 0 | F73: ='Other 4'!$K76 -> 0 | G73: ='Other 5'!$K76 -> 0 | H73: ='Other 6'!$K76 -> 0 | I73: ='Other 7'!$K76 -> 0 | J73: ='Other 8'!$K76 -> 0 | K73: ='Other 9'!$K76 -> 0 | L73: 0 | M73: =Absence!H74 -> 0 | N73: 0 | O73: =(IF(N73=0,0,IF('Employee Details'!$G$5="Select Hours Model",0,((NETWORKDAYS(A73,EOMONTH(A73,0),0)*'Employee Details'!$G$5/5))))*(IF(N73=0,0,IF('Employee Details'!$G$5="Select Hours Model",0,IF(AND(A73>='Employee Details'!$L$9,A73<='Employee Details'!$M$9),'Employee Details'!$K$9,IF(AND(A73>='Employee Details'!$L$10,A73<='Employee Details'!$M$10),'Employee Details'!$K$10,IF(AND(A73>='Employee Details'!$L$11,A73<='Employee Details'!$M$11),'Employee Details'!$K$11,IF(AND(A73>='Employee Details'!$L$12,A73<='Employee Details'!$M$12),'Employee Details'!$K$12,IF(AND(A73>='Employee Details'!$L$13,A73<='Employee Details'!$M$13),'Employee Details'!$K$13,'Employee Details'!$K$9))))))))) -> 0 | P73: 0 | Q73: 0
A74: 2018-09-01 | B74: ='Main Award'!$K77 -> 0 | C74: ='Other 1'!$K77 -> 0 | D74: ='Other 2'!$K77 -> 0 | E74: ='Other 3'!$K77 -> 0 | F74: ='Other 4'!$K77 -> 0 | G74: ='Other 5'!$K77 -> 0 | H74: ='Other 6'!$K77 -> 0 | I74: ='Other 7'!$K77 -> 0 | J74: ='Other 8'!$K77 -> 0 | K74: ='Other 9'!$K77 -> 0 | L74: 0 | M74: =Absence!H75 -> 0 | N74: 0 | O74: =(IF(N74=0,0,IF('Employee Details'!$G$5="Select Hours Model",0,((NETWORKDAYS(A74,EOMONTH(A74,0),0)*'Employee Details'!$G$5/5))))*(IF(N74=0,0,IF('Employee Details'!$G$5="Select Hours Model",0,IF(AND(A74>='Employee Details'!$L$9,A74<='Employee Details'!$M$9),'Employee Details'!$K$9,IF(AND(A74>='Employee Details'!$L$10,A74<='Employee Details'!$M$10),'Employee Details'!$K$10,IF(AND(A74>='Employee Details'!$L$11,A74<='Employee Details'!$M$11),'Employee Details'!$K$11,IF(AND(A74>='Employee Details'!$L$12,A74<='Employee Details'!$M$12),'Employee Details'!$K$12,IF(AND(A74>='Employee Details'!$L$13,A74<='Employee Details'!$M$13),'Employee Details'!$K$13,'Employee Details'!$K$9))))))))) -> 0 | P74: 0 | Q74: 0
A75: Total | B75: =SUM(B63:B74) -> 0 | C75: 0 | D75: 0 | E75: =SUM(E63:E74) -> 0 | F75: 0 | G75: 0 | H75: 0 | I75: 0 | J75: 0 | K75: 0 | L75: =ROUND(SUM(L63:L74),2) -> 0 | M75: =ROUND(SUM(M63:M74),2) -> 0 | N75: 0 | O75: 0 | P75: 0 | Q75: =IF(O75=0,0,L75/(O75-M75)) -> 0
A77: Grand Total | B77: =B19+B33+B47+B61+B75 -> 214 | C77: =C19+C33+C47+C61+C75 -> 201 | D77: 13 | E77: 0 | F77: 0 | G77: 0 | H77: 0 | I77: 0 | J77: 0 | K77: 0 | L77: 428 | M77: 49 | N77: 477 | O77: 161 | P77: 316 | Q77: =IF(O77=0,0,L77/(O77-M77)) -> 3.821428571

Sheet 5 Year Entire Calendar Period
A1: 5 Year Working Hours Guide - Entire Calendar Peiod
A3: Start | B3: End | C3: Days | D3: 35 hpw | E3: 37 hpw | F3: 37.5 hpw | G3: 40 hpw
A4: ='Employee Details'!$G$6 -> 2013-10-01 | B4: =EOMONTH(A4,11) -> 2014-09-30 | C4: =NETWORKDAYS(A4,B4) -> 261 | D4: =MROUND($C4*7,0.5) -> 1827 | E4: =MROUND($C4*7.4,0.5) -> 1931.5 | F4: =MROUND($C4*7.5,0.5) -> 1957.5 | G4: =MROUND($C4*8,0.5) -> 2088
A5: =DATE(YEAR(A4)+1,MONTH(A4),DAY(A4)) -> 2014-10-01 | B5: =EOMONTH(A5,11) -> 2015-09-30 | C5: =NETWORKDAYS(A5,B5) -> 261 | D5: =MROUND($C5*7,0.5) -> 1827 | E5: =MROUND($C5*7.4,0.5) -> 1931.5 | F5: =MROUND($C5*7.5,0.5) -> 1957.5 | G5: =MROUND($C5*8,0.5) -> 2088
A6: =DATE(YEAR(A5)+1,MONTH(A5),DAY(A5)) -> 2015-10-01 | B6: =EOMONTH(A6,11) -> 2016-09-30 | C6: =NETWORKDAYS(A6,B6) -> 262 | D6: 1834 | E6: 1939 | F6: 1965 | G6: 2096
A7: 2016-10-01 | B7: =EOMONTH(A7,11) -> 2017-09-30 | C7: 260 | D7: 1820 | E7: 1924 | F7: 1950 | G7: 2080
A8: 2017-10-01 | B8: 2018-09-30 | C8: 260 | D8: 1820 | E8: 1924 | F8: 1950 | G8: 2080
A10: Start | B10: End | C10: Days | D10: 35 hpw | E10: 37 hpw | F10: 37.5 hpw | G10: 40 hpw
A11: ='Employee Details'!$G$6 -> 2013-10-01 | B11: =EOMONTH(A11,0) -> 2013-10-31 | C11: =NETWORKDAYS(A11,B11) -> 23 | D11: =MROUND($C11*7,0.5) -> 161 | E11: =MROUND($C11*7.4,0.5) -> 170 | F11: =MROUND($C11*7.5,0.5) -> 172.5 | G11: =MROUND($C11*8,0.5) -> 184
A12: =DATE(YEAR(A11),MONTH(A11)+1,DAY(A11)) -> 2013-11-01 | B12: =EOMONTH(A12,0) -> 2013-11-30 | C12: =NETWORKDAYS(A12,B12) -> 21 | D12: =MROUND($C12*7,0.5) -> 147 | E12: =MROUND($C12*7.4,0.5) -> 155.5 | F12: =MROUND($C12*7.5,0.5) -> 157.5 | G12: =MROUND($C12*8,0.5) -> 168
A13: =DATE(YEAR(A12),MONTH(A12)+1,DAY(A12)) -> 2013-12-01 | B13: 2013-12-31 | C13: =NETWORKDAYS(A13,B13) -> 22 | D13: 154 | E13: 163 | F13: 165 | G13: 176
A14: 2014-01-01 | B14: 2014-01-31 | C14: 23 | D14: 161 | E14: 170 | F14: 172.5 | G14: 184
A15: 2014-02-01 | B15: 2014-02-28 | C15: 20 | D15: 140 | E15: 148 | F15: 150 | G15: 160
A16: 2014-03-01 | B16: 2014-03-31 | C16: 21 | D16: 147 | E16: 155.5 | F16: 157.5 | G16: 168
A17: 2014-04-01 | B17: 2014-04-30 | C17: 22 | D17: 154 | E17: 163 | F17: 165 | G17: 176
A18: 2014-05-01 | B18: 2014-05-31 | C18: 22 | D18: 154 | E18: 163 | F18: 165 | G18: 176
A19: 2014-06-01 | B19: 2014-06-30 | C19: 21 | D19: 147 | E19: 155.5 | F19: 157.5 | G19: 168
A20: 2014-07-01 | B20: 2014-07-31 | C20: 23 | D20: 161 | E20: 170 | F20: 172.5 | G20: 184
A21: 2014-08-01 | B21: 2014-08-31 | C21: 21 | D21: 147 | E21: 155.5 | F21: 157.5 | G21: 168
A22: 2014-09-01 | B22: 2014-09-30 | C22: 22 | D22: 154 | E22: 163 | F22: 165 | G22: 176
A23: 2014-10-01 | B23: 2014-10-31 | C23: 23 | D23: 161 | E23: 170 | F23: 172.5 | G23: 184
A24: 2014-11-01 | B24: 2014-11-30 | C24: 20 | D24: 140 | E24: 148 | F24: 150 | G24: 160
A25: 2014-12-01 | B25: 2014-12-31 | C25: 23 | D25: 161 | E25: 170 | F25: 172.5 | G25: 184
A26: 2015-01-01 | B26: 2015-01-31 | C26: 22 | D26: 154 | E26: 163 | F26: 165 | G26: 176
A27: 2015-02-01 | B27: 2015-02-28 | C27: 20 | D27: 140 | E27: 148 | F27: 150 | G27: 160
A28: 2015-03-01 | B28: 2015-03-31 | C28: 22 | D28: 154 | E28: 163 | F28: 165 | G28: 176
A29: 2015-04-01 | B29: 2015-04-30 | C29: 22 | D29: 154 | E29: 163 | F29: 165 | G29: 176
A30: 2015-05-01 | B30: 2015-05-31 | C30: 21 | D30: 147 | E30: 155.5 | F30: 157.5 | G30: 168
A31: 2015-06-01 | B31: 2015-06-30 | C31: 22 | D31: 154 | E31: 163 | F31: 165 | G31: 176
A32: 2015-07-01 | B32: 2015-07-31 | C32: 23 | D32: 161 | E32: 170 | F32: 172.5 | G32: 184
A33: 2015-08-01 | B33: 2015-08-31 | C33: 21 | D33: 147 | E33: 155.5 | F33: 157.5 | G33: 168
A34: 2015-09-01 | B34: 2015-09-30 | C34: 22 | D34: 154 | E34: 163 | F34: 165 | G34: 176
A35: 2015-10-01 | B35: 2015-10-31 | C35: 22 | D35: 154 | E35: 163 | F35: 165 | G35: 176
A36: 2015-11-01 | B36: 2015-11-30 | C36: 21 | D36: 147 | E36: 155.5 | F36: 157.5 | G36: 168
A37: 2015-12-01 | B37: 2015-12-31 | C37: 23 | D37: 161 | E37: 170 | F37: 172.5 | G37: 184
A38: 2016-01-01 | B38: 2016-01-31 | C38: 21 | D38: 147 | E38: 155.5 | F38: 157.5 | G38: 168
A39: 2016-02-01 | B39: 2016-02-29 | C39: 21 | D39: 147 | E39: 155.5 | F39: 157.5 | G39: 168
A40: 2016-03-01 | B40: 2016-03-31 | C40: 23 | D40: 161 | E40: 170 | F40: 172.5 | G40: 184
A41: 2016-04-01 | B41: 2016-04-30 | C41: 21 | D41: 147 | E41: 155.5 | F41: 157.5 | G41: 168
A42: 2016-05-01 | B42: 2016-05-31 | C42: 22 | D42: 154 | E42: 163 | F42: 165 | G42: 176
A43: 2016-06-01 | B43: 2016-06-30 | C43: 22 | D43: 154 | E43: 163 | F43: 165 | G43: 176
A44: 2016-07-01 | B44: 2016-07-31 | C44: 21 | D44: 147 | E44: 155.5 | F44: 157.5 | G44: 168
A45: 2016-08-01 | B45: 2016-08-31 | C45: 23 | D45: 161 | E45: 170 | F45: 172.5 | G45: 184
A46: 2016-09-01 | B46: 2016-09-30 | C46: 22 | D46: 154 | E46: 163 | F46: 165 | G46: 176
A47: 2016-10-01 | B47: 2016-10-31 | C47: 21 | D47: 147 | E47: 155.5 | F47: 157.5 | G47: 168
A48: 2016-11-01 | B48: 2016-11-30 | C48: 22 | D48: 154 | E48: 163 | F48: 165 | G48: 176
A49: 2016-12-01 | B49: 2016-12-31 | C49: 22 | D49: 154 | E49: 163 | F49: 165 | G49: 176
A50: 2017-01-01 | B50: 2017-01-31 | C50: 22 | D50: 154 | E50: 163 | F50: 165 | G50: 176
A51: 2017-02-01 | B51: 2017-02-28 | C51: 20 | D51: 140 | E51: 148 | F51: 150 | G51: 160
A52: 2017-03-01 | B52: 2017-03-31 | C52: 23 | D52: 161 | E52: 170 | F52: 172.5 | G52: 184
A53: 2017-04-01 | B53: 2017-04-30 | C53: 20 | D53: 140 | E53: 148 | F53: 150 | G53: 160
A54: 2017-05-01 | B54: 2017-05-31 | C54: 23 | D54: 161 | E54: 170 | F54: 172.5 | G54: 184
A55: 2017-06-01 | B55: 2017-06-30 | C55: 22 | D55: 154 | E55: 163 | F55: 165 | G55: 176
A56: 2017-07-01 | B56: 2017-07-31 | C56: 21 | D56: 147 | E56: 155.5 | F56: 157.5 | G56: 168
A57: 2017-08-01 | B57: 2017-08-31 | C57: 23 | D57: 161 | E57: 170 | F57: 172.5 | G57: 184
A58: 2017-09-01 | B58: 2017-09-30 | C58: 21 | D58: 147 | E58: 155.5 | F58: 157.5 | G58: 168
A59: 2017-10-01 | B59: 2017-10-31 | C59: 22 | D59: 154 | E59: 163 | F59: 165 | G59: 176
A60: 2017-11-01 | B60: 2017-11-30 | C60: 22 | D60: 154 | E60: 163 | F60: 165 | G60: 176
A61: 2017-12-01 | B61: 2017-12-31 | C61: 21 | D61: 147 | E61: 155.5 | F61: 157.5 | G61: 168
A62: 2018-01-01 | B62: 2018-01-31 | C62: 23 | D62: 161 | E62: 170 | F62: 172.5 | G62: 184
A63: 2018-02-01 | B63: 2018-02-28 | C63: 20 | D63: 140 | E63: 148 | F63: 150 | G63: 160
A64: 2018-03-01 | B64: 2018-03-31 | C64: 22 | D64: 154 | E64: 163 | F64: 165 | G64: 176
A65: 2018-04-01 | B65: 2018-04-30 | C65: 21 | D65: 147 | E65: 155.5 | F65: 157.5 | G65: 168
A66: 2018-05-01 | B66: 2018-05-31 | C66: 23 | D66: 161 | E66: 170 | F66: 172.5 | G66: 184
A67: 2018-06-01 | B67: 2018-06-30 | C67: 21 | D67: 147 | E67: 155.5 | F67: 157.5 | G67: 168
A68: 2018-07-01 | B68: 2018-07-31 | C68: 22 | D68: 154 | E68: 163 | F68: 165 | G68: 176
A69: 2018-08-01 | B69: 2018-08-31 | C69: 23 | D69: 161 | E69: 170 | F69: 172.5 | G69: 184
A70: 2018-09-01 | B70: 2018-09-30 | C70: 20 | D70: 140 | E70: 148 | F70: 150 | G70: 160

Sheet Instructions
A1: **STEP-BY-STEP INSTRUCTIONS FOR THE COMPLETION OF THE EXCEL TIMESHEET TEMPLATE**
A3: Introduction (Version 4, July 2013):
A5: Some funders are requiring staff working on research projects to complete comprehensive timesheets at employee level. Previously, Imperial College's timesheet template has worked at project level. In order to make it easier for the employee to complete a comprehensive timesheet, we have designed a new timesheet template.
A7: The instructions below may seem long at first glance but the forms have been designed to automate timesheet completion as much as possible after initial 'set up'. It has also been the intention that the instructions below will answer some of the questions you may have.
A9: Instructions:
A10: 1. This timesheet template should be used by all employees apart from Technicians who are employed to work on research projects where the funder may require you to complete timesheets, e.g. EU Commission (all staff) and UK Research Council (all Directly Incurred staff working on more than one project) funded projects. Technicians are required to use TimeSMART ( https://ictsmart3.cc.ic.ac.uk/jtcgi/wte.pyc ) .
A11: 1.1 If you start completing the timesheet template from a certain date and you realise that you should have recorded time from an earlier stage you will need to create a new timesheet record with the correct start date. This is due to formatting issues.
A13: 2. Complete the fields in the 'Employee Details' worksheet
A39: 2.1 Enter your name and College ID Number
A40: 2.2 Select your Department/Division from the pick list
A42: 2.2.1 Although the Head of Department will automatically populate, this cell can be overwritten if for example the HOD has changed
A44: 2.3 Select your title from the pick list
A45: 2.4 Enter your supervisor's name
A46: 2.5 Select your Hours Model (this can be obtained from the employee's contract of employment - please refer to this document if you are in any doubt)
A48: 2.5.1 The hours 35.00 means that you are on a 35 hour contract per week (1,540 hours per year - working 44 weeks per year) - Standard
A49: 2.5.2 The hours 37.00 means that you are on a 37 hour contract per week (1,628 hours per year - working 44 weeks per year) - Research Nurses only
A50: 2.5.3 The hours 37.50 means that you are on a 37.5 hour contract per week (1,650 hours per year - working 44 weeks per year) - Older College Contracts only
A51: 2.5.4 The hours 40.00 means that you are on a 40 hour contract per week (1,760 hours per year - working 44 weeks per year) - Clinicians only
A52: 2.5.5 The remaining 8 weeks are considered as leave entitlement i.e. Bank holidays, College closure days, Annual leave etc.
A54: 2.6 Enter the timesheet start date, e.g. January 2010
A55: 2.7 Complete the % of Full Time Employment section. If you work full time, enter 100%. If you are employed to work 17.5 hrs per week on a 35 hour week pro-rata basis, enter 50% etc.
A56: 2.8 Complete the 'To Date' field if there is a change to your % of Full Time Employment status, e.g. going from full-time to part-time employment. Please ensure to end date the current active line before entering a new % of Full Time Employment status on the next line
A80: 2.9 Click on 'Record Project Man Hours' to move to the 'Main Award' worksheet. On the Main Award worksheet, complete your time worked.
A82: 3. If you are only working on one project, you are only required to complete the 'Main Award' worksheet (see comments on the right of the screen for alternative set-up options).
A83: 3.1 If you are working on more than one project, you will need to complete x number of the 'Other' worksheet depending on the number of projects you are involved in.
A85: 3.1.1 If teaching is part of your employment contract, you also need to record your time spent on teaching on one of the 'Other' worksheets
A100: 3.2 Select the Funding Source
A101: 3.3 Enter the project/account code in the Award/Project Number field.
A103: 3.3.1 For research projects the format should be ABCDE_P12345/P12345_ABCDE. For teaching activities, the format is ABCDE G12345
A105: 3.4 Enter the project's acronym or short title
A106: 3.5 Enter the funder's reference
A107: 3.6 Enter the project type, e.g. Marie Curie, Collaboration project, Programme grant, etc.
A109: 4. As soon as you have selected a funding source, the time recording fields will appear which will allow you to record your time
A137: 4.1 The Period will be automatically populated depending on which Timesheet Start Date that has been entered in the 'Employment Detail' worksheet
A138: 4.2 The Main Award and Other worksheets each allow you to record up to 5 years of time spent per project. A new template will need to be started thereafter.
A139: 4.3 For EU Commission projects, enter your actual productive hours against the headings Research & technological Development, Demonstration, Training, Management, Marie Curie and Other as necessary. Do not record the average contracted hours model, but the actual hours worked under relevant headings during a given month.
A140: 4.4 For UK Research Council funded projects and projects funded by other funders which require timesheet, enter your time against the Other heading
A141: 4.5 Any time spent on Teaching should be recorded against the Other heading
A142: 4.6 Use the Activity/Work Package and Additional Information fields to add any comments which will support the time you record (for CEC projects, this is a requirement and must be completed)
A143: 4.7 The Project FTE% will show how much time you have spent proportionally on each project.
A145: 4.7.1 The 'Recovery Summary' worksheet will track if actual effort is above or below the minimums required in accordance with your contracted hours of employment
A147: 4.8 The EU Commission does not allow you to include hours spent on internal meetings that are not project related
A148: 4.9 Once you have entered your actual hours worked in all applicable time recording worksheet(s), click on 'Record Absence' which will take you to the 'Absence' worksheet
A150: 4.9.1 If you need to record hours worked on other activities, click on 'Record Man Hours Worked on Another Project' which will take you to a new 'Other' worksheet (see 3 and 3.1)
A184: 5. Complete the Authorised Absence worksheet for Annual Leave, Bank Holidays/College Closure, Sickness, Maternity/Paternity Leave or Other reasons
A218: 5.1 One day corresponds to:
A220: 5.1.1 7 hours if you are on a 35-hour weekly contract (Standard contracts)
A221: 5.1.2 7.4 hours if you are on a 37-hour weekly contract (Research Nurses only)
A222: 5.1.3 7.5 hours if you are on a 37.5-hour weekly contract (Older College contracts)
A223: 5.1.4 8 hours if you are on a 40-hour weekly contract (Clinicians only)
A225: 5.2 Once you have entered your authorised absence taken, select the 'Timesheet' worksheet (next sheet along)
A259: 6. Most of the Timesheet worksheet will be completed automatically with information which you entered in the 'Employee Detail', the 'Main Award/Other' and the 'Absence' worksheets
A260: 6.1 To obtain the time recorded for different months, please select from the list of values (displayed as 'January 2010' in the screen shot above)
A326: 6.2 If the employee completing the timesheet is also the Head of Department, the employee will need to request a senior to authorise their timesheet (Faculty Principal, Deputy Rector etc.)
A345: 7 The 'Summary of Hours' worksheet summarises working time across multiple projects.
A376: 7.1 Depending upon how the timesheet template has been set up from the outset, the 'Summary of Hours' worksheet could also summarise project effort by activities or even by work packages
A432: 8 The 'Summary of FTE%' worksheet summarises the proportion of time (FTE%) spent across multiple projects, activities or work packages (example below by work packages)
A465: 8.1 The 'Summary of FTE%' sheet will assist the user to track and monitor hours worked against budgeted or proposed effort (the award)
A467: 8.1.1 This worksheet provides the user with a reasonable approximation, which in all probability will be fairly precise over each 12 month period.
A468: 8.1.2 The precision of the worksheet is however dependant upon certain criteria. For example, accuracy of the data may reduce slightly if there was a mid month change to the employee's working schedule (ICIS). That said, such instances will be rare and even if these do occur, they are not expected to cause any significant variances.
A469: 8.1.3 Faculty Research Services/Joint Research Office would however be able to confirm the actual proportionate charge between projects, activities and WPs (after a review of the timesheets)
A470: 8.1.4 Person effort can also be calculated. In this example, man month effort for WP1 is 6.65 (12 x 55.45% = 6.65) and for WP0 man month effort is 0.30 (8 x 3.92% = 0.30)
A471: 8.1.5 If however recovery is below 100%, this would also need to factored in the final person effort calculation e.g. WP1: ((12 x 55.45% = 6.65) x 90%) = 5.99 (see 'Recovery Summary' sheet)
A473: 9 The 'Recovery Summary' worksheet tracks actual effort against the minimum productive hours required (in accordance with the contracted hours of employment selected)
A516: 9.1 This worksheet firstly consolidates all information held in the timesheet template (hours worked and authorised absence)
A517: 9.2 The worksheet also provides the user with the 'Variance of Hours' against minimum productive hours required (e.g. If hours worked are above or below contracted hours of employment)
A519: 9.2.1 Minimum Productive Hours are simply the number of weekdays in a given month less any authorised absence the employee has taken (i.e. not worked, non-paid activities etc.)
A521: 9.3 The calculation of the minimum productive hours should not be confused with the standard contracted hours models (i.e. 1540, 1628, 1650, 1760 etc.)
A522: 9.4 If however the minimum productive hours are below the employee's standard contracted hours models but recovery is equal to or greater than 100%, this would need to be explained.
A524: 9.4.1 This should only occur when authorised absence recorded is greater than entitlement (see 2.5.5)
A526: 9.5 Column O can be edited if an employee's start or end date occurs mid month (see comments on the 'Recovery Summary' worksheet)
A558: 10. Points to be aware
A559: 10.1 During a reporting period, the monthly hours worked are not necessarily going to be the same (excluding national holidays, there are a different number of weekdays per month). This is acceptable as long as all the contracted hours are worked by the end of a given reporting period. Information on the reporting periods can be found in the award letter/grant agreement.
A560: 10.2 Timesheets must be comprehensive and account for all of an employee’s time (actual productive hours and authorised absence - e.g. the entire calendar period must be accounted for)
A561: 10.3 However, if recovery (across all projects) is less than 100% during the entire reporting period, it means that not all salary costs will be claimed from the funder as the employee has not worked their minimum contracted hours. Minimum contracted hours (also referred to as Minimum productive hours) are simply the number of weekdays in a given month less any authorised absence the employee has taken (i.e. not worked, non-paid activities etc.). See the 'Recovery Summary' sheet for more information.
A562: 10.4 By not completing the 'Absence' sheet, you are stating that no sickness, bank holidays, college closure days or annual leave have been taken. HR records could be checked by external funders or by an auditor. Any differences between records could require an explanation or in a worst case scenario, invalidate the timesheets (not comprehensive).
A563: 10.5 By not completing the 'Activity # or Work Package (CEC_Only)' cell, no reference to time spent on the tasks or work packages included in the Description of Work has been made. This is a CEC requirement and the Commission, External or EU Court auditors could conclude that the timesheets are incomplete/invalid (not comprehensive).
